Workbook

Sheet Commercial
B1: Commercial Servicability Calculator
C2: =Residential!C3 -> Version 5.8 (16 August 2021)
C4: Applicant Name
C6: Proposed Loan Details
C8: New Loan Amount | G8: Interest Rate
C9: Documentation Type | G9: Loan Term (Years)
G10: I/O Term (Years)
G11: P&I Repayment | I11: =IF(I9>I10,-PMT(I8/12,12*(I9-I10),E8),0) -> 0
G12: IO Repayment | I12: =IF(I10>0,E8*I8/12,0) -> 0
C15: Business Loan Details | N15: excluding proposed Pepper loan
E17: Loan Amount | G17: Rate | I17: Actual Loan Repayment (Monthly)
C18: Loan 1
C19: Loan 2
C20: Loan 3
C21: Loan 4
C24: Business Income / Expenses
C26: Business Income | I26: Add Backs
C27: Net Profit Before Tax | I27: Depreciation
C28: Proposed Net CRE Rental Income | I28: Ammortisation
C29: Proposed Gross Residential Rental Income | I29: Interest Paid
I30: Directors Salaries/Fees/Super
I31: Other
C32: Earning Before Interest, Tax, Depreciation & Ammortisation (EBITDA)
E33: =K33+E27+E28+(E29*RentalIncomeShading) -> 0 | I33: Total Add Backs | K33: =SUM(K27:K31) -> 0
C36: Personal Income / Expenses
C38: Applicant Details | E38: Applicant 1 | G38: Applicant 2 | I38: Applicant 3 | K38: Applicant 4
C39: Status
C40: Couple With
C41: Dependants
E42: Enter a Status | G42: Enter a Status | I42: Enter a Status | K42: Enter a Status
C44: Gross Annual Income
C45: Untaxed Allowable Income
C46: Gross Residential Rental Income (Other)
C47: Total Income | E47: =E44+E45+E46*RentalIncomeShading -> 0 | G47: =G44+G45+G46*RentalIncomeShading -> 0 | I47: =I44+I45+I46*RentalIncomeShading -> 0 | K47: =K44+K45+K46*RentalIncomeShading -> 0 | P47: =(E47+G47+I47+K47) -> 0 | Q47: Total Gross Annual Income
C49: Investment Property Loan Balance (personal name)
C50: Tax | E50: =VLOOKUP(E66,IncomeTaxTable,2,TRUE)+MAX(((E66-VLOOKUP(E66,IncomeTaxTable,1,TRUE))*VLOOKUP(E66,IncomeTaxTable,3,TRUE)),0) +IF(E66<=MinimumForPartialLevy,0,IF(E66>MinimumForFullLevy,E66*MedicareFullLevyPerc,(E66-MinimumForPartialLevy)*MedicarePartialLevyPerc)) -> 0 | G50: =VLOOKUP(G66,IncomeTaxTable,2,TRUE)+MAX(((G66-VLOOKUP(G66,IncomeTaxTable,1,TRUE))*VLOOKUP(G66,IncomeTaxTable,3,TRUE)),0) +IF(G66<=MinimumForPartialLevy,0,IF(G66>MinimumForFullLevy,G66*MedicareFullLevyPerc,(G66-MinimumForPartialLevy)*MedicarePartialLevyPerc)) -> 0 | I50: =VLOOKUP(I66,IncomeTaxTable,2,TRUE)+MAX(((I66-VLOOKUP(I66,IncomeTaxTable,1,TRUE))*VLOOKUP(I66,IncomeTaxTable,3,TRUE)),0) +IF(I66<=MinimumForPartialLevy,0,IF(I66>MinimumForFullLevy,I66*MedicareFullLevyPerc,(I66-MinimumForPartialLevy)*MedicarePartialLevyPerc)) -> 0 | K50: =VLOOKUP(K66,IncomeTaxTable,2,TRUE)+MAX(((K66-VLOOKUP(K66,IncomeTaxTable,1,TRUE))*VLOOKUP(K66,IncomeTaxTable,3,TRUE)),0) +IF(K66<=MinimumForPartialLevy,0,IF(K66>MinimumForFullLevy,K66*MedicareFullLevyPerc,(K66-MinimumForPartialLevy)*MedicarePartialLevyPerc)) -> 0
C51: Tax offset for Low Income Earners | E51: =0-(IF(E39="Company",0,MIN(E50,IF(OR(E66<=0,E66>=TaxOffsetMaximumEntitlement),0,TaxOffsetForLowIncomeEarners-IF(E66>TaxOffsetIncomeThreshholds,((E66-TaxOffsetIncomeThreshholds)*TaxOffSetReducedByPerc),0))))+IF(OR(E39="Company",E66="",E66=0),0,IF(VLOOKUP(E66,TaxOffsetForLowIncomeTable,2,TRUE)+(E66-VLOOKUP(E66,TaxOffsetForLowIncomeTable,1,TRUE))*VLOOKUP(E66,TaxOffsetForLowIncomeTable,3,TRUE)<0,0,VLOOKUP(E66,TaxOffsetForLowIncomeTable,2,TRUE)+(E66-VLOOKUP(E66,TaxOffsetForLowIncomeTable,1,TRUE))*VLOOKUP(E66,TaxOffsetForLowIncomeTable,3,TRUE)))) -> 0 | G51: =0-(IF(G39="Company",0,MIN(G50,IF(OR(G66<=0,G66>=TaxOffsetMaximumEntitlement),0,TaxOffsetForLowIncomeEarners-IF(G66>TaxOffsetIncomeThreshholds,((G66-TaxOffsetIncomeThreshholds)*TaxOffSetReducedByPerc),0))))+IF(OR(G39="Company",G66="",G66=0),0,IF(VLOOKUP(G66,TaxOffsetForLowIncomeTable,2,TRUE)+(G66-VLOOKUP(G66,TaxOffsetForLowIncomeTable,1,TRUE))*VLOOKUP(G66,TaxOffsetForLowIncomeTable,3,TRUE)<0,0,VLOOKUP(G66,TaxOffsetForLowIncomeTable,2,TRUE)+(G66-VLOOKUP(G66,TaxOffsetForLowIncomeTable,1,TRUE))*VLOOKUP(G66,TaxOffsetForLowIncomeTable,3,TRUE)))) -> 0 | I51: =0-(IF(I39="Company",0,MIN(I50,IF(OR(I66<=0,I66>=TaxOffsetMaximumEntitlement),0,TaxOffsetForLowIncomeEarners-IF(I66>TaxOffsetIncomeThreshholds,((I66-TaxOffsetIncomeThreshholds)*TaxOffSetReducedByPerc),0))))+IF(OR(I39="Company",I66="",I66=0),0,IF(VLOOKUP(I66,TaxOffsetForLowIncomeTable,2,TRUE)+(I66-VLOOKUP(I66,TaxOffsetForLowIncomeTable,1,TRUE))*VLOOKUP(I66,TaxOffsetForLowIncomeTable,3,TRUE)<0,0,VLOOKUP(I66,TaxOffsetForLowIncomeTable,2,TRUE)+(I66-VLOOKUP(I66,TaxOffsetForLowIncomeTable,1,TRUE))*VLOOKUP(I66,TaxOffsetForLowIncomeTable,3,TRUE)))) -> 0 | K51: =0-(IF(K39="Company",0,MIN(K50,IF(OR(K66<=0,K66>=TaxOffsetMaximumEntitlement),0,TaxOffsetForLowIncomeEarners-IF(K66>TaxOffsetIncomeThreshholds,((K66-TaxOffsetIncomeThreshholds)*TaxOffSetReducedByPerc),0))))+IF(OR(K39="Company",K66="",K66=0),0,IF(VLOOKUP(K66,TaxOffsetForLowIncomeTable,2,TRUE)+(K66-VLOOKUP(K66,TaxOffsetForLowIncomeTable,1,TRUE))*VLOOKUP(K66,TaxOffsetForLowIncomeTable,3,TRUE)<0,0,VLOOKUP(K66,TaxOffsetForLowIncomeTable,2,TRUE)+(K66-VLOOKUP(K66,TaxOffsetForLowIncomeTable,1,TRUE))*VLOOKUP(K66,TaxOffsetForLowIncomeTable,3,TRUE)))) -> 0
C52: Net Income | E52: =E47-(IF(E50+E51>0,E50+E51,0)) -> 0 | G52: =G47-(IF(G50+G51>0,G50+G51,0)) -> 0 | I52: =I47-(IF(I50+I51>0,I50+I51,0)) -> 0 | K52: =K47-(IF(K50+K51>0,K50+K51,0)) -> 0 | P52: =(E52+G52+I52+K52) -> 0 | Q52: Total Net Annual Income
C54: Living Expenses (monthly) | G54: Other Commitments | K54: Per Month
C55: Declared Living Expenses | G55: Rent/Board
G56: Total Credit Card Limit | M56: 3%: | N56: =K56*CreditCardCommitments -> 0
G57: Personal Mortgage Repayments
G58: Other Consumer Debt
C60: Is an Applicant | E60: =OR(E39<>"") -> FALSE | G60: =OR(G39<>"") -> FALSE | I60: =OR(I39<>"") -> FALSE | K60: =OR(K39<>"") -> FALSE
C61: Spouse Dependants | E61: =IFERROR(HLOOKUP(E40,CREApplicantDetailsTable,4,FALSE),0) -> 0 | G61: =IFERROR(HLOOKUP(G40,CREApplicantDetailsTable,4,FALSE),0) -> 0 | I61: =IFERROR(HLOOKUP(I40,CREApplicantDetailsTable,4,FALSE),0) -> 0 | K61: =IFERROR(HLOOKUP(K40,CREApplicantDetailsTable,4,FALSE),0) -> 0
C62: Pepper Status Code | E62: =IF(E$39="Individual (Couple)","P-C",IF(E$39="Individual (Single)","P-S","")) ->  | G62: =IF(G$39="Individual (Couple)","P-C",IF(G$39="Individual (Single)","P-S","")) ->  | I62: =IF(I$39="Individual (Couple)","P-C",IF(I$39="Individual (Single)","P-S","")) ->  | K62: =IF(K$39="Individual (Couple)","P-C",IF(K$39="Individual (Single)","P-S","")) -> 
C63: Pepper Dependents Code | E63: =IF(E$39="Individual (Couple)","P-CD"&INDEX(Validation!$B$21:$B$26,MATCH((E$41+E$61),Validation!$A$21:$A$26,1)),IF(E$39="Individual (Single)","P-SD"&INDEX(Validation!$B$21:$B$26,MATCH((E$41+E$61),Validation!$A$21:$A$26,1)),"")) ->  | G63: =IF(G$39="Individual (Couple)","P-CD"&INDEX(Validation!$B$21:$B$26,MATCH((G$41+G$61),Validation!$A$21:$A$26,1)),IF(G$39="Individual (Single)","P-SD"&INDEX(Validation!$B$21:$B$26,MATCH((G$41+G$61),Validation!$A$21:$A$26,1)),"")) ->  | I63: =IF(I$39="Individual (Couple)","P-CD"&INDEX(Validation!$B$21:$B$26,MATCH((I$41+I$61),Validation!$A$21:$A$26,1)),IF(I$39="Individual (Single)","P-SD"&INDEX(Validation!$B$21:$B$26,MATCH((I$41+I$61),Validation!$A$21:$A$26,1)),"")) ->  | K63: =IF(K$39="Individual (Couple)","P-CD"&INDEX(Validation!$B$21:$B$26,MATCH((K$41+K$61),Validation!$A$21:$A$26,1)),IF(K$39="Individual (Single)","P-SD"&INDEX(Validation!$B$21:$B$26,MATCH((K$41+K$61),Validation!$A$21:$A$26,1)),"")) -> 
C64: Exclude for LE calc | E64: =IFERROR(IF(MATCH(E40,$E$38:$K$38,0)<(COLUMN()-COLUMN($E$38:$K$38)+1),TRUE,FALSE),FALSE) -> FALSE | G64: =IFERROR(IF(MATCH(G40,$E$38:$K$38,0)<(COLUMN()-COLUMN($E$38:$K$38)+1),TRUE,FALSE),FALSE) -> FALSE | I64: =IFERROR(IF(MATCH(I40,$E$38:$K$38,0)<(COLUMN()-COLUMN($E$38:$K$38)+1),TRUE,FALSE),FALSE) -> FALSE | K64: =IFERROR(IF(MATCH(K40,$E$38:$K$38,0)<(COLUMN()-COLUMN($E$38:$K$38)+1),TRUE,FALSE),FALSE) -> FALSE
C66: Total Taxable Income | E66: =MAX(E44+E46*RentalIncomeShading-E49*WorkingsForNegativeGearing,0) -> 0 | G66: =MAX(G44+G46*RentalIncomeShading-G49*WorkingsForNegativeGearing,0) -> 0 | I66: 0 | K66: 0 | P66: =(E66+G66+I66+K66) -> 0 | Q66: Total Taxable Income
C67: Spouse Income | E67: =IFERROR(HLOOKUP(E40,CREApplicantDetailsTable,7,FALSE),0) -> 0 | G67: =IFERROR(HLOOKUP(G40,CREApplicantDetailsTable,7,FALSE),0) -> 0 | I67: =IFERROR(HLOOKUP(I40,CREApplicantDetailsTable,7,FALSE),0) -> 0 | K67: =IFERROR(HLOOKUP(K40,CREApplicantDetailsTable,7,FALSE),0) -> 0
C68: Income Bracket | E68: =IFERROR(HLOOKUP(E44+E67,HemCombinedIncomeRange,3,TRUE),1) -> 1 | G68: =IFERROR(HLOOKUP(G44+G67,HemCombinedIncomeRange,3,TRUE),1) -> 1 | I68: =IFERROR(HLOOKUP(I44+I67,HemCombinedIncomeRange,3,TRUE),1) -> 1 | K68: =IFERROR(HLOOKUP(K44+K67,HemCombinedIncomeRange,3,TRUE),1) -> 1
C69: HEM Living Expense | E69: =IFERROR(IF(AND(E60,NOT(E64)),(VLOOKUP(E62,HemTableForExpenses,E68+1,FALSE) +(VLOOKUP(E63,HemTableForExpenses,E68+1,FALSE))*(E41+E61))*NumberOfWeeksInAYear,0),0) -> 0 | G69: =IFERROR(IF(AND(G60,NOT(G64)),(VLOOKUP(G62,HemTableForExpenses,G68+1,FALSE) +(VLOOKUP(G63,HemTableForExpenses,G68+1,FALSE))*(G41+G61))*NumberOfWeeksInAYear,0),0) -> 0 | I69: =IFERROR(IF(AND(I60,NOT(I64)),(VLOOKUP(I62,HemTableForExpenses,I68+1,FALSE) +(VLOOKUP(I63,HemTableForExpenses,I68+1,FALSE))*(I41+I61))*NumberOfWeeksInAYear,0),0) -> 0 | K69: =IFERROR(IF(AND(K60,NOT(K64)),(VLOOKUP(K62,HemTableForExpenses,K68+1,FALSE) +(VLOOKUP(K63,HemTableForExpenses,K68+1,FALSE))*(K41+K61))*NumberOfWeeksInAYear,0),0) -> 0 | P69: =(E69+G69+I69+K69) -> 0 | Q69: HEM Living Expense
P70: =E55*NumberOfMonthsInAYear -> 0 | Q70: Customer Nominated Living Expenses
P71: =MAX(P69,P70) -> 0 | Q71: Used Living Expenses
P72: =K55*NumberOfMonthsInAYear -> 0 | Q72: Personal rent
P73: =(K57*OtherMortgageRepaymentBuffer+K58+N56)*NumberOfMonthsInAYear -> 0 | Q73: Personal Debt
C78: Results
C81: Business income (EBITDA + net personal contribution) | E81: =E33+P52-P71-P72-P73 -> 0 | G81: Interest Expenses | I81: =(E8*I8)+(E18*G18)+(E19*G19)+(E20*G20)+(E21*G21) -> 0
G82: Debt Repayments | I82: =((SUM(I18:I21)+MAX(I11:I12))*12) -> 0
G85: Interest Coverage Ratio (ICR): | I85: =IFERROR(E81/I81,0) -> 0 | K85: =IF(CRECheckForCompleteness="INCOMPLETE","INCOMPLETE",IF(E9=FullDoc,IF(I85>=MinimumICRFullDoc,"PASS","FAIL"),IF(E9=AltDoc,IF(I85>=MinimumICRAltDoc,"PASS","FAIL"),IF(E9=LeaseDoc,IF(I85>=MinimumICRLeaseDoc,"PASS","FAIL"))))) -> INCOMPLETE
G86: Debt Service Coverage Ratio (DSCR): | I86: =IFERROR(E81/I82,0) -> 0 | K86: =IF(I89="INCOMPLETE","INCOMPLETE",IF(E9=FullDoc,IF(I86>=MinimumDSCRFullDoc,"PASS","FAIL"),IF(E9=AltDoc,IF(I86>=MinimumDSCRAltDoc,"PASS","FAIL"),IF(E9=LeaseDoc,IF(I86>=MinimumDSCRLeaseDoc,"PASS","FAIL"))))) -> INCOMPLETE
I88: Application Status
I89: =IF(OR(E8="",I8="",E9="",I9="",I9<I10),"INCOMPLETE","COMPLETE") -> INCOMPLETE

Sheet CommercialBetterChoice (hidden)
B1: Commercial Better Choice Servicability Calculator
C2: =Residential!C3 -> Version 5.8 (16 August 2021)
C4: Applicant Name
C6: Proposed Loan Details
C8: New Loan Amount | G8: Interest Rate
C9: Documentation Type | G9: Loan Term (Years)
G10: I/O Term (Years)
G11: P&I Repayment | I11: =IF(I9>I10,-PMT(I8/12,12*(I9-I10),E8),0) -> 0
G12: IO Repayment | I12: =IF(I10>0,E8*I8/12,0) -> 0
C15: Business Loan Details | N15: excluding proposed Pepper loan
E17: Loan Amount | G17: Rate | I17: Actual Loan Repayment (Monthly)
C18: Loan 1
C19: Loan 2
C20: Loan 3
C21: Loan 4
C24: Business Income / Expenses
C26: Business Income | I26: Add Backs
C27: Net Profit Before Tax | I27: Depreciation
C28: Proposed Net CRE Rental Income | I28: Ammortisation
C29: Proposed Gross Residential Rental Income | I29: Interest Paid
I30: Directors Salaries/Fees/Super
I31: Other
C32: Earning Before Interest, Tax, Depreciation & Ammortisation (EBITDA)
E33: =K33+E27+E28+(E29*RentalIncomeShading) -> 0 | I33: Total Add Backs | K33: =SUM(K27:K31) -> 0
C36: Personal Income / Expenses
C38: Applicant Details | E38: Applicant 1 | G38: Applicant 2 | I38: Applicant 3 | K38: Applicant 4
C39: Status
C40: Couple With
C41: Dependants
E42: Enter a Status | G42: Enter a Status | I42: Enter a Status | K42: Enter a Status
C44: Gross Annual Income
C45: Untaxed Allowable Income
C46: Gross Residential Rental Income (Other)
C47: Total Income | E47: =E44+E45+E46*RentalIncomeShading -> 0 | G47: =G44+G45+G46*RentalIncomeShading -> 0 | I47: =I44+I45+I46*RentalIncomeShading -> 0 | K47: =K44+K45+K46*RentalIncomeShading -> 0 | P47: =(E47+G47+I47+K47) -> 0 | Q47: Total Gross Annual Income
C49: Investment Property Loan Balance (personal name)
C50: Tax | E50: =VLOOKUP(E66,IncomeTaxTable,2,TRUE)+MAX(((E66-VLOOKUP(E66,IncomeTaxTable,1,TRUE))*VLOOKUP(E66,IncomeTaxTable,3,TRUE)),0) +IF(E66<=MinimumForPartialLevy,0,IF(E66>MinimumForFullLevy,E66*MedicareFullLevyPerc,(E66-MinimumForPartialLevy)*MedicarePartialLevyPerc)) -> 0 | G50: =VLOOKUP(G66,IncomeTaxTable,2,TRUE)+MAX(((G66-VLOOKUP(G66,IncomeTaxTable,1,TRUE))*VLOOKUP(G66,IncomeTaxTable,3,TRUE)),0) +IF(G66<=MinimumForPartialLevy,0,IF(G66>MinimumForFullLevy,G66*MedicareFullLevyPerc,(G66-MinimumForPartialLevy)*MedicarePartialLevyPerc)) -> 0 | I50: =VLOOKUP(I66,IncomeTaxTable,2,TRUE)+MAX(((I66-VLOOKUP(I66,IncomeTaxTable,1,TRUE))*VLOOKUP(I66,IncomeTaxTable,3,TRUE)),0) +IF(I66<=MinimumForPartialLevy,0,IF(I66>MinimumForFullLevy,I66*MedicareFullLevyPerc,(I66-MinimumForPartialLevy)*MedicarePartialLevyPerc)) -> 0 | K50: =VLOOKUP(K66,IncomeTaxTable,2,TRUE)+MAX(((K66-VLOOKUP(K66,IncomeTaxTable,1,TRUE))*VLOOKUP(K66,IncomeTaxTable,3,TRUE)),0) +IF(K66<=MinimumForPartialLevy,0,IF(K66>MinimumForFullLevy,K66*MedicareFullLevyPerc,(K66-MinimumForPartialLevy)*MedicarePartialLevyPerc)) -> 0
C51: Tax offset for Low Income Earners | E51: =0-(IF(E39="Company",0,MIN(E50,IF(OR(E66<=0,E66>=TaxOffsetMaximumEntitlement),0,TaxOffsetForLowIncomeEarners-IF(E66>TaxOffsetIncomeThreshholds,((E66-TaxOffsetIncomeThreshholds)*TaxOffSetReducedByPerc),0))))+IF(OR(E39="Company",E66="",E66=0),0,IF(VLOOKUP(E66,TaxOffsetForLowIncomeTable,2,TRUE)+(E66-VLOOKUP(E66,TaxOffsetForLowIncomeTable,1,TRUE))*VLOOKUP(E66,TaxOffsetForLowIncomeTable,3,TRUE)<0,0,VLOOKUP(E66,TaxOffsetForLowIncomeTable,2,TRUE)+(E66-VLOOKUP(E66,TaxOffsetForLowIncomeTable,1,TRUE))*VLOOKUP(E66,TaxOffsetForLowIncomeTable,3,TRUE)))) -> 0 | G51: =0-(IF(G39="Company",0,MIN(G50,IF(OR(G66<=0,G66>=TaxOffsetMaximumEntitlement),0,TaxOffsetForLowIncomeEarners-IF(G66>TaxOffsetIncomeThreshholds,((G66-TaxOffsetIncomeThreshholds)*TaxOffSetReducedByPerc),0))))+IF(OR(G39="Company",G66="",G66=0),0,IF(VLOOKUP(G66,TaxOffsetForLowIncomeTable,2,TRUE)+(G66-VLOOKUP(G66,TaxOffsetForLowIncomeTable,1,TRUE))*VLOOKUP(G66,TaxOffsetForLowIncomeTable,3,TRUE)<0,0,VLOOKUP(G66,TaxOffsetForLowIncomeTable,2,TRUE)+(G66-VLOOKUP(G66,TaxOffsetForLowIncomeTable,1,TRUE))*VLOOKUP(G66,TaxOffsetForLowIncomeTable,3,TRUE)))) -> 0 | I51: =0-(IF(I39="Company",0,MIN(I50,IF(OR(I66<=0,I66>=TaxOffsetMaximumEntitlement),0,TaxOffsetForLowIncomeEarners-IF(I66>TaxOffsetIncomeThreshholds,((I66-TaxOffsetIncomeThreshholds)*TaxOffSetReducedByPerc),0))))+IF(OR(I39="Company",I66="",I66=0),0,IF(VLOOKUP(I66,TaxOffsetForLowIncomeTable,2,TRUE)+(I66-VLOOKUP(I66,TaxOffsetForLowIncomeTable,1,TRUE))*VLOOKUP(I66,TaxOffsetForLowIncomeTable,3,TRUE)<0,0,VLOOKUP(I66,TaxOffsetForLowIncomeTable,2,TRUE)+(I66-VLOOKUP(I66,TaxOffsetForLowIncomeTable,1,TRUE))*VLOOKUP(I66,TaxOffsetForLowIncomeTable,3,TRUE)))) -> 0 | K51: =0-(IF(K39="Company",0,MIN(K50,IF(OR(K66<=0,K66>=TaxOffsetMaximumEntitlement),0,TaxOffsetForLowIncomeEarners-IF(K66>TaxOffsetIncomeThreshholds,((K66-TaxOffsetIncomeThreshholds)*TaxOffSetReducedByPerc),0))))+IF(OR(K39="Company",K66="",K66=0),0,IF(VLOOKUP(K66,TaxOffsetForLowIncomeTable,2,TRUE)+(K66-VLOOKUP(K66,TaxOffsetForLowIncomeTable,1,TRUE))*VLOOKUP(K66,TaxOffsetForLowIncomeTable,3,TRUE)<0,0,VLOOKUP(K66,TaxOffsetForLowIncomeTable,2,TRUE)+(K66-VLOOKUP(K66,TaxOffsetForLowIncomeTable,1,TRUE))*VLOOKUP(K66,TaxOffsetForLowIncomeTable,3,TRUE)))) -> 0
C52: Net Income | E52: =E47-(IF(E50+E51>0,E50+E51,0)) -> 0 | G52: =G47-(IF(G50+G51>0,G50+G51,0)) -> 0 | I52: =I47-(IF(I50+I51>0,I50+I51,0)) -> 0 | K52: =K47-(IF(K50+K51>0,K50+K51,0)) -> 0 | P52: =(E52+G52+I52+K52) -> 0 | Q52: Total Net Annual Income
C54: Living Expenses (monthly) | G54: Other Commitments | K54: Per Month
C55: Declared Living Expenses | G55: Rent/Board
G56: Total Credit Card Limit | M56: 3%: | N56: =K56*CreditCardCommitments -> 0
G57: Personal Mortgage Repayments
G58: Other Consumer Debt
C60: Is an Applicant | E60: =OR(E39<>"") -> FALSE | G60: =OR(G39<>"") -> FALSE | I60: =OR(I39<>"") -> FALSE | K60: =OR(K39<>"") -> FALSE
C61: Spouse Dependants | E61: =IFERROR(HLOOKUP(E40,CREApplicantDetailsTableBetterChoice,4,FALSE),0) -> 0 | G61: =IFERROR(HLOOKUP(G40,CREApplicantDetailsTableBetterChoice,4,FALSE),0) -> 0 | I61: =IFERROR(HLOOKUP(I40,CREApplicantDetailsTableBetterChoice,4,FALSE),0) -> 0 | K61: =IFERROR(HLOOKUP(K40,CREApplicantDetailsTableBetterChoice,4,FALSE),0) -> 0
C62: Pepper Status Code | E62: =IF(E$39="Individual (Couple)","P-C",IF(E$39="Individual (Single)","P-S","")) ->  | G62: =IF(G$39="Individual (Couple)","P-C",IF(G$39="Individual (Single)","P-S","")) ->  | I62: =IF(I$39="Individual (Couple)","P-C",IF(I$39="Individual (Single)","P-S","")) ->  | K62: =IF(K$39="Individual (Couple)","P-C",IF(K$39="Individual (Single)","P-S","")) -> 
C63: Pepper Dependents Code | E63: =IF(E$39="Individual (Couple)","P-CD"&INDEX(Validation!$B$21:$B$26,MATCH((E$41+E$61),Validation!$A$21:$A$26,1)),IF(E$39="Individual (Single)","P-SD"&INDEX(Validation!$B$21:$B$26,MATCH((E$41+E$61),Validation!$A$21:$A$26,1)),"")) ->  | G63: =IF(G$39="Individual (Couple)","P-CD"&INDEX(Validation!$B$21:$B$26,MATCH((G$41+G$61),Validation!$A$21:$A$26,1)),IF(G$39="Individual (Single)","P-SD"&INDEX(Validation!$B$21:$B$26,MATCH((G$41+G$61),Validation!$A$21:$A$26,1)),"")) ->  | I63: =IF(I$39="Individual (Couple)","P-CD"&INDEX(Validation!$B$21:$B$26,MATCH((I$41+I$61),Validation!$A$21:$A$26,1)),IF(I$39="Individual (Single)","P-SD"&INDEX(Validation!$B$21:$B$26,MATCH((I$41+I$61),Validation!$A$21:$A$26,1)),"")) ->  | K63: =IF(K$39="Individual (Couple)","P-CD"&INDEX(Validation!$B$21:$B$26,MATCH((K$41+K$61),Validation!$A$21:$A$26,1)),IF(K$39="Individual (Single)","P-SD"&INDEX(Validation!$B$21:$B$26,MATCH((K$41+K$61),Validation!$A$21:$A$26,1)),"")) -> 
C64: Exclude for LE calc | E64: =IFERROR(IF(MATCH(E40,$E$38:$K$38,0)<(COLUMN()-COLUMN($E$38:$K$38)+1),TRUE,FALSE),FALSE) -> FALSE | G64: =IFERROR(IF(MATCH(G40,$E$38:$K$38,0)<(COLUMN()-COLUMN($E$38:$K$38)+1),TRUE,FALSE),FALSE) -> FALSE | I64: =IFERROR(IF(MATCH(I40,$E$38:$K$38,0)<(COLUMN()-COLUMN($E$38:$K$38)+1),TRUE,FALSE),FALSE) -> FALSE | K64: =IFERROR(IF(MATCH(K40,$E$38:$K$38,0)<(COLUMN()-COLUMN($E$38:$K$38)+1),TRUE,FALSE),FALSE) -> FALSE
C66: Total Taxable Income | E66: =MAX(E44+E46*RentalIncomeShading-E49*WorkingsForNegativeGearing,0) -> 0 | G66: =MAX(G44+G46*RentalIncomeShading-G49*WorkingsForNegativeGearing,0) -> 0 | I66: 0 | K66: 0 | P66: =(E66+G66+I66+K66) -> 0 | Q66: Total Taxable Income
C67: Spouse Income | E67: =IFERROR(HLOOKUP(E40,CREApplicantDetailsTableBetterChoice,7,FALSE),0) -> 0 | G67: =IFERROR(HLOOKUP(G40,CREApplicantDetailsTableBetterChoice,7,FALSE),0) -> 0 | I67: =IFERROR(HLOOKUP(I40,CREApplicantDetailsTableBetterChoice,7,FALSE),0) -> 0 | K67: =IFERROR(HLOOKUP(K40,CREApplicantDetailsTableBetterChoice,7,FALSE),0) -> 0
C68: Income Bracket | E68: =IFERROR(HLOOKUP(E44+E67,HemCombinedIncomeRange,3,TRUE),1) -> 1 | G68: =IFERROR(HLOOKUP(G44+G67,HemCombinedIncomeRange,3,TRUE),1) -> 1 | I68: =IFERROR(HLOOKUP(I44+I67,HemCombinedIncomeRange,3,TRUE),1) -> 1 | K68: =IFERROR(HLOOKUP(K44+K67,HemCombinedIncomeRange,3,TRUE),1) -> 1
C69: HEM Living Expense | E69: =IFERROR(IF(AND(E60,NOT(E64)),(VLOOKUP(E62,HemTableForExpenses,E68+1,FALSE) +(VLOOKUP(E63,HemTableForExpenses,E68+1,FALSE))*(E41+E61))*NumberOfWeeksInAYear,0),0) -> 0 | G69: =IFERROR(IF(AND(G60,NOT(G64)),(VLOOKUP(G62,HemTableForExpenses,G68+1,FALSE) +(VLOOKUP(G63,HemTableForExpenses,G68+1,FALSE))*(G41+G61))*NumberOfWeeksInAYear,0),0) -> 0 | I69: =IFERROR(IF(AND(I60,NOT(I64)),(VLOOKUP(I62,HemTableForExpenses,I68+1,FALSE) +(VLOOKUP(I63,HemTableForExpenses,I68+1,FALSE))*(I41+I61))*NumberOfWeeksInAYear,0),0) -> 0 | K69: =IFERROR(IF(AND(K60,NOT(K64)),(VLOOKUP(K62,HemTableForExpenses,K68+1,FALSE) +(VLOOKUP(K63,HemTableForExpenses,K68+1,FALSE))*(K41+K61))*NumberOfWeeksInAYear,0),0) -> 0 | P69: =(E69+G69+I69+K69) -> 0 | Q69: HEM Living Expense
P70: =E55*NumberOfMonthsInAYear -> 0 | Q70: Customer Nominated Living Expenses
P71: =MAX(P69,P70) -> 0 | Q71: Used Living Expenses
P72: =K55*NumberOfMonthsInAYear -> 0 | Q72: Personal rent
P73: =(K57*OtherMortgageRepaymentBuffer+K58+N56)*NumberOfMonthsInAYear -> 0 | Q73: Personal Debt
C78: Results
C81: Business income (EBITDA + net personal contribution) | E81: =E33+P52-P71-P72-P73 -> 0 | G81: Interest Expenses | I81: =(E8*I8)+(E18*G18)+(E19*G19)+(E20*G20)+(E21*G21) -> 0
G82: Debt Repayments | I82: =((SUM(I18:I21)+MAX(I11:I12))*12) -> 0
G85: Interest Coverage Ratio (ICR): | I85: =IFERROR(E81/I81,0) -> 0 | K85: =IF(CRECheckForCompletenessBetterChoice="INCOMPLETE","INCOMPLETE",IF(E9=FullDoc,IF(I85>=MinimumICRFullDoc,"PASS","FAIL"),IF(E9=AltDoc,IF(I85>=MinimumICRAltDoc,"PASS","FAIL"),IF(E9=LeaseDoc,IF(I85>=MinimumICRLeaseDoc,"PASS","FAIL"))))) -> INCOMPLETE
G86: Debt Service Coverage Ratio (DSCR): | I86: =IFERROR(E81/I82,0) -> 0 | K86: =IF(I89="INCOMPLETE","INCOMPLETE",IF(E9=FullDoc,IF(I86>=MinimumDSCRFullDocBetterChoice,"PASS",IF(I86>=MinimumDSCRFullDocWithMessageBetterChoice,MinimumDSCRConditionMessageBetterChoice,"FAIL")),IF(E9=AltDoc,IF(I86>=MinimumDSCRAltDocBetterChoice,"PASS",IF(I86>=MinimumDSCRAltDocWithMessageBetterChoice,MinimumDSCRConditionMessageBetterChoice,"FAIL")),IF(E9=LeaseDoc,IF(I86>=MinimumDSCRLeaseDocBetterChoice,"PASS",IF(I86>=MinimumDSCRLeaseDocWithMessageBetterChoice,MinimumDSCRConditionMessageBetterChoice,"FAIL")))))) -> INCOMPLETE
I88: Application Status
I89: =IF(OR(E8="",I8="",E9="",I9="",I9<I10),"INCOMPLETE","COMPLETE") -> INCOMPLETE

Sheet Residential
C2: Serviceability Calculator
C3: Version 5.8 (16 August 2021)
C6: Applicant Name
C8: Loan Details
C9: (including capitalised fees) | G9: WAVG Assessment Rate | I9: =MAX(BaselineAssessmentRate,ResiWAVGInterestRate+AssessmentLoading) -> 0.055
C10: New Loan Amount | G10: Interest Rate | H10: 5 | K10: Loan Term | O10: IO Term
C11: New Loan Amount
C12: Total Loan Amount | E12: =SUM(E10:E11) -> 0 | G12: WAVG Interest Rate | I12: =IF(ResiNewLoanTotalAmount=0,0,((ResiNewLoanAmount1*ResiInterestRate1)+(ResiNewLoanAmount2*ResiInterestRate2))/ResiNewLoanTotalAmount) -> 0 | K12: WAVG Loan Term | M12: =IF(ResiNewLoanTotalAmount=0,0,((ResiNewLoanAmount1*ResiLoanTerm1)+(ResiNewLoanAmount2*ResiLoanTerm2))/ResiNewLoanTotalAmount) -> 0 | O12: WAVG IO Term | P12: =IF(ResiNewLoanTotalAmount=0,0,((ResiNewLoanAmount1*ResiLoanIOTerm1)+(ResiNewLoanAmount2*ResiLoanIOTerm2))/ResiNewLoanTotalAmount) -> 0
K13: =IF(ResiWAVGLoanTerm>MaximumLoanTermInYearsForPrimeLoans, "Loans Terms > " & MaximumLoanTermInYearsForPrimeLoans & " years not available on Prime", " ") -> 
C14: Applicant Details: | E14: Applicant 1 | G14: Applicant 2 | I14: Applicant 3 | K14: Applicant 4 | M14: Applicant 5 | O14: Applicant 6 | R14: Total
C15: Status
C16: Individual (Couple) With | D16: Applicant 1
C17: Dependants
E18: =IF(AND(SUM(E19:E23,E25:E26)<>0,E15=""),"Enter a Status","") ->  | G18: =IF(AND(SUM(G19:G23,G25:G26)<>0,G15=""),"Enter a Status","") ->  | I18: =IF(AND(SUM(I19:I23,I25:I26)<>0,I15=""),"Enter a Status","") ->  | K18: =IF(AND(SUM(K19:K23,K25:K26)<>0,K15=""),"Enter a Status","") ->  | M18: =IF(AND(SUM(M19:M23,M25:M26)<>0,M15=""),"Enter a Status","") ->  | O18: =IF(AND(SUM(O19:O23,O25:O26)<>0,O15=""),"Enter a Status","") -> 
C19: Gross Annual Income
C20: Untaxed Allowable Income | R20: =(E20+G20+I20+K20+M20+O20) -> 0
C21: Self Employed Income
C22: Addbacks
C23: Business NPBT
C25: Gross Rental Income
C26: Investment Property Loan Balance
C27: Total Income | E27: =E25*RentalIncomeShading+E19+E20+E21+E22+E23 -> 0 | G27: =G25*RentalIncomeShading+G19+G20+G21+G22+G23 -> 0 | I27: =I25*RentalIncomeShading+I19+I20+I21+I22+I23 -> 0 | K27: =K25*RentalIncomeShading+K19+K20+K21+K22+K23 -> 0 | M27: =M25*RentalIncomeShading+M19+M20+M21+M22+M23 -> 0 | O27: =O25*RentalIncomeShading+O19+O20+O21+O22+O23 -> 0 | R27: =(E27+G27+I27+K27+M27+O27) -> 0
C28: Is an Applicant | E28: =AND(E15<>"") -> FALSE | G28: =AND(G15<>"") -> FALSE | I28: =AND(I15<>"") -> FALSE | K28: =AND(K15<>"") -> FALSE | M28: =AND(M15<>"") -> FALSE | O28: =AND(O15<>"") -> FALSE
C29: Spouse Dependants | E29: =IFERROR(HLOOKUP(E16,ResiApplicantDetailsTable,4,FALSE),0) -> 0 | G29: =IFERROR(HLOOKUP(G16,ResiApplicantDetailsTable,4,FALSE),0) -> 0 | I29: =IFERROR(HLOOKUP(I16,ResiApplicantDetailsTable,4,FALSE),0) -> 0 | K29: =IFERROR(HLOOKUP(K16,ResiApplicantDetailsTable,4,FALSE),0) -> 0 | M29: =IFERROR(HLOOKUP(M16,ResiApplicantDetailsTable,4,FALSE),0) -> 0 | O29: =IFERROR(HLOOKUP(O16,ResiApplicantDetailsTable,4,FALSE),0) -> 0
C30: Pepper Status Code | D30: Applicant 1 | E30: =IF(E$15="Individual (Couple)","P-C",IF(E$15="Individual (Single)","P-S","")) ->  | G30: =IF(G$15="Individual (Couple)","P-C",IF(G$15="Individual (Single)","P-S","")) ->  | I30: =IF(I$15="Individual (Couple)","P-C",IF(I$15="Individual (Single)","P-S","")) ->  | K30: =IF(K$15="Individual (Couple)","P-C",IF(K$15="Individual (Single)","P-S","")) ->  | M30: =IF(M$15="Individual (Couple)","P-C",IF(M$15="Individual (Single)","P-S","")) ->  | O30: =IF(O$15="Individual (Couple)","P-C",IF(O$15="Individual (Single)","P-S","")) -> 
C31: Pepper Dependents Code | E31: =IF(E$15="Individual (Couple)","P-CD"&INDEX(Validation!$B$21:$B$26,MATCH((E$17+E$29),Validation!$A$21:$A$26,1)),IF(E$15="Individual (Single)","P-SD"&INDEX(Validation!$B$21:$B$26,MATCH((E$17+E$29),Validation!$A$21:$A$26,1)),"")) ->  | G31: =IF(G$15="Individual (Couple)","P-CD"&INDEX(Validation!$B$21:$B$26,MATCH((G$17+G$29),Validation!$A$21:$A$26,1)),IF(G$15="Individual (Single)","P-SD"&INDEX(Validation!$B$21:$B$26,MATCH((G$17+G$29),Validation!$A$21:$A$26,1)),"")) ->  | I31: =IF(I$15="Individual (Couple)","P-CD"&INDEX(Validation!$B$21:$B$26,MATCH((I$17+I$29),Validation!$A$21:$A$26,1)),IF(I$15="Individual (Single)","P-SD"&INDEX(Validation!$B$21:$B$26,MATCH((I$17+I$29),Validation!$A$21:$A$26,1)),"")) ->  | K31: =IF(K$15="Individual (Couple)","P-CD"&INDEX(Validation!$B$21:$B$26,MATCH((K$17+K$29),Validation!$A$21:$A$26,1)),IF(K$15="Individual (Single)","P-SD"&INDEX(Validation!$B$21:$B$26,MATCH((K$17+K$29),Validation!$A$21:$A$26,1)),"")) ->  | M31: =IF(M$15="Individual (Couple)","P-CD"&INDEX(Validation!$B$21:$B$26,MATCH((M$17+M$29),Validation!$A$21:$A$26,1)),IF(M$15="Individual (Single)","P-SD"&INDEX(Validation!$B$21:$B$26,MATCH((M$17+M$29),Validation!$A$21:$A$26,1)),"")) ->  | O31: =IF(O$15="Individual (Couple)","P-CD"&INDEX(Validation!$B$21:$B$26,MATCH((O$17+O$29),Validation!$A$21:$A$26,1)),IF(O$15="Individual (Single)","P-SD"&INDEX(Validation!$B$21:$B$26,MATCH((O$17+O$29),Validation!$A$21:$A$26,1)),"")) -> 
C32: Exclude for LE calc | E32: =IFERROR(IF(MATCH(E16,$E$14:$O$14,0)<(COLUMN()-COLUMN($E$14:$O$14)+1),TRUE,FALSE),FALSE) -> FALSE | G32: =IFERROR(IF(MATCH(G16,$E$14:$O$14,0)<(COLUMN()-COLUMN($E$14:$O$14)+1),TRUE,FALSE),FALSE) -> FALSE | I32: =IFERROR(IF(MATCH(I16,$E$14:$O$14,0)<(COLUMN()-COLUMN($E$14:$O$14)+1),TRUE,FALSE),FALSE) -> FALSE | K32: =IFERROR(IF(MATCH(K16,$E$14:$O$14,0)<(COLUMN()-COLUMN($E$14:$O$14)+1),TRUE,FALSE),FALSE) -> FALSE | M32: =IFERROR(IF(MATCH(M16,$E$14:$O$14,0)<(COLUMN()-COLUMN($E$14:$O$14)+1),TRUE,FALSE),FALSE) -> FALSE | O32: =IFERROR(IF(MATCH(O16,$E$14:$O$14,0)<(COLUMN()-COLUMN($E$14:$O$14)+1),TRUE,FALSE),FALSE) -> FALSE
C33: Workings for Negative Gearing | E33: =IF(E26>0,E26*WorkingsForNegativeGearing+($G$51*12*(E26/SUM($E$26,$G$26,$I$26,$K$26,$M$26,$O$26))),0) -> 0 | G33: =IF(G26>0,G26*WorkingsForNegativeGearing+($G$51*12*(G26/SUM($E$26,$G$26,$I$26,$K$26,$M$26,$O$26))),0) -> 0 | I33: =IF(I26>0,I26*WorkingsForNegativeGearing+($G$51*12*(I26/SUM($E$26,$G$26,$I$26,$K$26,$M$26,$O$26))),0) -> 0 | K33: =IF(K26>0,K26*WorkingsForNegativeGearing+($G$51*12*(K26/SUM($E$26,$G$26,$I$26,$K$26,$M$26,$O$26))),0) -> 0 | M33: =IF(M26>0,M26*WorkingsForNegativeGearing+($G$51*12*(M26/SUM($E$26,$G$26,$I$26,$K$26,$M$26,$O$26))),0) -> 0 | O33: =IF(O26>0,O26*WorkingsForNegativeGearing+($G$51*12*(O26/SUM($E$26,$G$26,$I$26,$K$26,$M$26,$O$26))),0) -> 0
C34: Total Taxable Income Exc Business NPBT | E34: =MAX(0,E19+E25*RentalIncomeShading-E33+E21) -> 0 | G34: =MAX(0,G19+G25*RentalIncomeShading-G33+G21) -> 0 | I34: =MAX(0,I19+I25*RentalIncomeShading-I33+I21) -> 0 | K34: =MAX(0,K19+K25*RentalIncomeShading-K33+K21) -> 0 | M34: =MAX(0,M19+M25*RentalIncomeShading-M33+M21) -> 0 | O34: =MAX(0,O19+O25*RentalIncomeShading-O33+O21) -> 0 | R34: =(E34+G34+I34+K34+M34+O34) -> 0
C35: Spouse Income | E35: =IFERROR(HLOOKUP(E16,$E$14:$O$27,ROWS($E$14:$O$27),FALSE),0)-IFERROR(HLOOKUP(E16,$E$14:$O$33,ROWS($E$14:$O$33),FALSE),0) -> 0 | G35: =IFERROR(HLOOKUP(G16,$E$14:$O$27,ROWS($E$14:$O$27),FALSE),0)-IFERROR(HLOOKUP(G16,$E$14:$O$33,ROWS($E$14:$O$33),FALSE),0) -> 0 | I35: =IFERROR(HLOOKUP(I16,$E$14:$O$27,ROWS($E$14:$O$27),FALSE),0)-IFERROR(HLOOKUP(I16,$E$14:$O$33,ROWS($E$14:$O$33),FALSE),0) -> 0 | K35: =IFERROR(HLOOKUP(K16,$E$14:$O$27,ROWS($E$14:$O$27),FALSE),0)-IFERROR(HLOOKUP(K16,$E$14:$O$33,ROWS($E$14:$O$33),FALSE),0) -> 0 | M35: =IFERROR(HLOOKUP(M16,$E$14:$O$27,ROWS($E$14:$O$27),FALSE),0)-IFERROR(HLOOKUP(M16,$E$14:$O$33,ROWS($E$14:$O$33),FALSE),0) -> 0 | O35: =IFERROR(HLOOKUP(O16,$E$14:$O$27,ROWS($E$14:$O$27),FALSE),0)-IFERROR(HLOOKUP(O16,$E$14:$O$33,ROWS($E$14:$O$33),FALSE),0) -> 0
C36: Income Bracket | E36: =IFERROR(HLOOKUP(E27+E35-E33,HemCombinedIncomeRange,3,TRUE),1) -> 1 | G36: =IFERROR(HLOOKUP(G27+G35-G33,HemCombinedIncomeRange,3,TRUE),1) -> 1 | I36: =IFERROR(HLOOKUP(I27+I35-I33,HemCombinedIncomeRange,3,TRUE),1) -> 1 | K36: =IFERROR(HLOOKUP(K27+K35-K33,HemCombinedIncomeRange,3,TRUE),1) -> 1 | M36: =IFERROR(HLOOKUP(M27+M35-M33,HemCombinedIncomeRange,3,TRUE),1) -> 1 | O36: =IFERROR(HLOOKUP(O27+O35-O33,HemCombinedIncomeRange,3,TRUE),1) -> 1
C37: Tax | E37: =IF(E15="Company",E34*CompanyTax,INDEX(TaxForBracket,MATCH(E34,TaxBracketMin,1))+INDEX(TaxRate,MATCH(E34,TaxBracketMin,1))*(E34-INDEX(TaxBracketMin,MATCH(E34,TaxBracketMin,1)))+IF(E34<='Tax Table'!$B$6,0,IF(E34<='Tax Table'!$B$7,(E34-'Tax Table'!$B$6)*'Tax Table'!$C$6,E34*'Tax Table'!$C$7)))+(E23*CompanyTax) -> 0 | G37: =IF(G15="Company",G34*CompanyTax,INDEX(TaxForBracket,MATCH(G34,TaxBracketMin,1))+INDEX(TaxRate,MATCH(G34,TaxBracketMin,1))*(G34-INDEX(TaxBracketMin,MATCH(G34,TaxBracketMin,1)))+IF(G34<='Tax Table'!$B$6,0,IF(G34<='Tax Table'!$B$7,(G34-'Tax Table'!$B$6)*'Tax Table'!$C$6,G34*'Tax Table'!$C$7)))+(G23*CompanyTax) -> 0 | I37: =IF(I15="Company",I34*CompanyTax,INDEX(TaxForBracket,MATCH(I34,TaxBracketMin,1))+INDEX(TaxRate,MATCH(I34,TaxBracketMin,1))*(I34-INDEX(TaxBracketMin,MATCH(I34,TaxBracketMin,1)))+IF(I34<='Tax Table'!$B$6,0,IF(I34<='Tax Table'!$B$7,(I34-'Tax Table'!$B$6)*'Tax Table'!$C$6,I34*'Tax Table'!$C$7)))+(I23*CompanyTax) -> 0 | K37: =IF(K15="Company",K34*CompanyTax,INDEX(TaxForBracket,MATCH(K34,TaxBracketMin,1))+INDEX(TaxRate,MATCH(K34,TaxBracketMin,1))*(K34-INDEX(TaxBracketMin,MATCH(K34,TaxBracketMin,1)))+IF(K34<='Tax Table'!$B$6,0,IF(K34<='Tax Table'!$B$7,(K34-'Tax Table'!$B$6)*'Tax Table'!$C$6,K34*'Tax Table'!$C$7)))+(K23*CompanyTax) -> 0 | M37: =IF(M15="Company",M34*CompanyTax,INDEX(TaxForBracket,MATCH(M34,TaxBracketMin,1))+INDEX(TaxRate,MATCH(M34,TaxBracketMin,1))*(M34-INDEX(TaxBracketMin,MATCH(M34,TaxBracketMin,1)))+IF(M34<='Tax Table'!$B$6,0,IF(M34<='Tax Table'!$B$7,(M34-'Tax Table'!$B$6)*'Tax Table'!$C$6,M34*'Tax Table'!$C$7)))+(M23*CompanyTax) -> 0 | O37: =IF(O15="Company",O34*CompanyTax,INDEX(TaxForBracket,MATCH(O34,TaxBracketMin,1))+INDEX(TaxRate,MATCH(O34,TaxBracketMin,1))*(O34-INDEX(TaxBracketMin,MATCH(O34,TaxBracketMin,1)))+IF(O34<='Tax Table'!$B$6,0,IF(O34<='Tax Table'!$B$7,(O34-'Tax Table'!$B$6)*'Tax Table'!$C$6,O34*'Tax Table'!$C$7)))+(O23*CompanyTax) -> 0
C38: Tax offset for Low Income Earners | E38: =0-(IF(E15="Company",0,MIN(E37,IF(OR(E34<=0,E34>=TaxOffsetMaximumEntitlement),0,TaxOffsetForLowIncomeEarners-IF(E34>TaxOffsetIncomeThreshholds,((E34-TaxOffsetIncomeThreshholds)*TaxOffSetReducedByPerc),0))))+IF(OR(E15="Company",E34="",E34=0),0,IF(VLOOKUP(E34,TaxOffsetForLowIncomeTable,2,TRUE)+(E34-VLOOKUP(E34,TaxOffsetForLowIncomeTable,1,TRUE))*VLOOKUP(E34,TaxOffsetForLowIncomeTable,3,TRUE)<0,0,VLOOKUP(E34,TaxOffsetForLowIncomeTable,2,TRUE)+(E34-VLOOKUP(E34,TaxOffsetForLowIncomeTable,1,TRUE))*VLOOKUP(E34,TaxOffsetForLowIncomeTable,3,TRUE)))) -> 0 | G38: =0-(IF(G15="Company",0,MIN(G37,IF(OR(G34<=0,G34>=TaxOffsetMaximumEntitlement),0,TaxOffsetForLowIncomeEarners-IF(G34>TaxOffsetIncomeThreshholds,((G34-TaxOffsetIncomeThreshholds)*TaxOffSetReducedByPerc),0))))+IF(OR(G15="Company",G34="",G34=0),0,IF(VLOOKUP(G34,TaxOffsetForLowIncomeTable,2,TRUE)+(G34-VLOOKUP(G34,TaxOffsetForLowIncomeTable,1,TRUE))*VLOOKUP(G34,TaxOffsetForLowIncomeTable,3,TRUE)<0,0,VLOOKUP(G34,TaxOffsetForLowIncomeTable,2,TRUE)+(G34-VLOOKUP(G34,TaxOffsetForLowIncomeTable,1,TRUE))*VLOOKUP(G34,TaxOffsetForLowIncomeTable,3,TRUE)))) -> 0 | I38: =0-(IF(I15="Company",0,MIN(I37,IF(OR(I34<=0,I34>=TaxOffsetMaximumEntitlement),0,TaxOffsetForLowIncomeEarners-IF(I34>TaxOffsetIncomeThreshholds,((I34-TaxOffsetIncomeThreshholds)*TaxOffSetReducedByPerc),0))))+IF(OR(I15="Company",I34="",I34=0),0,IF(VLOOKUP(I34,TaxOffsetForLowIncomeTable,2,TRUE)+(I34-VLOOKUP(I34,TaxOffsetForLowIncomeTable,1,TRUE))*VLOOKUP(I34,TaxOffsetForLowIncomeTable,3,TRUE)<0,0,VLOOKUP(I34,TaxOffsetForLowIncomeTable,2,TRUE)+(I34-VLOOKUP(I34,TaxOffsetForLowIncomeTable,1,TRUE))*VLOOKUP(I34,TaxOffsetForLowIncomeTable,3,TRUE)))) -> 0 | K38: =0-(IF(K15="Company",0,MIN(K37,IF(OR(K34<=0,K34>=TaxOffsetMaximumEntitlement),0,TaxOffsetForLowIncomeEarners-IF(K34>TaxOffsetIncomeThreshholds,((K34-TaxOffsetIncomeThreshholds)*TaxOffSetReducedByPerc),0))))+IF(OR(K15="Company",K34="",K34=0),0,IF(VLOOKUP(K34,TaxOffsetForLowIncomeTable,2,TRUE)+(K34-VLOOKUP(K34,TaxOffsetForLowIncomeTable,1,TRUE))*VLOOKUP(K34,TaxOffsetForLowIncomeTable,3,TRUE)<0,0,VLOOKUP(K34,TaxOffsetForLowIncomeTable,2,TRUE)+(K34-VLOOKUP(K34,TaxOffsetForLowIncomeTable,1,TRUE))*VLOOKUP(K34,TaxOffsetForLowIncomeTable,3,TRUE)))) -> 0 | M38: =0-(IF(M15="Company",0,MIN(M37,IF(OR(M34<=0,M34>=TaxOffsetMaximumEntitlement),0,TaxOffsetForLowIncomeEarners-IF(M34>TaxOffsetIncomeThreshholds,((M34-TaxOffsetIncomeThreshholds)*TaxOffSetReducedByPerc),0))))+IF(OR(M15="Company",M34="",M34=0),0,IF(VLOOKUP(M34,TaxOffsetForLowIncomeTable,2,TRUE)+(M34-VLOOKUP(M34,TaxOffsetForLowIncomeTable,1,TRUE))*VLOOKUP(M34,TaxOffsetForLowIncomeTable,3,TRUE)<0,0,VLOOKUP(M34,TaxOffsetForLowIncomeTable,2,TRUE)+(M34-VLOOKUP(M34,TaxOffsetForLowIncomeTable,1,TRUE))*VLOOKUP(M34,TaxOffsetForLowIncomeTable,3,TRUE)))) -> 0 | O38: =0-(IF(O15="Company",0,MIN(O37,IF(OR(O34<=0,O34>=TaxOffsetMaximumEntitlement),0,TaxOffsetForLowIncomeEarners-IF(O34>TaxOffsetIncomeThreshholds,((O34-TaxOffsetIncomeThreshholds)*TaxOffSetReducedByPerc),0))))+IF(OR(O15="Company",O34="",O34=0),0,IF(VLOOKUP(O34,TaxOffsetForLowIncomeTable,2,TRUE)+(O34-VLOOKUP(O34,TaxOffsetForLowIncomeTable,1,TRUE))*VLOOKUP(O34,TaxOffsetForLowIncomeTable,3,TRUE)<0,0,VLOOKUP(O34,TaxOffsetForLowIncomeTable,2,TRUE)+(O34-VLOOKUP(O34,TaxOffsetForLowIncomeTable,1,TRUE))*VLOOKUP(O34,TaxOffsetForLowIncomeTable,3,TRUE)))) -> 0
C39: Net | E39: =E27-(IF(E37+E38>0,E37+E38,0)) -> 0 | G39: =G27-(IF(G37+G38>0,G37+G38,0)) -> 0 | I39: =I27-(IF(I37+I38>0,I37+I38,0)) -> 0 | K39: =K27-(IF(K37+K38>0,K37+K38,0)) -> 0 | M39: =M27-(IF(M37+M38>0,M37+M38,0)) -> 0 | O39: =O27-(IF(O37+O38>0,O37+O38,0)) -> 0 | R39: =(E39+G39+I39+K39+M39+O39) -> 0
C40: HEM Living Expense | E40: =IFERROR(IF(AND(E28,NOT(E32)),(VLOOKUP(E30,HemTableForExpenses,E36+1,FALSE) +(VLOOKUP(E31,HemTableForExpenses,E36+1,FALSE))*(E17+E29))*NumberOfWeeksInAYear,0),0) -> 0 | G40: =IFERROR(IF(AND(G28,NOT(G32)),(VLOOKUP(G30,HemTableForExpenses,G36+1,FALSE) +(VLOOKUP(G31,HemTableForExpenses,G36+1,FALSE))*(G17+G29))*NumberOfWeeksInAYear,0),0) -> 0 | I40: =IFERROR(IF(AND(I28,NOT(I32)),(VLOOKUP(I30,HemTableForExpenses,I36+1,FALSE) +(VLOOKUP(I31,HemTableForExpenses,I36+1,FALSE))*(I17+I29))*NumberOfWeeksInAYear,0),0) -> 0 | K40: =IFERROR(IF(AND(K28,NOT(K32)),(VLOOKUP(K30,HemTableForExpenses,K36+1,FALSE) +(VLOOKUP(K31,HemTableForExpenses,K36+1,FALSE))*(K17+K29))*NumberOfWeeksInAYear,0),0) -> 0 | M40: =IFERROR(IF(AND(M28,NOT(M32)),(VLOOKUP(M30,HemTableForExpenses,M36+1,FALSE) +(VLOOKUP(M31,HemTableForExpenses,M36+1,FALSE))*(M17+M29))*NumberOfWeeksInAYear,0),0) -> 0 | O40: =IFERROR(IF(AND(O28,NOT(O32)),(VLOOKUP(O30,HemTableForExpenses,O36+1,FALSE) +(VLOOKUP(O31,HemTableForExpenses,O36+1,FALSE))*(O17+O29))*NumberOfWeeksInAYear,0),0) -> 0 | R40: 0
K41: Customer Nominated Living Expenses | R41: =SUM(G50:G62)*12 -> 0
M42: Living Expense Used | R42: =MAX(R40:R41) -> 0
M43: Net Available Income | R43: =R39-R42 -> 0
C47: Commitments
C49: Living Expenses: | G49: Per Month | I49: Other Commitments: | M49: Per Month
C50: Owner occupied property utilities, rates & costs | I50: Rent/Board
C51: Investment property utilities, rates & costs | I51: Total Credit Card Limit | N51: 34 | O51: =TEXT(CreditCardCommitments,"0.00%")&": "&M51*CreditCardCommitments -> 3.82%: 0 | R51: =M51*CreditCardCommitments -> 0
C52: Rented property costs | I52: Other Mortgage Repayments
C53: Telephone, Internet, Pay TV & Media Streaming | I53: Other Liabilities
C54: Groceries
C55: Recreation & Entertainment
C56: Clothing & Personal Care
C57: Medical & Health
C58: Transport | K58: To assist in verifying the customers living expenses, please provide last 3 months transaction bank statements
C59: Insurance
C60: Other Living Expenses
C61: Education
C62: Childcare
C65: Results
C67: Actual Rate: | E67: Monthly | G67: Annual | I67: Assessment Rate: | M67: Monthly | O67: Annual
C68: Total Income | E68: =G68/NumberOfMonthsInAYear -> 0 | G68: =$R$27 -> 0 | K68: Total Income | M68: =O68/NumberOfMonthsInAYear -> 0 | O68: =$R$27 -> 0
C69: Net Income | E69: =G69/NumberOfMonthsInAYear -> 0 | G69: =$R$39 -> 0 | K69: Net Income | M69: =R39/NumberOfMonthsInAYear -> 0 | O69: =$R$39 -> 0
C70: Living Costs | E70: =G70/NumberOfMonthsInAYear -> 0 | G70: =$R$42 -> 0 | K70: Living Costs | M70: =O70/NumberOfMonthsInAYear -> 0 | O70: =$R$42 -> 0
C71: Net Available Income | E71: =IFERROR(G71/NumberOfMonthsInAYear,0) -> 0 | G71: =$G$69-$G$70 -> 0 | K71: Net Available Income | M71: =IFERROR(O71/NumberOfMonthsInAYear,0) -> 0 | O71: =$O$69-$O$70 -> 0
C72: Proposed Repayments | E72: =IFERROR(-PMT(ResiInterestRate1/NumberOfMonthsInAYear,(ResiLoanTerm1-ResiLoanIOTerm1)*NumberOfMonthsInAYear,ResiNewLoanAmount1),0)+IFERROR(-PMT(ResiInterestRate2/NumberOfMonthsInAYear,(ResiLoanTerm2-ResiLoanIOTerm2)*NumberOfMonthsInAYear,ResiNewLoanAmount2),0) -> 0 | G72: =E72*NumberOfMonthsInAYear -> 0 | K72: Proposed Repayments | M72: =IFERROR(-PMT(ResiAssessmentRate1/NumberOfMonthsInAYear,(ResiLoanTerm1-ResiLoanIOTerm1)*NumberOfMonthsInAYear,ResiNewLoanAmount1),0)+IFERROR(-PMT(ResiAssessmentRate2/NumberOfMonthsInAYear,(ResiLoanTerm2-ResiLoanIOTerm2)*NumberOfMonthsInAYear,ResiNewLoanAmount2),0) -> 0 | O72: =M72*NumberOfMonthsInAYear -> 0
C73: Other Commitments | E73: =IFERROR(G73/NumberOfMonthsInAYear,0) -> 0 | G73: =O73 -> 0 | K73: Other Commitments | M73: =IFERROR(O73/NumberOfMonthsInAYear,0) -> 0 | O73: =($M$52*OtherMortgageRepaymentBuffer+$M$53+$R$51+$M$50)*NumberOfMonthsInAYear -> 0
C75: NSR: | E75: =IF(K80="INCOMPLETE",0,IFERROR(ROUNDDOWN(G71/(G72+G73),2),0)) -> 0 | G75: =IF(OR(ResiCheckForCompleteness="INCOMPLETE",ResiTotalIncome=0),"INCOMPLETE",IF(AND(IF(AND(ResiTotalUntaxedAvailableIncome<>0,ResiTotalUntaxedAvailableIncome/ResiTotalIncome>AllowableGovernmentAllowanceOverTotalIncomeLimitation),ResiActualNSR>=AcceptableNSRForGovernmentIncome,TRUE),(ResiActualNSR>=AcceptableNSRForAllOtherApplicants)),"PASS","FAIL")) -> INCOMPLETE | K75: NSR: | M75: =IF(K80="INCOMPLETE",0,IFERROR(ROUNDDOWN(O71/(O72+O73),2),0)) -> 0 | O75: =IF(OR(ResiCheckForCompleteness="INCOMPLETE",ResiTotalIncome=0),"INCOMPLETE",IF(AND(IF(AND(ResiTotalUntaxedAvailableIncome<>0,ResiTotalUntaxedAvailableIncome/ResiTotalIncome>AllowableGovernmentAllowanceOverTotalIncomeLimitation),ResiAssessmentNSR>=AcceptableNSRForGovernmentIncome,TRUE),(ResiAssessmentNSR>=AcceptableNSRForAllOtherApplicants)),"PASS","FAIL")) -> INCOMPLETE
C76: DSR: | E76: =IF(K80="INCOMPLETE","-",IFERROR((G72+G73-(M50*12))/R27,"-")) -> - | K76: DSR: | M76: =IF(K80="INCOMPLETE","-",IFERROR((O72 +O73-(M50*12))/R27,"-")) -> -
K79: Application Status
K80: =IF(OR(ResiNewLoanTotalAmount="",ResiWAVGInterestRate="",ResiWAVGLoanTerm="",E15="",R27=0,E18<>"",G18<>"",I18<>"",K18<>"",M18<>"",O18<>"",M10<=I9,G50="",G51="",G52="",G53="",G54="",G55="",G56="",G57="",G58="",G59="",G60="",G61="",G62=""),"INCOMPLETE","COMPLETE") -> INCOMPLETE
G82: Eligible Loan Amount | M82: =IF(O75="INCOMPLETE",O75,MAX(0,IF(O75="PASS",ResiNewLoanTotalAmount,IFERROR(-PV(ResiWAVGAssessmentRate/12,(ResiWAVGLoanTerm-ResiWAVGLoanIOTerm)*12,ROUNDDOWN(((O71-(O73*(IF(AND(ResiTotalUntaxedAvailableIncome<>0,ResiTotalUntaxedAvailableIncome/ResiTotalIncome>AllowableGovernmentAllowanceOverTotalIncomeLimitation),AcceptableNSRForGovernmentIncome,AcceptableNSRForAllOtherApplicants))))/(NumberOfMonthsInAYear*(IF(AND(ResiTotalUntaxedAvailableIncome<>0,ResiTotalUntaxedAvailableIncome/ResiTotalIncome>AllowableGovernmentAllowanceOverTotalIncomeLimitation),AcceptableNSRForGovernmentIncome,AcceptableNSRForAllOtherApplicants)))),0),0),0)))) -> INCOMPLETE
G84: Maximum Serviceable Loan Amount | M84: =IF(O75="INCOMPLETE",O75,MAX(0,IFERROR(-PV(ResiWAVGAssessmentRate/12,(ResiWAVGLoanTerm-ResiWAVGLoanIOTerm)*12,ROUNDDOWN(((O71-(O73*(IF(AND(ResiTotalUntaxedAvailableIncome<>0,ResiTotalUntaxedAvailableIncome/ResiTotalIncome>AllowableGovernmentAllowanceOverTotalIncomeLimitation),AcceptableNSRForGovernmentIncome,AcceptableNSRForAllOtherApplicants))))/(NumberOfMonthsInAYear*(IF(AND(ResiTotalUntaxedAvailableIncome<>0,ResiTotalUntaxedAvailableIncome/ResiTotalIncome>AllowableGovernmentAllowanceOverTotalIncomeLimitation),AcceptableNSRForGovernmentIncome,AcceptableNSRForAllOtherApplicants)))),0),0),0))) -> INCOMPLETE
C85: Net Service Ratio (NSR) Requirements (using Assessment Rate)
C86: All applicants: NSR must be ≥ 1.00 | I86: Where LVR > 90%: NSR must be ≥ 1.35
C87: Construction loans: NSR must be ≥ 1.10
C88: Applicants with majority income as Government Allowances (eg. Pensions, Family Tax Benefits): NSR must be ≥ 1.25
C89: Important Information: This calculator is to be used as a guide only as to borrowing power based on the basic information provided. It is not an offer of credit or a quote. Lending criteria, terms and conditions, fees and charges will apply should a borrower apply for credit. Pepper Money Limited ABN 55 094 317 665 Australian credit licence 286655

Sheet SEIC
B1: Self-Employed Income Calculator
C3: Business 1 | N3: Business 2
C5: Business Name | N5: Business Name
D7: Most Recent Year | F7: Previous Year | O7: Most Recent Year | Q7: Previous Year
C8: Financial year end date (DD/MM/YYYY) | N8: Financial year end date (DD/MM/YYYY) | P8: 42551
C10: Gross Business Income | N10: Gross Business Income
C11: less expenses | N11: less expenses
C12: plus superannuation over 9.5% | N12: plus superannuation over 9.5%
C14: plus depreciation | N14: plus depreciation
C15: plus interest / leasing charges | N15: plus interest / leasing charges
C17: less Ongoing Business Loan REPAYMENTS | N17: less Ongoing Business Loan REPAYMENTS
H18: Total Business Income | S18: Total Business Income
C19: Director Wages: | H19: Most Recent Year | I19: Previous Year | N19: Director Wages: | S19: Most Recent Year | T19: Previous Year
C20: Applicant 1 | H20: =(D$10-D$11+D$12-D$17)*D28+D20 -> 0 | I20: =(F$10-F$11+F$12-D$17)*F28+F20 -> 0 | N20: Applicant 1 | S20: =(O$10-O$11+O$12-O$17)*O28+O20 -> 0 | T20: =(Q$10-Q$11+Q$12-O$17)*Q28+Q20 -> 0
C21: Applicant 2 | H21: =(D$10-D$11+D$12-D$17)*D29+D21 -> 0 | I21: =(F$10-F$11+F$12-D$17)*F29+F21 -> 0 | N21: Applicant 2 | S21: =(O$10-O$11+O$12-O$17)*O29+O21 -> 0 | T21: =(Q$10-Q$11+Q$12-O$17)*Q29+Q21 -> 0
C22: Applicant 3 | H22: 0 | I22: 0 | N22: Applicant 3 | S22: 0 | T22: 0
C23: Applicant 4 | H23: 0 | I23: 0 | N23: Applicant 4 | S23: 0 | T23: 0
C24: Applicant 5 | H24: 0 | I24: 0 | N24: Applicant 5 | S24: 0 | T24: 0
C25: Applicant 6 | H25: 0 | I25: 0 | N25: Applicant 6 | S25: 0 | T25: 0
H26: Untaxed Addbacks | S26: Untaxed Addbacks
C27: Applicant's Entitlement: | H27: Most Recent Year | I27: Previous Year | N27: Applicant's Entitlement: | S27: Most Recent Year | T27: Previous Year
C28: Applicant 1 | H28: =(D$15+D$14)*$D28 -> 0 | I28: =(F$15+F$14)*$F28 -> 0 | N28: Applicant 1 | S28: =(O$15+O$14)*$O28 -> 0 | T28: =(Q$15+Q$14)*$Q28 -> 0
C29: Applicant 2 | H29: 0 | I29: 0 | N29: Applicant 2 | S29: 0 | T29: 0
C30: Applicant 3 | H30: 0 | I30: 0 | N30: Applicant 3 | S30: 0 | T30: 0
C31: Applicant 4 | H31: 0 | I31: 0 | N31: Applicant 4 | S31: 0 | T31: 0
C32: Applicant 5 | H32: 0 | I32: 0 | N32: Applicant 5 | S32: 0 | T32: 0
C33: Applicant 6 | H33: 0 | I33: 0 | N33: Applicant 6 | S33: 0 | T33: 0
D34: =IF(SUM(D28:D33)>100%,"Check: >100%","") ->  | F34: =IF(SUM(F28:F33)>100%,"Check","") ->  | O34: =IF(SUM(O28:O33)>100%,"Check: >100%","") ->  | Q34: =IF(SUM(Q28:Q33)>100%,"Check","") -> 
C35: Calculations: Business 1 | N35: Calculations: Business 2
D37: Self-Employed Income | O37: Self-Employed Income
C38: Applicant 1 | D38: =IF(H20>I20,AVERAGE(H20,I20),H20) -> 0 | N38: Applicant 1 | O38: =IF(S20>T20,AVERAGE(S20,T20),S20) -> 0
C39: Applicant 2 | D39: 0 | N39: Applicant 2 | O39: 0
C40: Applicant 3 | D40: 0 | N40: Applicant 3 | O40: 0
C41: Applicant 4 | D41: 0 | N41: Applicant 4 | O41: 0
C42: Applicant 5 | D42: 0 | N42: Applicant 5 | O42: 0
C43: Applicant 6 | D43: 0 | N43: Applicant 6 | O43: 0
D45: Addbacks | O45: Addbacks
C46: Applicant 1 | D46: =IF(H28>I28,AVERAGE(H28,I28),H28) -> 0 | N46: Applicant 1 | O46: =IF(S28>T28,AVERAGE(S28,T28),S28) -> 0
C47: Applicant 2 | D47: 0 | N47: Applicant 2 | O47: 0
C48: Applicant 3 | D48: 0 | N48: Applicant 3 | O48: 0
C49: Applicant 4 | D49: 0 | N49: Applicant 4 | O49: 0
C50: Applicant 5 | D50: 0 | N50: Applicant 5 | O50: 0
C51: Applicant 6 | D51: 0 | N51: Applicant 6 | O51: 0
C56: Outputs
D58: Self-Employed Income
C59: Applicant 1 | D59: =D38+O38 -> 0
C60: Applicant 2 | D60: 0
C61: Applicant 3 | D61: 0
C62: Applicant 4 | D62: 0
C63: Applicant 5 | D63: 0
C64: Applicant 6 | D64: 0
D66: Addbacks
C67: Applicant 1 | D67: =D46+O46 -> 0
C68: Applicant 2 | D68: 0
C69: Applicant 3 | D69: 0
C70: Applicant 4 | D70: 0
C71: Applicant 5 | D71: 0
C72: Applicant 6 | D72: 0

Sheet HEM Table (hidden)
A1: Combined Couple Gross Income | C1: =B2 -> 0 | D1: =C2 -> 21000 | E1: =D2 -> 32000 | F1: 43000 | G1: 53000 | H1: 64000 | I1: 85000 | J1: 107000 | K1: 128000 | L1: 150000 | M1: 171000 | N1: 214000 | O1: 267000 | P1: 321000 | S1: Higher income band used as data not available for income band
A2: HEM 2021Q1 | C2: 21000 | D2: 32000 | E2: 43000 | F2: 53000 | G2: 64000 | H2: 85000 | I2: 107000 | J2: 128000 | K2: 150000 | L2: 171000 | M2: 214000 | N2: 267000 | O2: 321000 | P2: 999999999
C3: 1 | D3: 2 | E3: 3 | F3: 4 | G3: 5 | H3: 6 | I3: 7 | J3: 8 | K3: 9 | L3: 10 | M3: 11 | N3: 12 | O3: 13 | P3: 14
A4: Pepper - Proposed
A5: Single | B5: P-S | C5: =C25 -> 253.9748505 | D5: =D25 -> 267.7274013 | E5: 280.9159058 | F5: 301.1808385 | G5: 335.3147374 | H5: 387.8675986 | I5: 458.0783392 | J5: 521.6366583 | K5: 604.080895 | L5: 640.5454672 | M5: 684.7878593 | N5: 793.0512637 | O5: 909.5677076 | P5: 951.7437176
A6: Couple | B6: P-C | C6: =D6 -> 495.1857432 | D6: =D20 -> 495.1857432 | E6: 508.3726037 | F6: 528.6350575 | G6: 562.7647218 | H6: 615.3111062 | I6: 685.5132032 | J6: 749.0636891 | K6: 831.4977652 | L6: 867.9578434 | M6: 912.194783 | N6: 1020.444882 | O6: 1136.946929 | P6: 1179.117704
A7: Single parent with 1 child (per child) | B7: P-SD1 | C7: =D7 -> 91.36133793 | D7: =IF(D26-D25<0,0,D26-D25) -> 91.36133793 | E7: 91.29231397 | F7: 91.18630608 | G7: 91.00769999 | H7: 90.73273069 | I7: 90.36538035 | J7: 90.03280932 | K7: 89.60145962 | L7: 89.41063112 | M7: 89.17918124 | N7: 88.61272089 | O7: 88.00302309 | P7: 87.78242205
A8: Single parent with 2 children (per child) | B8: P-SD2 | C8: 90.0825958 | D8: =IF(D27-D25<0,0,D27-D25)/2 -> 90.0825958 | E8: 90.03417597 | F8: 89.95978769 | G8: 89.83447236 | H8: 89.64154996 | I8: 89.38380982 | J8: 89.15047697 | K8: 88.84783209 | L8: 88.71397006 | M8: 88.55154628 | N8: 88.1541373 | O8: 87.72638508 | P8: 87.57153779
A9: Single parent with 3 children (per child) | B9: P-SD3 | C9: 92.89748034 | D9: =E9 -> 92.89748034 | E9: =IF(E28-E25<0,0,E28-E25)/3 -> 92.89748034 | F9: 92.95821259 | G9: 93.06050218 | H9: 93.21800262 | I9: 93.42842668 | J9: 93.61890411 | K9: 93.86599499 | L9: 93.97529149 | M9: 94.10786049 | N9: 94.43236246 | O9: 94.7815549 | P9: 94.90790593
A10: Single parent with 4 or more children (per child) | B10: P-SD4+ | C10: 92.89748034 | D10: 92.89748034 | E10: =IF(E28-E25<0,0,E28-E25)/3 -> 92.89748034 | F10: 92.95821259 | G10: 93.06050218 | H10: 93.21800262 | I10: 93.42842668 | J10: 93.61890411 | K10: 93.86599499 | L10: 93.97529149 | M10: 94.10786049 | N10: 94.43236246 | O10: 94.7815549 | P10: 94.90790593
A11: Couple with 1 child (per child) | B11: P-CD1 | C11: 71.69059884 | D11: 71.69059884 | E11: =IF(E21-E20<0,0,E21-E20) -> 71.69059884 | F11: 71.46189216 | G11: 71.07677129 | H11: 70.48376439 | I11: 69.69150573 | J11: 68.97429475 | K11: 68.04401173 | L11: 67.63249 | M11: 67.1332953 | N11: 65.91157616 | O11: 64.5968777 | P11: 64.12100049
A12: Couple with 2 children (per child) | B12: P-CD2 | C12: 63.51206391 | D12: 63.51206391 | E12: =IF(E22-E20<0,0,E22-E20)/2 -> 63.51206391 | F12: 63.37748915 | G12: 63.15086346 | H12: 62.80191993 | I12: 62.33573512 | J12: 61.91370773 | K12: 61.36629889 | L12: 61.12415177 | M12: 60.83040693 | N12: 60.11151634 | O12: 59.33790068 | P12: 59.05785821
A13: Couple with 3 children (per child) | B13: P-CD3 | C13: 62.33761251 | D13: 62.33761251 | E13: =F13 -> 62.33761251 | F13: =IF(F23-F20<0,0,F23-F20)/3 -> 62.33761251 | G13: 62.22547351 | H13: 62.05282763 | I13: 61.8221508 | J13: 61.61333267 | K13: 61.34247978 | L13: 61.22266209 | M13: 61.07732831 | N13: 60.72163773 | O13: 60.33883934 | P13: 60.20031292
A14: Couple with 4 or more children (per child) | B14: P-CD4+ | C14: =D14 -> 62.33761251 | D14: =E14 -> 62.33761251 | E14: =F14 -> 62.33761251 | F14: =IF(F23-F20<0,0,F23-F20)/3 -> 62.33761251 | G14: 62.22547351 | H14: 62.05282763 | I14: 61.8221508 | J14: 61.61333267 | K14: 61.34247978 | L14: 61.22266209 | M14: 61.07732831 | N14: 60.72163773 | O14: 60.33883934 | P14: 60.20031292
C16: 1 | D16: 2 | E16: 3 | F16: 4 | G16: 5 | H16: 6 | I16: 7 | J16: 8 | K16: 9 | L16: 10 | M16: 11 | N16: 12 | O16: 13 | P16: 14
C17: 21000 | D17: 21000 | E17: 32000 | F17: 43000 | G17: 53000 | H17: 64000 | I17: 85000 | J17: 107000 | K17: 128000 | L17: 150000 | M17: 171000 | N17: 214000 | O17: 267000 | P17: 321000
C18: or less | D18: to | E18: to | F18: to | G18: to | H18: to | I18: to | J18: to | K18: to | L18: to | M18: to | N18: to | O18: to | P18: to
A19: Australia | D19: 32000 | E19: 43000 | F19: 53000 | G19: 64000 | H19: 85000 | I19: 107000 | J19: 128000 | K19: 150000 | L19: 171000 | M19: 214000 | N19: 267000 | O19: 321000 | P19: 534000
A20: Couple | C20: 0 | D20: 495.1857432 | E20: 508.3726037 | F20: 528.6350575 | G20: 562.7647218 | H20: 615.3111062 | I20: 685.5132032 | J20: 749.0636891 | K20: 831.4977652 | L20: 867.9578434 | M20: 912.194783 | N20: 1020.444882 | O20: 1136.946929 | P20: 1179.117704
A21: Couple with 1 child | C21: 0 | D21: 0 | E21: 580.0632025 | F21: 600.0969496 | G21: 633.8414931 | H21: 685.7948706 | I21: 755.2047089 | J21: 818.0379839 | K21: 899.5417769 | L21: 935.5903334 | M21: 979.3280783 | N21: 1086.356458 | O21: 1201.543807 | P21: 1243.238704
A22: Couple with 2 children | C22: 0 | D22: 0 | E22: 635.3967315 | F22: 655.3900358 | G22: 689.0664487 | H22: 740.914946 | I22: 810.1846734 | J22: 872.8911046 | K22: 954.230363 | L22: 990.2061469 | M22: 1033.855597 | N22: 1140.667915 | O22: 1255.62273 | P22: 1297.23342
A23: Couple with 3 or more children | C23: 0 | D23: 0 | E23: 0 | F23: 715.647895 | G23: 749.4411423 | H23: 801.4695891 | I23: 870.9796556 | J23: 933.9036871 | K23: 1015.525205 | L23: 1051.62583 | M23: 1095.426768 | N23: 1202.609795 | O23: 1317.963447 | P23: 1359.718642
A25: Single person | C25: 253.9748505 | D25: 267.7274013 | E25: 280.9159058 | F25: 301.1808385 | G25: 335.3147374 | H25: 387.8675986 | I25: 458.0783392 | J25: 521.6366583 | K25: 604.080895 | L25: 640.5454672 | M25: 684.7878593 | N25: 793.0512637 | O25: 909.5677076 | P25: 951.7437176
A26: Single parent with 1 child | C26: 0 | D26: 359.0887392 | E26: 372.2082197 | F26: 392.3671446 | G26: 426.3224374 | H26: 478.6003293 | I26: 548.4437196 | J26: 611.6694676 | K26: 693.6823546 | L26: 729.9560983 | M26: 773.9670406 | N26: 881.6639846 | O26: 997.5707307 | P26: 1039.52614
A27: Single parent with 2 children | C27: 0 | D27: 447.8925929 | E27: 460.9842577 | F27: 481.1004139 | G27: 514.9836822 | H27: 567.1506985 | I27: 636.8459589 | J27: 699.9376122 | K27: 781.7765592 | L27: 817.9734073 | M27: 861.8909519 | N27: 969.3595383 | O27: 1085.020478 | P27: 1126.886793
A28: Single parent with 3 or more children | C28: 0 | D28: 0 | E28: 559.6083468 | F28: 580.0554763 | G28: 614.496244 | H28: 667.5216064 | I28: 738.3636193 | J28: 802.4933706 | K28: 885.67888 | L28: 922.4713416 | M28: 967.1114408 | N28: 1076.348351 | O28: 1193.912372 | P28: 1236.467435
A36: Comparison to prior Benchmark version
A38: HEM 2020Q2
C40: 21000 | D40: 21000 | E40: 32000 | F40: 43000 | G40: 53000 | H40: 64000 | I40: 85000 | J40: 107000 | K40: 128000 | L40: 150000 | M40: 171000 | N40: 214000 | O40: 267000 | P40: 321000
C41: or less | D41: to | E41: to | F41: to | G41: to | H41: to | I41: to | J41: to | K41: to | L41: to | M41: to | N41: to | O41: to | P41: to
A42: Australia | D42: 32000 | E42: 43000 | F42: 53000 | G42: 64000 | H42: 85000 | I42: 107000 | J42: 128000 | K42: 150000 | L42: 171000 | M42: 214000 | N42: 267000 | O42: 321000 | P42: 534000
A43: Couple | C43: 0 | D43: 498.3607704 | E43: 510.5150498 | F43: 533.3119383 | G43: 570.5781239 | H43: 620.4631198 | I43: 689.3746174 | J43: 740.1502821 | K43: 834.9932703 | L43: 855.2193036 | M43: 909.0911112 | N43: 1011.105386 | O43: 1137.485294 | P43: 1182.70003
A44: Couple with 1 child | C44: 0 | D44: 0 | E44: 582.6630061 | F44: 606.0919463 | G44: 644.3913658 | H44: 695.6594715 | I44: 766.4815937 | J44: 818.6649949 | K44: 916.1376366 | L44: 936.9243941 | M44: 992.2898588 | N44: 1097.132597 | O44: 1227.016486 | P44: 1273.484797
A45: Couple with 2 children | C45: 0 | D45: 0 | E45: 646.7158971 | F45: 670.3538933 | G45: 708.9950579 | H45: 760.7206673 | I45: 832.1746754 | J45: 884.8238061 | K45: 983.1660772 | L45: 1004.138393 | M45: 1059.997883 | N45: 1165.776131 | O45: 1296.818972 | P45: 1343.701919
A46: Couple with 3 or more children | C46: 0 | D46: 0 | E46: 0 | F46: 729.4461021 | G46: 767.3850908 | H46: 818.1707193 | I46: 888.326344 | J46: 940.0186733 | K46: 1036.573955 | L46: 1057.165168 | M46: 1112.009596 | N46: 1215.865616 | O46: 1344.527262 | P46: 1390.558266
A48: Single person | C48: 256.3928727 | D48: 271.1200685 | E48: 283.3245505 | F48: 306.2155603 | G48: 343.6355903 | H48: 393.7265846 | I48: 462.922601 | J48: 513.9078752 | K48: 609.1424602 | L48: 629.4520426 | M48: 683.5462434 | N48: 785.981781 | O48: 912.8835367 | P48: 958.2849028
A49: Single parent with 1 child | C49: 0 | D49: 364.6340485 | E49: 376.9702493 | F49: 400.1083136 | G49: 437.9322097 | H49: 488.563828 | I49: 558.5066239 | J49: 610.0421929 | K49: 706.3046304 | L49: 726.8333494 | M49: 781.5114274 | N49: 885.0524581 | O49: 1013.323839 | P49: 1059.215225
A50: Single parent with 2 children | C50: 0 | D50: 450.55786 | E50: 462.8718589 | F50: 485.9682497 | G50: 523.7239855 | H50: 574.2644114 | I50: 644.0812108 | J50: 695.5239592 | K50: 791.6129814 | L50: 812.1047798 | M50: 866.6843095 | N50: 970.0388908 | O50: 1098.079161 | P50: 1143.887884
A51: Single parent with 3 or more children | C51: 0 | D51: 0 | E51: 539.4477304 | F51: 562.1235727 | G51: 599.1918006 | H51: 648.8119648 | I51: 717.3574876 | J51: 767.8635442 | K51: 862.2028996 | L51: 882.3216271 | M51: 935.9072829 | N51: 1037.379977 | O51: 1163.088755 | P51: 1208.063364
A53: CHANGE
A54: Couple | C54: =C20-C43 -> 0 | D54: =D20-D43 -> -3.175027269 | E54: -2.14244617 | F54: -4.676880853 | G54: -7.813402122 | H54: -5.152013631 | I54: -3.861414176 | J54: 8.913407079 | K54: -3.495505055 | L54: 12.73853983 | M54: 3.103671767 | N54: 9.339496273 | O54: -0.5383652237 | P54: -3.58232639
A55: Couple with 1 child | C55: =C21-C44 -> 0 | D55: 0 | E55: -2.599803649 | F55: -5.994996695 | G55: -10.5498727 | H55: -9.864600966 | I55: -11.27688482 | J55: -0.6270109715 | K55: -16.59585965 | L55: -1.334060724 | M55: -12.96178049 | N55: -10.77613871 | O55: -25.47267953 | P55: -30.24609268
A56: Couple with 2 children | C56: =C22-C45 -> 0 | D56: 0 | E56: -11.31916559 | F56: -14.96385754 | G56: -19.92860917 | H56: -19.80572124 | I56: =I22-I45 -> -21.99000199 | J56: -11.93270149 | K56: -28.93571419 | L56: -13.93224599 | M56: -26.14228588 | N56: -25.10821624 | O56: -41.19624178 | P56: -46.46849865
A57: Couple with 3 or more children | C57: =C23-C46 -> 0 | D57: 0 | E57: 0 | F57: -13.79820707 | G57: -17.94394849 | H57: -16.70113021 | I57: -17.34668841 | J57: -6.114986188 | K57: -21.04875088 | L57: -5.539338795 | M57: -16.58282822 | N57: -13.25582039 | O57: -26.56381492 | P57: -30.83962307
C58: =C24-C47 -> 0 | D58: 0 | E58: 0 | F58: 0 | G58: 0 | H58: 0 | I58: 0 | J58: 0 | K58: 0 | L58: 0 | M58: 0 | N58: 0 | O58: 0 | P58: 0
A59: Single person | C59: =C25-C48 -> -2.418022241 | D59: -3.392667176 | E59: -2.408644788 | F59: -5.034721805 | G59: -8.320852891 | H59: -5.858986013 | I59: -4.844261793 | J59: 7.728783065 | K59: -5.0615652 | L59: 11.09342458 | M59: 1.241615927 | N59: 7.069482737 | O59: -3.315829082 | P59: -6.541185185
A60: Single parent with 1 child | C60: =C26-C49 -> 0 | D60: -5.545309305 | E60: -4.762029555 | F60: -7.741169067 | G60: -11.60977223 | H60: -9.963498677 | I60: -10.06290428 | J60: 1.627274704 | K60: -12.62227574 | L60: 3.122748861 | M60: -7.544386811 | N60: -3.388473525 | O60: -15.75310824 | P60: -19.68908549
A61: Single parent with 2 children | C61: =C27-C50 -> 0 | D61: -2.665267111 | E61: -1.887601175 | F61: -4.867835879 | G61: -8.740303306 | H61: -7.113712849 | I61: -7.235251914 | J61: 4.413653083 | K61: -9.836422214 | L61: 5.868627514 | M61: -4.793357634 | N61: -0.6793524491 | O61: -13.0586831 | P61: -17.00109042
A62: Single parent with 3 or more children | C62: =C28-C51 -> 0 | D62: 0 | E62: 20.16061636 | F62: 17.93190355 | G62: 15.30444336 | H62: 18.70964168 | I62: 21.00613169 | J62: 34.62982647 | K62: 23.47598032 | L62: 40.14971454 | M62: 31.2041579 | N62: 38.9683744 | O62: 30.82361779 | P62: 28.40407151

Sheet Validation (hidden)
A1: Residential | B1: Applicant 1 | C1: Applicant 2 | D1: Applicant 3 | E1: Applicant 4 | F1: Applicant 5 | G1: Applicant 6 | I1: CRE | J1: Applicant 1 | K1: Applicant 2 | L1: Applicant 3 | M1: Applicant 4 | O1: CREBetterChoice | P1: Applicant 1 | Q1: Applicant 2 | R1: Applicant 3 | S1: Applicant 4 | V1: Valid Status Resi | X1: Valid Status CRE | Z1: Valid Status CREBC
A2: Applicant 1 | B2: =IF(AND(B$1<>$A2,HLOOKUP($A2,Residential!$E$14:$O$15,2,FALSE)="Individual (Couple)",Residential!E$15="Individual (Couple)"),$A2) -> FALSE | C2: =IF(AND(C$1<>$A2,HLOOKUP($A2,Residential!$E$14:$O$15,2,FALSE)="Individual (Couple)",Residential!G$15="Individual (Couple)"),$A2) -> FALSE | D2: =IF(AND(D$1<>$A2,HLOOKUP($A2,Residential!$E$14:$O$15,2,FALSE)="Individual (Couple)",Residential!I$15="Individual (Couple)"),$A2) -> FALSE | E2: =IF(AND(E$1<>$A2,HLOOKUP($A2,Residential!$E$14:$O$15,2,FALSE)="Individual (Couple)",Residential!K$15="Individual (Couple)"),$A2) -> FALSE | F2: =IF(AND(F$1<>$A2,HLOOKUP($A2,Residential!$E$14:$O$15,2,FALSE)="Individual (Couple)",Residential!M$15="Individual (Couple)"),$A2) -> FALSE | G2: =IF(AND(G$1<>$A2,HLOOKUP($A2,Residential!$E$14:$O$15,2,FALSE)="Individual (Couple)",Residential!O$15="Individual (Couple)"),$A2) -> FALSE | I2: Applicant 1 | J2: =IF(AND(J$1<>$I2,HLOOKUP($I2,Commercial!$E$38:$K$39,2,FALSE)="Individual (Couple)",Commercial!E$39="Individual (Couple)"),$I2) -> FALSE | K2: =IF(AND(K$1<>$I2,HLOOKUP($I2,Commercial!$E$38:$K$39,2,FALSE)="Individual (Couple)",Commercial!G$39="Individual (Couple)"),$I2) -> FALSE | L2: =IF(AND(L$1<>$I2,HLOOKUP($I2,Commercial!$E$38:$K$39,2,FALSE)="Individual (Couple)",Commercial!I$39="Individual (Couple)"),$I2) -> FALSE | M2: =IF(AND(M$1<>$I2,HLOOKUP($I2,Commercial!$E$38:$K$39,2,FALSE)="Individual (Couple)",Commercial!K$39="Individual (Couple)"),$I2) -> FALSE | O2: Applicant 1 | P2: =IF(AND(P$1<>$O2,HLOOKUP($O2,CommercialBetterChoice!$E$38:$K$39,2,FALSE)="Individual (Couple)",CommercialBetterChoice!E$39="Individual (Couple)"),$O2) -> FALSE | Q2: =IF(AND(Q$1<>$O2,HLOOKUP($O2,CommercialBetterChoice!$E$38:$K$39,2,FALSE)="Individual (Couple)",CommercialBetterChoice!G$39="Individual (Couple)"),$O2) -> FALSE | R2: =IF(AND(R$1<>$O2,HLOOKUP($O2,CommercialBetterChoice!$E$38:$K$39,2,FALSE)="Individual (Couple)",CommercialBetterChoice!I$39="Individual (Couple)"),$O2) -> FALSE | S2: =IF(AND(S$1<>$O2,HLOOKUP($O2,CommercialBetterChoice!$E$38:$K$39,2,FALSE)="Individual (Couple)",CommercialBetterChoice!K$39="Individual (Couple)"),$O2) -> FALSE | V2: Company | X2: Individual (Single) | Z2: Individual (Single)
A3: Applicant 2 | B3: =IF(AND(B$1<>$A3,HLOOKUP($A3,Residential!$E$14:$O$15,2,FALSE)="Individual (Couple)",Residential!E$15="Individual (Couple)"),$A3) -> FALSE | C3: =IF(AND(C$1<>$A3,HLOOKUP($A3,Residential!$E$14:$O$15,2,FALSE)="Individual (Couple)",Residential!G$15="Individual (Couple)"),$A3) -> FALSE | D3: =IF(AND(D$1<>$A3,HLOOKUP($A3,Residential!$E$14:$O$15,2,FALSE)="Individual (Couple)",Residential!I$15="Individual (Couple)"),$A3) -> FALSE | E3: =IF(AND(E$1<>$A3,HLOOKUP($A3,Residential!$E$14:$O$15,2,FALSE)="Individual (Couple)",Residential!K$15="Individual (Couple)"),$A3) -> FALSE | F3: =IF(AND(F$1<>$A3,HLOOKUP($A3,Residential!$E$14:$O$15,2,FALSE)="Individual (Couple)",Residential!M$15="Individual (Couple)"),$A3) -> FALSE | G3: =IF(AND(G$1<>$A3,HLOOKUP($A3,Residential!$E$14:$O$15,2,FALSE)="Individual (Couple)",Residential!O$15="Individual (Couple)"),$A3) -> FALSE | I3: Applicant 2 | J3: =IF(AND(J$1<>$I3,HLOOKUP($I3,Commercial!$E$38:$K$39,2,FALSE)="Individual (Couple)",Commercial!E$39="Individual (Couple)"),$I3) -> FALSE | K3: =IF(AND(K$1<>$I3,HLOOKUP($I3,Commercial!$E$38:$K$39,2,FALSE)="Individual (Couple)",Commercial!G$39="Individual (Couple)"),$I3) -> FALSE | L3: =IF(AND(L$1<>$I3,HLOOKUP($I3,Commercial!$E$38:$K$39,2,FALSE)="Individual (Couple)",Commercial!I$39="Individual (Couple)"),$I3) -> FALSE | M3: =IF(AND(M$1<>$I3,HLOOKUP($I3,Commercial!$E$38:$K$39,2,FALSE)="Individual (Couple)",Commercial!K$39="Individual (Couple)"),$I3) -> FALSE | O3: Applicant 2 | P3: =IF(AND(P$1<>$O3,HLOOKUP($O3,CommercialBetterChoice!$E$38:$K$39,2,FALSE)="Individual (Couple)",CommercialBetterChoice!E$39="Individual (Couple)"),$O3) -> FALSE | Q3: =IF(AND(Q$1<>$O3,HLOOKUP($O3,CommercialBetterChoice!$E$38:$K$39,2,FALSE)="Individual (Couple)",CommercialBetterChoice!G$39="Individual (Couple)"),$O3) -> FALSE | R3: =IF(AND(R$1<>$O3,HLOOKUP($O3,CommercialBetterChoice!$E$38:$K$39,2,FALSE)="Individual (Couple)",CommercialBetterChoice!I$39="Individual (Couple)"),$O3) -> FALSE | S3: =IF(AND(S$1<>$O3,HLOOKUP($O3,CommercialBetterChoice!$E$38:$K$39,2,FALSE)="Individual (Couple)",CommercialBetterChoice!K$39="Individual (Couple)"),$O3) -> FALSE | V3: Individual (Single) | X3: Individual (Couple) | Z3: Individual (Couple)
A4: Applicant 3 | B4: =IF(AND(B$1<>$A4,HLOOKUP($A4,Residential!$E$14:$O$15,2,FALSE)="Individual (Couple)",Residential!E$15="Individual (Couple)"),$A4) -> FALSE | C4: =IF(AND(C$1<>$A4,HLOOKUP($A4,Residential!$E$14:$O$15,2,FALSE)="Individual (Couple)",Residential!G$15="Individual (Couple)"),$A4) -> FALSE | D4: =IF(AND(D$1<>$A4,HLOOKUP($A4,Residential!$E$14:$O$15,2,FALSE)="Individual (Couple)",Residential!I$15="Individual (Couple)"),$A4) -> FALSE | E4: =IF(AND(E$1<>$A4,HLOOKUP($A4,Residential!$E$14:$O$15,2,FALSE)="Individual (Couple)",Residential!K$15="Individual (Couple)"),$A4) -> FALSE | F4: =IF(AND(F$1<>$A4,HLOOKUP($A4,Residential!$E$14:$O$15,2,FALSE)="Individual (Couple)",Residential!M$15="Individual (Couple)"),$A4) -> FALSE | G4: =IF(AND(G$1<>$A4,HLOOKUP($A4,Residential!$E$14:$O$15,2,FALSE)="Individual (Couple)",Residential!O$15="Individual (Couple)"),$A4) -> FALSE | I4: Applicant 3 | J4: =IF(AND(J$1<>$I4,HLOOKUP($I4,Commercial!$E$38:$K$39,2,FALSE)="Individual (Couple)",Commercial!E$39="Individual (Couple)"),$I4) -> FALSE | K4: =IF(AND(K$1<>$I4,HLOOKUP($I4,Commercial!$E$38:$K$39,2,FALSE)="Individual (Couple)",Commercial!G$39="Individual (Couple)"),$I4) -> FALSE | L4: =IF(AND(L$1<>$I4,HLOOKUP($I4,Commercial!$E$38:$K$39,2,FALSE)="Individual (Couple)",Commercial!I$39="Individual (Couple)"),$I4) -> FALSE | M4: =IF(AND(M$1<>$I4,HLOOKUP($I4,Commercial!$E$38:$K$39,2,FALSE)="Individual (Couple)",Commercial!K$39="Individual (Couple)"),$I4) -> FALSE | O4: Applicant 3 | P4: =IF(AND(P$1<>$O4,HLOOKUP($O4,CommercialBetterChoice!$E$38:$K$39,2,FALSE)="Individual (Couple)",CommercialBetterChoice!E$39="Individual (Couple)"),$O4) -> FALSE | Q4: =IF(AND(Q$1<>$O4,HLOOKUP($O4,CommercialBetterChoice!$E$38:$K$39,2,FALSE)="Individual (Couple)",CommercialBetterChoice!G$39="Individual (Couple)"),$O4) -> FALSE | R4: =IF(AND(R$1<>$O4,HLOOKUP($O4,CommercialBetterChoice!$E$38:$K$39,2,FALSE)="Individual (Couple)",CommercialBetterChoice!I$39="Individual (Couple)"),$O4) -> FALSE | S4: =IF(AND(S$1<>$O4,HLOOKUP($O4,CommercialBetterChoice!$E$38:$K$39,2,FALSE)="Individual (Couple)",CommercialBetterChoice!K$39="Individual (Couple)"),$O4) -> FALSE | V4: Individual (Couple)
A5: Applicant 4 | B5: =IF(AND(B$1<>$A5,HLOOKUP($A5,Residential!$E$14:$O$15,2,FALSE)="Individual (Couple)",Residential!E$15="Individual (Couple)"),$A5) -> FALSE | C5: =IF(AND(C$1<>$A5,HLOOKUP($A5,Residential!$E$14:$O$15,2,FALSE)="Individual (Couple)",Residential!G$15="Individual (Couple)"),$A5) -> FALSE | D5: =IF(AND(D$1<>$A5,HLOOKUP($A5,Residential!$E$14:$O$15,2,FALSE)="Individual (Couple)",Residential!I$15="Individual (Couple)"),$A5) -> FALSE | E5: =IF(AND(E$1<>$A5,HLOOKUP($A5,Residential!$E$14:$O$15,2,FALSE)="Individual (Couple)",Residential!K$15="Individual (Couple)"),$A5) -> FALSE | F5: =IF(AND(F$1<>$A5,HLOOKUP($A5,Residential!$E$14:$O$15,2,FALSE)="Individual (Couple)",Residential!M$15="Individual (Couple)"),$A5) -> FALSE | G5: =IF(AND(G$1<>$A5,HLOOKUP($A5,Residential!$E$14:$O$15,2,FALSE)="Individual (Couple)",Residential!O$15="Individual (Couple)"),$A5) -> FALSE | I5: Applicant 4 | J5: =IF(AND(J$1<>$I5,HLOOKUP($I5,Commercial!$E$38:$K$39,2,FALSE)="Individual (Couple)",Commercial!E$39="Individual (Couple)"),$I5) -> FALSE | K5: =IF(AND(K$1<>$I5,HLOOKUP($I5,Commercial!$E$38:$K$39,2,FALSE)="Individual (Couple)",Commercial!G$39="Individual (Couple)"),$I5) -> FALSE | L5: =IF(AND(L$1<>$I5,HLOOKUP($I5,Commercial!$E$38:$K$39,2,FALSE)="Individual (Couple)",Commercial!I$39="Individual (Couple)"),$I5) -> FALSE | M5: =IF(AND(M$1<>$I5,HLOOKUP($I5,Commercial!$E$38:$K$39,2,FALSE)="Individual (Couple)",Commercial!K$39="Individual (Couple)"),$I5) -> FALSE | O5: Applicant 4 | P5: =IF(AND(P$1<>$O5,HLOOKUP($O5,CommercialBetterChoice!$E$38:$K$39,2,FALSE)="Individual (Couple)",CommercialBetterChoice!$E$39="Individual (Couple)"),$O5) -> FALSE | Q5: =IF(AND(Q$1<>$O5,HLOOKUP($O5,CommercialBetterChoice!$E$38:$K$39,2,FALSE)="Individual (Couple)",CommercialBetterChoice!G$39="Individual (Couple)"),$O5) -> FALSE | R5: =IF(AND(R$1<>$O5,HLOOKUP($O5,CommercialBetterChoice!$E$38:$K$39,2,FALSE)="Individual (Couple)",CommercialBetterChoice!I$39="Individual (Couple)"),$O5) -> FALSE | S5: =IF(AND(S$1<>$O5,HLOOKUP($O5,CommercialBetterChoice!$E$38:$K$39,2,FALSE)="Individual (Couple)",CommercialBetterChoice!K$39="Individual (Couple)"),$O5) -> FALSE
A6: Applicant 5 | B6: =IF(AND(B$1<>$A6,HLOOKUP($A6,Residential!$E$14:$O$15,2,FALSE)="Individual (Couple)",Residential!E$15="Individual (Couple)"),$A6) -> FALSE | C6: =IF(AND(C$1<>$A6,HLOOKUP($A6,Residential!$E$14:$O$15,2,FALSE)="Individual (Couple)",Residential!G$15="Individual (Couple)"),$A6) -> FALSE | D6: =IF(AND(D$1<>$A6,HLOOKUP($A6,Residential!$E$14:$O$15,2,FALSE)="Individual (Couple)",Residential!I$15="Individual (Couple)"),$A6) -> FALSE | E6: =IF(AND(E$1<>$A6,HLOOKUP($A6,Residential!$E$14:$O$15,2,FALSE)="Individual (Couple)",Residential!K$15="Individual (Couple)"),$A6) -> FALSE | F6: =IF(AND(F$1<>$A6,HLOOKUP($A6,Residential!$E$14:$O$15,2,FALSE)="Individual (Couple)",Residential!M$15="Individual (Couple)"),$A6) -> FALSE | G6: =IF(AND(G$1<>$A6,HLOOKUP($A6,Residential!$E$14:$O$15,2,FALSE)="Individual (Couple)",Residential!O$15="Individual (Couple)"),$A6) -> FALSE
A7: Applicant 6 | B7: =IF(AND(B$1<>$A7,HLOOKUP($A7,Residential!$E$14:$O$15,2,FALSE)="Individual (Couple)",Residential!E$15="Individual (Couple)"),$A7) -> FALSE | C7: =IF(AND(C$1<>$A7,HLOOKUP($A7,Residential!$E$14:$O$15,2,FALSE)="Individual (Couple)",Residential!G$15="Individual (Couple)"),$A7) -> FALSE | D7: =IF(AND(D$1<>$A7,HLOOKUP($A7,Residential!$E$14:$O$15,2,FALSE)="Individual (Couple)",Residential!I$15="Individual (Couple)"),$A7) -> FALSE | E7: =IF(AND(E$1<>$A7,HLOOKUP($A7,Residential!$E$14:$O$15,2,FALSE)="Individual (Couple)",Residential!K$15="Individual (Couple)"),$A7) -> FALSE | F7: =IF(AND(F$1<>$A7,HLOOKUP($A7,Residential!$E$14:$O$15,2,FALSE)="Individual (Couple)",Residential!M$15="Individual (Couple)"),$A7) -> FALSE | G7: =IF(AND(G$1<>$A7,HLOOKUP($A7,Residential!$E$14:$O$15,2,FALSE)="Individual (Couple)",Residential!O$15="Individual (Couple)"),$A7) -> FALSE
B9: =IF(MID(Residential!E15,13,6)<>"Couple","","N/A") ->  | C9: =IF(MID(Residential!G15,13,6)<>"Couple","","N/A") ->  | D9: =IF(MID(Residential!I15,13,6)<>"Couple","","N/A") ->  | E9: =IF(MID(Residential!K15,13,6)<>"Couple","","N/A") ->  | F9: =IF(MID(Residential!M15,13,6)<>"Couple","","N/A") ->  | G9: =IF(MID(Residential!O15,13,6)<>"Couple","","N/A") ->  | J9: =IF(MID(Commercial!$E39,13,6)<>"Couple","","N/A") ->  | K9: =IF(MID(Commercial!$G39,13,6)<>"Couple","","N/A") ->  | L9: =IF(MID(Commercial!$I39,13,6)<>"Couple","","N/A") ->  | M9: =IF(MID(Commercial!$K39,13,6)<>"Couple","","N/A") ->  | P9: =IF(MID(CommercialBetterChoice!$E39,13,6)<>"Couple","","N/A") ->  | Q9: =IF(MID(CommercialBetterChoice!$G39,13,6)<>"Couple","","N/A") ->  | R9: =IF(MID(CommercialBetterChoice!$I39,13,6)<>"Couple","","N/A") ->  | S9: =IF(MID(CommercialBetterChoice!$K39,13,6)<>"Couple","","N/A") -> 
B10: =IF(MID(Residential!E15,13,6)<>"Couple","","Non-loan party") ->  | C10: =IF(MID(Residential!G15,13,6)<>"Couple","","Non-loan party") ->  | D10: =IF(MID(Residential!I15,13,6)<>"Couple","","Non-loan party") ->  | E10: =IF(MID(Residential!K15,13,6)<>"Couple","","Non-loan party") ->  | F10: =IF(MID(Residential!M15,13,6)<>"Couple","","Non-loan party") ->  | G10: =IF(MID(Residential!O15,13,6)<>"Couple","","Non-loan party") ->  | J10: =IF(MID(Commercial!$E39,13,6)<>"Couple","","Non-loan party") ->  | K10: =IF(MID(Commercial!$G39,13,6)<>"Couple","","Non-loan party") ->  | L10: =IF(MID(Commercial!$I39,13,6)<>"Couple","","Non-loan party") ->  | M10: =IF(MID(Commercial!$K39,13,6)<>"Couple","","Non-loan party") ->  | P10: =IF(MID(CommercialBetterChoice!$E39,13,6)<>"Couple","","Non-loan party") ->  | Q10: =IF(MID(CommercialBetterChoice!$G39,13,6)<>"Couple","","Non-loan party") ->  | R10: =IF(MID(CommercialBetterChoice!$I39,13,6)<>"Couple","","Non-loan party") ->  | S10: =IF(MID(CommercialBetterChoice!$K39,13,6)<>"Couple","","Non-loan party") -> 
B11: =IFERROR(INDEX(B$2:B$7,SMALL(IF(ISTEXT(B$2:B$7),ROW(B$1:B$6),""), ROW(B2)-1)),"-") -> - | C11: =IFERROR(INDEX(C$2:C$7,SMALL(IF(ISTEXT(C$2:C$7),ROW(C$1:C$6),""), ROW(C2)-1)),"-") -> - | D11: =IFERROR(INDEX(D$2:D$7,SMALL(IF(ISTEXT(D$2:D$7),ROW(D$1:D$6),""), ROW(D2)-1)),"-") -> - | E11: =IFERROR(INDEX(E$2:E$7,SMALL(IF(ISTEXT(E$2:E$7),ROW(E$1:E$6),""), ROW(E2)-1)),"-") -> - | F11: =IFERROR(INDEX(F$2:F$7,SMALL(IF(ISTEXT(F$2:F$7),ROW(F$1:F$6),""), ROW(F2)-1)),"-") -> - | G11: =IFERROR(INDEX(G$2:G$7,SMALL(IF(ISTEXT(G$2:G$7),ROW(G$1:G$6),""), ROW(G2)-1)),"-") -> - | J11: =IFERROR(INDEX(J$2:J$5,SMALL(IF(ISTEXT(J$2:J$5),ROW(J$1:J$4),""), ROW(J2)-1)),"-") -> - | K11: =IFERROR(INDEX(K$2:K$5,SMALL(IF(ISTEXT(K$2:K$5),ROW(K$1:K$4),""), ROW(K2)-1)),"-") -> - | L11: =IFERROR(INDEX(L$2:L$5,SMALL(IF(ISTEXT(L$2:L$5),ROW(L$1:L$4),""), ROW(L2)-1)),"-") -> - | M11: =IFERROR(INDEX(M$2:M$5,SMALL(IF(ISTEXT(M$2:M$5),ROW(M$1:M$4),""), ROW(M2)-1)),"-") -> - | P11: =IFERROR(INDEX(P$2:P$5,SMALL(IF(ISTEXT(P$2:P$5),ROW(P$1:P$4),""), ROW(P2)-1)),"-") -> - | Q11: =IFERROR(INDEX(Q$2:Q$5,SMALL(IF(ISTEXT(Q$2:Q$5),ROW(Q$1:Q$4),""), ROW(Q2)-1)),"-") -> - | R11: =IFERROR(INDEX(R$2:R$5,SMALL(IF(ISTEXT(R$2:R$5),ROW(R$1:R$4),""), ROW(R2)-1)),"-") -> - | S11: =IFERROR(INDEX(S$2:S$5,SMALL(IF(ISTEXT(S$2:S$5),ROW(S$1:S$4),""), ROW(S2)-1)),"-") -> -
B12: =IFERROR(INDEX(B$2:B$7,SMALL(IF(ISTEXT(B$2:B$7),ROW(B$1:B$6),""), ROW(B3)-1)),"-") -> - | C12: =IFERROR(INDEX(C$2:C$7,SMALL(IF(ISTEXT(C$2:C$7),ROW(C$1:C$6),""), ROW(C3)-1)),"-") -> - | D12: =IFERROR(INDEX(D$2:D$7,SMALL(IF(ISTEXT(D$2:D$7),ROW(D$1:D$6),""), ROW(D3)-1)),"-") -> - | E12: =IFERROR(INDEX(E$2:E$7,SMALL(IF(ISTEXT(E$2:E$7),ROW(E$1:E$6),""), ROW(E3)-1)),"-") -> - | F12: =IFERROR(INDEX(F$2:F$7,SMALL(IF(ISTEXT(F$2:F$7),ROW(F$1:F$6),""), ROW(F3)-1)),"-") -> - | G12: =IFERROR(INDEX(G$2:G$7,SMALL(IF(ISTEXT(G$2:G$7),ROW(G$1:G$6),""), ROW(G3)-1)),"-") -> - | J12: =IFERROR(INDEX(J$2:J$5,SMALL(IF(ISTEXT(J$2:J$5),ROW(J$1:J$4),""), ROW(J3)-1)),"-") -> - | K12: =IFERROR(INDEX(K$2:K$5,SMALL(IF(ISTEXT(K$2:K$5),ROW(K$1:K$4),""), ROW(K3)-1)),"-") -> - | L12: =IFERROR(INDEX(L$2:L$5,SMALL(IF(ISTEXT(L$2:L$5),ROW(L$1:L$4),""), ROW(L3)-1)),"-") -> - | M12: =IFERROR(INDEX(M$2:M$5,SMALL(IF(ISTEXT(M$2:M$5),ROW(M$1:M$4),""), ROW(M3)-1)),"-") -> - | P12: =IFERROR(INDEX(P$2:P$5,SMALL(IF(ISTEXT(P$2:P$5),ROW(P$1:P$4),""), ROW(P3)-1)),"-") -> - | Q12: =IFERROR(INDEX(Q$2:Q$5,SMALL(IF(ISTEXT(Q$2:Q$5),ROW(Q$1:Q$4),""), ROW(Q3)-1)),"-") -> - | R12: =IFERROR(INDEX(R$2:R$5,SMALL(IF(ISTEXT(R$2:R$5),ROW(R$1:R$4),""), ROW(R3)-1)),"-") -> - | S12: =IFERROR(INDEX(S$2:S$5,SMALL(IF(ISTEXT(S$2:S$5),ROW(S$1:S$4),""), ROW(S3)-1)),"-") -> -
B13: =IFERROR(INDEX(B$2:B$7,SMALL(IF(ISTEXT(B$2:B$7),ROW(B$1:B$6),""), ROW(B4)-1)),"-") -> - | C13: =IFERROR(INDEX(C$2:C$7,SMALL(IF(ISTEXT(C$2:C$7),ROW(C$1:C$6),""), ROW(C4)-1)),"-") -> - | D13: =IFERROR(INDEX(D$2:D$7,SMALL(IF(ISTEXT(D$2:D$7),ROW(D$1:D$6),""), ROW(D4)-1)),"-") -> - | E13: =IFERROR(INDEX(E$2:E$7,SMALL(IF(ISTEXT(E$2:E$7),ROW(E$1:E$6),""), ROW(E4)-1)),"-") -> - | F13: =IFERROR(INDEX(F$2:F$7,SMALL(IF(ISTEXT(F$2:F$7),ROW(F$1:F$6),""), ROW(F4)-1)),"-") -> - | G13: =IFERROR(INDEX(G$2:G$7,SMALL(IF(ISTEXT(G$2:G$7),ROW(G$1:G$6),""), ROW(G4)-1)),"-") -> - | J13: =IFERROR(INDEX(J$2:J$5,SMALL(IF(ISTEXT(J$2:J$5),ROW(J$1:J$4),""), ROW(J4)-1)),"-") -> - | K13: =IFERROR(INDEX(K$2:K$5,SMALL(IF(ISTEXT(K$2:K$5),ROW(K$1:K$4),""), ROW(K4)-1)),"-") -> - | L13: =IFERROR(INDEX(L$2:L$5,SMALL(IF(ISTEXT(L$2:L$5),ROW(L$1:L$4),""), ROW(L4)-1)),"-") -> - | M13: =IFERROR(INDEX(M$2:M$5,SMALL(IF(ISTEXT(M$2:M$5),ROW(M$1:M$4),""), ROW(M4)-1)),"-") -> - | P13: =IFERROR(INDEX(P$2:P$5,SMALL(IF(ISTEXT(P$2:P$5),ROW(P$1:P$4),""), ROW(P4)-1)),"-") -> - | Q13: =IFERROR(INDEX(Q$2:Q$5,SMALL(IF(ISTEXT(Q$2:Q$5),ROW(Q$1:Q$4),""), ROW(Q4)-1)),"-") -> - | R13: =IFERROR(INDEX(R$2:R$5,SMALL(IF(ISTEXT(R$2:R$5),ROW(R$1:R$4),""), ROW(R4)-1)),"-") -> - | S13: =IFERROR(INDEX(S$2:S$5,SMALL(IF(ISTEXT(S$2:S$5),ROW(S$1:S$4),""), ROW(S4)-1)),"-") -> -
B14: =IFERROR(INDEX(B$2:B$7,SMALL(IF(ISTEXT(B$2:B$7),ROW(B$1:B$6),""), ROW(B5)-1)),"-") -> - | C14: =IFERROR(INDEX(C$2:C$7,SMALL(IF(ISTEXT(C$2:C$7),ROW(C$1:C$6),""), ROW(C5)-1)),"-") -> - | D14: =IFERROR(INDEX(D$2:D$7,SMALL(IF(ISTEXT(D$2:D$7),ROW(D$1:D$6),""), ROW(D5)-1)),"-") -> - | E14: =IFERROR(INDEX(E$2:E$7,SMALL(IF(ISTEXT(E$2:E$7),ROW(E$1:E$6),""), ROW(E5)-1)),"-") -> - | F14: =IFERROR(INDEX(F$2:F$7,SMALL(IF(ISTEXT(F$2:F$7),ROW(F$1:F$6),""), ROW(F5)-1)),"-") -> - | G14: =IFERROR(INDEX(G$2:G$7,SMALL(IF(ISTEXT(G$2:G$7),ROW(G$1:G$6),""), ROW(G5)-1)),"-") -> -
B15: =IFERROR(INDEX(B$2:B$7,SMALL(IF(ISTEXT(B$2:B$7),ROW(B$1:B$6),""), ROW(B6)-1)),"-") -> - | C15: =IFERROR(INDEX(C$2:C$7,SMALL(IF(ISTEXT(C$2:C$7),ROW(C$1:C$6),""), ROW(C6)-1)),"-") -> - | D15: =IFERROR(INDEX(D$2:D$7,SMALL(IF(ISTEXT(D$2:D$7),ROW(D$1:D$6),""), ROW(D6)-1)),"-") -> - | E15: =IFERROR(INDEX(E$2:E$7,SMALL(IF(ISTEXT(E$2:E$7),ROW(E$1:E$6),""), ROW(E6)-1)),"-") -> - | F15: =IFERROR(INDEX(F$2:F$7,SMALL(IF(ISTEXT(F$2:F$7),ROW(F$1:F$6),""), ROW(F6)-1)),"-") -> - | G15: =IFERROR(INDEX(G$2:G$7,SMALL(IF(ISTEXT(G$2:G$7),ROW(G$1:G$6),""), ROW(G6)-1)),"-") -> -
A19: Dependents Lookup
A20: Dependents | B20: DependedntsCode
A21: 0 | B21: 1
A22: 1 | B22: 1
A23: 2 | B23: 2
A24: 3 | B24: 3
A25: 4 | B25: 4+
B37: Don’t remove | C37: Don’t remove
A39: Servicability Calculator | I39: CRE | O39: CREBetterChoice
B40: Applicant 1 | C40: Applicant 2 | D40: Applicant 3 | E40: Applicant 4 | F40: Applicant 5 | G40: Applicant 6 | I40: Applicant 1 | J40: Applicant 2 | K40: Applicant 3 | L40: Applicant 4 | O40: Applicant 1 | P40: Applicant 2 | Q40: Applicant 3 | R40: Applicant 4
A41: Status | Q41: 0 | R41: 0
A42: Individual (Couple) With | Q42: 0 | R42: 0

Sheet Tax Table (hidden)
I2: This is the Tax Offset for Low income earners
I3: https://www.ato.gov.au/individuals/income-and-deductions/offsets-and-rebates/low-income-earners/
A4: Medicare Levy 2017 - 2018 | D4: 1 | E4: Tax offset for Low income earners
A5: Threshold | B5: Value | C5: Rate | E5: Thresholds | F5: Max Tax Offset
A6: Minimum for partial levy | B6: 21980 | C6: 0.1 | E6: 37000 | F6: 445
A7: Minimum for full levy | B7: 27475 | C7: 0.02 | E7: 66667
A9: Tax 2018-2019
A10: Tax Bracket Min | B10: Tax For Bracket | C10: Tax Rate | E10: Reduced By over 37000K | F10: 0.015
A11: 0 | B11: 0 | C11: 0
A12: 18200 | B12: 0 | C12: 0.19 | D12: 2 | E12: Tax offset for Low income earners
A13: 37000 | B13: =(A13-A12)*C12 -> 3572 | C13: 0.325 | E13: Thresholds | F13: Tax Offset $ | G13: Tax Offset%
A14: 90000 | B14: =(A13-A12)*C12+(A14-A13)*C13 -> 20797 | C14: 0.37 | E14: 0 | F14: 200
A15: 180000 | B15: =(A13-A12)*C12+(A14-A13)*C13+(A15-A14)*C14 -> 54097 | C15: 0.45 | E15: 37000 | F15: 200 | G15: 0.03
A16: 999999999 | B16: =B15 -> 54097 | C16: 0.45 | E16: 48000 | F16: 530
E17: 90000 | F17: 530 | G17: -0.015
A18: Tax 2020-2021 | E18: 999999999 | F18: 530
A19: Tax Bracket Min | B19: Tax For Bracket | C19: Tax Rate | I19: This is the Medicare levy reduction for low income earners
A20: 0 | B20: 0 | C20: 0 | I20: https://www.ato.gov.au/Individuals/Medicare-levy/Medicare-levy-reduction-for-low-income-earners/
A21: 18200 | B21: 0 | C21: 0.19
A22: 45000 | B22: =(A22-A21)*C21 -> 5092 | C22: 0.325
A23: 120000 | B23: =(A22-A21)*C21+(A23-A22)*C22 -> 29467 | C23: 0.37
A24: 180000 | B24: =(A22-A21)*C21+(A23-A22)*C22+(A24-A23)*C23 -> 51667 | C24: 0.45
A25: 999999999 | B25: =B24 -> 51667 | C25: 0.45

Sheet Inputs (hidden)
A1: Inputs
A3: Baseline Assessment Rate | B3: 0.055
A5: Assessment Loading | B5: 0.025
A7: Credit Card Commitments | B7: 0.0382
A9: Workings for Negative Gearing | B9: 0.0329
A11: Other Mortgage Repayment Buffer | B11: 1.25
A13: Rental Income Shading | B13: 0.8
A15: Company Tax | B15: 0.25
A17: NumberOfWeeksInAYear | B17: 52
A18: NumberOfMonthsInAYear | B18: 12
A20: Acceptable NSR For LVR > 90% | B20: 1.35
A21: Acceptable NSR For Applicants with majority income as Government Allowances | B21: 1.25
A22: Acceptable NSR for All other applicants | B22: 1
A24: Allowable Government Allowance over Total Income Limitation | B24: 0.5
A32: CRE
B33: Full Doc | C33: Alt Doc | D33: Lease Doc
A34: Minimum ICR | B34: 1.495 | C34: 1.745 | D34: 1.745
A35: Minimum DSCR | B35: 1.245 | C35: 1.245 | D35: 1.245
A36: Minimum DSCR Better Choice | B36: 1.495 | C36: 1.495 | D36: 1.495
A37: Minimum DSCR Better Choice with condition message | B37: 1.245 | C37: 1.245 | D37: 1.245 | F37: Refer BDM
A40: Residenital
A41: Minimum Loan Term in Years | B41: 10
A42: Maximum Loan Term In years | B42: 40
A43: Maximum Loan Term In Years For Prime Loans | B43: 30
A45: Minimum Interest Only Loan term in Years | B45: 0
A46: Maximum Interest Only Loan term in Years | B46: 5

Sheet Data (hidden)
A1: Total Loan Amount | B1: WAVG Interest Rate | C1: WAVG Assessment Rate | D1: Max Loan Term | E1: Max IO Term | F1: Loan Amount 1 | G1: Interest Rate 1 | H1: Assessement Rate 1 | I1: Loan Term 1 | J1: IO Term 1 | K1: Loan Amount 2 | L1: Interest Rate 2 | M1: Assessment Rate 2 | N1: Loan Term 2 | O1: IO Term 2 | P1: Status 1 | Q1: Status 2 | R1: Status 3 | S1: Status 4 | T1: Status 5 | U1: Status 6 | V1: Couple With 1 | W1: Couple With 2 | X1: Couple With 3 | Y1: Couple With 4 | Z1: Couple With 5 | AA1: Couple With 6 | AB1: Dependants 1 | AC1: Dependants 2 | AD1: Dependants 3 | AE1: Dependants 4 | AF1: Dependants 5 | AG1: Dependants 6 | AH1: Gross Annual Income 1 | AI1: Gross Annual Income 2 | AJ1: Gross Annual Income 3 | AK1: Gross Annual Income 4 | AL1: Gross Annual Income 5 | AM1: Gross Annual Income 6 | AN1: Untaxed Income 1 | AO1: Untaxed Income 2 | AP1: Untaxed Income 3 | AQ1: Untaxed Income 4 | AR1: Untaxed Income 5 | AS1: Untaxed Income 6 | AT1: SEIC 1 | AU1: SEIC 2 | AV1: SEIC 3 | AW1: SEIC 4 | AX1: SEIC 5 | AY1: SEIC 6 | AZ1: Add Backs 1 | BA1: Add Backs 2 | BB1: Add Backs 3 | BC1: Add Backs 4 | BD1: Add Backs 5 | BE1: Add Backs 6 | BF1: NPBT 1 | BG1: NPBT 2 | BH1: NPBT 3 | BI1: NPBT 4 | BJ1: NPBT 5 | BK1: NPBT 6 | BL1: Gross Rental Income 1 | BM1: Gross Rental Income 2 | BN1: Gross Rental Income 3 | BO1: Gross Rental Income 4 | BP1: Gross Rental Income 5 | BQ1: Gross Rental Income 6 | BR1: Investment Property Loan Balance 1 | BS1: Investment Property Loan Balance 2 | BT1: Investment Property Loan Balance 3 | BU1: Investment Property Loan Balance 4 | BV1: Investment Property Loan Balance 5 | BW1: Investment Property Loan Balance 6 | BX1: Owner occupied property utilities, rates & costs | BY1: Investment property utilities, rates & costs | BZ1: Rented property costs | CA1: Telephone, Internet, Pay TV & Media Streaming | CB1: Groceries | CC1: Recreation & Entertainment | CD1: Clothing & Personal Care | CE1: Medical & Health | CF1: Transport | CG1: Insurance | CH1: Other Living Expenses | CI1: Education | CJ1: Childcare | CK1: Rent/Board | CL1: Total Credit Card Limit | CM1: Other Mortgage Repayments | CN1: Other Liabilities | CO1: Tax Applicant 1 | CP1: Tax Applicant 2 | CQ1: Tax Applicant 3 | CR1: Tax Applicant 4 | CS1: Tax Applicant 5 | CT1: Tax Applicant 6 | CU1: Net Income Applicant 1 | CV1: Net Income Applicant 2 | CW1: Net Income Applicant 3 | CX1: Net Income Applicant 4 | CY1: Net Income Applicant 5 | CZ1: Net Income Applicant 6 | DA1: Net Income Total | DB1: Hem Living Expense Applicant 1 | DC1: Hem Living Expense Applicant 2 | DD1: Hem Living Expense Applicant 3 | DE1: Hem Living Expense Applicant 4 | DF1: Hem Living Expense Applicant 5 | DG1: Hem Living Expense Applicant 6 | DH1: Hem Living Expense Total | DI1: Customer Nominated Living Expenses | DJ1: Living Expense Used | DK1: Net Available Income | DL1: Baseline Assessment Rate | DM1: Assessment Loading | DN1: Credit Card Commitments | DO1: Workings for Negative Gearing | DP1: Other Mortgage Repayment Buffer | DQ1: Rental Income Shading | DR1: Company Tax | DS1: Actual Rate Monthly Total Income | DT1: Actual Rate Monthly - Net Income | DU1: Actual Rate Monthly - Living Costs | DV1: Actual Rate Monthly - Net Available Income | DW1: Actual Rate Monthly - Proposed Repayments | DX1: Actual Rate Monthly - Other Commitments | DY1: Actual Rate Annually Total Income | DZ1: Actual Rate Annually - Net Income | EA1: Actual Rate Annually - Living Costs | EB1: Actual Rate Annually - Net Available Income | EC1: Actual Rate Annually - Proposed Repayments | ED1: Actual Rate Annually - Other Commitments | EE1: Assessment Rate Monthly Total Income | EF1: Assessment Rate Monthly - Net Income | EG1: Assessment Rate Monthly - Living Costs | EH1: Assessment Rate Monthly - Net Available Income | EI1: Assessment Rate Monthly - Proposed Repayments | EJ1: Assessment Rate Monthly - Other Commitments | EK1: Assessment Rate Annually Total Income | EL1: Assessment Rate Annually - Net Income | EM1: Assessment Rate Annually - Living Costs | EN1: Assessment Rate Annually - Net Available Income | EO1: Assessment Rate Annually - Proposed Repayments | EP1: Assessment Rate Annually - Other Commitments | EQ1: Actual NSR | ER1: Actual DSR | ES1: Actual Results | ET1: Assessment NSR | EU1: Assessment DSR | EV1: Assessment Results | EW1: Allowable Income
A2: =ResiNewLoanTotalAmount -> 0 | B2: =ResiWAVGInterestRate -> 0 | C2: =ResiWAVGAssessmentRate -> 0.055 | D2: =ResiWAVGLoanTerm -> 0 | E2: =Residential!P12 -> 0 | F2: =ResiNewLoanAmount1 -> 0 | G2: =ResiInterestRate1 -> 0 | H2: =MAX(BaselineAssessmentRate,ResiInterestRate1+AssessmentLoading) -> 0.055 | I2: =ResiLoanTerm1 -> 0 | J2: =ResiLoanIOTerm1 -> 0 | K2: =ResiNewLoanAmount2 -> 0 | M2: =MAX(BaselineAssessmentRate,ResiInterestRate2+AssessmentLoading) -> 0.055 | N2: =ResiLoanTerm2 -> 0 | O2: =ResiLoanIOTerm2 -> 0 | P2: =IF(Residential!$E$15="","",Residential!$E$15) ->  | Q2: =IF(Residential!$G$15="","",Residential!$G$15) ->  | R2: =IF(Residential!$I$15="","",Residential!$I$15) ->  | S2: =IF(Residential!$K$15="","",Residential!$K$15) ->  | T2: =IF(Residential!$M$15="","",Residential!$M$15) ->  | U2: =IF(Residential!$O$15="","",Residential!$O$15) ->  | V2: =IF(Residential!$E$16="","",Residential!$E$16) ->  | W2: =IF(Residential!$G$16="","",Residential!$G$16) ->  | X2: =IF(Residential!$I$16="","",Residential!$I$16) ->  | Y2: =IF(Residential!$K$16="","",Residential!$K$16) ->  | Z2: =IF(Residential!$M$16="","",Residential!$M$16) ->  | AA2: =IF(Residential!$O$16="","",Residential!$O$16) ->  | AB2: =IF(Residential!$E$17="","",Residential!$E$17) ->  | AC2: =IF(Residential!$G$17="","",Residential!$G$17) ->  | AD2: =IF(Residential!$I$17="","",Residential!$I$17) ->  | AE2: =IF(Residential!$K$17="","",Residential!$K$17) ->  | AF2: =IF(Residential!$M$17="","",Residential!$M$17) ->  | AG2: =IF(Residential!$O$17="","",Residential!$O$17) ->  | AH2: =Residential!$E$19 -> 0 | AI2: =Residential!$G$19 -> 0 | AJ2: =Residential!$I$19 -> 0 | AK2: =Residential!$K$19 -> 0 | AL2: =Residential!$M$19 -> 0 | AM2: =Residential!$O$19 -> 0 | AN2: =Residential!$E$20 -> 0 | AO2: =Residential!$G$20 -> 0 | AP2: =Residential!$I$20 -> 0 | AQ2: =Residential!$K$20 -> 0 | AR2: =Residential!$M$20 -> 0 | AS2: =Residential!$O$20 -> 0 | AT2: =Residential!$E$21 -> 0 | AU2: =Residential!$G$21 -> 0 | AV2: =Residential!$I$21 -> 0 | AW2: =Residential!$K$21 -> 0 | AX2: =Residential!$M$21 -> 0 | AY2: =Residential!$O$21 -> 0 | AZ2: =Residential!$E$22 -> 0 | BA2: =Residential!$G$22 -> 0 | BB2: =Residential!$I$22 -> 0 | BC2: =Residential!$K$22 -> 0 | BD2: =Residential!$M$22 -> 0 | BE2: =Residential!$O$22 -> 0 | BF2: =Residential!$E$23 -> 0 | BG2: =Residential!$G$23 -> 0 | BH2: =Residential!$I$23 -> 0 | BI2: =Residential!$K$23 -> 0 | BJ2: =Residential!$M$23 -> 0 | BK2: =Residential!$O$23 -> 0 | BL2: =Residential!$E$25 -> 0 | BM2: =Residential!$G$25 -> 0 | BN2: =Residential!$I$25 -> 0 | BO2: =Residential!$K$25 -> 0 | BP2: =Residential!$M$25 -> 0 | BQ2: =Residential!$O$25 -> 0 | BR2: =Residential!$E$26 -> 0 | BS2: =Residential!$G$26 -> 0 | BT2: =Residential!$I$26 -> 0 | BU2: =Residential!$K$26 -> 0 | BV2: =Residential!$M$26 -> 0 | BW2: =Residential!$O$26 -> 0 | BX2: =Residential!$G$50 -> 0 | BY2: =Residential!$G$51 -> 0 | BZ2: =Residential!$G$52 -> 0 | CA2: =Residential!$G$53 -> 0 | CB2: =Residential!$G$54 -> 0 | CC2: =Residential!$G$55 -> 0 | CD2: =Residential!$G$56 -> 0 | CE2: =Residential!$G$57 -> 0 | CF2: =Residential!$G$58 -> 0 | CG2: =Residential!$G$59 -> 0 | CH2: =Residential!$G$60 -> 0 | CI2: =Residential!$G$61 -> 0 | CJ2: =Residential!$G$62 -> 0 | CK2: =Residential!$M$50 -> 0 | CL2: =Residential!$M$51 -> 0 | CM2: =Residential!$M$52 -> 0 | CN2: =Residential!$M$53 -> 0 | CO2: =Residential!$E$37 -> 0 | CP2: =Residential!$G$37 -> 0 | CQ2: =Residential!$I$37 -> 0 | CR2: =Residential!$K$37 -> 0 | CS2: =Residential!$M$37 -> 0 | CT2: =Residential!$O$37 -> 0 | CU2: =Residential!$E$39 -> 0 | CV2: =Residential!$G$39 -> 0 | CW2: =Residential!$I$39 -> 0 | CX2: =Residential!$K$39 -> 0 | CY2: =Residential!$M$39 -> 0 | CZ2: =Residential!$O$39 -> 0 | DA2: =Residential!$R$39 -> 0 | DB2: =Residential!$E$40 -> 0 | DC2: =Residential!$G$40 -> 0 | DD2: =Residential!$I$40 -> 0 | DE2: =Residential!$K$40 -> 0 | DF2: =Residential!$M$40 -> 0 | DG2: =Residential!$O$40 -> 0 | DH2: =Residential!$R$40 -> 0 | DI2: =Residential!$R$41 -> 0 | DJ2: =Residential!$R$42 -> 0 | DK2: =Residential!$R$43 -> 0 | DL2: =BaselineAssessmentRate -> 0.055 | DM2: =AssessmentLoading -> 0.025 | DN2: =CreditCardCommitments -> 0.0382 | DO2: =WorkingsForNegativeGearing -> 0.0329 | DP2: =OtherMortgageRepaymentBuffer -> 1.25 | DQ2: =RentalIncomeShading -> 0.8 | DR2: =CompanyTax -> 0.25 | DS2: =ROUND(Residential!$E$68,2) -> 0 | DT2: =ROUND(Residential!$E$69,2) -> 0 | DU2: =ROUND(Residential!$E$70,2) -> 0 | DV2: =ROUND(Residential!$E$71,2) -> 0 | DW2: =ROUND(Residential!$E$72,2) -> 0 | DX2: =ROUND(Residential!$E$73,2) -> 0 | DY2: =ROUND(Residential!$G$68,2) -> 0 | DZ2: =ROUND(Residential!$G$69,2) -> 0 | EA2: =ROUND(Residential!$G$70,2) -> 0 | EB2: =ROUND(Residential!$G$71,2) -> 0 | EC2: =ROUND(Residential!$G$72,2) -> 0 | ED2: =ROUND(Residential!$G$73,2) -> 0 | EE2: =ROUND(Residential!$M$68,2) -> 0 | EF2: =ROUND(Residential!$M$69,2) -> 0 | EG2: =ROUND(Residential!$M$70,2) -> 0 | EH2: =ROUND(Residential!$M$71,2) -> 0 | EI2: =ROUND(Residential!$M$72,2) -> 0 | EJ2: =ROUND(Residential!$M$73,2) -> 0 | EK2: =ROUND(Residential!$O$68,2) -> 0 | EL2: =ROUND(Residential!$O$69,2) -> 0 | EM2: =ROUND(Residential!$O$70,2) -> 0 | EN2: =ROUND(Residential!$O$71,2) -> 0 | EO2: =ROUND(Residential!$O$72,2) -> 0 | EP2: =ROUND(Residential!$O$73,2) -> 0 | EQ2: =Residential!$E$75 -> 0 | ER2: =Residential!$E$76 -> - | ES2: =Residential!$G$75 -> INCOMPLETE | ET2: =Residential!$M$75 -> 0 | EU2: =Residential!$M$76 -> - | EV2: =Residential!$O$75 -> INCOMPLETE | EW2: =IF(Residential!$M$82<>"Incomplete",ROUND(Residential!$M$82,2),Residential!$M$82) -> INCOMPLETE

Sheet CommercialData (hidden)
A1: Proposed Loan Details | F1: Business Loan Details | R1: Business Income / Expenses (Income) | U1: Business Income / Expenses (Add Backs) | Z1: Personal Income / Expenses | CC1: Calculation | CU1: Inputs | DB1: Results
A2: New Loan Amount | B2: Interest Rate | C2: Documentation Type | D2: Loan Term (Years) | E2: I/O Term (Years) | F2: Loan Amount 1 | G2: Rate 1 | H2: Actual Loan Repayment (Monthly) 1 | I2: Loan Amount 2 | J2: Rate 2 | K2: Actual Loan Repayment (Monthly) 2 | L2: Loan Amount 3 | M2: Rate 3 | N2: Actual Loan Repayment (Monthly) 3 | O2: Loan Amount 4 | P2: Rate 4 | Q2: Actual Loan Repayment (Monthly) 4 | R2: Net Profit Before Tax | S2: Proposed Net CRE Rental Income | T2: Proposed Gross Residential Rental Income | U2: Depreciation | V2: Ammortisation | W2: Interest Paid | X2: Directors Salaries/ Fees / Super | Y2: Other | Z2: Status Applicant 1 | AA2: Status Applicant 2 | AB2: Status Applicant 3 | AC2: Status Applicant 4 | AD2: Couple with Applicant 1 | AE2: Couple with Applicant 2 | AF2: Couple with Applicant 3 | AG2: Couple with Applicant 4 | AH2: Dependent Applicant 1 | AI2: Dependent Applicant 2 | AJ2: Dependent Applicant 3 | AK2: Dependent Applicant 4 | AL2: Gross Annual Income Applicant 1 | AM2: Gross Annual Income Applicant 2 | AN2: Gross Annual Income Applicant 3 | AO2: Gross Annual Income Applicant 4 | AP2: Untaxed Allowable Income Applicant 1 | AQ2: Untaxed Allowable Income Applicant 2 | AR2: Untaxed Allowable Income Applicant 3 | AS2: Untaxed Allowable Income Applicant 4 | AT2: Gross Residential Rental Income (Other) Applicant 1 | AU2: Gross Residential Rental Income (Other) Applicant 2 | AV2: Gross Residential Rental Income (Other) Applicant 3 | AW2: Gross Residential Rental Income (Other) Applicant 4 | AX2: Investment Property Loan Balance (personal name) Applicant 1 | AY2: Investment Property Loan Balance (personal name) Applicant 2 | AZ2: Investment Property Loan Balance (personal name) Applicant 3 | BA2: Investment Property Loan Balance (personal name) Applicant 4 | BB2: Living Expenses Monthly (Declared Living Expenses) | BC2: Rent/Board | BD2: Total Credit Card Limit | BE2: Personal Mortgage Repayments | BF2: Other Consumer Debt | BG2: P&I Repayment | BH2: IO Repayment | BI2: Earning Before Interest, Tax, Depreciation & Ammortisation (EBITDA) | BJ2: Total Add Backs | BK2: Total Income Applicant 1 | BL2: Total Income Applicant 2 | BM2: Total Income Applicant 3 | BN2: Total Income Applicant 4 | BO2: Total Gross Annual Income of All Applicants | BP2: Tax Applicant 1 | BQ2: Tax Applicant 2 | BR2: Tax Applicant 3 | BS2: Tax Applicant 4 | BT2: Tax offset for Low Income Earners Applicant 1 | BU2: Tax offset for Low Income Earners Applicant 2 | BV2: Tax offset for Low Income Earners Applicant 3 | BW2: Tax offset for Low Income Earners Applicant 4 | BX2: Total Net Annual Income Applicant 1 | BY2: Total Net Annual Income Applicant 2 | BZ2: Total Net Annual Income Applicant 3 | CA2: Total Net Annual Income Applicant 4 | CB2: Total Net Annual Income of All Applicants | CC2: Total Taxable Income Applicant 1 | CD2: Total Taxable Income Applicant 2 | CE2: Total Taxable Income Applicant 3 | CF2: Total Taxable Income Applicant 4 | CG2: Total Taxable Income For All Applicants | CH2: Spouse Income Applicant 1 | CI2: Spouse Income Applicant 2 | CJ2: Spouse Income Applicant 3 | CK2: Spouse Income Applicant 4 | CL2: Hem Living Expense Applicant 1 | CM2: Hem Living Expense Applicant 2 | CN2: Hem Living Expense Applicant 3 | CO2: Hem Living Expense Applicant 4 | CP2: Hem Living Expense Total | CQ2: Customer Nominated Living Expenses | CR2: Used Living Expenses | CS2: Personal rent | CT2: Personal Debt | CU2: Baseline Assessment Rate | CV2: Assessment Loading | CW2: Credit Card Commitments | CX2: Workings for Negative Gearing | CY2: Other Mortgage Repayment Buffer | CZ2: Rental Income Shading | DA2: Company Tax | DB2: Business income (EBITDA + net personal contribution) | DC2: Interest Expenses | DD2: Debt Repayments | DE2: Interest Coverage Ratio (ICR) % | DF2: Debt Service Coverage Ratio (DSCR) % | DG2: Interest Coverage Ratio (ICR) Flag | DH2: Debt Service Coverage Ratio (DSCR) Flag | DI2: Application Status Flag
A3: =Commercial!$E$8 -> 0 | B3: =Commercial!$I$8 -> 0 | C3: =Commercial!$E$9 -> 0 | D3: =Commercial!$I$9 -> 0 | E3: =Commercial!$I$10 -> 0 | F3: =Commercial!$E$18 -> 0 | G3: =Commercial!$G$18 -> 0 | H3: =Commercial!$I$18 -> 0 | I3: =Commercial!$E$19 -> 0 | J3: =Commercial!$G$19 -> 0 | K3: =Commercial!$I$19 -> 0 | L3: =Commercial!$E$20 -> 0 | M3: =Commercial!$G$20 -> 0 | N3: =Commercial!$I$20 -> 0 | O3: =Commercial!$E$21 -> 0 | P3: =Commercial!$G$21 -> 0 | Q3: =Commercial!$I$21 -> 0 | R3: =Commercial!$E$27 -> 0 | S3: =Commercial!$E$28 -> 0 | T3: =Commercial!$E$29 -> 0 | U3: =Commercial!$K$27 -> 0 | V3: =Commercial!$K$28 -> 0 | W3: =Commercial!$K$29 -> 0 | X3: =Commercial!$K$30 -> 0 | Y3: =Commercial!$K$31 -> 0 | Z3: =Commercial!$E$39 -> 0 | AA3: =Commercial!$G$39 -> 0 | AB3: =Commercial!$I$39 -> 0 | AC3: =Commercial!$K$39 -> 0 | AD3: =Commercial!$E$40 -> 0 | AE3: =Commercial!$G$40 -> 0 | AF3: =Commercial!$I$40 -> 0 | AG3: =Commercial!$K$40 -> 0 | AH3: =Commercial!$E$41 -> 0 | AI3: =Commercial!$G$41 -> 0 | AJ3: =Commercial!$I$41 -> 0 | AK3: =Commercial!$K$41 -> 0 | AL3: =Commercial!$E$44 -> 0 | AM3: =Commercial!$G$44 -> 0 | AN3: =Commercial!$I$44 -> 0 | AO3: =Commercial!$K$44 -> 0 | AP3: =Commercial!$E$45 -> 0 | AQ3: =Commercial!$G$45 -> 0 | AR3: =Commercial!$I$45 -> 0 | AS3: =Commercial!$K$45 -> 0 | AT3: =Commercial!$E$46 -> 0 | AU3: =Commercial!$G$46 -> 0 | AV3: =Commercial!$I$46 -> 0 | AW3: =Commercial!$K$46 -> 0 | AX3: =Commercial!$E$49 -> 0 | AY3: =Commercial!$G$49 -> 0 | AZ3: =Commercial!$I$49 -> 0 | BA3: =Commercial!$K$49 -> 0 | BB3: =Commercial!$E$55 -> 0 | BC3: =Commercial!$K$55 -> 0 | BD3: =Commercial!$K$56 -> 0 | BE3: =Commercial!$K$57 -> 0 | BF3: =Commercial!$K$58 -> 0 | BG3: =Commercial!$I$11 -> 0 | BH3: =Commercial!$I$12 -> 0 | BI3: =Commercial!$E$33 -> 0 | BJ3: =Commercial!$K$33 -> 0 | BK3: =Commercial!$E$47 -> 0 | BL3: =Commercial!$G$47 -> 0 | BM3: =Commercial!$I$47 -> 0 | BN3: =Commercial!$K$47 -> 0 | BO3: =Commercial!$P$47 -> 0 | BP3: =Commercial!$E$50 -> 0 | BQ3: =Commercial!$G$50 -> 0 | BR3: =Commercial!$I$50 -> 0 | BS3: =Commercial!$K$50 -> 0 | BT3: =Commercial!$E$51 -> 0 | BU3: =Commercial!$G$51 -> 0 | BV3: =Commercial!$I$51 -> 0 | BW3: =Commercial!$K$51 -> 0 | BX3: =Commercial!$E$52 -> 0 | BY3: =Commercial!$G$52 -> 0 | BZ3: =Commercial!$I$52 -> 0 | CA3: =Commercial!$K$52 -> 0 | CB3: =Commercial!$P$52 -> 0 | CC3: =Commercial!$E$66 -> 0 | CD3: =Commercial!$G$66 -> 0 | CE3: =Commercial!$I$66 -> 0 | CF3: =Commercial!$K$66 -> 0 | CG3: =Commercial!$P$66 -> 0 | CH3: =Commercial!$E$67 -> 0 | CI3: =Commercial!$G$67 -> 0 | CJ3: =Commercial!$I$67 -> 0 | CK3: =Commercial!$K$67 -> 0 | CL3: =Commercial!$E$69 -> 0 | CM3: =Commercial!$G$69 -> 0 | CN3: =Commercial!$I$69 -> 0 | CO3: =Commercial!$K$69 -> 0 | CP3: =Commercial!$P$69 -> 0 | CQ3: =Commercial!$P$70 -> 0 | CR3: =Commercial!$P$71 -> 0 | CS3: =Commercial!$P$72 -> 0 | CT3: =Commercial!$P$73 -> 0 | CU3: =BaselineAssessmentRate -> 0.055 | CV3: =AssessmentLoading -> 0.025 | CW3: =CreditCardCommitments -> 0.0382 | CX3: =WorkingsForNegativeGearing -> 0.0329 | CY3: =OtherMortgageRepaymentBuffer -> 1.25 | CZ3: =RentalIncomeShading -> 0.8 | DA3: =CompanyTax -> 0.25 | DB3: =Commercial!$E$81 -> 0 | DC3: =Commercial!$I$81 -> 0 | DD3: =Commercial!$I$82 -> 0 | DE3: =Commercial!$I$85 -> 0 | DF3: =Commercial!$I$86 -> 0 | DG3: =Commercial!$K$85 -> INCOMPLETE | DH3: =Commercial!$K$86 -> INCOMPLETE | DI3: =Commercial!$I$89 -> INCOMPLETE

Sheet CommercialDataBetterChoice (hidden)
A1: Proposed Loan Details | F1: Business Loan Details | R1: Business Income / Expenses (Income) | U1: Business Income / Expenses (Add Backs) | Z1: Personal Income / Expenses | CC1: Calculation | CU1: Inputs | DB1: Results
A2: New Loan Amount | B2: Interest Rate | C2: Documentation Type | D2: Loan Term (Years) | E2: I/O Term (Years) | F2: Loan Amount 1 | G2: Rate 1 | H2: Actual Loan Repayment (Monthly) 1 | I2: Loan Amount 2 | J2: Rate 2 | K2: Actual Loan Repayment (Monthly) 2 | L2: Loan Amount 3 | M2: Rate 3 | N2: Actual Loan Repayment (Monthly) 3 | O2: Loan Amount 4 | P2: Rate 4 | Q2: Actual Loan Repayment (Monthly) 4 | R2: Net Profit Before Tax | S2: Proposed Net CRE Rental Income | T2: Proposed Gross Residential Rental Income | U2: Depreciation | V2: Ammortisation | W2: Interest Paid | X2: Directors Salaries/ Fees / Super | Y2: Other | Z2: Status Applicant 1 | AA2: Status Applicant 2 | AB2: Status Applicant 3 | AC2: Status Applicant 4 | AD2: Couple with Applicant 1 | AE2: Couple with Applicant 2 | AF2: Couple with Applicant 3 | AG2: Couple with Applicant 4 | AH2: Dependent Applicant 1 | AI2: Dependent Applicant 2 | AJ2: Dependent Applicant 3 | AK2: Dependent Applicant 4 | AL2: Gross Annual Income Applicant 1 | AM2: Gross Annual Income Applicant 2 | AN2: Gross Annual Income Applicant 3 | AO2: Gross Annual Income Applicant 4 | AP2: Untaxed Allowable Income Applicant 1 | AQ2: Untaxed Allowable Income Applicant 2 | AR2: Untaxed Allowable Income Applicant 3 | AS2: Untaxed Allowable Income Applicant 4 | AT2: Gross Residential Rental Income (Other) Applicant 1 | AU2: Gross Residential Rental Income (Other) Applicant 2 | AV2: Gross Residential Rental Income (Other) Applicant 3 | AW2: Gross Residential Rental Income (Other) Applicant 4 | AX2: Investment Property Loan Balance (personal name) Applicant 1 | AY2: Investment Property Loan Balance (personal name) Applicant 2 | AZ2: Investment Property Loan Balance (personal name) Applicant 3 | BA2: Investment Property Loan Balance (personal name) Applicant 4 | BB2: Living Expenses Monthly (Declared Living Expenses) | BC2: Rent/Board | BD2: Total Credit Card Limit | BE2: Personal Mortgage Repayments | BF2: Other Consumer Debt | BG2: P&I Repayment | BH2: IO Repayment | BI2: Earning Before Interest, Tax, Depreciation & Ammortisation (EBITDA) | BJ2: Total Add Backs | BK2: Total Income Applicant 1 | BL2: Total Income Applicant 2 | BM2: Total Income Applicant 3 | BN2: Total Income Applicant 4 | BO2: Total Gross Annual Income of All Applicants | BP2: Tax Applicant 1 | BQ2: Tax Applicant 2 | BR2: Tax Applicant 3 | BS2: Tax Applicant 4 | BT2: Tax offset for Low Income Earners Applicant 1 | BU2: Tax offset for Low Income Earners Applicant 2 | BV2: Tax offset for Low Income Earners Applicant 3 | BW2: Tax offset for Low Income Earners Applicant 4 | BX2: Total Net Annual Income Applicant 1 | BY2: Total Net Annual Income Applicant 2 | BZ2: Total Net Annual Income Applicant 3 | CA2: Total Net Annual Income Applicant 4 | CB2: Total Net Annual Income of All Applicants | CC2: Total Taxable Income Applicant 1 | CD2: Total Taxable Income Applicant 2 | CE2: Total Taxable Income Applicant 3 | CF2: Total Taxable Income Applicant 4 | CG2: Total Taxable Income For All Applicants | CH2: Spouse Income Applicant 1 | CI2: Spouse Income Applicant 2 | CJ2: Spouse Income Applicant 3 | CK2: Spouse Income Applicant 4 | CL2: Hem Living Expense Applicant 1 | CM2: Hem Living Expense Applicant 2 | CN2: Hem Living Expense Applicant 3 | CO2: Hem Living Expense Applicant 4 | CP2: Hem Living Expense Total | CQ2: Customer Nominated Living Expenses | CR2: Used Living Expenses | CS2: Personal rent | CT2: Personal Debt | CU2: Baseline Assessment Rate | CV2: Assessment Loading | CW2: Credit Card Commitments | CX2: Workings for Negative Gearing | CY2: Other Mortgage Repayment Buffer | CZ2: Rental Income Shading | DA2: Company Tax | DB2: Business income (EBITDA + net personal contribution) | DC2: Interest Expenses | DD2: Debt Repayments | DE2: Interest Coverage Ratio (ICR) % | DF2: Debt Service Coverage Ratio (DSCR) % | DG2: Interest Coverage Ratio (ICR) Flag | DH2: Debt Service Coverage Ratio (DSCR) Flag | DI2: Application Status Flag
A3: =CommercialBetterChoice!$E$8 -> 0 | B3: =CommercialBetterChoice!$I$8 -> 0 | C3: =CommercialBetterChoice!$E$9 -> 0 | D3: =CommercialBetterChoice!$I$9 -> 0 | E3: =CommercialBetterChoice!$I$10 -> 0 | F3: =CommercialBetterChoice!$E$18 -> 0 | G3: =CommercialBetterChoice!$G$18 -> 0 | H3: =CommercialBetterChoice!$I$18 -> 0 | I3: =CommercialBetterChoice!$E$19 -> 0 | J3: =CommercialBetterChoice!$G$19 -> 0 | K3: =CommercialBetterChoice!$I$19 -> 0 | L3: =CommercialBetterChoice!$E$20 -> 0 | M3: =CommercialBetterChoice!$G$20 -> 0 | N3: =CommercialBetterChoice!$I$20 -> 0 | O3: =CommercialBetterChoice!$E$21 -> 0 | P3: =CommercialBetterChoice!$G$21 -> 0 | Q3: =CommercialBetterChoice!$I$21 -> 0 | R3: =CommercialBetterChoice!$E$27 -> 0 | S3: =CommercialBetterChoice!$E$28 -> 0 | T3: =CommercialBetterChoice!$E$29 -> 0 | U3: =CommercialBetterChoice!$K$27 -> 0 | V3: =CommercialBetterChoice!$K$28 -> 0 | W3: =CommercialBetterChoice!$K$29 -> 0 | X3: =CommercialBetterChoice!$K$30 -> 0 | Y3: =CommercialBetterChoice!$K$31 -> 0 | Z3: =CommercialBetterChoice!$E$39 -> 0 | AA3: =CommercialBetterChoice!$G$39 -> 0 | AB3: =CommercialBetterChoice!$I$39 -> 0 | AC3: =CommercialBetterChoice!$K$39 -> 0 | AD3: =CommercialBetterChoice!$E$40 -> 0 | AE3: =CommercialBetterChoice!$G$40 -> 0 | AF3: =CommercialBetterChoice!$I$40 -> 0 | AG3: =CommercialBetterChoice!$K$40 -> 0 | AH3: =CommercialBetterChoice!$E$41 -> 0 | AI3: =CommercialBetterChoice!$G$41 -> 0 | AJ3: =CommercialBetterChoice!$I$41 -> 0 | AK3: =CommercialBetterChoice!$K$41 -> 0 | AL3: =CommercialBetterChoice!$E$44 -> 0 | AM3: =CommercialBetterChoice!$G$44 -> 0 | AN3: =CommercialBetterChoice!$I$44 -> 0 | AO3: =CommercialBetterChoice!$K$44 -> 0 | AP3: =CommercialBetterChoice!$E$45 -> 0 | AQ3: =CommercialBetterChoice!$G$45 -> 0 | AR3: =CommercialBetterChoice!$I$45 -> 0 | AS3: =CommercialBetterChoice!$K$45 -> 0 | AT3: =CommercialBetterChoice!$E$46 -> 0 | AU3: =CommercialBetterChoice!$G$46 -> 0 | AV3: =CommercialBetterChoice!$I$46 -> 0 | AW3: =CommercialBetterChoice!$K$46 -> 0 | AX3: =CommercialBetterChoice!$E$49 -> 0 | AY3: =CommercialBetterChoice!$G$49 -> 0 | AZ3: =CommercialBetterChoice!$I$49 -> 0 | BA3: =CommercialBetterChoice!$K$49 -> 0 | BB3: =CommercialBetterChoice!$E$55 -> 0 | BC3: =CommercialBetterChoice!$K$55 -> 0 | BD3: =CommercialBetterChoice!$K$56 -> 0 | BE3: =CommercialBetterChoice!$K$57 -> 0 | BF3: =CommercialBetterChoice!$K$58 -> 0 | BG3: =CommercialBetterChoice!$I$11 -> 0 | BH3: =CommercialBetterChoice!$I$12 -> 0 | BI3: =CommercialBetterChoice!$E$33 -> 0 | BJ3: =CommercialBetterChoice!$K$33 -> 0 | BK3: =CommercialBetterChoice!$E$47 -> 0 | BL3: =CommercialBetterChoice!$G$47 -> 0 | BM3: =CommercialBetterChoice!$I$47 -> 0 | BN3: =CommercialBetterChoice!$K$47 -> 0 | BO3: =CommercialBetterChoice!$P$47 -> 0 | BP3: =CommercialBetterChoice!$E$50 -> 0 | BQ3: =CommercialBetterChoice!$G$50 -> 0 | BR3: =CommercialBetterChoice!$I$50 -> 0 | BS3: =CommercialBetterChoice!$K$50 -> 0 | BT3: =CommercialBetterChoice!$E$51 -> 0 | BU3: =CommercialBetterChoice!$G$51 -> 0 | BV3: =CommercialBetterChoice!$I$51 -> 0 | BW3: =CommercialBetterChoice!$K$51 -> 0 | BX3: =CommercialBetterChoice!$E$52 -> 0 | BY3: =CommercialBetterChoice!$G$52 -> 0 | BZ3: =CommercialBetterChoice!$I$52 -> 0 | CA3: =CommercialBetterChoice!$K$52 -> 0 | CB3: =CommercialBetterChoice!$P$52 -> 0 | CC3: =CommercialBetterChoice!$E$66 -> 0 | CD3: =CommercialBetterChoice!$G$66 -> 0 | CE3: =CommercialBetterChoice!$I$66 -> 0 | CF3: =CommercialBetterChoice!$K$66 -> 0 | CG3: =CommercialBetterChoice!$P$66 -> 0 | CH3: =CommercialBetterChoice!$E$67 -> 0 | CI3: =CommercialBetterChoice!$G$67 -> 0 | CJ3: =CommercialBetterChoice!$I$67 -> 0 | CK3: =CommercialBetterChoice!$K$67 -> 0 | CL3: =CommercialBetterChoice!$E$69 -> 0 | CM3: =CommercialBetterChoice!$G$69 -> 0 | CN3: =CommercialBetterChoice!$I$69 -> 0 | CO3: =CommercialBetterChoice!$K$69 -> 0 | CP3: =CommercialBetterChoice!$P$69 -> 0 | CQ3: =CommercialBetterChoice!$P$70 -> 0 | CR3: =CommercialBetterChoice!$P$71 -> 0 | CS3: =CommercialBetterChoice!$P$72 -> 0 | CT3: =CommercialBetterChoice!$P$73 -> 0 | CU3: =BaselineAssessmentRate -> 0.055 | CV3: =AssessmentLoading -> 0.025 | CW3: =CreditCardCommitments -> 0.0382 | CX3: =WorkingsForNegativeGearing -> 0.0329 | CY3: =OtherMortgageRepaymentBuffer -> 1.25 | CZ3: =RentalIncomeShading -> 0.8 | DA3: =CompanyTax -> 0.25 | DB3: =CommercialBetterChoice!$E$81 -> 0 | DC3: =CommercialBetterChoice!$I$81 -> 0 | DD3: =CommercialBetterChoice!$I$82 -> 0 | DE3: =CommercialBetterChoice!$I$85 -> 0 | DF3: =CommercialBetterChoice!$I$86 -> 0 | DG3: =CommercialBetterChoice!$K$85 -> INCOMPLETE | DH3: =CommercialBetterChoice!$K$86 -> INCOMPLETE | DI3: =CommercialBetterChoice!$I$89 -> INCOMPLETE

Sheet TestCases (hidden)
A1: Test Cases TestCases TestCases TestCases TestCases TestCases TestCases TestCases TestCases TestCases TestCases TestCases TestCases TestCases TestCases TestCases TestCases TestCases TestCases TestCases TestCases TestCases TestCases TestCases TestCases TestCases TestCases TestCases TestCases TestCases TestCases TestCases TestCases TestCases TestCases TestCases TestCases TestCases TestCases TestCases TestCases TestCases TestCases TestCases TestCases TestCases TestCases TestCases TestCases TestCases TestCases TestCases TestCases TestCases TestCases TestCases TestCases TestCases TestCases TestCases TestCases TestCases TestCases TestCases TestCases TestCases TestCases TestCases TestCases TestCases TestCases TestCases TestCases TestCases TestCases TestCases TestCases TestCases TestCases TestCases TestCases TestCases TestCases TestCases | CO1: Original-Result-set Original-Result-set Original-Result-set Original-Result-set Original-Result-set Original-Result-set Original-Result-set Original-Result-set Original-Result-set Original-Result-set Original-Result-set Original-Result-set Original-Result-set Original-Result-set Original-Result-set Original-Result-set Original-Result-set Original-Result-set Original-Result-set Original-Result-set Original-Result-set Original-Result-set Original-Result-set Original-Result-set Original-Result-set Original-Result-set Original-Result-set Original-Result-set | EX1: New-Resultset New-Resultset New-Resultset New-Resultset New-Resultset New-Resultset New-Resultset New-Resultset New-Resultset New-Resultset New-Resultset New-Resultset New-Resultset New-Resultset New-Resultset New-Resultset New-Resultset New-Resultset New-Resultset New-Resultset New-Resultset New-Resultset New-Resultset New-Resultset New-Resultset New-Resultset New-Resultset New-Resultset New-Resultset New-Resultset New-Resultset New-Resultset New-Resultset New-Resultset New-Resultset New-Resultset New-Resultset New-Resultset | HG1: Test cases will run when date tested is blank and Run Scenario Flag is "Y"
A2: Total Loan Amount | B2: WAVG Interest Rate | C2: WAVG Assessment Rate | D2: Max Loan Term | E2: Max IO Term | F2: Loan Amount 1 | G2: Interest Rate 1 | H2: Assessement Rate 1 | I2: Loan Term 1 | J2: IO Term 1 | K2: Loan Amount 2 | L2: Interest Rate 2 | M2: Assessment Rate 2 | N2: Loan Term 2 | O2: IO Term 2 | P2: Status 1 | Q2: Status 2 | R2: Status 3 | S2: Status 4 | T2: Status 5 | U2: Status 6 | V2: Couple With 1 | W2: Couple With 2 | X2: Couple With 3 | Y2: Couple With 4 | Z2: Couple With 5 | AA2: Couple With 6 | AB2: Dependants 1 | AC2: Dependants 2 | AD2: Dependants 3 | AE2: Dependants 4 | AF2: Dependants 5 | AG2: Dependants 6 | AH2: Gross Annual Income 1 | AI2: Gross Annual Income 2 | AJ2: Gross Annual Income 3 | AK2: Gross Annual Income 4 | AL2: Gross Annual Income 5 | AM2: Gross Annual Income 6 | AN2: Untaxed Income 1 | AO2: Untaxed Income 2 | AP2: Untaxed Income 3 | AQ2: Untaxed Income 4 | AR2: Untaxed Income 5 | AS2: Untaxed Income 6 | AT2: SEIC 1 | AU2: SEIC 2 | AV2: SEIC 3 | AW2: SEIC 4 | AX2: SEIC 5 | AY2: SEIC 6 | AZ2: Add Backs 1 | BA2: Add Backs 2 | BB2: Add Backs 3 | BC2: Add Backs 4 | BD2: Add Backs 5 | BE2: Add Backs 6 | BF2: NPBT 1 | BG2: NPBT 2 | BH2: NPBT 3 | BI2: NPBT 4 | BJ2: NPBT 5 | BK2: NPBT 6 | BL2: Gross Rental Income 1 | BM2: Gross Rental Income 2 | BN2: Gross Rental Income 3 | BO2: Gross Rental Income 4 | BP2: Gross Rental Income 5 | BQ2: Gross Rental Income 6 | BR2: Investment Property Loan Balance 1 | BS2: Investment Property Loan Balance 2 | BT2: Investment Property Loan Balance 3 | BU2: Investment Property Loan Balance 4 | BV2: Investment Property Loan Balance 5 | BW2: Investment Property Loan Balance 6 | BX2: Owner occupied property utilities, rates & costs | BY2: Investment property utilities, rates & costs | BZ2: Rented property costs | CA2: Telephone, Internet, Pay TV & Media Streaming | CB2: Groceries | CC2: Recreation & Entertainment | CD2: Clothing & Personal Care | CE2: Medical & Health | CF2: Transport | CG2: Insurance | CH2: Other Living Expenses | CI2: Education | CJ2: Childcare | CK2: Rent/Board | CL2: Total Credit Card Limit | CM2: Other Mortgage Repayments | CN2: Other Liabilities | CO2: Tax Applicant 1 | CP2: Tax Applicant 2 | CQ2: Tax Applicant 3 | CR2: Tax Applicant 4 | CS2: Tax Applicant 5 | CT2: Tax Applicant 6 | CU2: Net Income Applicant 1 | CV2: Net Income Applicant 2 | CW2: Net Income Applicant 3 | CX2: Net Income Applicant 4 | CY2: Net Income Applicant 5 | CZ2: Net Income Applicant 6 | DA2: Net Income Total | DB2: Hem Living Expense Applicant 1 | DC2: Hem Living Expense Applicant 2 | DD2: Hem Living Expense Applicant 3 | DE2: Hem Living Expense Applicant 4 | DF2: Hem Living Expense Applicant 5 | DG2: Hem Living Expense Applicant 6 | DH2: Hem Living Expense Total | DI2: Customer Nominated Living Expenses | DJ2: Living Expense Used | DK2: Net Available Income | DL2: Baseline Assessment Rate | DM2: Assessment Loading | DN2: Credit Card Commitments | DO2: Workings for Negative Gearing | DP2: Other Mortgage Repayment Buffer | DQ2: Rental Income Shading | DR2: Company Tax | DS2: Actual Rate Monthly Total Income | DT2: Actual Rate Monthly - Net Income | DU2: Actual Rate Monthly - Living Costs | DV2: Actual Rate Monthly - Net Available Income | DW2: Actual Rate Monthly - Proposed Repayments | DX2: Actual Rate Monthly - Other Commitments | DY2: Actual Rate Annually Total Income | DZ2: Actual Rate Annually - Net Income | EA2: Actual Rate Annually - Living Costs | EB2: Actual Rate Annually - Net Available Income | EC2: Actual Rate Annually - Proposed Repayments | ED2: Actual Rate Annually - Other Commitments | EE2: Assessment Rate Monthly Total Income | EF2: Assessment Rate Monthly - Net Income | EG2: Assessment Rate Monthly - Living Costs | EH2: Assessment Rate Monthly - Net Available Income | EI2: Assessment Rate Monthly - Proposed Repayments | EJ2: Assessment Rate Monthly - Other Commitments | EK2: Assessment Rate Annually Total Income | EL2: Assessment Rate Annually - Net Income | EM2: Assessment Rate Annually - Living Costs | EN2: Assessment Rate Annually - Net Available Income | EO2: Assessment Rate Annually - Proposed Repayments | EP2: Assessment Rate Annually - Other Commitments | EQ2: Actual NSR | ER2: Actual DSR | ES2: Actual Results | ET2: Assessment NSR | EU2: Assessment DSR | EV2: Assessment Results | EW2: Allowable Income | EX2: Tax Applicant 1 | EY2: Tax Applicant 2 | EZ2: Tax Applicant 3 | FA2: Tax Applicant 4 | FB2: Tax Applicant 5 | FC2: Tax Applicant 6 | FD2: Net Income Applicant 1 | FE2: Net Income Applicant 2 | FF2: Net Income Applicant 3 | FG2: Net Income Applicant 4 | FH2: Net Income Applicant 5 | FI2: Net Income Applicant 6 | FJ2: Net Income Total | FK2: Hem Living Expense Applicant 1 | FL2: Hem Living Expense Applicant 2 | FM2: Hem Living Expense Applicant 3 | FN2: Hem Living Expense Applicant 4 | FO2: Hem Living Expense Applicant 5 | FP2: Hem Living Expense Applicant 6 | FQ2: Hem Living Expense Total | FR2: Customer Nominated Living Expenses | FS2: Living Expense Used | FT2: Net Available Income | FU2: Baseline Assessment Rate | FV2: Assessment Loading | FW2: Credit Card Commitments | FX2: Workings for Negative Gearing | FY2: Other Mortgage Repayment Buffer | FZ2: Rental Income Shading | GA2: Company Tax | GB2: Actual Rate Monthly Total Income | GC2: Actual Rate Monthly - Net Income | GD2: Actual Rate Monthly - Living Costs | GE2: Actual Rate Monthly - Net Available Income | GF2: Actual Rate Monthly - Proposed Repayments | GG2: Actual Rate Monthly - Other Commitments | GH2: Actual Rate Annually Total Income | GI2: Actual Rate Annually - Net Income | GJ2: Actual Rate Annually - Living Costs | GK2: Actual Rate Annually - Net Available Income | GL2: Actual Rate Annually - Proposed Repayments | GM2: Actual Rate Annually - Other Commitments | GN2: Assessment Rate Monthly Total Income | GO2: Assessment Rate Monthly - Net Income | GP2: Assessment Rate Monthly - Living Costs | GQ2: Assessment Rate Monthly - Net Available Income | GR2: Assessment Rate Monthly - Proposed Repayments | GS2: Assessment Rate Monthly - Other Commitments | GT2: Assessment Rate Annually Total Income | GU2: Assessment Rate Annually - Net Income | GV2: Assessment Rate Annually - Living Costs | GW2: Assessment Rate Annually - Net Available Income | GX2: Assessment Rate Annually - Proposed Repayments | GY2: Assessment Rate Annually - Other Commitments | GZ2: Actual NSR | HA2: Actual DSR | HB2: Actual Results | HC2: Assessment NSR | HD2: Assessment DSR | HE2: Assessment Results | HF2: Allowable Income | HG2: Pass or Fail | HH2: Run Scenario Flag | HI2: Date Tested | HJ2: Scenario | HK2: Sequence | HL2: Name
A3: 1000000 | B3: 0.06 | C3: 0.085 | D3: 30 | E3: 5 | F3: 1000000 | G3: 0.06 | H3: 0.085 | I3: 30 | J3: 5 | P3: Individual (Couple) | Q3: Individual (Couple) | V3: Applicant 2 | W3: Applicant 1 | AB3: 2 | AH3: 270000 | AI3: 0 | AJ3: 0 | AK3: 0 | AL3: 0 | AM3: 0 | AN3: 0 | AO3: 0 | AP3: 0 | AQ3: 0 | AR3: 0 | AS3: 0 | AT3: 135000 | AU3: 0 | AV3: 0 | AW3: 0 | AX3: 0 | AY3: 0 | AZ3: 0 | BA3: 0 | BB3: 0 | BC3: 0 | BD3: 0 | BE3: 0 | BF3: 100000 | BG3: 0 | BH3: 0 | BI3: 0 | BJ3: 0 | BK3: 0 | BL3: 0 | BM3: 100000 | BN3: 0 | BO3: 0 | BP3: 0 | BQ3: 0 | BR3: 0 | BS3: 300000 | BT3: 0 | BU3: 0 | BV3: 0 | BW3: 0 | BX3: 100 | BY3: 100 | BZ3: 0 | CA3: 80 | CB3: 300 | CC3: 80 | CD3: 30 | CE3: 50 | CF3: 50 | CG3: 0 | CH3: 0 | CI3: 50 | CJ3: 0 | CK3: 0 | CL3: 5000 | CM3: 1000 | CN3: 500 | CO3: 186017 | CP3: 14247.85 | CQ3: 0 | CR3: 0 | CS3: 0 | CT3: 0 | CU3: 318983 | CV3: 66282.15 | CW3: 0 | CX3: 0 | CY3: 0 | CZ3: 0 | DA3: 385265.15 | DB3: 67456.14 | DC3: 0 | DD3: 0 | DE3: 0 | DF3: 0 | DG3: 0 | DH3: 67456.14 | DI3: 10080 | DJ3: 67456.14 | DK3: 317809.01 | DL3: 0.055 | DM3: 0.025 | DN3: 0.0382 | DO3: 0.0329 | DP3: 1.25 | DQ3: 0.8 | DR3: 0.25 | DS3: 48750 | DT3: 32105.43 | DU3: 5621.34 | DV3: 26484.08 | DW3: 6443.01 | DX3: 1941 | DY3: 585000 | DZ3: 385265.15 | EA3: 67456.14 | EB3: 317809.01 | EC3: 77316.17 | ED3: 23292 | EE3: 48750 | EF3: 32105.43 | EG3: 5621.34 | EH3: 26484.08 | EI3: 8052.27 | EJ3: 1941 | EK3: 585000 | EL3: 385265.15 | EM3: 67456.14 | EN3: 317809.01 | EO3: 96627.25 | EP3: 23292 | EQ3: 3.15 | ER3: 0.1719797747 | ES3: PASS | ET3: 2.65 | EU3: 0.204990171 | EV3: PASS | EW3: 1000000 | EX3: 186017 | EY3: 14247.85 | EZ3: 0 | FA3: 0 | FB3: 0 | FC3: 0 | FD3: 318983 | FE3: 66282.15 | FF3: 0 | FG3: 0 | FH3: 0 | FI3: 0 | FJ3: 385265.15 | FK3: 67456.14 | FL3: 0 | FM3: 0 | FN3: 0 | FO3: 0 | FP3: 0 | FQ3: 67456.14 | FR3: 10080 | FS3: 67456.14 | FT3: 317809.01 | FU3: 0.055 | FV3: 0.025 | FW3: 0.0382 | FX3: 0.0329 | FY3: 1.25 | FZ3: 0.8 | GA3: 0.25 | GB3: 48750 | GC3: 32105.43 | GD3: 5621.34 | GE3: 26484.08 | GF3: 6443.01 | GG3: 1941 | GH3: 585000 | GI3: 385265.15 | GJ3: 67456.14 | GK3: 317809.01 | GL3: 77316.17 | GM3: 23292 | GN3: 48750 | GO3: 32105.43 | GP3: 5621.34 | GQ3: 26484.08 | GR3: 8052.27 | GS3: 1941 | GT3: 585000 | GU3: 385265.15 | GV3: 67456.14 | GW3: 317809.01 | GX3: 96627.25 | GY3: 23292 | GZ3: 3.15 | HA3: 0.1719797747 | HB3: PASS | HC3: 2.65 | HD3: 0.204990171 | HE3: PASS | HF3: 1000000 | HG3: =IF(AND(DS3=GB3,DT3=GC3,DU3=GD3,DV3=GE3,DW3=GF3,DX3=GG3,DY3=GH3,DZ3=GI3,EA3=GJ3,EB3=GK3,EC3=GL3,ED3=GM3,EE3=GN3,EF3=GO3,EG3=GP3,EH3=GQ3,EI3=GR3,EJ3=GS3,EK3=GT3,EL3=GU3,EM3=GV3,EN3=GW3,EO3=GX3,EP3=GY3,EQ3=GZ3,ER3=HA3,ES3=HB3,ET3=HC3,EU3=HD3,EV3=HE3,EW3=HF3),"Pass","Fail") -> Pass | HH3: Y | HI3: 2021-07-05T16:19:41 | HK3: Case 1 | HL3: Emily
A4: 1000000 | B4: 0.06 | C4: 0.085 | D4: 25 | E4: 0 | F4: 1000000 | G4: 0.06 | H4: 0.085 | I4: 25 | J4: 0 | P4: Individual (Couple) | Q4: Individual (Couple) | V4: Applicant 2 | W4: Applicant 1 | AB4: 2 | AH4: 260000 | AI4: 0 | AJ4: 0 | AK4: 0 | AL4: 0 | AM4: 0 | AN4: 0 | AO4: 0 | AP4: 0 | AQ4: 0 | AR4: 0 | AS4: 0 | AT4: 135000 | AU4: 0 | AV4: 0 | AW4: 0 | AX4: 0 | AY4: 0 | AZ4: 0 | BA4: 0 | BB4: 0 | BC4: 0 | BD4: 0 | BE4: 0 | BF4: 0 | BG4: 0 | BH4: 0 | BI4: 0 | BJ4: 0 | BK4: 0 | BL4: 0 | BM4: 100000 | BN4: 0 | BO4: 0 | BP4: 0 | BQ4: 0 | BR4: 0 | BS4: 0 | BT4: 0 | BU4: 0 | BV4: 0 | BW4: 0 | BX4: 0 | BY4: 0 | BZ4: 0 | CA4: 0 | CB4: 0 | CC4: 0 | CD4: 0 | CE4: 0 | CF4: 0 | CG4: 0 | CH4: 0 | CI4: 0 | CJ4: 2000 | CK4: 0 | CL4: 5000 | CM4: 1000 | CN4: 500 | CO4: 156317 | CP4: 18067 | CQ4: 0 | CR4: 0 | CS4: 0 | CT4: 0 | CU4: 238683 | CV4: 62463 | CW4: 0 | CX4: 0 | CY4: 0 | CZ4: 0 | DA4: 301146 | DB4: 67456.14 | DC4: 0 | DD4: 0 | DE4: 0 | DF4: 0 | DG4: 0 | DH4: 67456.14 | DI4: 24000 | DJ4: 67456.14 | DK4: 233689.86 | DL4: 0.055 | DM4: 0.025 | DN4: 0.0382 | DO4: 0.0329 | DP4: 1.25 | DQ4: 0.8 | DR4: 0.25 | DS4: 39583.33 | DT4: 25095.5 | DU4: 5621.34 | DV4: 19474.16 | DW4: 6443.01 | DX4: 1941 | DY4: 475000 | DZ4: 301146 | EA4: 67456.14 | EB4: 233689.86 | EC4: 77316.17 | ED4: 23292 | EE4: 39583.33 | EF4: 25095.5 | EG4: 5621.34 | EH4: 19474.16 | EI4: 8052.27 | EJ4: 1941 | EK4: 475000 | EL4: 301146 | EM4: 67456.14 | EN4: 233689.86 | EO4: 96627.25 | EP4: 23292 | EQ4: 2.32 | ER4: 0.2118066698 | ES4: PASS | ET4: 1.94 | EU4: 0.252461579 | EV4: PASS | EW4: 1000000 | EX4: 156317 | EY4: 18067 | EZ4: 0 | FA4: 0 | FB4: 0 | FC4: 0 | FD4: 238683 | FE4: 62463 | FF4: 0 | FG4: 0 | FH4: 0 | FI4: 0 | FJ4: 301146 | FK4: 67456.14 | FL4: 0 | FM4: 0 | FN4: 0 | FO4: 0 | FP4: 0 | FQ4: 67456.14 | FR4: 24000 | FS4: 67456.14 | FT4: 233689.86 | FU4: 0.055 | FV4: 0.025 | FW4: 0.0382 | FX4: 0.0329 | FY4: 1.25 | FZ4: 0.8 | GA4: 0.25 | GB4: 39583.33 | GC4: 25095.5 | GD4: 5621.34 | GE4: 19474.16 | GF4: 6443.01 | GG4: 1941 | GH4: 475000 | GI4: 301146 | GJ4: 67456.14 | GK4: 233689.86 | GL4: 77316.17 | GM4: 23292 | GN4: 39583.33 | GO4: 25095.5 | GP4: 5621.34 | GQ4: 19474.16 | GR4: 8052.27 | GS4: 1941 | GT4: 475000 | GU4: 301146 | GV4: 67456.14 | GW4: 233689.86 | GX4: 96627.25 | GY4: 23292 | GZ4: 2.32 | HA4: 0.2118066698 | HB4: PASS | HC4: 1.94 | HD4: 0.252461579 | HE4: PASS | HF4: 1000000 | HG4: Pass | HH4: Y | HI4: 2021-07-05T16:20:03 | HK4: Case 2 | HL4: Emily
A5: 1000000 | B5: 0.04 | C5: 0.065 | D5: 31 | E5: 0 | F5: 1000000 | G5: 0.04 | H5: 0.065 | I5: 31 | J5: 0 | P5: Individual (Couple) | Q5: Individual (Couple) | V5: Applicant 2 | W5: Applicant 1 | AB5: 2 | AH5: 260000 | AI5: 0 | AJ5: 0 | AK5: 0 | AL5: 0 | AM5: 0 | AN5: 0 | AO5: 0 | AP5: 0 | AQ5: 0 | AR5: 0 | AS5: 0 | AT5: 135000 | AU5: 0 | AV5: 0 | AW5: 0 | AX5: 0 | AY5: 0 | AZ5: 0 | BA5: 0 | BB5: 0 | BC5: 0 | BD5: 0 | BE5: 0 | BF5: 0 | BG5: 0 | BH5: 0 | BI5: 0 | BJ5: 0 | BK5: 0 | BL5: 0 | BM5: 100000 | BN5: 0 | BO5: 0 | BP5: 0 | BQ5: 0 | BR5: 0 | BS5: 1000000 | BT5: 0 | BU5: 0 | BV5: 0 | BW5: 0 | BX5: 500 | BY5: 300 | BZ5: 0 | CA5: 300 | CB5: 1200 | CC5: 1500 | CD5: 1200 | CE5: 500 | CF5: 400 | CG5: 500 | CH5: 0 | CI5: 500 | CJ5: 0 | CK5: 0 | CL5: 5000 | CM5: 10000 | CN5: 500 | CO5: 156317 | CP5: 5677 | CQ5: 0 | CR5: 0 | CS5: 0 | CT5: 0 | CU5: 238683 | CV5: 75065.5 | CW5: 0 | CX5: 0 | CY5: 0 | CZ5: 0 | DA5: 313748.5 | DB5: 67456.14 | DC5: 0 | DD5: 0 | DE5: 0 | DF5: 0 | DG5: 0 | DH5: 67456.14 | DI5: 82800 | DJ5: 82800 | DK5: 230948.5 | DL5: 0.055 | DM5: 0.025 | DN5: 0.0382 | DO5: 0.0329 | DP5: 1.25 | DQ5: 0.8 | DR5: 0.25 | DS5: 39583.33 | DT5: 26145.71 | DU5: 6900 | DV5: 19245.71 | DW5: 4694.71 | DX5: 13191 | DY5: 475000 | DZ5: 313748.5 | EA5: 82800 | EB5: 230948.5 | EC5: 56336.57 | ED5: 158292 | EE5: 39583.33 | EF5: 26145.71 | EG5: 6900 | EH5: 19245.71 | EI5: 6255.15 | EJ5: 13191 | EK5: 475000 | EL5: 313748.5 | EM5: 82800 | EN5: 230948.5 | EO5: 75061.84 | EP5: 158292 | EQ5: 1.07 | ER5: 0.451849612 | ES5: PASS | ET5: 0.98 | EU5: 0.4912712402 | EV5: FAIL | EW5: 967841.99 | EX5: 156317 | EY5: 5677 | EZ5: 0 | FA5: 0 | FB5: 0 | FC5: 0 | FD5: 238683 | FE5: 75065.5 | FF5: 0 | FG5: 0 | FH5: 0 | FI5: 0 | FJ5: 313748.5 | FK5: 67456.14 | FL5: 0 | FM5: 0 | FN5: 0 | FO5: 0 | FP5: 0 | FQ5: 67456.14 | FR5: 82800 | FS5: 82800 | FT5: 230948.5 | FU5: 0.055 | FV5: 0.025 | FW5: 0.0382 | FX5: 0.0329 | FY5: 1.25 | FZ5: 0.8 | GA5: 0.25 | GB5: 39583.33 | GC5: 26145.71 | GD5: 6900 | GE5: 19245.71 | GF5: 4694.71 | GG5: 13191 | GH5: 475000 | GI5: 313748.5 | GJ5: 82800 | GK5: 230948.5 | GL5: 56336.57 | GM5: 158292 | GN5: 39583.33 | GO5: 26145.71 | GP5: 6900 | GQ5: 19245.71 | GR5: 6255.15 | GS5: 13191 | GT5: 475000 | GU5: 313748.5 | GV5: 82800 | GW5: 230948.5 | GX5: 75061.84 | GY5: 158292 | GZ5: 1.07 | HA5: 0.451849612 | HB5: PASS | HC5: 0.98 | HD5: 0.4912712402 | HE5: FAIL | HF5: 967841.99 | HG5: Pass | HH5: Y | HI5: 2021-07-05T16:20:25 | HK5: Case 3 | HL5: Emily
A6: 2000000 | B6: 0.05 | C6: 0.075 | D6: 25 | E6: 1 | F6: 2000000 | G6: 0.05 | H6: 0.075 | I6: 25 | J6: 1 | P6: Individual (Single) | Q6: Individual (Couple) | R6: Individual (Single) | W6: Non-loan Party | AD6: 3 | AH6: 80000 | AI6: 100000 | AJ6: 120000 | AK6: 0 | AL6: 0 | AM6: 0 | AN6: 0 | AO6: 0 | AP6: 0 | AQ6: 0 | AR6: 0 | AS6: 0 | AT6: 0 | AU6: 0 | AV6: 0 | AW6: 0 | AX6: 0 | AY6: 0 | AZ6: 0 | BA6: 0 | BB6: 0 | BC6: 0 | BD6: 0 | BE6: 0 | BF6: 0 | BG6: 0 | BH6: 0 | BI6: 0 | BJ6: 0 | BK6: 0 | BL6: 0 | BM6: 0 | BN6: 0 | BO6: 0 | BP6: 0 | BQ6: 0 | BR6: 0 | BS6: 0 | BT6: 0 | BU6: 0 | BV6: 0 | BW6: 0 | BX6: 0 | BY6: 0 | BZ6: 0 | CA6: 0 | CB6: 0 | CC6: 0 | CD6: 0 | CE6: 0 | CF6: 0 | CG6: 0 | CH6: 0 | CI6: 0 | CJ6: 0 | CK6: 0 | CL6: 0 | CM6: 0 | CN6: 0 | CO6: 18067 | CP6: 24967 | CQ6: 31867 | CR6: 0 | CS6: 0 | CT6: 0 | CU6: 62463 | CV6: 75413 | CW6: 88213 | CX6: 0 | CY6: 0 | CZ6: 0 | DA6: 226089 | DB6: 20169.12 | DC6: 35646.69 | DD6: 41729.66 | DE6: 0 | DF6: 0 | DG6: 0 | DH6: 97545.46 | DI6: 0 | DJ6: 97545.46 | DK6: 128543.54 | DL6: 0.055 | DM6: 0.025 | DN6: 0.0382 | DO6: 0.0329 | DP6: 1.25 | DQ6: 0.8 | DR6: 0.25 | DS6: 25000 | DT6: 18840.75 | DU6: 8128.79 | DV6: 10711.96 | DW6: 11937.95 | DX6: 0 | DY6: 300000 | DZ6: 226089 | EA6: 97545.46 | EB6: 128543.54 | EC6: 143255.4 | ED6: 0 | EE6: 25000 | EF6: 18840.75 | EG6: 8128.79 | EH6: 10711.96 | EI6: 14992.1 | EJ6: 0 | EK6: 300000 | EL6: 226089 | EM6: 97545.46 | EN6: 128543.54 | EO6: 179905.18 | EP6: 0 | EQ6: 0.89 | ER6: 0.4775180098 | ES6: FAIL | ET6: 0.71 | EU6: 0.599683921 | EV6: FAIL | EW6: 1428886.07 | EX6: 18067 | EY6: 24967 | EZ6: 31867 | FA6: 0 | FB6: 0 | FC6: 0 | FD6: 62463 | FE6: 75413 | FF6: 88213 | FG6: 0 | FH6: 0 | FI6: 0 | FJ6: 226089 | FK6: 20169.12 | FL6: 35646.69 | FM6: 41729.66 | FN6: 0 | FO6: 0 | FP6: 0 | FQ6: 97545.46 | FR6: 0 | FS6: 97545.46 | FT6: 128543.54 | FU6: 0.055 | FV6: 0.025 | FW6: 0.0382 | FX6: 0.0329 | FY6: 1.25 | FZ6: 0.8 | GA6: 0.25 | GB6: 25000 | GC6: 18840.75 | GD6: 8128.79 | GE6: 10711.96 | GF6: 11937.95 | GG6: 0 | GH6: 300000 | GI6: 226089 | GJ6: 97545.46 | GK6: 128543.54 | GL6: 143255.4 | GM6: 0 | GN6: 25000 | GO6: 18840.75 | GP6: 8128.79 | GQ6: 10711.96 | GR6: 14992.1 | GS6: 0 | GT6: 300000 | GU6: 226089 | GV6: 97545.46 | GW6: 128543.54 | GX6: 179905.18 | GY6: 0 | GZ6: 0.89 | HA6: 0.4775180098 | HB6: FAIL | HC6: 0.71 | HD6: 0.599683921 | HE6: FAIL | HF6: 1428886.07 | HG6: Pass | HH6: Y | HI6: 2021-07-05T16:20:47 | HK6: Case 4 | HL6: Emily
A7: 1000000 | B7: 0.04 | C7: 0.065 | D7: 25 | E7: 0 | F7: 1000000 | G7: 0.04 | H7: 0.065 | I7: 25 | J7: 0 | P7: Individual (Single) | Q7: Individual (Single) | R7: Individual (Single) | S7: Individual (Single) | T7: Individual (Single) | U7: Individual (Single) | AH7: 18200 | AI7: 22000 | AJ7: 30000 | AK7: 40000 | AL7: 95000 | AM7: 190000 | AN7: 0 | AO7: 0 | AP7: 0 | AQ7: 0 | AR7: 0 | AS7: 0 | AT7: 0 | AU7: 0 | AV7: 0 | AW7: 0 | AX7: 0 | AY7: 0 | AZ7: 0 | BA7: 0 | BB7: 0 | BC7: 0 | BD7: 0 | BE7: 0 | BF7: 0 | BG7: 0 | BH7: 0 | BI7: 0 | BJ7: 0 | BK7: 0 | BL7: 0 | BM7: 0 | BN7: 0 | BO7: 0 | BP7: 0 | BQ7: 0 | BR7: 0 | BS7: 0 | BT7: 0 | BU7: 0 | BV7: 0 | BW7: 0 | BX7: 0 | BY7: 0 | BZ7: 0 | CA7: 0 | CB7: 0 | CC7: 0 | CD7: 0 | CE7: 0 | CF7: 0 | CG7: 0 | CH7: 0 | CI7: 0 | CJ7: 0 | CK7: 0 | CL7: 0 | CM7: 0 | CN7: 0 | CO7: 0 | CP7: 724 | CQ7: 2842 | CR7: 4942 | CS7: 23242 | CT7: 59967 | CU7: 18200 | CV7: 21921 | CW7: 27803 | CX7: 35748 | CY7: 72213 | CZ7: 130033 | DA7: 305918 | DB7: 13206.69 | DC7: 13921.82 | DD7: 13921.82 | DE7: 14607.63 | DF7: 23820.07 | DG7: 35608.97 | DH7: 115087.01 | DI7: 0 | DJ7: 115087.01 | DK7: 190830.99 | DL7: 0.055 | DM7: 0.025 | DN7: 0.0382 | DO7: 0.0329 | DP7: 1.25 | DQ7: 0.8 | DR7: 0.25 | DS7: 32933.33 | DT7: 25493.17 | DU7: 9590.58 | DV7: 15902.58 | DW7: 5278.37 | DX7: 0 | DY7: 395200 | DZ7: 305918 | EA7: 115087.01 | EB7: 190830.99 | EC7: 63340.42 | ED7: 0 | EE7: 32933.33 | EF7: 25493.17 | EG7: 9590.58 | EH7: 15902.58 | EI7: 6752.07 | EJ7: 0 | EK7: 395200 | EL7: 305918 | EM7: 115087.01 | EN7: 190830.99 | EO7: 81024.86 | EP7: 0 | EQ7: 3.01 | ER7: 0.1602743442 | ES7: PASS | ET7: 2.35 | EU7: 0.2050224174 | EV7: PASS | EW7: 1000000 | EX7: 0 | EY7: 724 | EZ7: 2842 | FA7: 4942 | FB7: 23242 | FC7: 59967 | FD7: 18200 | FE7: 21921 | FF7: 27803 | FG7: 35748 | FH7: 72213 | FI7: 130033 | FJ7: 305918 | FK7: 13206.69 | FL7: 13921.82 | FM7: 13921.82 | FN7: 14607.63 | FO7: 23820.07 | FP7: 35608.97 | FQ7: 115087.01 | FR7: 0 | FS7: 115087.01 | FT7: 190830.99 | FU7: 0.055 | FV7: 0.025 | FW7: 0.0382 | FX7: 0.0329 | FY7: 1.25 | FZ7: 0.8 | GA7: 0.25 | GB7: 32933.33 | GC7: 25493.17 | GD7: 9590.58 | GE7: 15902.58 | GF7: 5278.37 | GG7: 0 | GH7: 395200 | GI7: 305918 | GJ7: 115087.01 | GK7: 190830.99 | GL7: 63340.42 | GM7: 0 | GN7: 32933.33 | GO7: 25493.17 | GP7: 9590.58 | GQ7: 15902.58 | GR7: 6752.07 | GS7: 0 | GT7: 395200 | GU7: 305918 | GV7: 115087.01 | GW7: 190830.99 | GX7: 81024.86 | GY7: 0 | GZ7: 3.01 | HA7: 0.1602743442 | HB7: PASS | HC7: 2.35 | HD7: 0.2050224174 | HE7: PASS | HF7: 1000000 | HG7: Pass | HH7: Y | HI7: 2021-07-05T16:21:08 | HK7: Case 5 | HL7: Emily
A8: 2500000 | B8: 0.0679 | C8: 0.0929 | D8: 40 | E8: 5 | F8: 2500000 | G8: 0.0679 | H8: 0.0929 | I8: 40 | J8: 5 | P8: Company | Q8: Individual (Single) | R8: Individual (Couple) | S8: Individual (Couple) | T8: Individual (Couple) | U8: Individual (Single) | X8: Non-loan Party | Y8: Applicant 5 | Z8: Applicant 4 | AH8: 0 | AI8: 0 | AJ8: 80000 | AK8: 30000 | AL8: 40000 | AM8: 1 | AN8: 0 | AO8: 0 | AP8: 0 | AQ8: 0 | AR8: 0 | AS8: 0 | AT8: 0 | AU8: 150000 | AV8: 0 | AW8: 0 | AX8: 0 | AY8: 0 | AZ8: 75000 | BA8: 0 | BB8: 0 | BC8: 0 | BD8: 0 | BE8: 0 | BF8: 535000 | BG8: 0 | BH8: 0 | BI8: 0 | BJ8: 0 | BK8: 0 | BL8: 0 | BM8: 0 | BN8: 0 | BO8: 50000 | BP8: 50000 | BQ8: 0 | BR8: 0 | BS8: 0 | BT8: 0 | BU8: 1000000 | BV8: 1000000 | BW8: 0 | BX8: 0 | BY8: 0 | BZ8: 0 | CA8: 0 | CB8: 0 | CC8: 0 | CD8: 0 | CE8: 0 | CF8: 0 | CG8: 0 | CH8: 0 | CI8: 0 | CJ8: 20000 | CK8: 0 | CL8: 50000 | CM8: 15000 | CN8: 0 | CO8: 133750 | CP8: 43567 | CQ8: 18067 | CR8: 4333 | CS8: 6716.5 | CT8: 0 | CU8: 476250 | CV8: 106433 | CW8: 62463 | CX8: 66313.5 | CY8: 74080 | CZ8: 1 | DA8: 785540.5 | DB8: 0 | DC8: 33308.36 | DD8: 31996.18 | DE8: 31996.18 | DF8: 0 | DG8: 13206.69 | DH8: 110507.41 | DI8: 240000 | DJ8: 240000 | DK8: 545540.5 | DL8: 0.055 | DM8: 0.025 | DN8: 0.0382 | DO8: 0.0329 | DP8: 1.25 | DQ8: 0.8 | DR8: 0.25 | DS8: 82500.08 | DT8: 65461.71 | DU8: 20000 | DV8: 45461.71 | DW8: 15604.88 | DX8: 20660 | DY8: 990001 | DZ8: 785540.5 | EA8: 240000 | EB8: 545540.5 | EC8: 187258.53 | ED8: 247920 | EE8: 82500.08 | EF8: 65461.71 | EG8: 20000 | EH8: 45461.71 | EI8: 20143.89 | EJ8: 20660 | EK8: 990001 | EL8: 785540.5 | EM8: 240000 | EN8: 545540.5 | EO8: 241726.63 | EP8: 247920 | EQ8: 1.25 | ER8: 0.4395738335 | ES8: PASS | ET8: 1.11 | EU8: 0.4945920572 | EV8: PASS | EW8: 2500000 | EX8: 133750 | EY8: 43567 | EZ8: 18067 | FA8: 4333 | FB8: 6716.5 | FC8: 0 | FD8: 476250 | FE8: 106433 | FF8: 62463 | FG8: 66313.5 | FH8: 74080 | FI8: 1 | FJ8: 785540.5 | FK8: 0 | FL8: 33308.36 | FM8: 31996.18 | FN8: 31996.18 | FO8: 0 | FP8: 13206.69 | FQ8: 110507.41 | FR8: 240000 | FS8: 240000 | FT8: 545540.5 | FU8: 0.055 | FV8: 0.025 | FW8: 0.0382 | FX8: 0.0329 | FY8: 1.25 | FZ8: 0.8 | GA8: 0.25 | GB8: 82500.08 | GC8: 65461.71 | GD8: 20000 | GE8: 45461.71 | GF8: 15604.88 | GG8: 20660 | GH8: 990001 | GI8: 785540.5 | GJ8: 240000 | GK8: 545540.5 | GL8: 187258.53 | GM8: 247920 | GN8: 82500.08 | GO8: 65461.71 | GP8: 20000 | GQ8: 45461.71 | GR8: 20143.89 | GS8: 20660 | GT8: 990001 | GU8: 785540.5 | GV8: 240000 | GW8: 545540.5 | GX8: 241726.63 | GY8: 247920 | GZ8: 1.25 | HA8: 0.4395738335 | HB8: PASS | HC8: 1.11 | HD8: 0.4945920572 | HE8: PASS | HF8: 2500000 | HG8: Pass | HH8: Y | HI8: 2021-07-05T16:21:30 | HK8: Case 6 | HL8: Emily
A9: 2000000 | B9: 0.0529 | C9: 0.0779 | D9: 30 | E9: 3 | F9: 2000000 | G9: 0.0529 | H9: 0.0779 | I9: 30 | J9: 3 | P9: Company | Q9: Individual (Single) | AH9: 0 | AI9: 1 | AJ9: 0 | AK9: 0 | AL9: 0 | AM9: 0 | AN9: 0 | AO9: 30000 | AP9: 0 | AQ9: 0 | AR9: 0 | AS9: 0 | AT9: 0 | AU9: 0 | AV9: 0 | AW9: 0 | AX9: 0 | AY9: 0 | AZ9: 0 | BA9: 0 | BB9: 0 | BC9: 0 | BD9: 0 | BE9: 0 | BF9: 300000 | BG9: 0 | BH9: 0 | BI9: 0 | BJ9: 0 | BK9: 0 | BL9: 0 | BM9: 0 | BN9: 0 | BO9: 0 | BP9: 0 | BQ9: 0 | BR9: 0 | BS9: 0 | BT9: 0 | BU9: 0 | BV9: 0 | BW9: 0 | BX9: 0 | BY9: 0 | BZ9: 0 | CA9: 0 | CB9: 0 | CC9: 0 | CD9: 0 | CE9: 0 | CF9: 0 | CG9: 0 | CH9: 0 | CI9: 0 | CJ9: 0 | CK9: 0 | CL9: 0 | CM9: 0 | CN9: 0 | CO9: 75000 | CP9: 0 | CQ9: 0 | CR9: 0 | CS9: 0 | CT9: 0 | CU9: 225000 | CV9: 30001 | CW9: 0 | CX9: 0 | CY9: 0 | CZ9: 0 | DA9: 255001 | DB9: 0 | DC9: 13921.82 | DD9: 0 | DE9: 0 | DF9: 0 | DG9: 0 | DH9: 13921.82 | DI9: 0 | DJ9: 13921.82 | DK9: 241079.18 | DL9: 0.055 | DM9: 0.025 | DN9: 0.0382 | DO9: 0.0329 | DP9: 1.25 | DQ9: 0.8 | DR9: 0.25 | DS9: 27500.08 | DT9: 21250.08 | DU9: 1160.15 | DV9: 20089.93 | DW9: 11608.05 | DX9: 0 | DY9: 330001 | DZ9: 255001 | EA9: 13921.82 | EB9: 241079.18 | EC9: 139296.62 | ED9: 0 | EE9: 27500.08 | EF9: 21250.08 | EG9: 1160.15 | EH9: 20089.93 | EI9: 14802.32 | EJ9: 0 | EK9: 330001 | EL9: 255001 | EM9: 13921.82 | EN9: 241079.18 | EO9: 177627.89 | EP9: 0 | EQ9: 1.73 | ER9: 0.4221096996 | ES9: PASS | ET9: 1.35 | EU9: 0.5382646951 | EV9: PASS | EW9: 2000000 | EX9: 75000 | EY9: 0 | EZ9: 0 | FA9: 0 | FB9: 0 | FC9: 0 | FD9: 225000 | FE9: 30001 | FF9: 0 | FG9: 0 | FH9: 0 | FI9: 0 | FJ9: 255001 | FK9: 0 | FL9: 13921.82 | FM9: 0 | FN9: 0 | FO9: 0 | FP9: 0 | FQ9: 13921.82 | FR9: 0 | FS9: 13921.82 | FT9: 241079.18 | FU9: 0.055 | FV9: 0.025 | FW9: 0.0382 | FX9: 0.0329 | FY9: 1.25 | FZ9: 0.8 | GA9: 0.25 | GB9: 27500.08 | GC9: 21250.08 | GD9: 1160.15 | GE9: 20089.93 | GF9: 11608.05 | GG9: 0 | GH9: 330001 | GI9: 255001 | GJ9: 13921.82 | GK9: 241079.18 | GL9: 139296.62 | GM9: 0 | GN9: 27500.08 | GO9: 21250.08 | GP9: 1160.15 | GQ9: 20089.93 | GR9: 14802.32 | GS9: 0 | GT9: 330001 | GU9: 255001 | GV9: 13921.82 | GW9: 241079.18 | GX9: 177627.89 | GY9: 0 | GZ9: 1.73 | HA9: 0.4221096996 | HB9: PASS | HC9: 1.35 | HD9: 0.5382646951 | HE9: PASS | HF9: 2000000 | HG9: Pass | HH9: Y | HI9: 2021-07-05T16:21:48 | HK9: Case 7 | HL9: Emily
A10: 350000 | B10: 0.06 | C10: 0.085 | D10: 12 | E10: 5 | F10: 350000 | G10: 0.06 | H10: 0.085 | I10: 12 | J10: 5 | P10: Individual (Couple) | Q10: Individual (Couple) | V10: Applicant 2 | W10: Applicant 1 | AB10: 3 | AC10: 2 | AH10: 100000 | AI10: 80000 | AJ10: 0 | AK10: 0 | AL10: 0 | AM10: 0 | AN10: 0 | AO10: 1 | AP10: 0 | AQ10: 0 | AR10: 0 | AS10: 0 | AT10: 0 | AU10: 25000 | AV10: 0 | AW10: 0 | AX10: 0 | AY10: 0 | AZ10: 0 | BA10: 0 | BB10: 0 | BC10: 0 | BD10: 0 | BE10: 0 | BF10: 0 | BG10: 0 | BH10: 0 | BI10: 0 | BJ10: 0 | BK10: 0 | BL10: 0 | BM10: 0 | BN10: 0 | BO10: 0 | BP10: 0 | BQ10: 0 | BR10: 0 | BS10: 0 | BT10: 0 | BU10: 0 | BV10: 0 | BW10: 0 | BX10: 0 | BY10: 0 | BZ10: 0 | CA10: 0 | CB10: 0 | CC10: 0 | CD10: 0 | CE10: 0 | CF10: 0 | CG10: 0 | CH10: 0 | CI10: 0 | CJ10: 0 | CK10: 0 | CL10: 30000 | CM10: 500 | CN10: 0 | CO10: 24967 | CP10: 26692 | CQ10: 0 | CR10: 0 | CS10: 0 | CT10: 0 | CU10: 75413 | CV10: 78614 | CW10: 0 | CX10: 0 | CY10: 0 | CZ10: 0 | DA10: 154027 | DB10: 63314.23 | DC10: 0 | DD10: 0 | DE10: 0 | DF10: 0 | DG10: 0 | DH10: 63314.23 | DI10: 0 | DJ10: 63314.23 | DK10: 90712.77 | DL10: 0.055 | DM10: 0.025 | DN10: 0.0382 | DO10: 0.0329 | DP10: 1.25 | DQ10: 0.8 | DR10: 0.25 | DS10: 17083.42 | DT10: 12835.58 | DU10: 5276.19 | DV10: 7559.4 | DW10: 5112.99 | DX10: 1771 | DY10: 205001 | DZ10: 154027 | EA10: 63314.23 | EB10: 90712.77 | EC10: 61355.93 | ED10: 21252 | EE10: 17083.42 | EF10: 12835.58 | EG10: 5276.19 | EH10: 7559.4 | EI10: 5542.77 | EJ10: 1771 | EK10: 205001 | EL10: 154027 | EM10: 63314.23 | EN10: 90712.77 | EO10: 66513.24 | EP10: 21252 | EQ10: 1.09 | ER10: 0.4029635408 | ES10: PASS | ET10: 1.03 | EU10: 0.4281210279 | EV10: PASS | EW10: 350000 | EX10: 24967 | EY10: 26692 | EZ10: 0 | FA10: 0 | FB10: 0 | FC10: 0 | FD10: 75413 | FE10: 78614 | FF10: 0 | FG10: 0 | FH10: 0 | FI10: 0 | FJ10: 154027 | FK10: 63314.23 | FL10: 0 | FM10: 0 | FN10: 0 | FO10: 0 | FP10: 0 | FQ10: 63314.23 | FR10: 0 | FS10: 63314.23 | FT10: 90712.77 | FU10: 0.055 | FV10: 0.025 | FW10: 0.0382 | FX10: 0.0329 | FY10: 1.25 | FZ10: 0.8 | GA10: 0.25 | GB10: 17083.42 | GC10: 12835.58 | GD10: 5276.19 | GE10: 7559.4 | GF10: 5112.99 | GG10: 1771 | GH10: 205001 | GI10: 154027 | GJ10: 63314.23 | GK10: 90712.77 | GL10: 61355.93 | GM10: 21252 | GN10: 17083.42 | GO10: 12835.58 | GP10: 5276.19 | GQ10: 7559.4 | GR10: 5542.77 | GS10: 1771 | GT10: 205001 | GU10: 154027 | GV10: 63314.23 | GW10: 90712.77 | GX10: 66513.24 | GY10: 21252 | GZ10: 1.09 | HA10: 0.4029635408 | HB10: PASS | HC10: 1.03 | HD10: 0.4281210279 | HE10: PASS | HF10: 350000 | HG10: Pass | HH10: Y | HI10: 2021-07-05T16:22:04 | HK10: Case 8 | HL10: Emily
A11: 350000 | B11: 0.06 | C11: 0.085 | D11: 12 | E11: 5 | F11: 350000 | G11: 0.06 | H11: 0.085 | I11: 12 | J11: 5 | P11: Individual (Couple) | Q11: Individual (Couple) | V11: Applicant 2 | W11: Applicant 1 | AB11: 3 | AC11: 2 | AH11: 100000 | AI11: 80000 | AJ11: 0 | AK11: 0 | AL11: 0 | AM11: 0 | AN11: 0 | AO11: 0 | AP11: 0 | AQ11: 0 | AR11: 0 | AS11: 0 | AT11: 0 | AU11: 25000 | AV11: 0 | AW11: 0 | AX11: 0 | AY11: 0 | AZ11: 0 | BA11: 0 | BB11: 0 | BC11: 0 | BD11: 0 | BE11: 0 | BF11: 0 | BG11: 0 | BH11: 0 | BI11: 0 | BJ11: 0 | BK11: 0 | BL11: 0 | BM11: 0 | BN11: 0 | BO11: 0 | BP11: 0 | BQ11: 0 | BR11: 0 | BS11: 0 | BT11: 0 | BU11: 0 | BV11: 0 | BW11: 0 | BX11: 0 | BY11: 0 | BZ11: 0 | CA11: 0 | CB11: 0 | CC11: 0 | CD11: 0 | CE11: 0 | CF11: 0 | CG11: 0 | CH11: 0 | CI11: 0 | CJ11: 0 | CK11: 0 | CL11: 30000 | CM11: 500 | CN11: 0 | CO11: 24967 | CP11: 26692 | CQ11: 0 | CR11: 0 | CS11: 0 | CT11: 0 | CU11: 75413 | CV11: 78613 | CW11: 0 | CX11: 0 | CY11: 0 | CZ11: 0 | DA11: 154026 | DB11: 63314.23 | DC11: 0 | DD11: 0 | DE11: 0 | DF11: 0 | DG11: 0 | DH11: 63314.23 | DI11: 0 | DJ11: 63314.23 | DK11: 90711.77 | DL11: 0.055 | DM11: 0.025 | DN11: 0.0382 | DO11: 0.0329 | DP11: 1.25 | DQ11: 0.8 | DR11: 0.25 | DS11: 17083.33 | DT11: 12835.5 | DU11: 5276.19 | DV11: 7559.31 | DW11: 5112.99 | DX11: 1771 | DY11: 205000 | DZ11: 154026 | EA11: 63314.23 | EB11: 90711.77 | EC11: 61355.93 | ED11: 21252 | EE11: 17083.33 | EF11: 12835.5 | EG11: 5276.19 | EH11: 7559.31 | EI11: 5542.77 | EJ11: 1771 | EK11: 205000 | EL11: 154026 | EM11: 63314.23 | EN11: 90711.77 | EO11: 66513.24 | EP11: 21252 | EQ11: 1.09 | ER11: 0.4029655065 | ES11: PASS | ET11: 1.03 | EU11: 0.4281231163 | EV11: PASS | EW11: 350000 | EX11: 24967 | EY11: 26692 | EZ11: 0 | FA11: 0 | FB11: 0 | FC11: 0 | FD11: 75413 | FE11: 78613 | FF11: 0 | FG11: 0 | FH11: 0 | FI11: 0 | FJ11: 154026 | FK11: 63314.23 | FL11: 0 | FM11: 0 | FN11: 0 | FO11: 0 | FP11: 0 | FQ11: 63314.23 | FR11: 0 | FS11: 63314.23 | FT11: 90711.77 | FU11: 0.055 | FV11: 0.025 | FW11: 0.0382 | FX11: 0.0329 | FY11: 1.25 | FZ11: 0.8 | GA11: 0.25 | GB11: 17083.33 | GC11: 12835.5 | GD11: 5276.19 | GE11: 7559.31 | GF11: 5112.99 | GG11: 1771 | GH11: 205000 | GI11: 154026 | GJ11: 63314.23 | GK11: 90711.77 | GL11: 61355.93 | GM11: 21252 | GN11: 17083.33 | GO11: 12835.5 | GP11: 5276.19 | GQ11: 7559.31 | GR11: 5542.77 | GS11: 1771 | GT11: 205000 | GU11: 154026 | GV11: 63314.23 | GW11: 90711.77 | GX11: 66513.24 | GY11: 21252 | GZ11: 1.09 | HA11: 0.4029655065 | HB11: PASS | HC11: 1.03 | HD11: 0.4281231163 | HE11: PASS | HF11: 350000 | HG11: Pass | HH11: Y | HI11: 2021-07-05T16:22:22 | HK11: Case 9 | HL11: Emily
A12: 500000 | B12: 0.07 | C12: 0.095 | D12: 20 | E12: 3 | F12: 500000 | G12: 0.07 | H12: 0.095 | I12: 20 | J12: 3 | P12: Individual (Couple) | Q12: Individual (Couple) | V12: Applicant 2 | W12: Applicant 1 | AB12: 2 | AH12: 150000 | AI12: 0 | AJ12: 0 | AK12: 0 | AL12: 0 | AM12: 0 | AN12: 0 | AO12: 0 | AP12: 0 | AQ12: 0 | AR12: 0 | AS12: 0 | AT12: 0 | AU12: 0 | AV12: 0 | AW12: 0 | AX12: 0 | AY12: 0 | AZ12: 0 | BA12: 0 | BB12: 0 | BC12: 0 | BD12: 0 | BE12: 0 | BF12: 0 | BG12: 0 | BH12: 0 | BI12: 0 | BJ12: 0 | BK12: 0 | BL12: 20000 | BM12: 0 | BN12: 0 | BO12: 0 | BP12: 0 | BQ12: 0 | BR12: 0 | BS12: 0 | BT12: 0 | BU12: 0 | BV12: 0 | BW12: 0 | BX12: 4000 | BY12: 0 | BZ12: 0 | CA12: 0 | CB12: 0 | CC12: 0 | CD12: 0 | CE12: 0 | CF12: 0 | CG12: 0 | CH12: 0 | CI12: 0 | CJ12: 0 | CK12: 0 | CL12: 0 | CM12: 0 | CN12: 0 | CO12: 49807 | CP12: 0 | CQ12: 0 | CR12: 0 | CS12: 0 | CT12: 0 | CU12: 116193 | CV12: 0 | CW12: 0 | CX12: 0 | CY12: 0 | CZ12: 0 | DA12: 116193 | DB12: 51490.72 | DC12: 0 | DD12: 0 | DE12: 0 | DF12: 0 | DG12: 0 | DH12: 51490.72 | DI12: 48000 | DJ12: 51490.72 | DK12: 64702.28 | DL12: 0.055 | DM12: 0.025 | DN12: 0.0382 | DO12: 0.0329 | DP12: 1.25 | DQ12: 0.8 | DR12: 0.25 | DS12: 13833.33 | DT12: 9682.75 | DU12: 4290.89 | DV12: 5391.86 | DW12: 4198.3 | DX12: 0 | DY12: 166000 | DZ12: 116193 | EA12: 51490.72 | EB12: 64702.28 | EC12: 50379.64 | ED12: 0 | EE12: 13833.33 | EF12: 9682.75 | EG12: 4290.89 | EH12: 5391.86 | EI12: 4948.9 | EJ12: 0 | EK12: 166000 | EL12: 116193 | EM12: 51490.72 | EN12: 64702.28 | EO12: 59386.84 | EP12: 0 | EQ12: 1.28 | ER12: 0.3034918023 | ES12: PASS | ET12: 1.08 | EU12: 0.3577520406 | EV12: PASS | EW12: 500000 | EX12: 49807 | EY12: 0 | EZ12: 0 | FA12: 0 | FB12: 0 | FC12: 0 | FD12: 116193 | FE12: 0 | FF12: 0 | FG12: 0 | FH12: 0 | FI12: 0 | FJ12: 116193 | FK12: 51490.72 | FL12: 0 | FM12: 0 | FN12: 0 | FO12: 0 | FP12: 0 | FQ12: 51490.72 | FR12: 48000 | FS12: 51490.72 | FT12: 64702.28 | FU12: 0.055 | FV12: 0.025 | FW12: 0.0382 | FX12: 0.0329 | FY12: 1.25 | FZ12: 0.8 | GA12: 0.25 | GB12: 13833.33 | GC12: 9682.75 | GD12: 4290.89 | GE12: 5391.86 | GF12: 4198.3 | GG12: 0 | GH12: 166000 | GI12: 116193 | GJ12: 51490.72 | GK12: 64702.28 | GL12: 50379.64 | GM12: 0 | GN12: 13833.33 | GO12: 9682.75 | GP12: 4290.89 | GQ12: 5391.86 | GR12: 4948.9 | GS12: 0 | GT12: 166000 | GU12: 116193 | GV12: 51490.72 | GW12: 64702.28 | GX12: 59386.84 | GY12: 0 | GZ12: 1.28 | HA12: 0.3034918023 | HB12: PASS | HC12: 1.08 | HD12: 0.3577520406 | HE12: PASS | HF12: 500000 | HG12: Pass | HH12: Y | HI12: 2021-07-05T16:22:39 | HK12: Case 10 | HL12: Emily
A13: 500000 | B13: 0.07 | C13: 0.095 | D13: 20 | E13: 3 | F13: 500000 | G13: 0.07 | H13: 0.095 | I13: 20 | J13: 3 | P13: Individual (Couple) | Q13: Individual (Couple) | V13: Applicant 2 | W13: Applicant 1 | AB13: 2 | AH13: 150000 | AI13: 0 | AJ13: 0 | AK13: 0 | AL13: 0 | AM13: 0 | AN13: 0 | AO13: 0 | AP13: 0 | AQ13: 0 | AR13: 0 | AS13: 0 | AT13: 0 | AU13: 0 | AV13: 0 | AW13: 0 | AX13: 0 | AY13: 0 | AZ13: 0 | BA13: 0 | BB13: 0 | BC13: 0 | BD13: 0 | BE13: 0 | BF13: 0 | BG13: 0 | BH13: 0 | BI13: 0 | BJ13: 0 | BK13: 0 | BL13: 20000 | BM13: 0 | BN13: 0 | BO13: 0 | BP13: 0 | BQ13: 0 | BR13: 100000 | BS13: 0 | BT13: 0 | BU13: 0 | BV13: 0 | BW13: 0 | BX13: 4000 | BY13: 0 | BZ13: 0 | CA13: 0 | CB13: 0 | CC13: 0 | CD13: 0 | CE13: 0 | CF13: 0 | CG13: 0 | CH13: 0 | CI13: 0 | CJ13: 0 | CK13: 0 | CL13: 0 | CM13: 0 | CN13: 0 | CO13: 48523.9 | CP13: 0 | CQ13: 0 | CR13: 0 | CS13: 0 | CT13: 0 | CU13: 117476.1 | CV13: 0 | CW13: 0 | CX13: 0 | CY13: 0 | CZ13: 0 | DA13: 117476.1 | DB13: 51490.72 | DC13: 0 | DD13: 0 | DE13: 0 | DF13: 0 | DG13: 0 | DH13: 51490.72 | DI13: 48000 | DJ13: 51490.72 | DK13: 65985.38 | DL13: 0.055 | DM13: 0.025 | DN13: 0.0382 | DO13: 0.0329 | DP13: 1.25 | DQ13: 0.8 | DR13: 0.25 | DS13: 13833.33 | DT13: 9789.68 | DU13: 4290.89 | DV13: 5498.78 | DW13: 4198.3 | DX13: 0 | DY13: 166000 | DZ13: 117476.1 | EA13: 51490.72 | EB13: 65985.38 | EC13: 50379.64 | ED13: 0 | EE13: 13833.33 | EF13: 9789.68 | EG13: 4290.89 | EH13: 5498.78 | EI13: 4948.9 | EJ13: 0 | EK13: 166000 | EL13: 117476.1 | EM13: 51490.72 | EN13: 65985.38 | EO13: 59386.84 | EP13: 0 | EQ13: 1.3 | ER13: 0.3034918023 | ES13: PASS | ET13: 1.11 | EU13: 0.3577520406 | EV13: PASS | EW13: 500000 | EX13: 48523.9 | EY13: 0 | EZ13: 0 | FA13: 0 | FB13: 0 | FC13: 0 | FD13: 117476.1 | FE13: 0 | FF13: 0 | FG13: 0 | FH13: 0 | FI13: 0 | FJ13: 117476.1 | FK13: 51490.72 | FL13: 0 | FM13: 0 | FN13: 0 | FO13: 0 | FP13: 0 | FQ13: 51490.72 | FR13: 48000 | FS13: 51490.72 | FT13: 65985.38 | FU13: 0.055 | FV13: 0.025 | FW13: 0.0382 | FX13: 0.0329 | FY13: 1.25 | FZ13: 0.8 | GA13: 0.25 | GB13: 13833.33 | GC13: 9789.68 | GD13: 4290.89 | GE13: 5498.78 | GF13: 4198.3 | GG13: 0 | GH13: 166000 | GI13: 117476.1 | GJ13: 51490.72 | GK13: 65985.38 | GL13: 50379.64 | GM13: 0 | GN13: 13833.33 | GO13: 9789.68 | GP13: 4290.89 | GQ13: 5498.78 | GR13: 4948.9 | GS13: 0 | GT13: 166000 | GU13: 117476.1 | GV13: 51490.72 | GW13: 65985.38 | GX13: 59386.84 | GY13: 0 | GZ13: 1.3 | HA13: 0.3034918023 | HB13: PASS | HC13: 1.11 | HD13: 0.3577520406 | HE13: PASS | HF13: 500000 | HG13: Pass | HH13: Y | HI13: 2021-07-05T16:22:55 | HK13: Case 11 | HL13: Emily
A14: 200000 | B14: 0.05 | C14: 0.075 | D14: 30 | E14: 0 | F14: 200000 | G14: 0.05 | H14: 0.075 | I14: 30 | J14: 0 | P14: Individual (Couple) | Q14: Individual (Couple) | V14: Applicant 2 | W14: Applicant 1 | AH14: 0 | AI14: 10000 | AJ14: 0 | AK14: 0 | AL14: 0 | AM14: 0 | AN14: 35000 | AO14: 0 | AP14: 0 | AQ14: 0 | AR14: 0 | AS14: 0 | AT14: 0 | AU14: 0 | AV14: 0 | AW14: 0 | AX14: 0 | AY14: 0 | AZ14: 0 | BA14: 0 | BB14: 0 | BC14: 0 | BD14: 0 | BE14: 0 | BF14: 0 | BG14: 0 | BH14: 0 | BI14: 0 | BJ14: 0 | BK14: 0 | BL14: 0 | BM14: 0 | BN14: 0 | BO14: 0 | BP14: 0 | BQ14: 0 | BR14: 0 | BS14: 0 | BT14: 0 | BU14: 0 | BV14: 0 | BW14: 0 | BX14: 100 | BY14: 0 | BZ14: 0 | CA14: 0 | CB14: 0 | CC14: 0 | CD14: 0 | CE14: 0 | CF14: 0 | CG14: 0 | CH14: 0 | CI14: 0 | CJ14: 0 | CK14: 0 | CL14: 0 | CM14: 0 | CN14: 0 | CO14: 0 | CP14: 0 | CQ14: 0 | CR14: 0 | CS14: 0 | CT14: 0 | CU14: 35000 | CV14: 10000 | CW14: 0 | CX14: 0 | CY14: 0 | CZ14: 0 | DA14: 45000 | DB14: 27489.02 | DC14: 0 | DD14: 0 | DE14: 0 | DF14: 0 | DG14: 0 | DH14: 27489.02 | DI14: 1200 | DJ14: 27489.02 | DK14: 17510.98 | DL14: 0.055 | DM14: 0.025 | DN14: 0.0382 | DO14: 0.0329 | DP14: 1.25 | DQ14: 0.8 | DR14: 0.25 | DS14: 3750 | DT14: 3750 | DU14: 2290.75 | DV14: 1459.25 | DW14: 1073.64 | DX14: 0 | DY14: 45000 | DZ14: 45000 | EA14: 27489.02 | EB14: 17510.98 | EC14: 12883.72 | ED14: 0 | EE14: 3750 | EF14: 3750 | EG14: 2290.75 | EH14: 1459.25 | EI14: 1398.43 | EJ14: 0 | EK14: 45000 | EL14: 45000 | EM14: 27489.02 | EN14: 17510.98 | EO14: 16781.15 | EP14: 0 | EQ14: 1.35 | ER14: 0.2863048656 | ES14: PASS | ET14: 1.04 | EU14: 0.3729144046 | EV14: FAIL | EW14: 166901.57 | EX14: 0 | EY14: 0 | EZ14: 0 | FA14: 0 | FB14: 0 | FC14: 0 | FD14: 35000 | FE14: 10000 | FF14: 0 | FG14: 0 | FH14: 0 | FI14: 0 | FJ14: 45000 | FK14: 27489.02 | FL14: 0 | FM14: 0 | FN14: 0 | FO14: 0 | FP14: 0 | FQ14: 27489.02 | FR14: 1200 | FS14: 27489.02 | FT14: 17510.98 | FU14: 0.055 | FV14: 0.025 | FW14: 0.0382 | FX14: 0.0329 | FY14: 1.25 | FZ14: 0.8 | GA14: 0.25 | GB14: 3750 | GC14: 3750 | GD14: 2290.75 | GE14: 1459.25 | GF14: 1073.64 | GG14: 0 | GH14: 45000 | GI14: 45000 | GJ14: 27489.02 | GK14: 17510.98 | GL14: 12883.72 | GM14: 0 | GN14: 3750 | GO14: 3750 | GP14: 2290.75 | GQ14: 1459.25 | GR14: 1398.43 | GS14: 0 | GT14: 45000 | GU14: 45000 | GV14: 27489.02 | GW14: 17510.98 | GX14: 16781.15 | GY14: 0 | GZ14: 1.35 | HA14: 0.2863048656 | HB14: PASS | HC14: 1.04 | HD14: 0.3729144046 | HE14: FAIL | HF14: 166901.57 | HG14: Pass | HH14: Y | HI14: 2021-07-05T16:23:13 | HK14: Case 12 | HL14: Emily
A15: 1000000 | B15: 0.05 | C15: 0.075 | D15: 30 | E15: 0 | F15: 1000000 | G15: 0.05 | H15: 0.075 | I15: 30 | J15: 0 | P15: Individual (Couple) | Q15: Individual (Couple) | V15: Applicant 2 | W15: Applicant 1 | AH15: 0 | AI15: 0 | AJ15: 0 | AK15: 0 | AL15: 0 | AM15: 0 | AN15: 0 | AO15: 0 | AP15: 0 | AQ15: 0 | AR15: 0 | AS15: 0 | AT15: 0 | AU15: 0 | AV15: 0 | AW15: 0 | AX15: 0 | AY15: 0 | AZ15: 0 | BA15: 0 | BB15: 0 | BC15: 0 | BD15: 0 | BE15: 0 | BF15: 0 | BG15: 0 | BH15: 0 | BI15: 0 | BJ15: 0 | BK15: 0 | BL15: 200000 | BM15: 0 | BN15: 0 | BO15: 0 | BP15: 0 | BQ15: 0 | BR15: 1000000 | BS15: 0 | BT15: 0 | BU15: 0 | BV15: 0 | BW15: 0 | BX15: 100 | BY15: 0 | BZ15: 0 | CA15: 0 | CB15: 0 | CC15: 0 | CD15: 0 | CE15: 0 | CF15: 0 | CG15: 0 | CH15: 0 | CI15: 0 | CJ15: 0 | CK15: 0 | CL15: 0 | CM15: 0 | CN15: 0 | CO15: 34636 | CP15: 0 | CQ15: 0 | CR15: 0 | CS15: 0 | CT15: 0 | CU15: 125364 | CV15: 0 | CW15: 0 | CX15: 0 | CY15: 0 | CZ15: 0 | DA15: 125364 | DB15: 38951.31 | DC15: 0 | DD15: 0 | DE15: 0 | DF15: 0 | DG15: 0 | DH15: 38951.31 | DI15: 1200 | DJ15: 38951.31 | DK15: 86412.69 | DL15: 0.055 | DM15: 0.025 | DN15: 0.0382 | DO15: 0.0329 | DP15: 1.25 | DQ15: 0.8 | DR15: 0.25 | DS15: 13333.33 | DT15: 10447 | DU15: 3245.94 | DV15: 7201.06 | DW15: 5368.22 | DX15: 0 | DY15: 160000 | DZ15: 125364 | EA15: 38951.31 | EB15: 86412.69 | EC15: 64418.59 | ED15: 0 | EE15: 13333.33 | EF15: 10447 | EG15: 3245.94 | EH15: 7201.06 | EI15: 6992.15 | EJ15: 0 | EK15: 160000 | EL15: 125364 | EM15: 38951.31 | EN15: 86412.69 | EO15: 83905.74 | EP15: 0 | EQ15: 1.34 | ER15: 0.4026162173 | ES15: PASS | ET15: 1.02 | EU15: 0.5244108814 | EV15: PASS | EW15: 1000000 | EX15: 34636 | EY15: 0 | EZ15: 0 | FA15: 0 | FB15: 0 | FC15: 0 | FD15: 125364 | FE15: 0 | FF15: 0 | FG15: 0 | FH15: 0 | FI15: 0 | FJ15: 125364 | FK15: 38951.31 | FL15: 0 | FM15: 0 | FN15: 0 | FO15: 0 | FP15: 0 | FQ15: 38951.31 | FR15: 1200 | FS15: 38951.31 | FT15: 86412.69 | FU15: 0.055 | FV15: 0.025 | FW15: 0.0382 | FX15: 0.0329 | FY15: 1.25 | FZ15: 0.8 | GA15: 0.25 | GB15: 13333.33 | GC15: 10447 | GD15: 3245.94 | GE15: 7201.06 | GF15: 5368.22 | GG15: 0 | GH15: 160000 | GI15: 125364 | GJ15: 38951.31 | GK15: 86412.69 | GL15: 64418.59 | GM15: 0 | GN15: 13333.33 | GO15: 10447 | GP15: 3245.94 | GQ15: 7201.06 | GR15: 6992.15 | GS15: 0 | GT15: 160000 | GU15: 125364 | GV15: 38951.31 | GW15: 86412.69 | GX15: 83905.74 | GY15: 0 | GZ15: 1.34 | HA15: 0.4026162173 | HB15: PASS | HC15: 1.02 | HD15: 0.5244108814 | HE15: PASS | HF15: 1000000 | HG15: Pass | HH15: Y | HI15: 2021-07-05T16:23:30 | HK15: Case 13 | HL15: Emily
A16: 1500000 | B16: 0.06 | C16: 0.085 | D16: 30 | E16: 0 | F16: 1500000 | G16: 0.06 | H16: 0.085 | I16: 30 | J16: 0 | P16: Individual (Couple) | Q16: Individual (Couple) | R16: Individual (Single) | V16: Applicant 2 | W16: Applicant 1 | AH16: 300000 | AI16: 10000 | AJ16: 0 | AK16: 0 | AL16: 0 | AM16: 0 | AN16: 35000 | AO16: 0 | AP16: 35000 | AQ16: 0 | AR16: 0 | AS16: 0 | AT16: 116000 | AU16: 0 | AV16: 0 | AW16: 0 | AX16: 0 | AY16: 0 | AZ16: 15000 | BA16: 0 | BB16: 0 | BC16: 0 | BD16: 0 | BE16: 0 | BF16: 0 | BG16: 0 | BH16: 0 | BI16: 0 | BJ16: 0 | BK16: 0 | BL16: 0 | BM16: 0 | BN16: 0 | BO16: 0 | BP16: 0 | BQ16: 0 | BR16: 0 | BS16: 0 | BT16: 0 | BU16: 0 | BV16: 0 | BW16: 0 | BX16: 100 | BY16: 0 | BZ16: 0 | CA16: 0 | CB16: 0 | CC16: 0 | CD16: 0 | CE16: 0 | CF16: 0 | CG16: 0 | CH16: 0 | CI16: 0 | CJ16: 0 | CK16: 0 | CL16: 0 | CM16: 0 | CN16: 0 | CO16: 166187 | CP16: 0 | CQ16: 0 | CR16: 0 | CS16: 0 | CT16: 0 | CU16: 299813 | CV16: 10000 | CW16: 35000 | CX16: 0 | CY16: 0 | CZ16: 0 | DA16: 344813 | DB16: 61314.12 | DC16: 0 | DD16: 14607.63 | DE16: 0 | DF16: 0 | DG16: 0 | DH16: 75921.75 | DI16: 1200 | DJ16: 75921.75 | DK16: 268891.25 | DL16: 0.055 | DM16: 0.025 | DN16: 0.0382 | DO16: 0.0329 | DP16: 1.25 | DQ16: 0.8 | DR16: 0.25 | DS16: 42583.33 | DT16: 28734.42 | DU16: 6326.81 | DV16: 22407.6 | DW16: 8993.26 | DX16: 0 | DY16: 511000 | DZ16: 344813 | EA16: 75921.75 | EB16: 268891.25 | EC16: 107919.09 | ED16: 0 | EE16: 42583.33 | EF16: 28734.42 | EG16: 6326.81 | EH16: 22407.6 | EI16: 11533.7 | EJ16: 0 | EK16: 511000 | EL16: 344813 | EM16: 75921.75 | EN16: 268891.25 | EO16: 138404.43 | EP16: 0 | EQ16: 2.49 | ER16: 0.2111919658 | ES16: PASS | ET16: 1.94 | EU16: 0.2708501508 | EV16: PASS | EW16: 1500000 | EX16: 166187 | EY16: 0 | EZ16: 0 | FA16: 0 | FB16: 0 | FC16: 0 | FD16: 299813 | FE16: 10000 | FF16: 35000 | FG16: 0 | FH16: 0 | FI16: 0 | FJ16: 344813 | FK16: 61314.12 | FL16: 0 | FM16: 14607.63 | FN16: 0 | FO16: 0 | FP16: 0 | FQ16: 75921.75 | FR16: 1200 | FS16: 75921.75 | FT16: 268891.25 | FU16: 0.055 | FV16: 0.025 | FW16: 0.0382 | FX16: 0.0329 | FY16: 1.25 | FZ16: 0.8 | GA16: 0.25 | GB16: 42583.33 | GC16: 28734.42 | GD16: 6326.81 | GE16: 22407.6 | GF16: 8993.26 | GG16: 0 | GH16: 511000 | GI16: 344813 | GJ16: 75921.75 | GK16: 268891.25 | GL16: 107919.09 | GM16: 0 | GN16: 42583.33 | GO16: 28734.42 | GP16: 6326.81 | GQ16: 22407.6 | GR16: 11533.7 | GS16: 0 | GT16: 511000 | GU16: 344813 | GV16: 75921.75 | GW16: 268891.25 | GX16: 138404.43 | GY16: 0 | GZ16: 2.49 | HA16: 0.2111919658 | HB16: PASS | HC16: 1.94 | HD16: 0.2708501508 | HE16: PASS | HF16: 1500000 | HG16: Pass | HH16: Y | HI16: 2021-07-05T16:23:47 | HK16: Case 14 | HL16: Emily
A17: 1000000 | B17: 0.06 | C17: 0.085 | D17: 30 | E17: 0 | F17: 1000000 | G17: 0.06 | H17: 0.085 | I17: 30 | J17: 0 | P17: Individual (Single) | Q17: Individual (Couple) | R17: Individual (Couple) | W17: Applicant 3 | X17: Applicant 2 | AH17: 0 | AI17: 50000 | AJ17: 0 | AK17: 0 | AL17: 0 | AM17: 0 | AN17: 0 | AO17: 0 | AP17: 0 | AQ17: 0 | AR17: 0 | AS17: 0 | AT17: 25000 | AU17: 0 | AV17: 0 | AW17: 0 | AX17: 0 | AY17: 0 | AZ17: 0 | BA17: 0 | BB17: 0 | BC17: 0 | BD17: 0 | BE17: 0 | BF17: 0 | BG17: 0 | BH17: 0 | BI17: 0 | BJ17: 0 | BK17: 0 | BL17: 0 | BM17: 60000 | BN17: 60000 | BO17: 0 | BP17: 0 | BQ17: 0 | BR17: 0 | BS17: 500000 | BT17: 500000 | BU17: 0 | BV17: 0 | BW17: 0 | BX17: 1000 | BY17: 0 | BZ17: 0 | CA17: 0 | CB17: 0 | CC17: 0 | CD17: 0 | CE17: 0 | CF17: 0 | CG17: 0 | CH17: 0 | CI17: 0 | CJ17: 0 | CK17: 0 | CL17: 0 | CM17: 0 | CN17: 0 | CO17: 1594 | CP17: 18601.75 | CQ17: 3167.5 | CR17: 0 | CS17: 0 | CT17: 0 | CU17: 24051 | CV17: 79928.25 | CW17: 45477.5 | CX17: 0 | CY17: 0 | CZ17: 0 | DA17: 149456.75 | DB17: 13921.82 | DC17: 38951.31 | DD17: 0 | DE17: 0 | DF17: 0 | DG17: 0 | DH17: 52873.14 | DI17: 12000 | DJ17: 52873.14 | DK17: 96583.61 | DL17: 0.055 | DM17: 0.025 | DN17: 0.0382 | DO17: 0.0329 | DP17: 1.25 | DQ17: 0.8 | DR17: 0.25 | DS17: 14250 | DT17: 12454.73 | DU17: 4406.09 | DV17: 8048.63 | DW17: 5995.51 | DX17: 0 | DY17: 171000 | DZ17: 149456.75 | EA17: 52873.14 | EB17: 96583.61 | EC17: 71946.06 | ED17: 0 | EE17: 14250 | EF17: 12454.73 | EG17: 4406.09 | EH17: 8048.63 | EI17: 7689.13 | EJ17: 0 | EK17: 171000 | EL17: 149456.75 | EM17: 52873.14 | EN17: 96583.61 | EO17: 92269.62 | EP17: 0 | EQ17: 1.34 | ER17: 0.4207372106 | ES17: PASS | ET17: 1.04 | EU17: 0.5395884095 | EV17: PASS | EW17: 1000000 | EX17: 1594 | EY17: 18601.75 | EZ17: 3167.5 | FA17: 0 | FB17: 0 | FC17: 0 | FD17: 24051 | FE17: 79928.25 | FF17: 45477.5 | FG17: 0 | FH17: 0 | FI17: 0 | FJ17: 149456.75 | FK17: 13921.82 | FL17: 38951.31 | FM17: 0 | FN17: 0 | FO17: 0 | FP17: 0 | FQ17: 52873.14 | FR17: 12000 | FS17: 52873.14 | FT17: 96583.61 | FU17: 0.055 | FV17: 0.025 | FW17: 0.0382 | FX17: 0.0329 | FY17: 1.25 | FZ17: 0.8 | GA17: 0.25 | GB17: 14250 | GC17: 12454.73 | GD17: 4406.09 | GE17: 8048.63 | GF17: 5995.51 | GG17: 0 | GH17: 171000 | GI17: 149456.75 | GJ17: 52873.14 | GK17: 96583.61 | GL17: 71946.06 | GM17: 0 | GN17: 14250 | GO17: 12454.73 | GP17: 4406.09 | GQ17: 8048.63 | GR17: 7689.13 | GS17: 0 | GT17: 171000 | GU17: 149456.75 | GV17: 52873.14 | GW17: 96583.61 | GX17: 92269.62 | GY17: 0 | GZ17: 1.34 | HA17: 0.4207372106 | HB17: PASS | HC17: 1.04 | HD17: 0.5395884095 | HE17: PASS | HF17: 1000000 | HG17: Pass | HH17: Y | HI17: 2021-07-05T16:24:03 | HK17: Case 15 | HL17: Emily
A18: 200000 | B18: 0.05 | C18: 0.075 | D18: 30 | E18: 0 | F18: 200000 | G18: 0.05 | H18: 0.075 | I18: 30 | J18: 0 | P18: Individual (Single) | AB18: 1 | AH18: 107000 | AI18: 0 | AJ18: 0 | AK18: 0 | AL18: 0 | AM18: 0 | AN18: 0 | AO18: 0 | AP18: 0 | AQ18: 0 | AR18: 0 | AS18: 0 | AT18: 0 | AU18: 0 | AV18: 0 | AW18: 0 | AX18: 0 | AY18: 0 | AZ18: 0 | BA18: 0 | BB18: 0 | BC18: 0 | BD18: 0 | BE18: 0 | BF18: 0 | BG18: 0 | BH18: 0 | BI18: 0 | BJ18: 0 | BK18: 0 | BL18: 0 | BM18: 0 | BN18: 0 | BO18: 0 | BP18: 0 | BQ18: 0 | BR18: 0 | BS18: 0 | BT18: 0 | BU18: 0 | BV18: 0 | BW18: 0 | BX18: 100 | BY18: 0 | BZ18: 0 | CA18: 0 | CB18: 0 | CC18: 0 | CD18: 0 | CE18: 0 | CF18: 0 | CG18: 0 | CH18: 0 | CI18: 0 | CJ18: 0 | CK18: 0 | CL18: 10000 | CM18: 1000 | CN18: 1000 | CO18: 27382 | CP18: 0 | CQ18: 0 | CR18: 0 | CS18: 0 | CT18: 0 | CU18: 79893 | CV18: 0 | CW18: 0 | CX18: 0 | CY18: 0 | CZ18: 0 | DA18: 79893 | DB18: 31806.81 | DC18: 0 | DD18: 0 | DE18: 0 | DF18: 0 | DG18: 0 | DH18: 31806.81 | DI18: 1200 | DJ18: 31806.81 | DK18: 48086.19 | DL18: 0.055 | DM18: 0.025 | DN18: 0.0382 | DO18: 0.0329 | DP18: 1.25 | DQ18: 0.8 | DR18: 0.25 | DS18: 8916.67 | DT18: 6657.75 | DU18: 2650.57 | DV18: 4007.18 | DW18: 1073.64 | DX18: 2632 | DY18: 107000 | DZ18: 79893 | EA18: 31806.81 | EB18: 48086.19 | EC18: 12883.72 | ED18: 31584 | EE18: 8916.67 | EF18: 6657.75 | EG18: 2650.57 | EH18: 4007.18 | EI18: 1398.43 | EJ18: 2632 | EK18: 107000 | EL18: 79893 | EM18: 31806.81 | EN18: 48086.19 | EO18: 16781.15 | EP18: 31584 | EQ18: 1.08 | ER18: 0.4155861584 | ES18: PASS | ET18: 0.99 | EU18: 0.4520107309 | EV18: FAIL | EW18: 196649.24 | EX18: 27382 | EY18: 0 | EZ18: 0 | FA18: 0 | FB18: 0 | FC18: 0 | FD18: 79893 | FE18: 0 | FF18: 0 | FG18: 0 | FH18: 0 | FI18: 0 | FJ18: 79893 | FK18: 31806.81 | FL18: 0 | FM18: 0 | FN18: 0 | FO18: 0 | FP18: 0 | FQ18: 31806.81 | FR18: 1200 | FS18: 31806.81 | FT18: 48086.19 | FU18: 0.055 | FV18: 0.025 | FW18: 0.0382 | FX18: 0.0329 | FY18: 1.25 | FZ18: 0.8 | GA18: 0.25 | GB18: 8916.67 | GC18: 6657.75 | GD18: 2650.57 | GE18: 4007.18 | GF18: 1073.64 | GG18: 2632 | GH18: 107000 | GI18: 79893 | GJ18: 31806.81 | GK18: 48086.19 | GL18: 12883.72 | GM18: 31584 | GN18: 8916.67 | GO18: 6657.75 | GP18: 2650.57 | GQ18: 4007.18 | GR18: 1398.43 | GS18: 2632 | GT18: 107000 | GU18: 79893 | GV18: 31806.81 | GW18: 48086.19 | GX18: 16781.15 | GY18: 31584 | GZ18: 1.08 | HA18: 0.4155861584 | HB18: PASS | HC18: 0.99 | HD18: 0.4520107309 | HE18: FAIL | HF18: 196649.24 | HG18: Pass | HH18: Y | HI18: 2021-07-05T16:24:22 | HK18: Case 16 | HL18: Emily
A19: 200000 | B19: 0.05 | C19: 0.075 | D19: 30 | E19: 0 | F19: 200000 | G19: 0.05 | H19: 0.075 | I19: 30 | J19: 0 | P19: Individual (Single) | AB19: 1 | AH19: 107000 | AI19: 0 | AJ19: 0 | AK19: 0 | AL19: 0 | AM19: 0 | AN19: 25000 | AO19: 0 | AP19: 0 | AQ19: 0 | AR19: 0 | AS19: 0 | AT19: 0 | AU19: 0 | AV19: 0 | AW19: 0 | AX19: 0 | AY19: 0 | AZ19: 0 | BA19: 0 | BB19: 0 | BC19: 0 | BD19: 0 | BE19: 0 | BF19: 0 | BG19: 0 | BH19: 0 | BI19: 0 | BJ19: 0 | BK19: 0 | BL19: 0 | BM19: 0 | BN19: 0 | BO19: 0 | BP19: 0 | BQ19: 0 | BR19: 0 | BS19: 0 | BT19: 0 | BU19: 0 | BV19: 0 | BW19: 0 | BX19: 100 | BY19: 0 | BZ19: 0 | CA19: 0 | CB19: 0 | CC19: 0 | CD19: 0 | CE19: 0 | CF19: 0 | CG19: 0 | CH19: 0 | CI19: 0 | CJ19: 0 | CK19: 0 | CL19: 10000 | CM19: 1000 | CN19: 1000 | CO19: 27382 | CP19: 0 | CQ19: 0 | CR19: 0 | CS19: 0 | CT19: 0 | CU19: 104893 | CV19: 0 | CW19: 0 | CX19: 0 | CY19: 0 | CZ19: 0 | DA19: 104893 | DB19: 36071.48 | DC19: 0 | DD19: 0 | DE19: 0 | DF19: 0 | DG19: 0 | DH19: 36071.48 | DI19: 1200 | DJ19: 36071.48 | DK19: 68821.52 | DL19: 0.055 | DM19: 0.025 | DN19: 0.0382 | DO19: 0.0329 | DP19: 1.25 | DQ19: 0.8 | DR19: 0.25 | DS19: 11000 | DT19: 8741.08 | DU19: 3005.96 | DV19: 5735.13 | DW19: 1073.64 | DX19: 2632 | DY19: 132000 | DZ19: 104893 | EA19: 36071.48 | EB19: 68821.52 | EC19: 12883.72 | ED19: 31584 | EE19: 11000 | EF19: 8741.08 | EG19: 3005.96 | EH19: 5735.13 | EI19: 1398.43 | EJ19: 2632 | EK19: 132000 | EL19: 104893 | EM19: 36071.48 | EN19: 68821.52 | EO19: 16781.15 | EP19: 31584 | EQ19: 1.54 | ER19: 0.3368766587 | ES19: PASS | ET19: 1.42 | EU19: 0.3664026379 | EV19: PASS | EW19: 200000 | EX19: 27382 | EY19: 0 | EZ19: 0 | FA19: 0 | FB19: 0 | FC19: 0 | FD19: 104893 | FE19: 0 | FF19: 0 | FG19: 0 | FH19: 0 | FI19: 0 | FJ19: 104893 | FK19: 36071.48 | FL19: 0 | FM19: 0 | FN19: 0 | FO19: 0 | FP19: 0 | FQ19: 36071.48 | FR19: 1200 | FS19: 36071.48 | FT19: 68821.52 | FU19: 0.055 | FV19: 0.025 | FW19: 0.0382 | FX19: 0.0329 | FY19: 1.25 | FZ19: 0.8 | GA19: 0.25 | GB19: 11000 | GC19: 8741.08 | GD19: 3005.96 | GE19: 5735.13 | GF19: 1073.64 | GG19: 2632 | GH19: 132000 | GI19: 104893 | GJ19: 36071.48 | GK19: 68821.52 | GL19: 12883.72 | GM19: 31584 | GN19: 11000 | GO19: 8741.08 | GP19: 3005.96 | GQ19: 5735.13 | GR19: 1398.43 | GS19: 2632 | GT19: 132000 | GU19: 104893 | GV19: 36071.48 | GW19: 68821.52 | GX19: 16781.15 | GY19: 31584 | GZ19: 1.54 | HA19: 0.3368766587 | HB19: PASS | HC19: 1.42 | HD19: 0.3664026379 | HE19: PASS | HF19: 200000 | HG19: Pass | HH19: Y | HI19: 2021-07-05T16:24:41 | HK19: Case 17 | HL19: Emily
A20: 2500000 | B20: 0.0679 | C20: 0.0929 | D20: 40 | E20: 5 | F20: 2500000 | G20: 0.0679 | H20: 0.0929 | I20: 40 | J20: 5 | P20: Company | Q20: Individual (Single) | R20: Individual (Couple) | S20: Individual (Couple) | T20: Individual (Couple) | U20: Individual (Single) | X20: Non-loan Party | Y20: Applicant 5 | Z20: Applicant 4 | AH20: 0 | AI20: 0 | AJ20: 80000 | AK20: 0 | AL20: 0 | AM20: 300000 | AN20: 0 | AO20: 0 | AP20: 0 | AQ20: 0 | AR20: 0 | AS20: 0 | AT20: 535000 | AU20: 150000 | AV20: 0 | AW20: 0 | AX20: 0 | AY20: 0 | AZ20: 75000 | BA20: 0 | BB20: 0 | BC20: 0 | BD20: 0 | BE20: 0 | BF20: 0 | BG20: 0 | BH20: 0 | BI20: 0 | BJ20: 0 | BK20: 0 | BL20: 0 | BM20: 0 | BN20: 0 | BO20: 50000 | BP20: 50000 | BQ20: 0 | BR20: 0 | BS20: 0 | BT20: 0 | BU20: 1000000 | BV20: 1000000 | BW20: 0 | BX20: 0 | BY20: 0 | BZ20: 0 | CA20: 0 | CB20: 0 | CC20: 0 | CD20: 0 | CE20: 0 | CF20: 0 | CG20: 0 | CH20: 0 | CI20: 0 | CJ20: 20000 | CK20: 0 | CL20: 50000 | CM20: 15000 | CN20: 0 | CO20: 133750 | CP20: 43567 | CQ20: 18067 | CR20: 0 | CS20: 0 | CT20: 111667 | CU20: 476250 | CV20: 106433 | CW20: 62463 | CX20: 40000 | CY20: 40000 | CZ20: 188333 | DA20: 913479 | DB20: 0 | DC20: 33308.36 | DD20: 31996.18 | DE20: 25749.66 | DF20: 0 | DG20: 47297.52 | DH20: 138351.72 | DI20: 240000 | DJ20: 240000 | DK20: 673479 | DL20: 0.055 | DM20: 0.025 | DN20: 0.0382 | DO20: 0.0329 | DP20: 1.25 | DQ20: 0.8 | DR20: 0.25 | DS20: 101666.67 | DT20: 76123.25 | DU20: 20000 | DV20: 56123.25 | DW20: 15604.88 | DX20: 20660 | DY20: 1220000 | DZ20: 913479 | EA20: 240000 | EB20: 673479 | EC20: 187258.53 | ED20: 247920 | EE20: 101666.67 | EF20: 76123.25 | EG20: 20000 | EH20: 56123.25 | EI20: 20143.89 | EJ20: 20660 | EK20: 1220000 | EL20: 913479 | EM20: 240000 | EN20: 673479 | EO20: 241726.63 | EP20: 247920 | EQ20: 1.54 | ER20: 0.356703717 | ES20: PASS | ET20: 1.37 | EU20: 0.4013496977 | EV20: PASS | EW20: 2500000 | EX20: 133750 | EY20: 43567 | EZ20: 18067 | FA20: 0 | FB20: 0 | FC20: 111667 | FD20: 476250 | FE20: 106433 | FF20: 62463 | FG20: 40000 | FH20: 40000 | FI20: 188333 | FJ20: 913479 | FK20: 0 | FL20: 33308.36 | FM20: 31996.18 | FN20: 25749.66 | FO20: 0 | FP20: 47297.52 | FQ20: 138351.72 | FR20: 240000 | FS20: 240000 | FT20: 673479 | FU20: 0.055 | FV20: 0.025 | FW20: 0.0382 | FX20: 0.0329 | FY20: 1.25 | FZ20: 0.8 | GA20: 0.25 | GB20: 101666.67 | GC20: 76123.25 | GD20: 20000 | GE20: 56123.25 | GF20: 15604.88 | GG20: 20660 | GH20: 1220000 | GI20: 913479 | GJ20: 240000 | GK20: 673479 | GL20: 187258.53 | GM20: 247920 | GN20: 101666.67 | GO20: 76123.25 | GP20: 20000 | GQ20: 56123.25 | GR20: 20143.89 | GS20: 20660 | GT20: 1220000 | GU20: 913479 | GV20: 240000 | GW20: 673479 | GX20: 241726.63 | GY20: 247920 | GZ20: 1.54 | HA20: 0.356703717 | HB20: PASS | HC20: 1.37 | HD20: 0.4013496977 | HE20: PASS | HF20: 2500000 | HG20: Pass | HH20: Y | HI20: 2021-07-05T16:24:59 | HK20: Case 18 | HL20: Emily
A21: 2500000 | B21: 0.0679 | C21: 0.0929 | D21: 40 | E21: 5 | F21: 2500000 | G21: 0.0679 | H21: 0.0929 | I21: 40 | J21: 5 | P21: Company | Q21: Individual (Single) | R21: Individual (Couple) | S21: Individual (Couple) | T21: Individual (Couple) | U21: Individual (Single) | X21: Non-loan Party | Y21: Applicant 5 | Z21: Applicant 4 | AH21: 0 | AI21: 0 | AJ21: 80000 | AK21: 30000 | AL21: 40000 | AM21: 0 | AN21: 0 | AO21: 0 | AP21: 0 | AQ21: 0 | AR21: 0 | AS21: 75000 | AT21: 0 | AU21: 150000 | AV21: 0 | AW21: 0 | AX21: 0 | AY21: 0 | AZ21: 75000 | BA21: 0 | BB21: 0 | BC21: 0 | BD21: 0 | BE21: 0 | BF21: 535000 | BG21: 0 | BH21: 0 | BI21: 0 | BJ21: 0 | BK21: 0 | BL21: 0 | BM21: 0 | BN21: 0 | BO21: 50000 | BP21: 50000 | BQ21: 0 | BR21: 0 | BS21: 0 | BT21: 0 | BU21: 1000000 | BV21: 1000000 | BW21: 0 | BX21: 0 | BY21: 0 | BZ21: 0 | CA21: 0 | CB21: 0 | CC21: 0 | CD21: 0 | CE21: 0 | CF21: 0 | CG21: 0 | CH21: 0 | CI21: 0 | CJ21: 20000 | CK21: 0 | CL21: 50000 | CM21: 15000 | CN21: 0 | CO21: 133750 | CP21: 43567 | CQ21: 18067 | CR21: 4333 | CS21: 6716.5 | CT21: 0 | CU21: 476250 | CV21: 106433 | CW21: 62463 | CX21: 66313.5 | CY21: 74080 | CZ21: 75000 | DA21: 860539.5 | DB21: 0 | DC21: 33308.36 | DD21: 31996.18 | DE21: 31996.18 | DF21: 0 | DG21: 20169.12 | DH21: 117469.83 | DI21: 240000 | DJ21: 240000 | DK21: 620539.5 | DL21: 0.055 | DM21: 0.025 | DN21: 0.0382 | DO21: 0.0329 | DP21: 1.25 | DQ21: 0.8 | DR21: 0.25 | DS21: 88750 | DT21: 71711.63 | DU21: 20000 | DV21: 51711.63 | DW21: 15604.88 | DX21: 20660 | DY21: 1065000 | DZ21: 860539.5 | EA21: 240000 | EB21: 620539.5 | EC21: 187258.53 | ED21: 247920 | EE21: 88750 | EF21: 71711.63 | EG21: 20000 | EH21: 51711.63 | EI21: 20143.89 | EJ21: 20660 | EK21: 1065000 | EL21: 860539.5 | EM21: 240000 | EN21: 620539.5 | EO21: 241726.63 | EP21: 247920 | EQ21: 1.42 | ER21: 0.4086183425 | ES21: PASS | ET21: 1.26 | EU21: 0.459762095 | EV21: PASS | EW21: 2500000 | EX21: 133750 | EY21: 43567 | EZ21: 18067 | FA21: 4333 | FB21: 6716.5 | FC21: 0 | FD21: 476250 | FE21: 106433 | FF21: 62463 | FG21: 66313.5 | FH21: 74080 | FI21: 75000 | FJ21: 860539.5 | FK21: 0 | FL21: 33308.36 | FM21: 31996.18 | FN21: 31996.18 | FO21: 0 | FP21: 20169.12 | FQ21: 117469.83 | FR21: 240000 | FS21: 240000 | FT21: 620539.5 | FU21: 0.055 | FV21: 0.025 | FW21: 0.0382 | FX21: 0.0329 | FY21: 1.25 | FZ21: 0.8 | GA21: 0.25 | GB21: 88750 | GC21: 71711.63 | GD21: 20000 | GE21: 51711.63 | GF21: 15604.88 | GG21: 20660 | GH21: 1065000 | GI21: 860539.5 | GJ21: 240000 | GK21: 620539.5 | GL21: 187258.53 | GM21: 247920 | GN21: 88750 | GO21: 71711.63 | GP21: 20000 | GQ21: 51711.63 | GR21: 20143.89 | GS21: 20660 | GT21: 1065000 | GU21: 860539.5 | GV21: 240000 | GW21: 620539.5 | GX21: 241726.63 | GY21: 247920 | GZ21: 1.42 | HA21: 0.4086183425 | HB21: PASS | HC21: 1.26 | HD21: 0.459762095 | HE21: PASS | HF21: 2500000 | HG21: Pass | HH21: Y | HI21: 2021-07-05T16:25:21 | HK21: Case 19 | HL21: Emily
A22: 2500000 | B22: 0.0679 | C22: 0.0929 | D22: 40 | E22: 5 | F22: 2500000 | G22: 0.0679 | H22: 0.0929 | I22: 40 | J22: 5 | P22: Company | Q22: Individual (Single) | R22: Individual (Couple) | S22: Individual (Couple) | T22: Individual (Couple) | U22: Individual (Single) | X22: Non-loan Party | Y22: Applicant 5 | Z22: Applicant 4 | AH22: 0 | AI22: 0 | AJ22: 80000 | AK22: 30000 | AL22: 40000 | AM22: 0 | AN22: 0 | AO22: 0 | AP22: 0 | AQ22: 0 | AR22: 0 | AS22: 75000 | AT22: 535000 | AU22: 150000 | AV22: 0 | AW22: 0 | AX22: 0 | AY22: 0 | AZ22: 75000 | BA22: 0 | BB22: 0 | BC22: 0 | BD22: 0 | BE22: 0 | BF22: 0 | BG22: 0 | BH22: 0 | BI22: 0 | BJ22: 0 | BK22: 0 | BL22: 0 | BM22: 0 | BN22: 0 | BO22: 50000 | BP22: 50000 | BQ22: 0 | BR22: 0 | BS22: 0 | BT22: 0 | BU22: 1000000 | BV22: 1000000 | BW22: 0 | BX22: 0 | BY22: 0 | BZ22: 0 | CA22: 0 | CB22: 0 | CC22: 0 | CD22: 0 | CE22: 0 | CF22: 0 | CG22: 0 | CH22: 0 | CI22: 0 | CJ22: 20000 | CK22: 0 | CL22: 50000 | CM22: 15000 | CN22: 0 | CO22: 133750 | CP22: 43567 | CQ22: 18067 | CR22: 4333 | CS22: 6716.5 | CT22: 0 | CU22: 476250 | CV22: 106433 | CW22: 62463 | CX22: 66313.5 | CY22: 74080 | CZ22: 75000 | DA22: 860539.5 | DB22: 0 | DC22: 33308.36 | DD22: 31996.18 | DE22: 31996.18 | DF22: 0 | DG22: 20169.12 | DH22: 117469.83 | DI22: 240000 | DJ22: 240000 | DK22: 620539.5 | DL22: 0.055 | DM22: 0.025 | DN22: 0.0382 | DO22: 0.0329 | DP22: 1.25 | DQ22: 0.8 | DR22: 0.25 | DS22: 88750 | DT22: 71711.63 | DU22: 20000 | DV22: 51711.63 | DW22: 15604.88 | DX22: 20660 | DY22: 1065000 | DZ22: 860539.5 | EA22: 240000 | EB22: 620539.5 | EC22: 187258.53 | ED22: 247920 | EE22: 88750 | EF22: 71711.63 | EG22: 20000 | EH22: 51711.63 | EI22: 20143.89 | EJ22: 20660 | EK22: 1065000 | EL22: 860539.5 | EM22: 240000 | EN22: 620539.5 | EO22: 241726.63 | EP22: 247920 | EQ22: 1.42 | ER22: 0.4086183425 | ES22: PASS | ET22: 1.26 | EU22: 0.459762095 | EV22: PASS | EW22: 2500000 | EX22: 133750 | EY22: 43567 | EZ22: 18067 | FA22: 4333 | FB22: 6716.5 | FC22: 0 | FD22: 476250 | FE22: 106433 | FF22: 62463 | FG22: 66313.5 | FH22: 74080 | FI22: 75000 | FJ22: 860539.5 | FK22: 0 | FL22: 33308.36 | FM22: 31996.18 | FN22: 31996.18 | FO22: 0 | FP22: 20169.12 | FQ22: 117469.83 | FR22: 240000 | FS22: 240000 | FT22: 620539.5 | FU22: 0.055 | FV22: 0.025 | FW22: 0.0382 | FX22: 0.0329 | FY22: 1.25 | FZ22: 0.8 | GA22: 0.25 | GB22: 88750 | GC22: 71711.63 | GD22: 20000 | GE22: 51711.63 | GF22: 15604.88 | GG22: 20660 | GH22: 1065000 | GI22: 860539.5 | GJ22: 240000 | GK22: 620539.5 | GL22: 187258.53 | GM22: 247920 | GN22: 88750 | GO22: 71711.63 | GP22: 20000 | GQ22: 51711.63 | GR22: 20143.89 | GS22: 20660 | GT22: 1065000 | GU22: 860539.5 | GV22: 240000 | GW22: 620539.5 | GX22: 241726.63 | GY22: 247920 | GZ22: 1.42 | HA22: 0.4086183425 | HB22: PASS | HC22: 1.26 | HD22: 0.459762095 | HE22: PASS | HF22: 2500000 | HG22: Pass | HH22: Y | HI22: 2021-07-05T16:25:42 | HK22: Case 20 | HL22: Emily
A23: 2500000 | B23: 0.0679 | C23: 0.0929 | D23: 40 | E23: 5 | F23: 2500000 | G23: 0.0679 | H23: 0.0929 | I23: 40 | J23: 5 | P23: Company | Q23: Individual (Single) | R23: Individual (Couple) | S23: Individual (Couple) | T23: Individual (Couple) | U23: Individual (Single) | X23: Non-loan Party | Y23: Applicant 5 | Z23: Applicant 4 | AH23: 0 | AI23: 0 | AJ23: 80000 | AK23: 30000 | AL23: 40000 | AM23: 0 | AN23: 0 | AO23: 0 | AP23: 0 | AQ23: 0 | AR23: 0 | AS23: 409501 | AT23: 535000 | AU23: 150000 | AV23: 0 | AW23: 0 | AX23: 0 | AY23: 0 | AZ23: 75000 | BA23: 0 | BB23: 0 | BC23: 0 | BD23: 0 | BE23: 0 | BF23: 0 | BG23: 0 | BH23: 0 | BI23: 0 | BJ23: 0 | BK23: 0 | BL23: 0 | BM23: 0 | BN23: 0 | BO23: 50000 | BP23: 50000 | BQ23: 0 | BR23: 0 | BS23: 0 | BT23: 0 | BU23: 1000000 | BV23: 1000000 | BW23: 0 | BX23: 0 | BY23: 0 | BZ23: 0 | CA23: 0 | CB23: 0 | CC23: 0 | CD23: 0 | CE23: 0 | CF23: 0 | CG23: 0 | CH23: 0 | CI23: 0 | CJ23: 20000 | CK23: 0 | CL23: 50000 | CM23: 15000 | CN23: 0 | CO23: 133750 | CP23: 43567 | CQ23: 18067 | CR23: 4333 | CS23: 6716.5 | CT23: 0 | CU23: 476250 | CV23: 106433 | CW23: 62463 | CX23: 66313.5 | CY23: 74080 | CZ23: 409501 | DA23: 1195040.5 | DB23: 0 | DC23: 33308.36 | DD23: 31996.18 | DE23: 31996.18 | DF23: 0 | DG23: 49490.67 | DH23: 146791.39 | DI23: 240000 | DJ23: 240000 | DK23: 955040.5 | DL23: 0.055 | DM23: 0.025 | DN23: 0.0382 | DO23: 0.0329 | DP23: 1.25 | DQ23: 0.8 | DR23: 0.25 | DS23: 116625.08 | DT23: 99586.71 | DU23: 20000 | DV23: 79586.71 | DW23: 15604.88 | DX23: 20660 | DY23: 1399501 | DZ23: 1195040.5 | EA23: 240000 | EB23: 955040.5 | EC23: 187258.53 | ED23: 247920 | EE23: 116625.08 | EF23: 99586.71 | EG23: 20000 | EH23: 79586.71 | EI23: 20143.89 | EJ23: 20660 | EK23: 1399501 | EL23: 1195040.5 | EM23: 240000 | EN23: 955040.5 | EO23: 241726.63 | EP23: 247920 | EQ23: 2.19 | ER23: 0.3109526429 | ES23: PASS | ET23: 1.95 | EU23: 0.3498722982 | EV23: PASS | EW23: 2500000 | EX23: 133750 | EY23: 43567 | EZ23: 18067 | FA23: 4333 | FB23: 6716.5 | FC23: 0 | FD23: 476250 | FE23: 106433 | FF23: 62463 | FG23: 66313.5 | FH23: 74080 | FI23: 409501 | FJ23: 1195040.5 | FK23: 0 | FL23: 33308.36 | FM23: 31996.18 | FN23: 31996.18 | FO23: 0 | FP23: 49490.67 | FQ23: 146791.39 | FR23: 240000 | FS23: 240000 | FT23: 955040.5 | FU23: 0.055 | FV23: 0.025 | FW23: 0.0382 | FX23: 0.0329 | FY23: 1.25 | FZ23: 0.8 | GA23: 0.25 | GB23: 116625.08 | GC23: 99586.71 | GD23: 20000 | GE23: 79586.71 | GF23: 15604.88 | GG23: 20660 | GH23: 1399501 | GI23: 1195040.5 | GJ23: 240000 | GK23: 955040.5 | GL23: 187258.53 | GM23: 247920 | GN23: 116625.08 | GO23: 99586.71 | GP23: 20000 | GQ23: 79586.71 | GR23: 20143.89 | GS23: 20660 | GT23: 1399501 | GU23: 1195040.5 | GV23: 240000 | GW23: 955040.5 | GX23: 241726.63 | GY23: 247920 | GZ23: 2.19 | HA23: 0.3109526429 | HB23: PASS | HC23: 1.95 | HD23: 0.3498722982 | HE23: PASS | HF23: 2500000 | HG23: Pass | HH23: Y | HI23: 2021-07-05T16:26:01 | HK23: Case 21 | HL23: Emily
A24: 2500000 | B24: 0.0679 | C24: 0.0929 | D24: 40 | E24: 5 | F24: 2500000 | G24: 0.0679 | H24: 0.0929 | I24: 40 | J24: 5 | P24: Company | Q24: Individual (Single) | R24: Individual (Couple) | S24: Individual (Couple) | T24: Individual (Couple) | U24: Individual (Single) | X24: Non-loan Party | Y24: Applicant 5 | Z24: Applicant 4 | AH24: 0 | AI24: 0 | AJ24: 80000 | AK24: 30000 | AL24: 40000 | AM24: 1 | AN24: 0 | AO24: 0 | AP24: 0 | AQ24: 0 | AR24: 0 | AS24: 0 | AT24: 535000 | AU24: 150000 | AV24: 0 | AW24: 0 | AX24: 0 | AY24: 0 | AZ24: 75000 | BA24: 0 | BB24: 0 | BC24: 0 | BD24: 0 | BE24: 0 | BF24: 0 | BG24: 0 | BH24: 0 | BI24: 0 | BJ24: 0 | BK24: 0 | BL24: 0 | BM24: 0 | BN24: 0 | BO24: 50000 | BP24: 50000 | BQ24: 0 | BR24: 0 | BS24: 0 | BT24: 0 | BU24: 1000000 | BV24: 1000000 | BW24: 0 | BX24: 0 | BY24: 0 | BZ24: 0 | CA24: 0 | CB24: 0 | CC24: 0 | CD24: 0 | CE24: 0 | CF24: 0 | CG24: 0 | CH24: 0 | CI24: 0 | CJ24: 20000 | CK24: 0 | CL24: 50000 | CM24: 15000 | CN24: 0 | CO24: 133750 | CP24: 43567 | CQ24: 18067 | CR24: 4333 | CS24: 6716.5 | CT24: 0 | CU24: 476250 | CV24: 106433 | CW24: 62463 | CX24: 66313.5 | CY24: 74080 | CZ24: 1 | DA24: 785540.5 | DB24: 0 | DC24: 33308.36 | DD24: 31996.18 | DE24: 31996.18 | DF24: 0 | DG24: 13206.69 | DH24: 110507.41 | DI24: 240000 | DJ24: 240000 | DK24: 545540.5 | DL24: 0.055 | DM24: 0.025 | DN24: 0.0382 | DO24: 0.0329 | DP24: 1.25 | DQ24: 0.8 | DR24: 0.25 | DS24: 82500.08 | DT24: 65461.71 | DU24: 20000 | DV24: 45461.71 | DW24: 15604.88 | DX24: 20660 | DY24: 990001 | DZ24: 785540.5 | EA24: 240000 | EB24: 545540.5 | EC24: 187258.53 | ED24: 247920 | EE24: 82500.08 | EF24: 65461.71 | EG24: 20000 | EH24: 45461.71 | EI24: 20143.89 | EJ24: 20660 | EK24: 990001 | EL24: 785540.5 | EM24: 240000 | EN24: 545540.5 | EO24: 241726.63 | EP24: 247920 | EQ24: 1.25 | ER24: 0.4395738335 | ES24: PASS | ET24: 1.11 | EU24: 0.4945920572 | EV24: PASS | EW24: 2500000 | EX24: 133750 | EY24: 43567 | EZ24: 18067 | FA24: 4333 | FB24: 6716.5 | FC24: 0 | FD24: 476250 | FE24: 106433 | FF24: 62463 | FG24: 66313.5 | FH24: 74080 | FI24: 1 | FJ24: 785540.5 | FK24: 0 | FL24: 33308.36 | FM24: 31996.18 | FN24: 31996.18 | FO24: 0 | FP24: 13206.69 | FQ24: 110507.41 | FR24: 240000 | FS24: 240000 | FT24: 545540.5 | FU24: 0.055 | FV24: 0.025 | FW24: 0.0382 | FX24: 0.0329 | FY24: 1.25 | FZ24: 0.8 | GA24: 0.25 | GB24: 82500.08 | GC24: 65461.71 | GD24: 20000 | GE24: 45461.71 | GF24: 15604.88 | GG24: 20660 | GH24: 990001 | GI24: 785540.5 | GJ24: 240000 | GK24: 545540.5 | GL24: 187258.53 | GM24: 247920 | GN24: 82500.08 | GO24: 65461.71 | GP24: 20000 | GQ24: 45461.71 | GR24: 20143.89 | GS24: 20660 | GT24: 990001 | GU24: 785540.5 | GV24: 240000 | GW24: 545540.5 | GX24: 241726.63 | GY24: 247920 | GZ24: 1.25 | HA24: 0.4395738335 | HB24: PASS | HC24: 1.11 | HD24: 0.4945920572 | HE24: PASS | HF24: 2500000 | HG24: Pass | HH24: Y | HI24: 2021-07-05T16:26:21 | HK24: Case 22 | HL24: Emily
A25: 2500000 | B25: 0.0679 | C25: 0.0929 | D25: 40 | E25: 5 | F25: 2500000 | G25: 0.0679 | H25: 0.0929 | I25: 40 | J25: 5 | P25: Company | Q25: Individual (Single) | R25: Individual (Couple) | S25: Individual (Couple) | T25: Individual (Couple) | U25: Individual (Single) | X25: Non-loan Party | Y25: Applicant 5 | Z25: Applicant 4 | AH25: 0 | AI25: 0 | AJ25: 80000 | AK25: 30000 | AL25: 40000 | AM25: 1 | AN25: 0 | AO25: 0 | AP25: 0 | AQ25: 0 | AR25: 0 | AS25: 500000 | AT25: 0 | AU25: 1 | AV25: 0 | AW25: 0 | AX25: 0 | AY25: 0 | AZ25: 75000 | BA25: 0 | BB25: 0 | BC25: 0 | BD25: 0 | BE25: 0 | BF25: 35000 | BG25: 0 | BH25: 0 | BI25: 0 | BJ25: 0 | BK25: 0 | BL25: 0 | BM25: 0 | BN25: 0 | BO25: 50000 | BP25: 50000 | BQ25: 0 | BR25: 0 | BS25: 0 | BT25: 0 | BU25: 1000000 | BV25: 1000000 | BW25: 0 | BX25: 0 | BY25: 0 | BZ25: 0 | CA25: 0 | CB25: 0 | CC25: 0 | CD25: 0 | CE25: 0 | CF25: 0 | CG25: 0 | CH25: 0 | CI25: 0 | CJ25: 20000 | CK25: 0 | CL25: 50000 | CM25: 15000 | CN25: 0 | CO25: 8750 | CP25: 0 | CQ25: 18067 | CR25: 4333 | CS25: 6716.5 | CT25: 0 | CU25: 101250 | CV25: 1 | CW25: 62463 | CX25: 66313.5 | CY25: 74080 | CZ25: 500001 | DA25: 804108.5 | DB25: 0 | DC25: 13206.69 | DD25: 31996.18 | DE25: 31996.18 | DF25: 0 | DG25: 49490.67 | DH25: 126689.72 | DI25: 240000 | DJ25: 240000 | DK25: 564108.5 | DL25: 0.055 | DM25: 0.025 | DN25: 0.0382 | DO25: 0.0329 | DP25: 1.25 | DQ25: 0.8 | DR25: 0.25 | DS25: 70000.17 | DT25: 67009.04 | DU25: 20000 | DV25: 47009.04 | DW25: 15604.88 | DX25: 20660 | DY25: 840002 | DZ25: 804108.5 | EA25: 240000 | EB25: 564108.5 | EC25: 187258.53 | ED25: 247920 | EE25: 70000.17 | EF25: 67009.04 | EG25: 20000 | EH25: 47009.04 | EI25: 20143.89 | EJ25: 20660 | EK25: 840002 | EL25: 804108.5 | EM25: 240000 | EN25: 564108.5 | EO25: 241726.63 | EP25: 247920 | EQ25: 1.29 | ER25: 0.5180684507 | ES25: PASS | ET25: 1.15 | EU25: 0.5829112683 | EV25: FAIL | EW25: 2103243.64 | EX25: 8750 | EY25: 0 | EZ25: 18067 | FA25: 4333 | FB25: 6716.5 | FC25: 0 | FD25: 101250 | FE25: 1 | FF25: 62463 | FG25: 66313.5 | FH25: 74080 | FI25: 500001 | FJ25: 804108.5 | FK25: 0 | FL25: 13206.69 | FM25: 31996.18 | FN25: 31996.18 | FO25: 0 | FP25: 49490.67 | FQ25: 126689.72 | FR25: 240000 | FS25: 240000 | FT25: 564108.5 | FU25: 0.055 | FV25: 0.025 | FW25: 0.0382 | FX25: 0.0329 | FY25: 1.25 | FZ25: 0.8 | GA25: 0.25 | GB25: 70000.17 | GC25: 67009.04 | GD25: 20000 | GE25: 47009.04 | GF25: 15604.88 | GG25: 20660 | GH25: 840002 | GI25: 804108.5 | GJ25: 240000 | GK25: 564108.5 | GL25: 187258.53 | GM25: 247920 | GN25: 70000.17 | GO25: 67009.04 | GP25: 20000 | GQ25: 47009.04 | GR25: 20143.89 | GS25: 20660 | GT25: 840002 | GU25: 804108.5 | GV25: 240000 | GW25: 564108.5 | GX25: 241726.63 | GY25: 247920 | GZ25: 1.29 | HA25: 0.5180684507 | HB25: PASS | HC25: 1.15 | HD25: 0.5829112683 | HE25: FAIL | HF25: 2103243.64 | HG25: Pass | HH25: Y | HI25: 2021-07-05T16:26:42 | HK25: Case 23 | HL25: Emily
A26: 2000000 | B26: 0.0529 | C26: 0.0779 | D26: 30 | E26: 3 | F26: 2000000 | G26: 0.0529 | H26: 0.0779 | I26: 30 | J26: 3 | P26: Company | Q26: Individual (Single) | AH26: 0 | AI26: 0 | AJ26: 0 | AK26: 0 | AL26: 0 | AM26: 0 | AN26: 0 | AO26: 30000 | AP26: 0 | AQ26: 0 | AR26: 0 | AS26: 0 | AT26: 0 | AU26: 0 | AV26: 0 | AW26: 0 | AX26: 0 | AY26: 0 | AZ26: 0 | BA26: 0 | BB26: 0 | BC26: 0 | BD26: 0 | BE26: 0 | BF26: 300000 | BG26: 0 | BH26: 0 | BI26: 0 | BJ26: 0 | BK26: 0 | BL26: 0 | BM26: 0 | BN26: 0 | BO26: 0 | BP26: 0 | BQ26: 0 | BR26: 0 | BS26: 0 | BT26: 0 | BU26: 0 | BV26: 0 | BW26: 0 | BX26: 0 | BY26: 0 | BZ26: 0 | CA26: 0 | CB26: 0 | CC26: 0 | CD26: 0 | CE26: 0 | CF26: 0 | CG26: 0 | CH26: 0 | CI26: 0 | CJ26: 0 | CK26: 0 | CL26: 0 | CM26: 0 | CN26: 0 | CO26: 75000 | CP26: 0 | CQ26: 0 | CR26: 0 | CS26: 0 | CT26: 0 | CU26: 225000 | CV26: 30000 | CW26: 0 | CX26: 0 | CY26: 0 | CZ26: 0 | DA26: 255000 | DB26: 0 | DC26: 13921.82 | DD26: 0 | DE26: 0 | DF26: 0 | DG26: 0 | DH26: 13921.82 | DI26: 0 | DJ26: 13921.82 | DK26: 241078.18 | DL26: 0.055 | DM26: 0.025 | DN26: 0.0382 | DO26: 0.0329 | DP26: 1.25 | DQ26: 0.8 | DR26: 0.25 | DS26: 27500 | DT26: 21250 | DU26: 1160.15 | DV26: 20089.85 | DW26: 11608.05 | DX26: 0 | DY26: 330000 | DZ26: 255000 | EA26: 13921.82 | EB26: 241078.18 | EC26: 139296.62 | ED26: 0 | EE26: 27500 | EF26: 21250 | EG26: 1160.15 | EH26: 20089.85 | EI26: 14802.32 | EJ26: 0 | EK26: 330000 | EL26: 255000 | EM26: 13921.82 | EN26: 241078.18 | EO26: 177627.89 | EP26: 0 | EQ26: 1.73 | ER26: 0.4221109787 | ES26: PASS | ET26: 1.35 | EU26: 0.5382663262 | EV26: PASS | EW26: 2000000 | EX26: 75000 | EY26: 0 | EZ26: 0 | FA26: 0 | FB26: 0 | FC26: 0 | FD26: 225000 | FE26: 30000 | FF26: 0 | FG26: 0 | FH26: 0 | FI26: 0 | FJ26: 255000 | FK26: 0 | FL26: 13921.82 | FM26: 0 | FN26: 0 | FO26: 0 | FP26: 0 | FQ26: 13921.82 | FR26: 0 | FS26: 13921.82 | FT26: 241078.18 | FU26: 0.055 | FV26: 0.025 | FW26: 0.0382 | FX26: 0.0329 | FY26: 1.25 | FZ26: 0.8 | GA26: 0.25 | GB26: 27500 | GC26: 21250 | GD26: 1160.15 | GE26: 20089.85 | GF26: 11608.05 | GG26: 0 | GH26: 330000 | GI26: 255000 | GJ26: 13921.82 | GK26: 241078.18 | GL26: 139296.62 | GM26: 0 | GN26: 27500 | GO26: 21250 | GP26: 1160.15 | GQ26: 20089.85 | GR26: 14802.32 | GS26: 0 | GT26: 330000 | GU26: 255000 | GV26: 13921.82 | GW26: 241078.18 | GX26: 177627.89 | GY26: 0 | GZ26: 1.73 | HA26: 0.4221109787 | HB26: PASS | HC26: 1.35 | HD26: 0.5382663262 | HE26: PASS | HF26: 2000000 | HG26: Pass | HH26: Y | HI26: 2021-07-05T16:27:03 | HK26: Case 24 | HL26: Emily
A27: 2000000 | B27: 0.0529 | C27: 0.0779 | D27: 30 | E27: 3 | F27: 2000000 | G27: 0.0529 | H27: 0.0779 | I27: 30 | J27: 3 | P27: Individual (Single) | Q27: Individual (Single) | AH27: 0 | AI27: 1 | AJ27: 0 | AK27: 0 | AL27: 0 | AM27: 0 | AN27: 0 | AO27: 30000 | AP27: 0 | AQ27: 0 | AR27: 0 | AS27: 0 | AT27: 330000 | AU27: 0 | AV27: 0 | AW27: 0 | AX27: 0 | AY27: 0 | AZ27: 0 | BA27: 0 | BB27: 0 | BC27: 0 | BD27: 0 | BE27: 0 | BF27: 0 | BG27: 0 | BH27: 0 | BI27: 0 | BJ27: 0 | BK27: 0 | BL27: 0 | BM27: 0 | BN27: 0 | BO27: 0 | BP27: 0 | BQ27: 0 | BR27: 0 | BS27: 0 | BT27: 0 | BU27: 0 | BV27: 0 | BW27: 0 | BX27: 0 | BY27: 0 | BZ27: 0 | CA27: 0 | CB27: 0 | CC27: 0 | CD27: 0 | CE27: 0 | CF27: 0 | CG27: 0 | CH27: 0 | CI27: 0 | CJ27: 0 | CK27: 0 | CL27: 0 | CM27: 0 | CN27: 0 | CO27: 125767 | CP27: 0 | CQ27: 0 | CR27: 0 | CS27: 0 | CT27: 0 | CU27: 204233 | CV27: 30001 | CW27: 0 | CX27: 0 | CY27: 0 | CZ27: 0 | DA27: 234234 | DB27: 49490.67 | DC27: 13921.82 | DD27: 0 | DE27: 0 | DF27: 0 | DG27: 0 | DH27: 63412.5 | DI27: 0 | DJ27: 63412.5 | DK27: 170821.5 | DL27: 0.055 | DM27: 0.025 | DN27: 0.0382 | DO27: 0.0329 | DP27: 1.25 | DQ27: 0.8 | DR27: 0.25 | DS27: 30000.08 | DT27: 19519.5 | DU27: 5284.37 | DV27: 14235.13 | DW27: 11608.05 | DX27: 0 | DY27: 360001 | DZ27: 234234 | EA27: 63412.5 | EB27: 170821.5 | EC27: 139296.62 | ED27: 0 | EE27: 30000.08 | EF27: 19519.5 | EG27: 5284.37 | EH27: 14235.13 | EI27: 14802.32 | EJ27: 0 | EK27: 360001 | EL27: 234234 | EM27: 63412.5 | EN27: 170821.5 | EO27: 177627.89 | EP27: 0 | EQ27: 1.22 | ER27: 0.386933989 | ES27: PASS | ET27: 0.96 | EU27: 0.4934094284 | EV27: FAIL | EW27: 1923346.64 | EX27: 125767 | EY27: 0 | EZ27: 0 | FA27: 0 | FB27: 0 | FC27: 0 | FD27: 204233 | FE27: 30001 | FF27: 0 | FG27: 0 | FH27: 0 | FI27: 0 | FJ27: 234234 | FK27: 49490.67 | FL27: 13921.82 | FM27: 0 | FN27: 0 | FO27: 0 | FP27: 0 | FQ27: 63412.5 | FR27: 0 | FS27: 63412.5 | FT27: 170821.5 | FU27: 0.055 | FV27: 0.025 | FW27: 0.0382 | FX27: 0.0329 | FY27: 1.25 | FZ27: 0.8 | GA27: 0.25 | GB27: 30000.08 | GC27: 19519.5 | GD27: 5284.37 | GE27: 14235.13 | GF27: 11608.05 | GG27: 0 | GH27: 360001 | GI27: 234234 | GJ27: 63412.5 | GK27: 170821.5 | GL27: 139296.62 | GM27: 0 | GN27: 30000.08 | GO27: 19519.5 | GP27: 5284.37 | GQ27: 14235.13 | GR27: 14802.32 | GS27: 0 | GT27: 360001 | GU27: 234234 | GV27: 63412.5 | GW27: 170821.5 | GX27: 177627.89 | GY27: 0 | GZ27: 1.22 | HA27: 0.386933989 | HB27: PASS | HC27: 0.96 | HD27: 0.4934094284 | HE27: FAIL | HF27: 1923346.64 | HG27: =IF(AND(DS27=GB27,DT27=GC27,DU27=GD27,DV27=GE27,DW27=GF27,DX27=GG27,DY27=GH27,DZ27=GI27,EA27=GJ27,EB27=GK27,EC27=GL27,ED27=GM27,EE27=GN27,EF27=GO27,EG27=GP27,EH27=GQ27,EI27=GR27,EJ27=GS27,EK27=GT27,EL27=GU27,EM27=GV27,EN27=GW27,EO27=GX27,EP27=GY27,EQ27=GZ27,ER27=HA27,ES27=HB27,ET27=HC27,EU27=HD27,EV27=HE27,EW27=HF27),"Pass","Fail") -> Pass | HH27: Y | HI27: 2021-07-05T16:27:22 | HK27: Case 25 | HL27: Emily
A28: 1500000 | B28: 0.06 | C28: 0.085 | D28: 30 | E28: 0 | F28: 1500000 | G28: 0.06 | H28: 0.085 | I28: 30 | J28: 0 | P28: Individual (Couple) | Q28: Individual (Couple) | R28: Individual (Single) | S28: Individual (Single) | V28: Applicant 2 | W28: Applicant 1 | AH28: 36000 | AI28: 10000 | AJ28: 0 | AK28: 0 | AL28: 0 | AM28: 0 | AN28: 35000 | AO28: 0 | AP28: 35000 | AQ28: 100000 | AR28: 0 | AS28: 0 | AT28: 0 | AU28: 0 | AV28: 0 | AW28: 0 | AX28: 0 | AY28: 0 | AZ28: 10000 | BA28: 0 | BB28: 0 | BC28: 0 | BD28: 0 | BE28: 0 | BF28: 0 | BG28: 0 | BH28: 0 | BI28: 0 | BJ28: 0 | BK28: 0 | BL28: 0 | BM28: 0 | BN28: 0 | BO28: 0 | BP28: 0 | BQ28: 0 | BR28: 0 | BS28: 0 | BT28: 0 | BU28: 0 | BV28: 0 | BW28: 0 | BX28: 100 | BY28: 0 | BZ28: 0 | CA28: 0 | CB28: 0 | CC28: 0 | CD28: 0 | CE28: 0 | CF28: 0 | CG28: 0 | CH28: 0 | CI28: 0 | CJ28: 0 | CK28: 0 | CL28: 0 | CM28: 0 | CN28: 0 | CO28: 4102 | CP28: 0 | CQ28: 0 | CR28: 0 | CS28: 0 | CT28: 0 | CU28: 77543 | CV28: 10000 | CW28: 35000 | CX28: 100000 | CY28: 0 | CZ28: 0 | DA28: 222543 | DB28: 35646.69 | DC28: 0 | DD28: 14607.63 | DE28: 23820.07 | DF28: 0 | DG28: 0 | DH28: 74074.39 | DI28: 1200 | DJ28: 74074.39 | DK28: 148468.61 | DL28: 0.055 | DM28: 0.025 | DN28: 0.0382 | DO28: 0.0329 | DP28: 1.25 | DQ28: 0.8 | DR28: 0.25 | DS28: 18833.33 | DT28: 18545.25 | DU28: 6172.87 | DV28: 12372.38 | DW28: 8993.26 | DX28: 0 | DY28: 226000 | DZ28: 222543 | EA28: 74074.39 | EB28: 148468.61 | EC28: 107919.09 | ED28: 0 | EE28: 18833.33 | EF28: 18545.25 | EG28: 6172.87 | EH28: 12372.38 | EI28: 11533.7 | EJ28: 0 | EK28: 226000 | EL28: 222543 | EM28: 74074.39 | EN28: 148468.61 | EO28: 138404.43 | EP28: 0 | EQ28: 1.37 | ER28: 0.4775181174 | ES28: PASS | ET28: 1.07 | EU28: 0.6124089692 | EV28: FAIL | EW28: 1287140.91 | EX28: 4102 | EY28: 0 | EZ28: 0 | FA28: 0 | FB28: 0 | FC28: 0 | FD28: 77543 | FE28: 10000 | FF28: 35000 | FG28: 100000 | FH28: 0 | FI28: 0 | FJ28: 222543 | FK28: 35646.69 | FL28: 0 | FM28: 14607.63 | FN28: 23820.07 | FO28: 0 | FP28: 0 | FQ28: 74074.39 | FR28: 1200 | FS28: 74074.39 | FT28: 148468.61 | FU28: 0.055 | FV28: 0.025 | FW28: 0.0382 | FX28: 0.0329 | FY28: 1.25 | FZ28: 0.8 | GA28: 0.25 | GB28: 18833.33 | GC28: 18545.25 | GD28: 6172.87 | GE28: 12372.38 | GF28: 8993.26 | GG28: 0 | GH28: 226000 | GI28: 222543 | GJ28: 74074.39 | GK28: 148468.61 | GL28: 107919.09 | GM28: 0 | GN28: 18833.33 | GO28: 18545.25 | GP28: 6172.87 | GQ28: 12372.38 | GR28: 11533.7 | GS28: 0 | GT28: 226000 | GU28: 222543 | GV28: 74074.39 | GW28: 148468.61 | GX28: 138404.43 | GY28: 0 | GZ28: 1.37 | HA28: 0.4775181174 | HB28: PASS | HC28: 1.07 | HD28: 0.6124089692 | HE28: FAIL | HF28: 1287140.91 | HG28: Pass | HH28: Y | HI28: 2021-07-05T16:27:43 | HK28: Case 26 | HL28: Emily
A29: 1000000 | B29: 0.06 | C29: 0.085 | D29: 30 | E29: 0 | F29: 1000000 | G29: 0.06 | H29: 0.085 | I29: 30 | J29: 0 | P29: Individual (Single) | Q29: Individual (Couple) | R29: Individual (Couple) | W29: Applicant 3 | X29: Applicant 2 | AH29: 0 | AI29: 50000 | AJ29: 0 | AK29: 0 | AL29: 0 | AM29: 0 | AN29: 0 | AO29: 0 | AP29: 0 | AQ29: 0 | AR29: 0 | AS29: 0 | AT29: 25000 | AU29: 0 | AV29: 0 | AW29: 0 | AX29: 0 | AY29: 0 | AZ29: 0 | BA29: 0 | BB29: 0 | BC29: 0 | BD29: 0 | BE29: 0 | BF29: 0 | BG29: 0 | BH29: 0 | BI29: 0 | BJ29: 0 | BK29: 0 | BL29: 0 | BM29: 60000 | BN29: 60000 | BO29: 0 | BP29: 0 | BQ29: 0 | BR29: 0 | BS29: 500000 | BT29: 500000 | BU29: 0 | BV29: 0 | BW29: 0 | BX29: 100 | BY29: 0 | BZ29: 0 | CA29: 0 | CB29: 0 | CC29: 0 | CD29: 0 | CE29: 0 | CF29: 0 | CG29: 0 | CH29: 0 | CI29: 0 | CJ29: 0 | CK29: 0 | CL29: 0 | CM29: 0 | CN29: 0 | CO29: 1594 | CP29: 18601.75 | CQ29: 3167.5 | CR29: 0 | CS29: 0 | CT29: 0 | CU29: 24051 | CV29: 79928.25 | CW29: 45477.5 | CX29: 0 | CY29: 0 | CZ29: 0 | DA29: 149456.75 | DB29: 13921.82 | DC29: 38951.31 | DD29: 0 | DE29: 0 | DF29: 0 | DG29: 0 | DH29: 52873.14 | DI29: 1200 | DJ29: 52873.14 | DK29: 96583.61 | DL29: 0.055 | DM29: 0.025 | DN29: 0.0382 | DO29: 0.0329 | DP29: 1.25 | DQ29: 0.8 | DR29: 0.25 | DS29: 14250 | DT29: 12454.73 | DU29: 4406.09 | DV29: 8048.63 | DW29: 5995.51 | DX29: 0 | DY29: 171000 | DZ29: 149456.75 | EA29: 52873.14 | EB29: 96583.61 | EC29: 71946.06 | ED29: 0 | EE29: 14250 | EF29: 12454.73 | EG29: 4406.09 | EH29: 8048.63 | EI29: 7689.13 | EJ29: 0 | EK29: 171000 | EL29: 149456.75 | EM29: 52873.14 | EN29: 96583.61 | EO29: 92269.62 | EP29: 0 | EQ29: 1.34 | ER29: 0.4207372106 | ES29: PASS | ET29: 1.04 | EU29: 0.5395884095 | EV29: PASS | EW29: 1000000 | EX29: 1594 | EY29: 18601.75 | EZ29: 3167.5 | FA29: 0 | FB29: 0 | FC29: 0 | FD29: 24051 | FE29: 79928.25 | FF29: 45477.5 | FG29: 0 | FH29: 0 | FI29: 0 | FJ29: 149456.75 | FK29: 13921.82 | FL29: 38951.31 | FM29: 0 | FN29: 0 | FO29: 0 | FP29: 0 | FQ29: 52873.14 | FR29: 1200 | FS29: 52873.14 | FT29: 96583.61 | FU29: 0.055 | FV29: 0.025 | FW29: 0.0382 | FX29: 0.0329 | FY29: 1.25 | FZ29: 0.8 | GA29: 0.25 | GB29: 14250 | GC29: 12454.73 | GD29: 4406.09 | GE29: 8048.63 | GF29: 5995.51 | GG29: 0 | GH29: 171000 | GI29: 149456.75 | GJ29: 52873.14 | GK29: 96583.61 | GL29: 71946.06 | GM29: 0 | GN29: 14250 | GO29: 12454.73 | GP29: 4406.09 | GQ29: 8048.63 | GR29: 7689.13 | GS29: 0 | GT29: 171000 | GU29: 149456.75 | GV29: 52873.14 | GW29: 96583.61 | GX29: 92269.62 | GY29: 0 | GZ29: 1.34 | HA29: 0.4207372106 | HB29: PASS | HC29: 1.04 | HD29: 0.5395884095 | HE29: PASS | HF29: 1000000 | HG29: =IF(AND(DS29=GB29,DT29=GC29,DU29=GD29,DV29=GE29,DW29=GF29,DX29=GG29,DY29=GH29,DZ29=GI29,EA29=GJ29,EB29=GK29,EC29=GL29,ED29=GM29,EE29=GN29,EF29=GO29,EG29=GP29,EH29=GQ29,EI29=GR29,EJ29=GS29,EK29=GT29,EL29=GU29,EM29=GV29,EN29=GW29,EO29=GX29,EP29=GY29,EQ29=GZ29,ER29=HA29,ES29=HB29,ET29=HC29,EU29=HD29,EV29=HE29,EW29=HF29),"Pass","Fail") -> Pass | HH29: Y | HI29: 2021-07-05T16:28:02 | HK29: Case 27 | HL29: Emily
A30: 1000000 | B30: 0.05 | C30: 0.075 | D30: 30 | E30: 0 | F30: 1000000 | G30: 0.05 | H30: 0.075 | I30: 30 | J30: 0 | P30: Individual (Couple) | Q30: Individual (Couple) | V30: Applicant 2 | W30: Applicant 1 | AH30: 0 | AI30: 0 | AJ30: 0 | AK30: 0 | AL30: 0 | AM30: 0 | AN30: 0 | AO30: 0 | AP30: 0 | AQ30: 0 | AR30: 0 | AS30: 0 | AT30: 0 | AU30: 0 | AV30: 0 | AW30: 0 | AX30: 0 | AY30: 0 | AZ30: 0 | BA30: 0 | BB30: 0 | BC30: 0 | BD30: 0 | BE30: 0 | BF30: 0 | BG30: 0 | BH30: 0 | BI30: 0 | BJ30: 0 | BK30: 0 | BL30: 200000 | BM30: 0 | BN30: 0 | BO30: 0 | BP30: 0 | BQ30: 0 | BR30: 1000000 | BS30: 0 | BT30: 0 | BU30: 0 | BV30: 0 | BW30: 0 | BX30: 100 | BY30: 0 | BZ30: 0 | CA30: 0 | CB30: 0 | CC30: 0 | CD30: 0 | CE30: 0 | CF30: 0 | CG30: 0 | CH30: 0 | CI30: 0 | CJ30: 0 | CK30: 0 | CL30: 0 | CM30: 0 | CN30: 0 | CO30: 34636 | CP30: 0 | CQ30: 0 | CR30: 0 | CS30: 0 | CT30: 0 | CU30: 125364 | CV30: 0 | CW30: 0 | CX30: 0 | CY30: 0 | CZ30: 0 | DA30: 125364 | DB30: 38951.31 | DC30: 0 | DD30: 0 | DE30: 0 | DF30: 0 | DG30: 0 | DH30: 38951.31 | DI30: 1200 | DJ30: 38951.31 | DK30: 86412.69 | DL30: 0.055 | DM30: 0.025 | DN30: 0.0382 | DO30: 0.0329 | DP30: 1.25 | DQ30: 0.8 | DR30: 0.25 | DS30: 13333.33 | DT30: 10447 | DU30: 3245.94 | DV30: 7201.06 | DW30: 5368.22 | DX30: 0 | DY30: 160000 | DZ30: 125364 | EA30: 38951.31 | EB30: 86412.69 | EC30: 64418.59 | ED30: 0 | EE30: 13333.33 | EF30: 10447 | EG30: 3245.94 | EH30: 7201.06 | EI30: 6992.15 | EJ30: 0 | EK30: 160000 | EL30: 125364 | EM30: 38951.31 | EN30: 86412.69 | EO30: 83905.74 | EP30: 0 | EQ30: 1.34 | ER30: 0.4026162173 | ES30: PASS | ET30: 1.02 | EU30: 0.5244108814 | EV30: PASS | EW30: 1000000 | EX30: 34636 | EY30: 0 | EZ30: 0 | FA30: 0 | FB30: 0 | FC30: 0 | FD30: 125364 | FE30: 0 | FF30: 0 | FG30: 0 | FH30: 0 | FI30: 0 | FJ30: 125364 | FK30: 38951.31 | FL30: 0 | FM30: 0 | FN30: 0 | FO30: 0 | FP30: 0 | FQ30: 38951.31 | FR30: 1200 | FS30: 38951.31 | FT30: 86412.69 | FU30: 0.055 | FV30: 0.025 | FW30: 0.0382 | FX30: 0.0329 | FY30: 1.25 | FZ30: 0.8 | GA30: 0.25 | GB30: 13333.33 | GC30: 10447 | GD30: 3245.94 | GE30: 7201.06 | GF30: 5368.22 | GG30: 0 | GH30: 160000 | GI30: 125364 | GJ30: 38951.31 | GK30: 86412.69 | GL30: 64418.59 | GM30: 0 | GN30: 13333.33 | GO30: 10447 | GP30: 3245.94 | GQ30: 7201.06 | GR30: 6992.15 | GS30: 0 | GT30: 160000 | GU30: 125364 | GV30: 38951.31 | GW30: 86412.69 | GX30: 83905.74 | GY30: 0 | GZ30: 1.34 | HA30: 0.4026162173 | HB30: PASS | HC30: 1.02 | HD30: 0.5244108814 | HE30: PASS | HF30: 1000000 | HG30: =IF(AND(DS30=GB30,DT30=GC30,DU30=GD30,DV30=GE30,DW30=GF30,DX30=GG30,DY30=GH30,DZ30=GI30,EA30=GJ30,EB30=GK30,EC30=GL30,ED30=GM30,EE30=GN30,EF30=GO30,EG30=GP30,EH30=GQ30,EI30=GR30,EJ30=GS30,EK30=GT30,EL30=GU30,EM30=GV30,EN30=GW30,EO30=GX30,EP30=GY30,EQ30=GZ30,ER30=HA30,ES30=HB30,ET30=HC30,EU30=HD30,EV30=HE30,EW30=HF30),"Pass","Fail") -> Pass | HH30: Y | HI30: 2021-07-05T16:28:21 | HK30: Case 28 | HL30: Emily
A31: 1500000 | B31: 0.06 | C31: 0.085 | D31: 30 | E31: 0 | F31: 1500000 | G31: 0.06 | H31: 0.085 | I31: 30 | J31: 0 | P31: Individual (Couple) | Q31: Individual (Couple) | R31: Individual (Single) | V31: Applicant 2 | W31: Applicant 1 | AH31: 300000 | AI31: 10000 | AJ31: 0 | AK31: 0 | AL31: 0 | AM31: 0 | AN31: 35000 | AO31: 0 | AP31: 35000 | AQ31: 0 | AR31: 0 | AS31: 0 | AT31: 116000 | AU31: 0 | AV31: 0 | AW31: 0 | AX31: 0 | AY31: 0 | AZ31: 15000 | BA31: 0 | BB31: 0 | BC31: 0 | BD31: 0 | BE31: 0 | BF31: 0 | BG31: 0 | BH31: 0 | BI31: 0 | BJ31: 0 | BK31: 0 | BL31: 0 | BM31: 0 | BN31: 0 | BO31: 0 | BP31: 0 | BQ31: 0 | BR31: 0 | BS31: 0 | BT31: 0 | BU31: 0 | BV31: 0 | BW31: 0 | BX31: 100 | BY31: 0 | BZ31: 0 | CA31: 0 | CB31: 0 | CC31: 0 | CD31: 0 | CE31: 0 | CF31: 0 | CG31: 0 | CH31: 0 | CI31: 0 | CJ31: 0 | CK31: 0 | CL31: 0 | CM31: 0 | CN31: 0 | CO31: 166187 | CP31: 0 | CQ31: 0 | CR31: 0 | CS31: 0 | CT31: 0 | CU31: 299813 | CV31: 10000 | CW31: 35000 | CX31: 0 | CY31: 0 | CZ31: 0 | DA31: 344813 | DB31: 61314.12 | DC31: 0 | DD31: 14607.63 | DE31: 0 | DF31: 0 | DG31: 0 | DH31: 75921.75 | DI31: 1200 | DJ31: 75921.75 | DK31: 268891.25 | DL31: 0.055 | DM31: 0.025 | DN31: 0.0382 | DO31: 0.0329 | DP31: 1.25 | DQ31: 0.8 | DR31: 0.25 | DS31: 42583.33 | DT31: 28734.42 | DU31: 6326.81 | DV31: 22407.6 | DW31: 8993.26 | DX31: 0 | DY31: 511000 | DZ31: 344813 | EA31: 75921.75 | EB31: 268891.25 | EC31: 107919.09 | ED31: 0 | EE31: 42583.33 | EF31: 28734.42 | EG31: 6326.81 | EH31: 22407.6 | EI31: 11533.7 | EJ31: 0 | EK31: 511000 | EL31: 344813 | EM31: 75921.75 | EN31: 268891.25 | EO31: 138404.43 | EP31: 0 | EQ31: 2.49 | ER31: 0.2111919658 | ES31: PASS | ET31: 1.94 | EU31: 0.2708501508 | EV31: PASS | EW31: 1500000 | EX31: 166187 | EY31: 0 | EZ31: 0 | FA31: 0 | FB31: 0 | FC31: 0 | FD31: 299813 | FE31: 10000 | FF31: 35000 | FG31: 0 | FH31: 0 | FI31: 0 | FJ31: 344813 | FK31: 61314.12 | FL31: 0 | FM31: 14607.63 | FN31: 0 | FO31: 0 | FP31: 0 | FQ31: 75921.75 | FR31: 1200 | FS31: 75921.75 | FT31: 268891.25 | FU31: 0.055 | FV31: 0.025 | FW31: 0.0382 | FX31: 0.0329 | FY31: 1.25 | FZ31: 0.8 | GA31: 0.25 | GB31: 42583.33 | GC31: 28734.42 | GD31: 6326.81 | GE31: 22407.6 | GF31: 8993.26 | GG31: 0 | GH31: 511000 | GI31: 344813 | GJ31: 75921.75 | GK31: 268891.25 | GL31: 107919.09 | GM31: 0 | GN31: 42583.33 | GO31: 28734.42 | GP31: 6326.81 | GQ31: 22407.6 | GR31: 11533.7 | GS31: 0 | GT31: 511000 | GU31: 344813 | GV31: 75921.75 | GW31: 268891.25 | GX31: 138404.43 | GY31: 0 | GZ31: 2.49 | HA31: 0.2111919658 | HB31: PASS | HC31: 1.94 | HD31: 0.2708501508 | HE31: PASS | HF31: 1500000 | HG31: Pass | HH31: Y | HI31: 2021-07-05T16:28:40 | HK31: Case 29 | HL31: Emily
A32: 200000 | B32: 0.05 | C32: 0.075 | D32: 30 | E32: 0 | F32: 200000 | G32: 0.05 | H32: 0.075 | I32: 30 | J32: 0 | P32: Individual (Single) | AB32: 1 | AH32: 107000 | AI32: 0 | AJ32: 0 | AK32: 0 | AL32: 0 | AM32: 0 | AN32: 25000 | AO32: 0 | AP32: 0 | AQ32: 0 | AR32: 0 | AS32: 0 | AT32: 0 | AU32: 0 | AV32: 0 | AW32: 0 | AX32: 0 | AY32: 0 | AZ32: 0 | BA32: 0 | BB32: 0 | BC32: 0 | BD32: 0 | BE32: 0 | BF32: 0 | BG32: 0 | BH32: 0 | BI32: 0 | BJ32: 0 | BK32: 0 | BL32: 0 | BM32: 0 | BN32: 0 | BO32: 0 | BP32: 0 | BQ32: 0 | BR32: 0 | BS32: 0 | BT32: 0 | BU32: 0 | BV32: 0 | BW32: 0 | BX32: 100 | BY32: 0 | BZ32: 0 | CA32: 0 | CB32: 0 | CC32: 0 | CD32: 0 | CE32: 0 | CF32: 0 | CG32: 0 | CH32: 0 | CI32: 0 | CJ32: 0 | CK32: 0 | CL32: 10000 | CM32: 1000 | CN32: 1000 | CO32: 27382 | CP32: 0 | CQ32: 0 | CR32: 0 | CS32: 0 | CT32: 0 | CU32: 104893 | CV32: 0 | CW32: 0 | CX32: 0 | CY32: 0 | CZ32: 0 | DA32: 104893 | DB32: 36071.48 | DC32: 0 | DD32: 0 | DE32: 0 | DF32: 0 | DG32: 0 | DH32: 36071.48 | DI32: 1200 | DJ32: 36071.48 | DK32: 68821.52 | DL32: 0.055 | DM32: 0.025 | DN32: 0.0382 | DO32: 0.0329 | DP32: 1.25 | DQ32: 0.8 | DR32: 0.25 | DS32: 11000 | DT32: 8741.08 | DU32: 3005.96 | DV32: 5735.13 | DW32: 1073.64 | DX32: 2632 | DY32: 132000 | DZ32: 104893 | EA32: 36071.48 | EB32: 68821.52 | EC32: 12883.72 | ED32: 31584 | EE32: 11000 | EF32: 8741.08 | EG32: 3005.96 | EH32: 5735.13 | EI32: 1398.43 | EJ32: 2632 | EK32: 132000 | EL32: 104893 | EM32: 36071.48 | EN32: 68821.52 | EO32: 16781.15 | EP32: 31584 | EQ32: 1.54 | ER32: 0.3368766587 | ES32: PASS | ET32: 1.42 | EU32: 0.3664026379 | EV32: PASS | EW32: 200000 | EX32: 27382 | EY32: 0 | EZ32: 0 | FA32: 0 | FB32: 0 | FC32: 0 | FD32: 104893 | FE32: 0 | FF32: 0 | FG32: 0 | FH32: 0 | FI32: 0 | FJ32: 104893 | FK32: 36071.48 | FL32: 0 | FM32: 0 | FN32: 0 | FO32: 0 | FP32: 0 | FQ32: 36071.48 | FR32: 1200 | FS32: 36071.48 | FT32: 68821.52 | FU32: 0.055 | FV32: 0.025 | FW32: 0.0382 | FX32: 0.0329 | FY32: 1.25 | FZ32: 0.8 | GA32: 0.25 | GB32: 11000 | GC32: 8741.08 | GD32: 3005.96 | GE32: 5735.13 | GF32: 1073.64 | GG32: 2632 | GH32: 132000 | GI32: 104893 | GJ32: 36071.48 | GK32: 68821.52 | GL32: 12883.72 | GM32: 31584 | GN32: 11000 | GO32: 8741.08 | GP32: 3005.96 | GQ32: 5735.13 | GR32: 1398.43 | GS32: 2632 | GT32: 132000 | GU32: 104893 | GV32: 36071.48 | GW32: 68821.52 | GX32: 16781.15 | GY32: 31584 | GZ32: 1.54 | HA32: 0.3368766587 | HB32: PASS | HC32: 1.42 | HD32: 0.3664026379 | HE32: PASS | HF32: 200000 | HG32: Pass | HH32: Y | HI32: 2021-07-05T16:28:59 | HK32: Case 30 | HL32: Emily
A33: 200000 | B33: 0.05 | C33: 0.075 | D33: 30 | E33: 0 | F33: 200000 | G33: 0.05 | H33: 0.075 | I33: 30 | J33: 0 | P33: Individual (Single) | AB33: 1 | AH33: 107000 | AI33: 0 | AJ33: 0 | AK33: 0 | AL33: 0 | AM33: 0 | AN33: 0 | AO33: 0 | AP33: 0 | AQ33: 0 | AR33: 0 | AS33: 0 | AT33: 0 | AU33: 0 | AV33: 0 | AW33: 0 | AX33: 0 | AY33: 0 | AZ33: 0 | BA33: 0 | BB33: 0 | BC33: 0 | BD33: 0 | BE33: 0 | BF33: 0 | BG33: 0 | BH33: 0 | BI33: 0 | BJ33: 0 | BK33: 0 | BL33: 0 | BM33: 0 | BN33: 0 | BO33: 0 | BP33: 0 | BQ33: 0 | BR33: 0 | BS33: 0 | BT33: 0 | BU33: 0 | BV33: 0 | BW33: 0 | BX33: 100 | BY33: 0 | BZ33: 0 | CA33: 0 | CB33: 0 | CC33: 0 | CD33: 0 | CE33: 0 | CF33: 0 | CG33: 0 | CH33: 0 | CI33: 0 | CJ33: 0 | CK33: 0 | CL33: 10000 | CM33: 1000 | CN33: 1000 | CO33: 27382 | CP33: 0 | CQ33: 0 | CR33: 0 | CS33: 0 | CT33: 0 | CU33: 79893 | CV33: 0 | CW33: 0 | CX33: 0 | CY33: 0 | CZ33: 0 | DA33: 79893 | DB33: 31806.81 | DC33: 0 | DD33: 0 | DE33: 0 | DF33: 0 | DG33: 0 | DH33: 31806.81 | DI33: 1200 | DJ33: 31806.81 | DK33: 48086.19 | DL33: 0.055 | DM33: 0.025 | DN33: 0.0382 | DO33: 0.0329 | DP33: 1.25 | DQ33: 0.8 | DR33: 0.25 | DS33: 8916.67 | DT33: 6657.75 | DU33: 2650.57 | DV33: 4007.18 | DW33: 1073.64 | DX33: 2632 | DY33: 107000 | DZ33: 79893 | EA33: 31806.81 | EB33: 48086.19 | EC33: 12883.72 | ED33: 31584 | EE33: 8916.67 | EF33: 6657.75 | EG33: 2650.57 | EH33: 4007.18 | EI33: 1398.43 | EJ33: 2632 | EK33: 107000 | EL33: 79893 | EM33: 31806.81 | EN33: 48086.19 | EO33: 16781.15 | EP33: 31584 | EQ33: 1.08 | ER33: 0.4155861584 | ES33: PASS | ET33: 0.99 | EU33: 0.4520107309 | EV33: FAIL | EW33: 196649.24 | EX33: 27382 | EY33: 0 | EZ33: 0 | FA33: 0 | FB33: 0 | FC33: 0 | FD33: 79893 | FE33: 0 | FF33: 0 | FG33: 0 | FH33: 0 | FI33: 0 | FJ33: 79893 | FK33: 31806.81 | FL33: 0 | FM33: 0 | FN33: 0 | FO33: 0 | FP33: 0 | FQ33: 31806.81 | FR33: 1200 | FS33: 31806.81 | FT33: 48086.19 | FU33: 0.055 | FV33: 0.025 | FW33: 0.0382 | FX33: 0.0329 | FY33: 1.25 | FZ33: 0.8 | GA33: 0.25 | GB33: 8916.67 | GC33: 6657.75 | GD33: 2650.57 | GE33: 4007.18 | GF33: 1073.64 | GG33: 2632 | GH33: 107000 | GI33: 79893 | GJ33: 31806.81 | GK33: 48086.19 | GL33: 12883.72 | GM33: 31584 | GN33: 8916.67 | GO33: 6657.75 | GP33: 2650.57 | GQ33: 4007.18 | GR33: 1398.43 | GS33: 2632 | GT33: 107000 | GU33: 79893 | GV33: 31806.81 | GW33: 48086.19 | GX33: 16781.15 | GY33: 31584 | GZ33: 1.08 | HA33: 0.4155861584 | HB33: PASS | HC33: 0.99 | HD33: 0.4520107309 | HE33: FAIL | HF33: 196649.24 | HG33: Pass | HH33: Y | HI33: 2021-07-05T16:29:18 | HK33: Case 31 | HL33: Emily
A34: 1500000 | B34: 0.06 | C34: 0.085 | D34: 30 | E34: 0 | F34: 1500000 | G34: 0.06 | H34: 0.085 | I34: 30 | J34: 0 | P34: Individual (Couple) | Q34: Individual (Couple) | R34: Individual (Single) | S34: Individual (Single) | V34: Applicant 2 | W34: Applicant 1 | AH34: 36000 | AI34: 10000 | AJ34: 0 | AK34: 0 | AL34: 0 | AM34: 0 | AN34: 35000 | AO34: 0 | AP34: 35000 | AQ34: 100000 | AR34: 0 | AS34: 0 | AT34: 0 | AU34: 0 | AV34: 0 | AW34: 0 | AX34: 0 | AY34: 0 | AZ34: 10000 | BA34: 0 | BB34: 0 | BC34: 0 | BD34: 0 | BE34: 0 | BF34: 0 | BG34: 0 | BH34: 0 | BI34: 0 | BJ34: 0 | BK34: 0 | BL34: 0 | BM34: 0 | BN34: 0 | BO34: 0 | BP34: 0 | BQ34: 0 | BR34: 0 | BS34: 0 | BT34: 0 | BU34: 0 | BV34: 0 | BW34: 0 | BX34: 100 | BY34: 0 | BZ34: 0 | CA34: 0 | CB34: 0 | CC34: 0 | CD34: 0 | CE34: 0 | CF34: 0 | CG34: 0 | CH34: 0 | CI34: 0 | CJ34: 0 | CK34: 0 | CL34: 0 | CM34: 0 | CN34: 0 | CO34: 4102 | CP34: 0 | CQ34: 0 | CR34: 0 | CS34: 0 | CT34: 0 | CU34: 77543 | CV34: 10000 | CW34: 35000 | CX34: 100000 | CY34: 0 | CZ34: 0 | DA34: 222543 | DB34: 35646.69 | DC34: 0 | DD34: 14607.63 | DE34: 23820.07 | DF34: 0 | DG34: 0 | DH34: 74074.39 | DI34: 1200 | DJ34: 74074.39 | DK34: 148468.61 | DL34: 0.055 | DM34: 0.025 | DN34: 0.0382 | DO34: 0.0329 | DP34: 1.25 | DQ34: 0.8 | DR34: 0.25 | DS34: 18833.33 | DT34: 18545.25 | DU34: 6172.87 | DV34: 12372.38 | DW34: 8993.26 | DX34: 0 | DY34: 226000 | DZ34: 222543 | EA34: 74074.39 | EB34: 148468.61 | EC34: 107919.09 | ED34: 0 | EE34: 18833.33 | EF34: 18545.25 | EG34: 6172.87 | EH34: 12372.38 | EI34: 11533.7 | EJ34: 0 | EK34: 226000 | EL34: 222543 | EM34: 74074.39 | EN34: 148468.61 | EO34: 138404.43 | EP34: 0 | EQ34: 1.37 | ER34: 0.4775181174 | ES34: PASS | ET34: 1.07 | EU34: 0.6124089692 | EV34: FAIL | EW34: 1287140.91 | EX34: 4102 | EY34: 0 | EZ34: 0 | FA34: 0 | FB34: 0 | FC34: 0 | FD34: 77543 | FE34: 10000 | FF34: 35000 | FG34: 100000 | FH34: 0 | FI34: 0 | FJ34: 222543 | FK34: 35646.69 | FL34: 0 | FM34: 14607.63 | FN34: 23820.07 | FO34: 0 | FP34: 0 | FQ34: 74074.39 | FR34: 1200 | FS34: 74074.39 | FT34: 148468.61 | FU34: 0.055 | FV34: 0.025 | FW34: 0.0382 | FX34: 0.0329 | FY34: 1.25 | FZ34: 0.8 | GA34: 0.25 | GB34: 18833.33 | GC34: 18545.25 | GD34: 6172.87 | GE34: 12372.38 | GF34: 8993.26 | GG34: 0 | GH34: 226000 | GI34: 222543 | GJ34: 74074.39 | GK34: 148468.61 | GL34: 107919.09 | GM34: 0 | GN34: 18833.33 | GO34: 18545.25 | GP34: 6172.87 | GQ34: 12372.38 | GR34: 11533.7 | GS34: 0 | GT34: 226000 | GU34: 222543 | GV34: 74074.39 | GW34: 148468.61 | GX34: 138404.43 | GY34: 0 | GZ34: 1.37 | HA34: 0.4775181174 | HB34: PASS | HC34: 1.07 | HD34: 0.6124089692 | HE34: FAIL | HF34: 1287140.91 | HG34: Pass | HH34: Y | HI34: 2021-07-05T16:29:37 | HK34: Case 32 | HL34: Emily
A35: 3000000 | B35: 0.07 | C35: 0.095 | D35: 40 | E35: 5 | F35: 3000000 | G35: 0.07 | H35: 0.095 | I35: 40 | J35: 5 | P35: Company | Q35: Individual (Single) | AH35: 0 | AI35: 0 | AJ35: 0 | AK35: 0 | AL35: 0 | AM35: 0 | AN35: 0 | AO35: 225000 | AP35: 0 | AQ35: 0 | AR35: 0 | AS35: 0 | AT35: 87500 | AU35: 87500 | AV35: 0 | AW35: 0 | AX35: 0 | AY35: 0 | AZ35: 22500 | BA35: 22500 | BB35: 0 | BC35: 0 | BD35: 0 | BE35: 0 | BF35: 0 | BG35: 0 | BH35: 0 | BI35: 0 | BJ35: 0 | BK35: 0 | BL35: 0 | BM35: 0 | BN35: 0 | BO35: 0 | BP35: 0 | BQ35: 0 | BR35: 0 | BS35: 0 | BT35: 0 | BU35: 0 | BV35: 0 | BW35: 0 | BX35: 0 | BY35: 0 | BZ35: 0 | CA35: 0 | CB35: 0 | CC35: 0 | CD35: 0 | CE35: 0 | CF35: 0 | CG35: 0 | CH35: 4000 | CI35: 0 | CJ35: 0 | CK35: 0 | CL35: 0 | CM35: 0 | CN35: 0 | CO35: 21875 | CP35: 20654.5 | CQ35: 0 | CR35: 0 | CS35: 0 | CT35: 0 | CU35: 88125 | CV35: 314875.5 | CW35: 0 | CX35: 0 | CY35: 0 | CZ35: 0 | DA35: 403000.5 | DB35: 0 | DC35: 49490.67 | DD35: 0 | DE35: 0 | DF35: 0 | DG35: 0 | DH35: 49490.67 | DI35: 48000 | DJ35: 49490.67 | DK35: 353509.83 | DL35: 0.055 | DM35: 0.025 | DN35: 0.0382 | DO35: 0.0329 | DP35: 1.25 | DQ35: 0.8 | DR35: 0.25 | DS35: 37083.33 | DT35: 33583.38 | DU35: 4124.22 | DV35: 29459.15 | DW35: 19165.69 | DX35: 0 | DY35: 445000 | DZ35: 403000.5 | EA35: 49490.67 | EB35: 353509.83 | EC35: 229988.29 | ED35: 0 | EE35: 37083.33 | EF35: 33583.38 | EG35: 4124.22 | EH35: 29459.15 | EI35: 24648.35 | EJ35: 0 | EK35: 445000 | EL35: 403000.5 | EM35: 49490.67 | EN35: 353509.83 | EO35: 295780.18 | EP35: 0 | EQ35: 1.53 | ER35: 0.5168276159 | ES35: PASS | ET35: 1.19 | EU35: 0.6646745539 | EV35: FAIL | EW35: 2868386.96 | EX35: 21875 | EY35: 20654.5 | EZ35: 0 | FA35: 0 | FB35: 0 | FC35: 0 | FD35: 88125 | FE35: 314875.5 | FF35: 0 | FG35: 0 | FH35: 0 | FI35: 0 | FJ35: 403000.5 | FK35: 0 | FL35: 49490.67 | FM35: 0 | FN35: 0 | FO35: 0 | FP35: 0 | FQ35: 49490.67 | FR35: 48000 | FS35: 49490.67 | FT35: 353509.83 | FU35: 0.055 | FV35: 0.025 | FW35: 0.0382 | FX35: 0.0329 | FY35: 1.25 | FZ35: 0.8 | GA35: 0.25 | GB35: 37083.33 | GC35: 33583.38 | GD35: 4124.22 | GE35: 29459.15 | GF35: 19165.69 | GG35: 0 | GH35: 445000 | GI35: 403000.5 | GJ35: 49490.67 | GK35: 353509.83 | GL35: 229988.29 | GM35: 0 | GN35: 37083.33 | GO35: 33583.38 | GP35: 4124.22 | GQ35: 29459.15 | GR35: 24648.35 | GS35: 0 | GT35: 445000 | GU35: 403000.5 | GV35: 49490.67 | GW35: 353509.83 | GX35: 295780.18 | GY35: 0 | GZ35: 1.53 | HA35: 0.5168276159 | HB35: PASS | HC35: 1.19 | HD35: 0.6646745539 | HE35: FAIL | HF35: 2868386.96 | HG35: Pass | HH35: Y | HI35: 2021-07-05T16:29:56 | HK35: Case 33 | HL35: Emily
A36: 3000000 | B36: 0.07 | C36: 0.095 | D36: 40 | E36: 5 | F36: 3000000 | G36: 0.07 | H36: 0.095 | I36: 40 | J36: 5 | P36: Company | Q36: Individual (Single) | AH36: 0 | AI36: 0 | AJ36: 0 | AK36: 0 | AL36: 0 | AM36: 0 | AN36: 0 | AO36: 200000 | AP36: 0 | AQ36: 0 | AR36: 0 | AS36: 0 | AT36: 87500 | AU36: 87500 | AV36: 0 | AW36: 0 | AX36: 0 | AY36: 0 | AZ36: 22500 | BA36: 22500 | BB36: 0 | BC36: 0 | BD36: 0 | BE36: 0 | BF36: 0 | BG36: 0 | BH36: 0 | BI36: 0 | BJ36: 0 | BK36: 0 | BL36: 0 | BM36: 0 | BN36: 0 | BO36: 0 | BP36: 0 | BQ36: 0 | BR36: 0 | BS36: 0 | BT36: 0 | BU36: 0 | BV36: 0 | BW36: 0 | BX36: 0 | BY36: 0 | BZ36: 0 | CA36: 0 | CB36: 0 | CC36: 0 | CD36: 0 | CE36: 0 | CF36: 0 | CG36: 0 | CH36: 4000 | CI36: 0 | CJ36: 0 | CK36: 0 | CL36: 0 | CM36: 0 | CN36: 0 | CO36: 21875 | CP36: 20654.5 | CQ36: 0 | CR36: 0 | CS36: 0 | CT36: 0 | CU36: 88125 | CV36: 289875.5 | CW36: 0 | CX36: 0 | CY36: 0 | CZ36: 0 | DA36: 378000.5 | DB36: 0 | DC36: 47297.52 | DD36: 0 | DE36: 0 | DF36: 0 | DG36: 0 | DH36: 47297.52 | DI36: 48000 | DJ36: 48000 | DK36: 330000.5 | DL36: 0.055 | DM36: 0.025 | DN36: 0.0382 | DO36: 0.0329 | DP36: 1.25 | DQ36: 0.8 | DR36: 0.25 | DS36: 35000 | DT36: 31500.04 | DU36: 4000 | DV36: 27500.04 | DW36: 19165.69 | DX36: 0 | DY36: 420000 | DZ36: 378000.5 | EA36: 48000 | EB36: 330000.5 | EC36: 229988.29 | ED36: 0 | EE36: 35000 | EF36: 31500.04 | EG36: 4000 | EH36: 27500.04 | EI36: 24648.35 | EJ36: 0 | EK36: 420000 | EL36: 378000.5 | EM36: 48000 | EN36: 330000.5 | EO36: 295780.18 | EP36: 0 | EQ36: 1.43 | ER36: 0.5475911645 | ES36: PASS | ET36: 1.11 | EU36: 0.7042385154 | EV36: PASS | EW36: 3000000 | EX36: 21875 | EY36: 20654.5 | EZ36: 0 | FA36: 0 | FB36: 0 | FC36: 0 | FD36: 88125 | FE36: 289875.5 | FF36: 0 | FG36: 0 | FH36: 0 | FI36: 0 | FJ36: 378000.5 | FK36: 0 | FL36: 47297.52 | FM36: 0 | FN36: 0 | FO36: 0 | FP36: 0 | FQ36: 47297.52 | FR36: 48000 | FS36: 48000 | FT36: 330000.5 | FU36: 0.055 | FV36: 0.025 | FW36: 0.0382 | FX36: 0.0329 | FY36: 1.25 | FZ36: 0.8 | GA36: 0.25 | GB36: 35000 | GC36: 31500.04 | GD36: 4000 | GE36: 27500.04 | GF36: 19165.69 | GG36: 0 | GH36: 420000 | GI36: 378000.5 | GJ36: 48000 | GK36: 330000.5 | GL36: 229988.29 | GM36: 0 | GN36: 35000 | GO36: 31500.04 | GP36: 4000 | GQ36: 27500.04 | GR36: 24648.35 | GS36: 0 | GT36: 420000 | GU36: 378000.5 | GV36: 48000 | GW36: 330000.5 | GX36: 295780.18 | GY36: 0 | GZ36: 1.43 | HA36: 0.5475911645 | HB36: PASS | HC36: 1.11 | HD36: 0.7042385154 | HE36: PASS | HF36: 3000000 | HG36: Pass | HH36: Y | HI36: 2021-07-05T16:30:15 | HK36: Case 34 | HL36: Emily
A37: 3000000 | B37: 0.07 | C37: 0.095 | D37: 40 | E37: 5 | F37: 3000000 | G37: 0.07 | H37: 0.095 | I37: 40 | J37: 5 | P37: Company | Q37: Individual (Single) | R37: Individual (Couple) | S37: Individual (Couple) | X37: Applicant 4 | Y37: Applicant 3 | AD37: 2 | AE37: 0 | AH37: 0 | AI37: 225000 | AJ37: 100000 | AK37: 80000 | AL37: 0 | AM37: 0 | AN37: 0 | AO37: 0 | AP37: 0 | AQ37: 0 | AR37: 0 | AS37: 0 | AT37: 87500 | AU37: 87500 | AV37: 37500 | AW37: 12500 | AX37: 0 | AY37: 0 | AZ37: 22500 | BA37: 22500 | BB37: 52500 | BC37: 17500 | BD37: 0 | BE37: 0 | BF37: 0 | BG37: 0 | BH37: 0 | BI37: 0 | BJ37: 0 | BK37: 0 | BL37: 0 | BM37: 0 | BN37: 20000 | BO37: 20000 | BP37: 0 | BQ37: 0 | BR37: 0 | BS37: 0 | BT37: 500000 | BU37: 500000 | BV37: 0 | BW37: 0 | BX37: 0 | BY37: 0 | BZ37: 0 | CA37: 0 | CB37: 0 | CC37: 0 | CD37: 0 | CE37: 0 | CF37: 0 | CG37: 0 | CH37: 15000 | CI37: 0 | CJ37: 0 | CK37: 0 | CL37: 25000 | CM37: 5000 | CN37: 3000 | CO37: 21875 | CP37: 117542 | CQ37: 38516.5 | CR37: 22224.25 | CS37: 0 | CT37: 0 | CU37: 88125 | CV37: 217458 | CW37: 167483.5 | CX37: 104275 | CY37: 0 | CZ37: 0 | DA37: 577341.5 | DB37: 0 | DC37: 49490.67 | DD37: 65292.38 | DE37: 0 | DF37: 0 | DG37: 0 | DH37: 114783.06 | DI37: 180000 | DJ37: 180000 | DK37: 397341.5 | DL37: 0.055 | DM37: 0.025 | DN37: 0.0382 | DO37: 0.0329 | DP37: 1.25 | DQ37: 0.8 | DR37: 0.25 | DS37: 64750 | DT37: 48111.79 | DU37: 15000 | DV37: 33111.79 | DW37: 19165.69 | DX37: 10205 | DY37: 777000 | DZ37: 577341.5 | EA37: 180000 | EB37: 397341.5 | EC37: 229988.29 | ED37: 122460 | EE37: 64750 | EF37: 48111.79 | EG37: 15000 | EH37: 33111.79 | EI37: 24648.35 | EJ37: 10205 | EK37: 777000 | EL37: 577341.5 | EM37: 180000 | EN37: 397341.5 | EO37: 295780.18 | EP37: 122460 | EQ37: 1.12 | ER37: 0.4536014016 | ES37: PASS | ET37: 0.95 | EU37: 0.5382756454 | EV37: FAIL | EW37: 2787935.32 | EX37: 21875 | EY37: 117542 | EZ37: 38516.5 | FA37: 22224.25 | FB37: 0 | FC37: 0 | FD37: 88125 | FE37: 217458 | FF37: 167483.5 | FG37: 104275 | FH37: 0 | FI37: 0 | FJ37: 577341.5 | FK37: 0 | FL37: 49490.67 | FM37: 65292.38 | FN37: 0 | FO37: 0 | FP37: 0 | FQ37: 114783.06 | FR37: 180000 | FS37: 180000 | FT37: 397341.5 | FU37: 0.055 | FV37: 0.025 | FW37: 0.0382 | FX37: 0.0329 | FY37: 1.25 | FZ37: 0.8 | GA37: 0.25 | GB37: 64750 | GC37: 48111.79 | GD37: 15000 | GE37: 33111.79 | GF37: 19165.69 | GG37: 10205 | GH37: 777000 | GI37: 577341.5 | GJ37: 180000 | GK37: 397341.5 | GL37: 229988.29 | GM37: 122460 | GN37: 64750 | GO37: 48111.79 | GP37: 15000 | GQ37: 33111.79 | GR37: 24648.35 | GS37: 10205 | GT37: 777000 | GU37: 577341.5 | GV37: 180000 | GW37: 397341.5 | GX37: 295780.18 | GY37: 122460 | GZ37: 1.12 | HA37: 0.4536014016 | HB37: PASS | HC37: 0.95 | HD37: 0.5382756454 | HE37: FAIL | HF37: 2787935.32 | HG37: Pass | HH37: Y | HI37: 2021-07-05T16:30:34 | HK37: Case 35 | HL37: Emily
A38: 1500000 | B38: 0.0599 | C38: 0.0849 | D38: 30 | E38: 0 | F38: 1500000 | G38: 0.0599 | H38: 0.0849 | I38: 30 | J38: 0 | P38: Individual (Single) | Q38: Individual (Couple) | R38: Company | S38: Company | W38: Non-loan party | AC38: 3 | AH38: 0 | AI38: 95000 | AJ38: 0 | AK38: 25000 | AL38: 0 | AM38: 0 | AN38: 85000 | AO38: 0 | AP38: 0 | AQ38: 0 | AR38: 0 | AS38: 0 | AT38: 0 | AU38: 0 | AV38: 0 | AW38: 0 | AX38: 0 | AY38: 0 | AZ38: 0 | BA38: 0 | BB38: 0 | BC38: 20000 | BD38: 0 | BE38: 0 | BF38: 0 | BG38: 0 | BH38: 0 | BI38: 0 | BJ38: 0 | BK38: 0 | BL38: 0 | BM38: 30000 | BN38: 30000 | BO38: 0 | BP38: 0 | BQ38: 0 | BR38: 0 | BS38: 0 | BT38: 1000000 | BU38: 0 | BV38: 0 | BW38: 0 | BX38: 1 | BY38: 0 | BZ38: 0 | CA38: 0 | CB38: 0 | CC38: 0 | CD38: 0 | CE38: 0 | CF38: 0 | CG38: 0 | CH38: 0 | CI38: 0 | CJ38: 0 | CK38: 0 | CL38: 0 | CM38: 1000 | CN38: 0 | CO38: 0 | CP38: 31522 | CQ38: 0 | CR38: 6250 | CS38: 0 | CT38: 0 | CU38: 85000 | CV38: 87573 | CW38: 24000 | CX38: 38750 | CY38: 0 | CZ38: 0 | DA38: 235323 | DB38: 23820.07 | DC38: 48562.99 | DD38: 0 | DE38: 0 | DF38: 0 | DG38: 0 | DH38: 72383.07 | DI38: 12 | DJ38: 72383.07 | DK38: 162939.93 | DL38: 0.055 | DM38: 0.025 | DN38: 0.0382 | DO38: 0.0329 | DP38: 1.25 | DQ38: 0.8 | DR38: 0.25 | DS38: 22750 | DT38: 19610.25 | DU38: 6031.92 | DV38: 13578.33 | DW38: 8983.62 | DX38: 1250 | DY38: 273000 | DZ38: 235323 | EA38: 72383.07 | EB38: 162939.93 | EC38: 107803.4 | ED38: 15000 | EE38: 22750 | EF38: 19610.25 | EG38: 6031.92 | EH38: 13578.33 | EI38: 11523.07 | EJ38: 1250 | EK38: 273000 | EL38: 235323 | EM38: 72383.07 | EN38: 162939.93 | EO38: 138276.88 | EP38: 15000 | EQ38: 1.32 | ER38: 0.4498292905 | ES38: PASS | ET38: 1.06 | EU38: 0.5614537721 | EV38: PASS | EW38: 1500000 | EX38: 0 | EY38: 31522 | EZ38: 0 | FA38: 6250 | FB38: 0 | FC38: 0 | FD38: 85000 | FE38: 87573 | FF38: 24000 | FG38: 38750 | FH38: 0 | FI38: 0 | FJ38: 235323 | FK38: 23820.07 | FL38: 48562.99 | FM38: 0 | FN38: 0 | FO38: 0 | FP38: 0 | FQ38: 72383.07 | FR38: 12 | FS38: 72383.07 | FT38: 162939.93 | FU38: 0.055 | FV38: 0.025 | FW38: 0.0382 | FX38: 0.0329 | FY38: 1.25 | FZ38: 0.8 | GA38: 0.25 | GB38: 22750 | GC38: 19610.25 | GD38: 6031.92 | GE38: 13578.33 | GF38: 8983.62 | GG38: 1250 | GH38: 273000 | GI38: 235323 | GJ38: 72383.07 | GK38: 162939.93 | GL38: 107803.4 | GM38: 15000 | GN38: 22750 | GO38: 19610.25 | GP38: 6031.92 | GQ38: 13578.33 | GR38: 11523.07 | GS38: 1250 | GT38: 273000 | GU38: 235323 | GV38: 72383.07 | GW38: 162939.93 | GX38: 138276.88 | GY38: 15000 | GZ38: 1.32 | HA38: 0.4498292905 | HB38: PASS | HC38: 1.06 | HD38: 0.5614537721 | HE38: PASS | HF38: 1500000 | HG38: =IF(AND(DS38=GB38,DT38=GC38,DU38=GD38,DV38=GE38,DW38=GF38,DX38=GG38,DY38=GH38,DZ38=GI38,EA38=GJ38,EB38=GK38,EC38=GL38,ED38=GM38,EE38=GN38,EF38=GO38,EG38=GP38,EH38=GQ38,EI38=GR38,EJ38=GS38,EK38=GT38,EL38=GU38,EM38=GV38,EN38=GW38,EO38=GX38,EP38=GY38,EQ38=GZ38,ER38=HA38,ES38=HB38,ET38=HC38,EU38=HD38,EV38=HE38,EW38=HF38),"Pass","Fail") -> Pass | HH38: Y | HI38: 2021-07-05T16:41:50 | HK38: Case 36 | HL38: Emily
A39: 300000 | B39: 0.0509 | C39: 0.0759 | D39: 30 | E39: 0 | F39: 300000 | G39: 0.0509 | H39: 0.0759 | I39: 30 | J39: 0 | P39: Individual (Couple) | Q39: Individual (Couple) | V39: Non-loan Party | W39: Non-loan party | AB39: 3 | AH39: 72735 | AI39: 0 | AJ39: 0 | AK39: 0 | AL39: 0 | AM39: 0 | AN39: 0 | AO39: 0 | AP39: 0 | AQ39: 0 | AR39: 0 | AS39: 0 | AT39: 0 | AU39: 0 | AV39: 0 | AW39: 0 | AX39: 0 | AY39: 0 | AZ39: 0 | BA39: 0 | BB39: 0 | BC39: 0 | BD39: 0 | BE39: 0 | BF39: 0 | BG39: 0 | BH39: 0 | BI39: 0 | BJ39: 0 | BK39: 0 | BL39: 0 | BM39: 0 | BN39: 0 | BO39: 0 | BP39: 0 | BQ39: 0 | BR39: 0 | BS39: 0 | BT39: 0 | BU39: 0 | BV39: 0 | BW39: 0 | BX39: 285 | BY39: 291 | BZ39: 0 | CA39: 260 | CB39: 1100 | CC39: 400 | CD39: 700 | CE39: 0 | CF39: 69 | CG39: 48 | CH39: 0 | CI39: 0 | CJ39: 0 | CK39: 1275 | CL39: 32500 | CM39: 1275 | CN39: 0 | CO39: 15560.58 | CP39: 0 | CQ39: 0 | CR39: 0 | CS39: 0 | CT39: 0 | CU39: 57704.43 | CV39: 0 | CW39: 0 | CX39: 0 | CY39: 0 | CZ39: 0 | DA39: 57704.43 | DB39: 41676.42 | DC39: 25749.66 | DD39: 0 | DE39: 0 | DF39: 0 | DG39: 0 | DH39: 67426.08 | DI39: 37836 | DJ39: 67426.08 | DK39: -9721.65 | DL39: 0.055 | DM39: 0.025 | DN39: 0.0382 | DO39: 0.0329 | DP39: 1.25 | DQ39: 0.8 | DR39: 0.25 | DS39: 6061.25 | DT39: 4808.7 | DU39: 5618.84 | DV39: -810.14 | DW39: 1627.01 | DX39: 4110.25 | DY39: 72735 | DZ39: 57704.43 | EA39: 67426.08 | EB39: -9721.65 | EC39: 19524.08 | ED39: 49323 | EE39: 6061.25 | EF39: 4808.7 | EG39: 5618.84 | EH39: -810.14 | EI39: 2116.16 | EJ39: 4110.25 | EK39: 72735 | EL39: 57704.43 | EM39: 67426.08 | EN39: -9721.65 | EO39: 25393.95 | EP39: 49323 | EQ39: -0.14 | ER39: 0.7361940873 | ES39: FAIL | ET39: -0.13 | EU39: 0.8168963048 | EV39: FAIL | EW39: 0 | EX39: 15560.58 | EY39: 0 | EZ39: 0 | FA39: 0 | FB39: 0 | FC39: 0 | FD39: 57704.43 | FE39: 0 | FF39: 0 | FG39: 0 | FH39: 0 | FI39: 0 | FJ39: 57704.43 | FK39: 41676.42 | FL39: 25749.66 | FM39: 0 | FN39: 0 | FO39: 0 | FP39: 0 | FQ39: 67426.08 | FR39: 37836 | FS39: 67426.08 | FT39: -9721.65 | FU39: 0.055 | FV39: 0.025 | FW39: 0.0382 | FX39: 0.0329 | FY39: 1.25 | FZ39: 0.8 | GA39: 0.25 | GB39: 6061.25 | GC39: 4808.7 | GD39: 5618.84 | GE39: -810.14 | GF39: 1627.01 | GG39: 4110.25 | GH39: 72735 | GI39: 57704.43 | GJ39: 67426.08 | GK39: -9721.65 | GL39: 19524.08 | GM39: 49323 | GN39: 6061.25 | GO39: 4808.7 | GP39: 5618.84 | GQ39: -810.14 | GR39: 2116.16 | GS39: 4110.25 | GT39: 72735 | GU39: 57704.43 | GV39: 67426.08 | GW39: -9721.65 | GX39: 25393.95 | GY39: 49323 | GZ39: -0.14 | HA39: 0.7361940873 | HB39: FAIL | HC39: -0.13 | HD39: 0.8168963048 | HE39: FAIL | HF39: 0 | HG39: Pass | HH39: Y | HI39: 2021-07-05T16:31:12 | HK39: Case 37 | HL39: Emily
A40: 300000 | B40: 0.06 | C40: 0.085 | D40: 40 | E40: 0 | F40: 300000 | G40: 0.06 | H40: 0.085 | I40: 40 | J40: 0 | P40: Individual (Single) | Q40: Individual (Single) | AH40: 0 | AI40: 1 | AJ40: 0 | AK40: 0 | AL40: 0 | AM40: 0 | AN40: 0 | AO40: 0 | AP40: 0 | AQ40: 0 | AR40: 0 | AS40: 0 | AT40: 0 | AU40: 0 | AV40: 0 | AW40: 0 | AX40: 0 | AY40: 0 | AZ40: 0 | BA40: 0 | BB40: 0 | BC40: 0 | BD40: 0 | BE40: 0 | BF40: 0 | BG40: 0 | BH40: 0 | BI40: 0 | BJ40: 0 | BK40: 0 | BL40: 0 | BM40: 0 | BN40: 0 | BO40: 0 | BP40: 0 | BQ40: 0 | BR40: 0 | BS40: 0 | BT40: 0 | BU40: 0 | BV40: 0 | BW40: 0 | BX40: 1 | BY40: 1 | BZ40: 1 | CA40: 1 | CB40: 1 | CC40: 1 | CD40: 1 | CE40: 1 | CF40: 1 | CG40: 1 | CH40: 1 | CI40: 1 | CJ40: 1 | CK40: 0 | CL40: 0 | CM40: 0 | CN40: 0 | CO40: 0 | CP40: 0 | CQ40: 0 | CR40: 0 | CS40: 0 | CT40: 0 | CU40: 0 | CV40: 1 | CW40: 0 | CX40: 0 | CY40: 0 | CZ40: 0 | DA40: 1 | DB40: 13206.69 | DC40: 13206.69 | DD40: 0 | DE40: 0 | DF40: 0 | DG40: 0 | DH40: 26413.38 | DI40: 156 | DJ40: 26413.38 | DK40: -26412.38 | DL40: 0.055 | DM40: 0.025 | DN40: 0.0382 | DO40: 0.0329 | DP40: 1.25 | DQ40: 0.8 | DR40: 0.25 | DS40: 0.08 | DT40: 0.08 | DU40: 2201.12 | DV40: -2201.03 | DW40: 1650.64 | DX40: 0 | DY40: 1 | DZ40: 1 | EA40: 26413.38 | EB40: -26412.38 | EC40: 19807.69 | ED40: 0 | EE40: 0.08 | EF40: 0.08 | EG40: 2201.12 | EH40: -2201.03 | EI40: 2199.28 | EJ40: 0 | EK40: 1 | EL40: 1 | EM40: 26413.38 | EN40: -26412.38 | EO40: 26391.39 | EP40: 0 | EQ40: -1.33 | ER40: 19807.69106 | ES40: FAIL | ET40: -1 | EU40: 26391.38646 | EV40: FAIL | EW40: 0 | EX40: 0 | EY40: 0 | EZ40: 0 | FA40: 0 | FB40: 0 | FC40: 0 | FD40: 0 | FE40: 1 | FF40: 0 | FG40: 0 | FH40: 0 | FI40: 0 | FJ40: 1 | FK40: 13206.69 | FL40: 13206.69 | FM40: 0 | FN40: 0 | FO40: 0 | FP40: 0 | FQ40: 26413.38 | FR40: 156 | FS40: 26413.38 | FT40: -26412.38 | FU40: 0.055 | FV40: 0.025 | FW40: 0.0382 | FX40: 0.0329 | FY40: 1.25 | FZ40: 0.8 | GA40: 0.25 | GB40: 0.08 | GC40: 0.08 | GD40: 2201.12 | GE40: -2201.03 | GF40: 1650.64 | GG40: 0 | GH40: 1 | GI40: 1 | GJ40: 26413.38 | GK40: -26412.38 | GL40: 19807.69 | GM40: 0 | GN40: 0.08 | GO40: 0.08 | GP40: 2201.12 | GQ40: -2201.03 | GR40: 2199.28 | GS40: 0 | GT40: 1 | GU40: 1 | GV40: 26413.38 | GW40: -26412.38 | GX40: 26391.39 | GY40: 0 | GZ40: -1.33 | HA40: 19807.69106 | HB40: FAIL | HC40: -1 | HD40: 26391.38646 | HE40: FAIL | HF40: 0 | HG40: Pass | HH40: Y | HI40: 2021-07-05T16:31:31 | HK40: Case 38 | HL40: Emily
A41: 100000 | B41: 0.065 | C41: 0.09 | D41: 20 | E41: 0 | F41: 100000 | G41: 0.065 | H41: 0.09 | I41: 20 | J41: 0 | P41: Individual (Couple) | V41: Non-loan Party | AH41: 25000 | AI41: 0 | AJ41: 0 | AK41: 0 | AL41: 0 | AM41: 0 | AN41: 0 | AO41: 0 | AP41: 0 | AQ41: 0 | AR41: 0 | AS41: 0 | AT41: 0 | AU41: 0 | AV41: 0 | AW41: 0 | AX41: 0 | AY41: 0 | AZ41: 0 | BA41: 0 | BB41: 0 | BC41: 0 | BD41: 0 | BE41: 0 | BF41: 0 | BG41: 0 | BH41: 0 | BI41: 0 | BJ41: 0 | BK41: 0 | BL41: 0 | BM41: 0 | BN41: 0 | BO41: 0 | BP41: 0 | BQ41: 0 | BR41: 0 | BS41: 0 | BT41: 0 | BU41: 0 | BV41: 0 | BW41: 0 | BX41: 1 | BY41: 1000 | BZ41: 1 | CA41: 50 | CB41: 1 | CC41: 100 | CD41: 200 | CE41: 1 | CF41: 500 | CG41: 1 | CH41: 1 | CI41: 1 | CJ41: 1 | CK41: 0 | CL41: 0 | CM41: 0 | CN41: 0 | CO41: 1594 | CP41: 0 | CQ41: 0 | CR41: 0 | CS41: 0 | CT41: 0 | CU41: 24051 | CV41: 0 | CW41: 0 | CX41: 0 | CY41: 0 | CZ41: 0 | DA41: 24051 | DB41: 25749.66 | DC41: 0 | DD41: 0 | DE41: 0 | DF41: 0 | DG41: 0 | DH41: 25749.66 | DI41: 22296 | DJ41: 25749.66 | DK41: -1698.66 | DL41: 0.055 | DM41: 0.025 | DN41: 0.0382 | DO41: 0.0329 | DP41: 1.25 | DQ41: 0.8 | DR41: 0.25 | DS41: 2083.33 | DT41: 2004.25 | DU41: 2145.8 | DV41: -141.55 | DW41: 745.57 | DX41: 0 | DY41: 25000 | DZ41: 24051 | EA41: 25749.66 | EB41: -1698.66 | EC41: 8946.88 | ED41: 0 | EE41: 2083.33 | EF41: 2004.25 | EG41: 2145.8 | EH41: -141.55 | EI41: 899.73 | EJ41: 0 | EK41: 25000 | EL41: 24051 | EM41: 25749.66 | EN41: -1698.66 | EO41: 10796.71 | EP41: 0 | EQ41: -0.18 | ER41: 0.357875105 | ES41: FAIL | ET41: -0.15 | EU41: 0.4318684588 | EV41: FAIL | EW41: 0 | EX41: 1594 | EY41: 0 | EZ41: 0 | FA41: 0 | FB41: 0 | FC41: 0 | FD41: 24051 | FE41: 0 | FF41: 0 | FG41: 0 | FH41: 0 | FI41: 0 | FJ41: 24051 | FK41: 25749.66 | FL41: 0 | FM41: 0 | FN41: 0 | FO41: 0 | FP41: 0 | FQ41: 25749.66 | FR41: 22296 | FS41: 25749.66 | FT41: -1698.66 | FU41: 0.055 | FV41: 0.025 | FW41: 0.0382 | FX41: 0.0329 | FY41: 1.25 | FZ41: 0.8 | GA41: 0.25 | GB41: 2083.33 | GC41: 2004.25 | GD41: 2145.8 | GE41: -141.55 | GF41: 745.57 | GG41: 0 | GH41: 25000 | GI41: 24051 | GJ41: 25749.66 | GK41: -1698.66 | GL41: 8946.88 | GM41: 0 | GN41: 2083.33 | GO41: 2004.25 | GP41: 2145.8 | GQ41: -141.55 | GR41: 899.73 | GS41: 0 | GT41: 25000 | GU41: 24051 | GV41: 25749.66 | GW41: -1698.66 | GX41: 10796.71 | GY41: 0 | GZ41: -0.18 | HA41: 0.357875105 | HB41: FAIL | HC41: -0.15 | HD41: 0.4318684588 | HE41: FAIL | HF41: 0 | HG41: Pass | HH41: Y | HI41: 2021-07-05T16:31:50 | HK41: Case 39 | HL41: Emily
A42: 100000 | B42: 0.065 | C42: 0.09 | D42: 20 | E42: 0 | F42: 100000 | G42: 0.065 | H42: 0.09 | I42: 20 | J42: 0 | P42: Individual (Couple) | V42: Non-loan Party | AH42: 50000 | AI42: 0 | AJ42: 0 | AK42: 0 | AL42: 0 | AM42: 0 | AN42: 0 | AO42: 0 | AP42: 0 | AQ42: 0 | AR42: 0 | AS42: 0 | AT42: 0 | AU42: 0 | AV42: 0 | AW42: 0 | AX42: 0 | AY42: 0 | AZ42: 0 | BA42: 0 | BB42: 0 | BC42: 0 | BD42: 0 | BE42: 0 | BF42: 0 | BG42: 0 | BH42: 0 | BI42: 0 | BJ42: 0 | BK42: 0 | BL42: 0 | BM42: 0 | BN42: 0 | BO42: 0 | BP42: 0 | BQ42: 0 | BR42: 0 | BS42: 0 | BT42: 0 | BU42: 0 | BV42: 0 | BW42: 0 | BX42: 1 | BY42: 1000 | BZ42: 1 | CA42: 50 | CB42: 1 | CC42: 100 | CD42: 200 | CE42: 1 | CF42: 500 | CG42: 1 | CH42: 1 | CI42: 1 | CJ42: 1 | CK42: 0 | CL42: 0 | CM42: 0 | CN42: 0 | CO42: 7717 | CP42: 0 | CQ42: 0 | CR42: 0 | CS42: 0 | CT42: 0 | CU42: 43063 | CV42: 0 | CW42: 0 | CX42: 0 | CY42: 0 | CZ42: 0 | DA42: 43063 | DB42: 27489.02 | DC42: 0 | DD42: 0 | DE42: 0 | DF42: 0 | DG42: 0 | DH42: 27489.02 | DI42: 22296 | DJ42: 27489.02 | DK42: 15573.98 | DL42: 0.055 | DM42: 0.025 | DN42: 0.0382 | DO42: 0.0329 | DP42: 1.25 | DQ42: 0.8 | DR42: 0.25 | DS42: 4166.67 | DT42: 3588.58 | DU42: 2290.75 | DV42: 1297.83 | DW42: 745.57 | DX42: 0 | DY42: 50000 | DZ42: 43063 | EA42: 27489.02 | EB42: 15573.98 | EC42: 8946.88 | ED42: 0 | EE42: 4166.67 | EF42: 3588.58 | EG42: 2290.75 | EH42: 1297.83 | EI42: 899.73 | EJ42: 0 | EK42: 50000 | EL42: 43063 | EM42: 27489.02 | EN42: 15573.98 | EO42: 10796.71 | EP42: 0 | EQ42: 1.74 | ER42: 0.1789375525 | ES42: PASS | ET42: 1.44 | EU42: 0.2159342294 | EV42: PASS | EW42: 100000 | EX42: 7717 | EY42: 0 | EZ42: 0 | FA42: 0 | FB42: 0 | FC42: 0 | FD42: 43063 | FE42: 0 | FF42: 0 | FG42: 0 | FH42: 0 | FI42: 0 | FJ42: 43063 | FK42: 27489.02 | FL42: 0 | FM42: 0 | FN42: 0 | FO42: 0 | FP42: 0 | FQ42: 27489.02 | FR42: 22296 | FS42: 27489.02 | FT42: 15573.98 | FU42: 0.055 | FV42: 0.025 | FW42: 0.0382 | FX42: 0.0329 | FY42: 1.25 | FZ42: 0.8 | GA42: 0.25 | GB42: 4166.67 | GC42: 3588.58 | GD42: 2290.75 | GE42: 1297.83 | GF42: 745.57 | GG42: 0 | GH42: 50000 | GI42: 43063 | GJ42: 27489.02 | GK42: 15573.98 | GL42: 8946.88 | GM42: 0 | GN42: 4166.67 | GO42: 3588.58 | GP42: 2290.75 | GQ42: 1297.83 | GR42: 899.73 | GS42: 0 | GT42: 50000 | GU42: 43063 | GV42: 27489.02 | GW42: 15573.98 | GX42: 10796.71 | GY42: 0 | GZ42: 1.74 | HA42: 0.1789375525 | HB42: PASS | HC42: 1.44 | HD42: 0.2159342294 | HE42: PASS | HF42: 100000 | HG42: Pass | HH42: Y | HI42: 2021-07-05T16:32:09 | HK42: Case 40 | HL42: Emily
A43: 300000 | B43: 0.065 | C43: 0.09 | D43: 20 | E43: 0 | F43: 300000 | G43: 0.065 | H43: 0.09 | I43: 20 | J43: 0 | P43: Individual (Couple) | Q43: Individual (Couple) | V43: Applicant 2 | W43: Applicant 1 | AH43: 85000 | AI43: 45000 | AJ43: 0 | AK43: 0 | AL43: 0 | AM43: 0 | AN43: 0 | AO43: 0 | AP43: 0 | AQ43: 0 | AR43: 0 | AS43: 0 | AT43: 0 | AU43: 0 | AV43: 0 | AW43: 0 | AX43: 0 | AY43: 0 | AZ43: 0 | BA43: 0 | BB43: 0 | BC43: 0 | BD43: 0 | BE43: 0 | BF43: 0 | BG43: 0 | BH43: 0 | BI43: 0 | BJ43: 0 | BK43: 0 | BL43: 0 | BM43: 0 | BN43: 0 | BO43: 0 | BP43: 0 | BQ43: 0 | BR43: 0 | BS43: 0 | BT43: 0 | BU43: 0 | BV43: 0 | BW43: 0 | BX43: 1 | BY43: 1000 | BZ43: 500 | CA43: 50 | CB43: 1 | CC43: 100 | CD43: 200 | CE43: 500 | CF43: 500 | CG43: 1 | CH43: 1 | CI43: 1 | CJ43: 1 | CK43: 0 | CL43: 0 | CM43: 0 | CN43: 0 | CO43: 19792 | CP43: 5992 | CQ43: 0 | CR43: 0 | CS43: 0 | CT43: 0 | CU43: 65738 | CV43: 39773 | CW43: 0 | CX43: 0 | CY43: 0 | CZ43: 0 | DA43: 105511 | DB43: 43237.88 | DC43: 0 | DD43: 0 | DE43: 0 | DF43: 0 | DG43: 0 | DH43: 43237.88 | DI43: 34272 | DJ43: 43237.88 | DK43: 62273.12 | DL43: 0.055 | DM43: 0.025 | DN43: 0.0382 | DO43: 0.0329 | DP43: 1.25 | DQ43: 0.8 | DR43: 0.25 | DS43: 10833.33 | DT43: 8792.58 | DU43: 3603.16 | DV43: 5189.43 | DW43: 2236.72 | DX43: 0 | DY43: 130000 | DZ43: 105511 | EA43: 43237.88 | EB43: 62273.12 | EC43: 26840.63 | ED43: 0 | EE43: 10833.33 | EF43: 8792.58 | EG43: 3603.16 | EH43: 5189.43 | EI43: 2699.18 | EJ43: 0 | EK43: 130000 | EL43: 105511 | EM43: 43237.88 | EN43: 62273.12 | EO43: 32390.13 | EP43: 0 | EQ43: 2.32 | ER43: 0.2064664068 | ES43: PASS | ET43: 1.92 | EU43: 0.2491548801 | EV43: PASS | EW43: 300000 | EX43: 19792 | EY43: 5992 | EZ43: 0 | FA43: 0 | FB43: 0 | FC43: 0 | FD43: 65738 | FE43: 39773 | FF43: 0 | FG43: 0 | FH43: 0 | FI43: 0 | FJ43: 105511 | FK43: 43237.88 | FL43: 0 | FM43: 0 | FN43: 0 | FO43: 0 | FP43: 0 | FQ43: 43237.88 | FR43: 34272 | FS43: 43237.88 | FT43: 62273.12 | FU43: 0.055 | FV43: 0.025 | FW43: 0.0382 | FX43: 0.0329 | FY43: 1.25 | FZ43: 0.8 | GA43: 0.25 | GB43: 10833.33 | GC43: 8792.58 | GD43: 3603.16 | GE43: 5189.43 | GF43: 2236.72 | GG43: 0 | GH43: 130000 | GI43: 105511 | GJ43: 43237.88 | GK43: 62273.12 | GL43: 26840.63 | GM43: 0 | GN43: 10833.33 | GO43: 8792.58 | GP43: 3603.16 | GQ43: 5189.43 | GR43: 2699.18 | GS43: 0 | GT43: 130000 | GU43: 105511 | GV43: 43237.88 | GW43: 62273.12 | GX43: 32390.13 | GY43: 0 | GZ43: 2.32 | HA43: 0.2064664068 | HB43: PASS | HC43: 1.92 | HD43: 0.2491548801 | HE43: PASS | HF43: 300000 | HG43: Pass | HH43: Y | HI43: 2021-07-05T16:32:28 | HK43: Case 41 | HL43: Emily
A44: 300000 | B44: 0.065 | C44: 0.09 | D44: 20 | E44: 0 | F44: 300000 | G44: 0.065 | H44: 0.09 | I44: 20 | J44: 0 | P44: Individual (Couple) | Q44: Individual (Couple) | V44: Applicant 2 | W44: Applicant 1 | AH44: 85000 | AI44: 45000 | AJ44: 0 | AK44: 0 | AL44: 0 | AM44: 0 | AN44: 0 | AO44: 0 | AP44: 0 | AQ44: 0 | AR44: 0 | AS44: 0 | AT44: 0 | AU44: 0 | AV44: 0 | AW44: 0 | AX44: 0 | AY44: 0 | AZ44: 0 | BA44: 0 | BB44: 0 | BC44: 0 | BD44: 0 | BE44: 0 | BF44: 0 | BG44: 0 | BH44: 0 | BI44: 0 | BJ44: 0 | BK44: 0 | BL44: 0 | BM44: 0 | BN44: 0 | BO44: 0 | BP44: 0 | BQ44: 0 | BR44: 0 | BS44: 0 | BT44: 0 | BU44: 0 | BV44: 0 | BW44: 0 | BX44: 1 | BY44: 1000 | BZ44: 500 | CA44: 50 | CB44: 1 | CC44: 100 | CD44: 200 | CE44: 500 | CF44: 500 | CG44: 200 | CH44: 1 | CI44: 400 | CJ44: 1 | CK44: 0 | CL44: 0 | CM44: 1800 | CN44: 0 | CO44: 19792 | CP44: 5992 | CQ44: 0 | CR44: 0 | CS44: 0 | CT44: 0 | CU44: 65738 | CV44: 39773 | CW44: 0 | CX44: 0 | CY44: 0 | CZ44: 0 | DA44: 105511 | DB44: 43237.88 | DC44: 0 | DD44: 0 | DE44: 0 | DF44: 0 | DG44: 0 | DH44: 43237.88 | DI44: 41448 | DJ44: 43237.88 | DK44: 62273.12 | DL44: 0.055 | DM44: 0.025 | DN44: 0.0382 | DO44: 0.0329 | DP44: 1.25 | DQ44: 0.8 | DR44: 0.25 | DS44: 10833.33 | DT44: 8792.58 | DU44: 3603.16 | DV44: 5189.43 | DW44: 2236.72 | DX44: 2250 | DY44: 130000 | DZ44: 105511 | EA44: 43237.88 | EB44: 62273.12 | EC44: 26840.63 | ED44: 27000 | EE44: 10833.33 | EF44: 8792.58 | EG44: 3603.16 | EH44: 5189.43 | EI44: 2699.18 | EJ44: 2250 | EK44: 130000 | EL44: 105511 | EM44: 43237.88 | EN44: 62273.12 | EO44: 32390.13 | EP44: 27000 | EQ44: 1.15 | ER44: 0.4141587145 | ES44: PASS | ET44: 1.04 | EU44: 0.4568471878 | EV44: PASS | EW44: 300000 | EX44: 19792 | EY44: 5992 | EZ44: 0 | FA44: 0 | FB44: 0 | FC44: 0 | FD44: 65738 | FE44: 39773 | FF44: 0 | FG44: 0 | FH44: 0 | FI44: 0 | FJ44: 105511 | FK44: 43237.88 | FL44: 0 | FM44: 0 | FN44: 0 | FO44: 0 | FP44: 0 | FQ44: 43237.88 | FR44: 41448 | FS44: 43237.88 | FT44: 62273.12 | FU44: 0.055 | FV44: 0.025 | FW44: 0.0382 | FX44: 0.0329 | FY44: 1.25 | FZ44: 0.8 | GA44: 0.25 | GB44: 10833.33 | GC44: 8792.58 | GD44: 3603.16 | GE44: 5189.43 | GF44: 2236.72 | GG44: 2250 | GH44: 130000 | GI44: 105511 | GJ44: 43237.88 | GK44: 62273.12 | GL44: 26840.63 | GM44: 27000 | GN44: 10833.33 | GO44: 8792.58 | GP44: 3603.16 | GQ44: 5189.43 | GR44: 2699.18 | GS44: 2250 | GT44: 130000 | GU44: 105511 | GV44: 43237.88 | GW44: 62273.12 | GX44: 32390.13 | GY44: 27000 | GZ44: 1.15 | HA44: 0.4141587145 | HB44: PASS | HC44: 1.04 | HD44: 0.4568471878 | HE44: PASS | HF44: 300000 | HG44: Pass | HH44: Y | HI44: 2021-07-05T16:32:47 | HK44: Case 42 | HL44: Emily
A45: 700000 | B45: 0.065 | C45: 0.09 | D45: 30 | E45: 0 | F45: 700000 | G45: 0.065 | H45: 0.09 | I45: 30 | J45: 0 | P45: Individual (Couple) | Q45: Individual (Couple) | V45: Applicant 2 | W45: Applicant 1 | AH45: 100000 | AI45: 45000 | AJ45: 0 | AK45: 0 | AL45: 0 | AM45: 0 | AN45: 0 | AO45: 0 | AP45: 0 | AQ45: 0 | AR45: 0 | AS45: 0 | AT45: 0 | AU45: 0 | AV45: 0 | AW45: 0 | AX45: 0 | AY45: 0 | AZ45: 0 | BA45: 0 | BB45: 0 | BC45: 0 | BD45: 0 | BE45: 0 | BF45: 0 | BG45: 0 | BH45: 0 | BI45: 0 | BJ45: 0 | BK45: 0 | BL45: 0 | BM45: 0 | BN45: 0 | BO45: 0 | BP45: 0 | BQ45: 0 | BR45: 0 | BS45: 0 | BT45: 0 | BU45: 0 | BV45: 0 | BW45: 0 | BX45: 1 | BY45: 1 | BZ45: 1 | CA45: 50 | CB45: 1 | CC45: 100 | CD45: 200 | CE45: 500 | CF45: 500 | CG45: 200 | CH45: 1 | CI45: 400 | CJ45: 1 | CK45: 0 | CL45: 0 | CM45: 1800 | CN45: 0 | CO45: 24967 | CP45: 5992 | CQ45: 0 | CR45: 0 | CS45: 0 | CT45: 0 | CU45: 75413 | CV45: 39773 | CW45: 0 | CX45: 0 | CY45: 0 | CZ45: 0 | DA45: 115186 | DB45: 43237.88 | DC45: 0 | DD45: 0 | DE45: 0 | DF45: 0 | DG45: 0 | DH45: 43237.88 | DI45: 23472 | DJ45: 43237.88 | DK45: 71948.12 | DL45: 0.055 | DM45: 0.025 | DN45: 0.0382 | DO45: 0.0329 | DP45: 1.25 | DQ45: 0.8 | DR45: 0.25 | DS45: 12083.33 | DT45: 9598.83 | DU45: 3603.16 | DV45: 5995.68 | DW45: 4424.48 | DX45: 2250 | DY45: 145000 | DZ45: 115186 | EA45: 43237.88 | EB45: 71948.12 | EC45: 53093.71 | ED45: 27000 | EE45: 12083.33 | EF45: 9598.83 | EG45: 3603.16 | EH45: 5995.68 | EI45: 5632.36 | EJ45: 2250 | EK45: 145000 | EL45: 115186 | EM45: 43237.88 | EN45: 71948.12 | EO45: 67588.3 | EP45: 27000 | EQ45: 0.89 | ER45: 0.5523704412 | ES45: FAIL | ET45: 0.76 | EU45: 0.6523331022 | EV45: FAIL | EW45: 465435.59 | EX45: 24967 | EY45: 5992 | EZ45: 0 | FA45: 0 | FB45: 0 | FC45: 0 | FD45: 75413 | FE45: 39773 | FF45: 0 | FG45: 0 | FH45: 0 | FI45: 0 | FJ45: 115186 | FK45: 43237.88 | FL45: 0 | FM45: 0 | FN45: 0 | FO45: 0 | FP45: 0 | FQ45: 43237.88 | FR45: 23472 | FS45: 43237.88 | FT45: 71948.12 | FU45: 0.055 | FV45: 0.025 | FW45: 0.0382 | FX45: 0.0329 | FY45: 1.25 | FZ45: 0.8 | GA45: 0.25 | GB45: 12083.33 | GC45: 9598.83 | GD45: 3603.16 | GE45: 5995.68 | GF45: 4424.48 | GG45: 2250 | GH45: 145000 | GI45: 115186 | GJ45: 43237.88 | GK45: 71948.12 | GL45: 53093.71 | GM45: 27000 | GN45: 12083.33 | GO45: 9598.83 | GP45: 3603.16 | GQ45: 5995.68 | GR45: 5632.36 | GS45: 2250 | GT45: 145000 | GU45: 115186 | GV45: 43237.88 | GW45: 71948.12 | GX45: 67588.3 | GY45: 27000 | GZ45: 0.89 | HA45: 0.5523704412 | HB45: FAIL | HC45: 0.76 | HD45: 0.6523331022 | HE45: FAIL | HF45: 465435.59 | HG45: Pass | HH45: Y | HI45: 2021-07-05T16:33:07 | HK45: Case 43 | HL45: Emily
A46: 160000 | B46: 0.065 | C46: 0.09 | D46: 30 | E46: 0 | F46: 160000 | G46: 0.065 | H46: 0.09 | I46: 30 | J46: 0 | P46: Individual (Couple) | Q46: Individual (Couple) | V46: Applicant 2 | W46: Applicant 1 | AH46: 56000 | AI46: 35000 | AJ46: 0 | AK46: 0 | AL46: 0 | AM46: 0 | AN46: 0 | AO46: 0 | AP46: 0 | AQ46: 0 | AR46: 0 | AS46: 0 | AT46: 0 | AU46: 0 | AV46: 0 | AW46: 0 | AX46: 0 | AY46: 0 | AZ46: 0 | BA46: 0 | BB46: 0 | BC46: 0 | BD46: 0 | BE46: 0 | BF46: 0 | BG46: 0 | BH46: 0 | BI46: 0 | BJ46: 0 | BK46: 0 | BL46: 0 | BM46: 0 | BN46: 0 | BO46: 0 | BP46: 0 | BQ46: 0 | BR46: 0 | BS46: 0 | BT46: 0 | BU46: 0 | BV46: 0 | BW46: 0 | BX46: 600 | BY46: 1 | BZ46: 50 | CA46: 300 | CB46: 41 | CC46: 100 | CD46: 200 | CE46: 480 | CF46: 500 | CG46: 120 | CH46: 1 | CI46: 350 | CJ46: 1 | CK46: 0 | CL46: 0 | CM46: 1800 | CN46: 0 | CO46: 9787 | CP46: 3892 | CQ46: 0 | CR46: 0 | CS46: 0 | CT46: 0 | CU46: 46903 | CV46: 31753 | CW46: 0 | CX46: 0 | CY46: 0 | CZ46: 0 | DA46: 78656 | DB46: 35646.69 | DC46: 0 | DD46: 0 | DE46: 0 | DF46: 0 | DG46: 0 | DH46: 35646.69 | DI46: 32928 | DJ46: 35646.69 | DK46: 43009.31 | DL46: 0.055 | DM46: 0.025 | DN46: 0.0382 | DO46: 0.0329 | DP46: 1.25 | DQ46: 0.8 | DR46: 0.25 | DS46: 7583.33 | DT46: 6554.67 | DU46: 2970.56 | DV46: 3584.11 | DW46: 1011.31 | DX46: 2250 | DY46: 91000 | DZ46: 78656 | EA46: 35646.69 | EB46: 43009.31 | EC46: 12135.71 | ED46: 27000 | EE46: 7583.33 | EF46: 6554.67 | EG46: 2970.56 | EH46: 3584.11 | EI46: 1287.4 | EJ46: 2250 | EK46: 91000 | EL46: 78656 | EM46: 35646.69 | EN46: 43009.31 | EO46: 15448.75 | EP46: 27000 | EQ46: 1.09 | ER46: 0.4300627039 | ES46: PASS | ET46: 1.01 | EU46: 0.4664698269 | EV46: PASS | EW46: 160000 | EX46: 9787 | EY46: 3892 | EZ46: 0 | FA46: 0 | FB46: 0 | FC46: 0 | FD46: 46903 | FE46: 31753 | FF46: 0 | FG46: 0 | FH46: 0 | FI46: 0 | FJ46: 78656 | FK46: 35646.69 | FL46: 0 | FM46: 0 | FN46: 0 | FO46: 0 | FP46: 0 | FQ46: 35646.69 | FR46: 32928 | FS46: 35646.69 | FT46: 43009.31 | FU46: 0.055 | FV46: 0.025 | FW46: 0.0382 | FX46: 0.0329 | FY46: 1.25 | FZ46: 0.8 | GA46: 0.25 | GB46: 7583.33 | GC46: 6554.67 | GD46: 2970.56 | GE46: 3584.11 | GF46: 1011.31 | GG46: 2250 | GH46: 91000 | GI46: 78656 | GJ46: 35646.69 | GK46: 43009.31 | GL46: 12135.71 | GM46: 27000 | GN46: 7583.33 | GO46: 6554.67 | GP46: 2970.56 | GQ46: 3584.11 | GR46: 1287.4 | GS46: 2250 | GT46: 91000 | GU46: 78656 | GV46: 35646.69 | GW46: 43009.31 | GX46: 15448.75 | GY46: 27000 | GZ46: 1.09 | HA46: 0.4300627039 | HB46: PASS | HC46: 1.01 | HD46: 0.4664698269 | HE46: PASS | HF46: 160000 | HG46: Pass | HH46: Y | HI46: 2021-07-05T16:33:25 | HK46: Case 44 | HL46: Emily
A47: 160000 | B47: 0.065 | C47: 0.09 | D47: 30 | E47: 0 | F47: 160000 | G47: 0.065 | H47: 0.09 | I47: 30 | J47: 0 | P47: Individual (Couple) | Q47: Individual (Couple) | V47: Applicant 2 | W47: Applicant 1 | AH47: 58000 | AI47: 35000 | AJ47: 0 | AK47: 0 | AL47: 0 | AM47: 0 | AN47: 0 | AO47: 0 | AP47: 0 | AQ47: 0 | AR47: 0 | AS47: 0 | AT47: 0 | AU47: 0 | AV47: 0 | AW47: 0 | AX47: 0 | AY47: 0 | AZ47: 0 | BA47: 0 | BB47: 0 | BC47: 0 | BD47: 0 | BE47: 0 | BF47: 0 | BG47: 0 | BH47: 0 | BI47: 0 | BJ47: 0 | BK47: 0 | BL47: 0 | BM47: 0 | BN47: 0 | BO47: 0 | BP47: 0 | BQ47: 0 | BR47: 0 | BS47: 0 | BT47: 0 | BU47: 0 | BV47: 0 | BW47: 0 | BX47: 600 | BY47: 1 | BZ47: 300 | CA47: 50 | CB47: 1 | CC47: 100 | CD47: 200 | CE47: 480 | CF47: 500 | CG47: 200 | CH47: 1 | CI47: 400 | CJ47: 1 | CK47: 0 | CL47: 0 | CM47: 1800 | CN47: 0 | CO47: 10477 | CP47: 3892 | CQ47: 0 | CR47: 0 | CS47: 0 | CT47: 0 | CU47: 48183 | CV47: 31753 | CW47: 0 | CX47: 0 | CY47: 0 | CZ47: 0 | DA47: 79936 | DB47: 35646.69 | DC47: 0 | DD47: 0 | DE47: 0 | DF47: 0 | DG47: 0 | DH47: 35646.69 | DI47: 34008 | DJ47: 35646.69 | DK47: 44289.31 | DL47: 0.055 | DM47: 0.025 | DN47: 0.0382 | DO47: 0.0329 | DP47: 1.25 | DQ47: 0.8 | DR47: 0.25 | DS47: 7750 | DT47: 6661.33 | DU47: 2970.56 | DV47: 3690.78 | DW47: 1011.31 | DX47: 2250 | DY47: 93000 | DZ47: 79936 | EA47: 35646.69 | EB47: 44289.31 | EC47: 12135.71 | ED47: 27000 | EE47: 7750 | EF47: 6661.33 | EG47: 2970.56 | EH47: 3690.78 | EI47: 1287.4 | EJ47: 2250 | EK47: 93000 | EL47: 79936 | EM47: 35646.69 | EN47: 44289.31 | EO47: 15448.75 | EP47: 27000 | EQ47: 1.13 | ER47: 0.4208140436 | ES47: PASS | ET47: 1.04 | EU47: 0.4564382177 | EV47: PASS | EW47: 160000 | EX47: 10477 | EY47: 3892 | EZ47: 0 | FA47: 0 | FB47: 0 | FC47: 0 | FD47: 48183 | FE47: 31753 | FF47: 0 | FG47: 0 | FH47: 0 | FI47: 0 | FJ47: 79936 | FK47: 35646.69 | FL47: 0 | FM47: 0 | FN47: 0 | FO47: 0 | FP47: 0 | FQ47: 35646.69 | FR47: 34008 | FS47: 35646.69 | FT47: 44289.31 | FU47: 0.055 | FV47: 0.025 | FW47: 0.0382 | FX47: 0.0329 | FY47: 1.25 | FZ47: 0.8 | GA47: 0.25 | GB47: 7750 | GC47: 6661.33 | GD47: 2970.56 | GE47: 3690.78 | GF47: 1011.31 | GG47: 2250 | GH47: 93000 | GI47: 79936 | GJ47: 35646.69 | GK47: 44289.31 | GL47: 12135.71 | GM47: 27000 | GN47: 7750 | GO47: 6661.33 | GP47: 2970.56 | GQ47: 3690.78 | GR47: 1287.4 | GS47: 2250 | GT47: 93000 | GU47: 79936 | GV47: 35646.69 | GW47: 44289.31 | GX47: 15448.75 | GY47: 27000 | GZ47: 1.13 | HA47: 0.4208140436 | HB47: PASS | HC47: 1.04 | HD47: 0.4564382177 | HE47: PASS | HF47: 160000 | HG47: Pass | HH47: Y | HI47: 2021-07-05T16:33:43 | HK47: Case 45 | HL47: Emily
A48: 100000 | B48: 0.065 | C48: 0.09 | D48: 20 | E48: 0 | F48: 100000 | G48: 0.065 | H48: 0.09 | I48: 20 | J48: 0 | P48: Individual (Couple) | V48: Non-loan Party | AH48: 41000 | AI48: 0 | AJ48: 0 | AK48: 0 | AL48: 0 | AM48: 0 | AN48: 0 | AO48: 0 | AP48: 0 | AQ48: 0 | AR48: 0 | AS48: 0 | AT48: 0 | AU48: 0 | AV48: 0 | AW48: 0 | AX48: 0 | AY48: 0 | AZ48: 0 | BA48: 0 | BB48: 0 | BC48: 0 | BD48: 0 | BE48: 0 | BF48: 0 | BG48: 0 | BH48: 0 | BI48: 0 | BJ48: 0 | BK48: 0 | BL48: 0 | BM48: 0 | BN48: 0 | BO48: 0 | BP48: 0 | BQ48: 0 | BR48: 0 | BS48: 0 | BT48: 0 | BU48: 0 | BV48: 0 | BW48: 0 | BX48: 1 | BY48: 1000 | BZ48: 1 | CA48: 50 | CB48: 1 | CC48: 100 | CD48: 200 | CE48: 1 | CF48: 500 | CG48: 1 | CH48: 1 | CI48: 1 | CJ48: 1 | CK48: 0 | CL48: 0 | CM48: 0 | CN48: 0 | CO48: 5152 | CP48: 0 | CQ48: 0 | CR48: 0 | CS48: 0 | CT48: 0 | CU48: 36553 | CV48: 0 | CW48: 0 | CX48: 0 | CY48: 0 | CZ48: 0 | DA48: 36553 | DB48: 26435.38 | DC48: 0 | DD48: 0 | DE48: 0 | DF48: 0 | DG48: 0 | DH48: 26435.38 | DI48: 22296 | DJ48: 26435.38 | DK48: 10117.62 | DL48: 0.055 | DM48: 0.025 | DN48: 0.0382 | DO48: 0.0329 | DP48: 1.25 | DQ48: 0.8 | DR48: 0.25 | DS48: 3416.67 | DT48: 3046.08 | DU48: 2202.95 | DV48: 843.14 | DW48: 745.57 | DX48: 0 | DY48: 41000 | DZ48: 36553 | EA48: 26435.38 | EB48: 10117.62 | EC48: 8946.88 | ED48: 0 | EE48: 3416.67 | EF48: 3046.08 | EG48: 2202.95 | EH48: 843.14 | EI48: 899.73 | EJ48: 0 | EK48: 41000 | EL48: 36553 | EM48: 26435.38 | EN48: 10117.62 | EO48: 10796.71 | EP48: 0 | EQ48: 1.13 | ER48: 0.2182165275 | ES48: PASS | ET48: 0.93 | EU48: 0.2633344261 | EV48: FAIL | EW48: 93695.2 | EX48: 5152 | EY48: 0 | EZ48: 0 | FA48: 0 | FB48: 0 | FC48: 0 | FD48: 36553 | FE48: 0 | FF48: 0 | FG48: 0 | FH48: 0 | FI48: 0 | FJ48: 36553 | FK48: 26435.38 | FL48: 0 | FM48: 0 | FN48: 0 | FO48: 0 | FP48: 0 | FQ48: 26435.38 | FR48: 22296 | FS48: 26435.38 | FT48: 10117.62 | FU48: 0.055 | FV48: 0.025 | FW48: 0.0382 | FX48: 0.0329 | FY48: 1.25 | FZ48: 0.8 | GA48: 0.25 | GB48: 3416.67 | GC48: 3046.08 | GD48: 2202.95 | GE48: 843.14 | GF48: 745.57 | GG48: 0 | GH48: 41000 | GI48: 36553 | GJ48: 26435.38 | GK48: 10117.62 | GL48: 8946.88 | GM48: 0 | GN48: 3416.67 | GO48: 3046.08 | GP48: 2202.95 | GQ48: 843.14 | GR48: 899.73 | GS48: 0 | GT48: 41000 | GU48: 36553 | GV48: 26435.38 | GW48: 10117.62 | GX48: 10796.71 | GY48: 0 | GZ48: 1.13 | HA48: 0.2182165275 | HB48: PASS | HC48: 0.93 | HD48: 0.2633344261 | HE48: FAIL | HF48: 93695.2 | HG48: Pass | HH48: Y | HI48: 2021-07-05T16:34:02 | HK48: Case 46 | HL48: Emily
A49: 145000 | B49: 0.065 | C49: 0.09 | D49: 20 | E49: 0 | F49: 145000 | G49: 0.065 | H49: 0.09 | I49: 20 | J49: 0 | P49: Individual (Couple) | V49: Non-loan Party | AH49: 51000 | AI49: 0 | AJ49: 0 | AK49: 0 | AL49: 0 | AM49: 0 | AN49: 0 | AO49: 0 | AP49: 0 | AQ49: 0 | AR49: 0 | AS49: 0 | AT49: 0 | AU49: 0 | AV49: 0 | AW49: 0 | AX49: 0 | AY49: 0 | AZ49: 0 | BA49: 0 | BB49: 0 | BC49: 0 | BD49: 0 | BE49: 0 | BF49: 0 | BG49: 0 | BH49: 0 | BI49: 0 | BJ49: 0 | BK49: 0 | BL49: 0 | BM49: 0 | BN49: 0 | BO49: 0 | BP49: 0 | BQ49: 0 | BR49: 0 | BS49: 0 | BT49: 0 | BU49: 0 | BV49: 0 | BW49: 0 | BX49: 1 | BY49: 1000 | BZ49: 1 | CA49: 250 | CB49: 1 | CC49: 100 | CD49: 200 | CE49: 1 | CF49: 500 | CG49: 1 | CH49: 200 | CI49: 1 | CJ49: 1 | CK49: 0 | CL49: 0 | CM49: 0 | CN49: 0 | CO49: 8062 | CP49: 0 | CQ49: 0 | CR49: 0 | CS49: 0 | CT49: 0 | CU49: 43703 | CV49: 0 | CW49: 0 | CX49: 0 | CY49: 0 | CZ49: 0 | DA49: 43703 | DB49: 27489.02 | DC49: 0 | DD49: 0 | DE49: 0 | DF49: 0 | DG49: 0 | DH49: 27489.02 | DI49: 27084 | DJ49: 27489.02 | DK49: 16213.98 | DL49: 0.055 | DM49: 0.025 | DN49: 0.0382 | DO49: 0.0329 | DP49: 1.25 | DQ49: 0.8 | DR49: 0.25 | DS49: 4250 | DT49: 3641.92 | DU49: 2290.75 | DV49: 1351.16 | DW49: 1081.08 | DX49: 0 | DY49: 51000 | DZ49: 43703 | EA49: 27489.02 | EB49: 16213.98 | EC49: 12972.97 | ED49: 0 | EE49: 4250 | EF49: 3641.92 | EG49: 2290.75 | EH49: 1351.16 | EI49: 1304.6 | EJ49: 0 | EK49: 51000 | EL49: 43703 | EM49: 27489.02 | EN49: 16213.98 | EO49: 15655.23 | EP49: 0 | EQ49: 1.24 | ER49: 0.2543720109 | ES49: PASS | ET49: 1.03 | EU49: 0.3069653261 | EV49: PASS | EW49: 145000 | EX49: 8062 | EY49: 0 | EZ49: 0 | FA49: 0 | FB49: 0 | FC49: 0 | FD49: 43703 | FE49: 0 | FF49: 0 | FG49: 0 | FH49: 0 | FI49: 0 | FJ49: 43703 | FK49: 27489.02 | FL49: 0 | FM49: 0 | FN49: 0 | FO49: 0 | FP49: 0 | FQ49: 27489.02 | FR49: 27084 | FS49: 27489.02 | FT49: 16213.98 | FU49: 0.055 | FV49: 0.025 | FW49: 0.0382 | FX49: 0.0329 | FY49: 1.25 | FZ49: 0.8 | GA49: 0.25 | GB49: 4250 | GC49: 3641.92 | GD49: 2290.75 | GE49: 1351.16 | GF49: 1081.08 | GG49: 0 | GH49: 51000 | GI49: 43703 | GJ49: 27489.02 | GK49: 16213.98 | GL49: 12972.97 | GM49: 0 | GN49: 4250 | GO49: 3641.92 | GP49: 2290.75 | GQ49: 1351.16 | GR49: 1304.6 | GS49: 0 | GT49: 51000 | GU49: 43703 | GV49: 27489.02 | GW49: 16213.98 | GX49: 15655.23 | GY49: 0 | GZ49: 1.24 | HA49: 0.2543720109 | HB49: PASS | HC49: 1.03 | HD49: 0.3069653261 | HE49: PASS | HF49: 145000 | HG49: Pass | HH49: Y | HI49: 2021-07-05T16:34:20 | HK49: Case 47 | HL49: Emily
A50: 300000 | B50: 0.0544 | C50: 0.0794 | D50: 30 | E50: 0 | F50: 300000 | G50: 0.0544 | H50: 0.0794 | I50: 30 | J50: 0 | P50: Individual (Single) | AH50: 80000 | AI50: 0 | AJ50: 0 | AK50: 0 | AL50: 0 | AM50: 0 | AN50: 0 | AO50: 0 | AP50: 0 | AQ50: 0 | AR50: 0 | AS50: 0 | AT50: 0 | AU50: 0 | AV50: 0 | AW50: 0 | AX50: 0 | AY50: 0 | AZ50: 0 | BA50: 0 | BB50: 0 | BC50: 0 | BD50: 0 | BE50: 0 | BF50: 0 | BG50: 0 | BH50: 0 | BI50: 0 | BJ50: 0 | BK50: 0 | BL50: 0 | BM50: 0 | BN50: 0 | BO50: 0 | BP50: 0 | BQ50: 0 | BR50: 0 | BS50: 0 | BT50: 0 | BU50: 0 | BV50: 0 | BW50: 0 | BX50: 1 | BY50: 1 | BZ50: 1 | CA50: 1 | CB50: 100 | CC50: 50 | CD50: 60 | CE50: 50 | CF50: 20 | CG50: 45 | CH50: 60 | CI50: 1 | CJ50: 1 | CK50: 0 | CL50: 0 | CM50: 0 | CN50: 0 | CO50: 18067 | CP50: 0 | CQ50: 0 | CR50: 0 | CS50: 0 | CT50: 0 | CU50: 62463 | CV50: 0 | CW50: 0 | CX50: 0 | CY50: 0 | CZ50: 0 | DA50: 62463 | DB50: 20169.12 | DC50: 0 | DD50: 0 | DE50: 0 | DF50: 0 | DG50: 0 | DH50: 20169.12 | DI50: 4692 | DJ50: 20169.12 | DK50: 42293.88 | DL50: 0.055 | DM50: 0.025 | DN50: 0.0382 | DO50: 0.0329 | DP50: 1.25 | DQ50: 0.8 | DR50: 0.25 | DS50: 6666.67 | DT50: 5205.25 | DU50: 1680.76 | DV50: 3524.49 | DW50: 1692.09 | DX50: 0 | DY50: 80000 | DZ50: 62463 | EA50: 20169.12 | EB50: 42293.88 | EC50: 20305.09 | ED50: 0 | EE50: 6666.67 | EF50: 5205.25 | EG50: 1680.76 | EH50: 3524.49 | EI50: 2188.76 | EJ50: 0 | EK50: 80000 | EL50: 62463 | EM50: 20169.12 | EN50: 42293.88 | EO50: 26265.1 | EP50: 0 | EQ50: 2.08 | ER50: 0.2538136098 | ES50: PASS | ET50: 1.61 | EU50: 0.3283137803 | EV50: PASS | EW50: 300000 | EX50: 18067 | EY50: 0 | EZ50: 0 | FA50: 0 | FB50: 0 | FC50: 0 | FD50: 62463 | FE50: 0 | FF50: 0 | FG50: 0 | FH50: 0 | FI50: 0 | FJ50: 62463 | FK50: 20169.12 | FL50: 0 | FM50: 0 | FN50: 0 | FO50: 0 | FP50: 0 | FQ50: 20169.12 | FR50: 4692 | FS50: 20169.12 | FT50: 42293.88 | FU50: 0.055 | FV50: 0.025 | FW50: 0.0382 | FX50: 0.0329 | FY50: 1.25 | FZ50: 0.8 | GA50: 0.25 | GB50: 6666.67 | GC50: 5205.25 | GD50: 1680.76 | GE50: 3524.49 | GF50: 1692.09 | GG50: 0 | GH50: 80000 | GI50: 62463 | GJ50: 20169.12 | GK50: 42293.88 | GL50: 20305.09 | GM50: 0 | GN50: 6666.67 | GO50: 5205.25 | GP50: 1680.76 | GQ50: 3524.49 | GR50: 2188.76 | GS50: 0 | GT50: 80000 | GU50: 62463 | GV50: 20169.12 | GW50: 42293.88 | GX50: 26265.1 | GY50: 0 | GZ50: 2.08 | HA50: 0.2538136098 | HB50: PASS | HC50: 1.61 | HD50: 0.3283137803 | HE50: PASS | HF50: 300000 | HG50: Pass | HH50: Y | HI50: 2021-07-05T16:34:39 | HK50: Case 48 | HL50: Emily
A51: 300000 | B51: 0.0544 | C51: 0.0794 | D51: 30 | E51: 0 | F51: 300000 | G51: 0.0544 | H51: 0.0794 | I51: 30 | J51: 0 | P51: Individual (Single) | AH51: 60000 | AI51: 0 | AJ51: 0 | AK51: 0 | AL51: 0 | AM51: 0 | AN51: 0 | AO51: 0 | AP51: 0 | AQ51: 0 | AR51: 0 | AS51: 0 | AT51: 0 | AU51: 0 | AV51: 0 | AW51: 0 | AX51: 0 | AY51: 0 | AZ51: 0 | BA51: 0 | BB51: 0 | BC51: 0 | BD51: 0 | BE51: 0 | BF51: 0 | BG51: 0 | BH51: 0 | BI51: 0 | BJ51: 0 | BK51: 0 | BL51: 0 | BM51: 0 | BN51: 0 | BO51: 0 | BP51: 0 | BQ51: 0 | BR51: 0 | BS51: 0 | BT51: 0 | BU51: 0 | BV51: 0 | BW51: 0 | BX51: 1 | BY51: 1 | BZ51: 1 | CA51: 1 | CB51: 100 | CC51: 50 | CD51: 60 | CE51: 50 | CF51: 20 | CG51: 45 | CH51: 60 | CI51: 1 | CJ51: 1 | CK51: 0 | CL51: 0 | CM51: 0 | CN51: 0 | CO51: 11167 | CP51: 0 | CQ51: 0 | CR51: 0 | CS51: 0 | CT51: 0 | CU51: 49463 | CV51: 0 | CW51: 0 | CX51: 0 | CY51: 0 | CZ51: 0 | DA51: 49463 | DB51: 17436.37 | DC51: 0 | DD51: 0 | DE51: 0 | DF51: 0 | DG51: 0 | DH51: 17436.37 | DI51: 4692 | DJ51: 17436.37 | DK51: 32026.63 | DL51: 0.055 | DM51: 0.025 | DN51: 0.0382 | DO51: 0.0329 | DP51: 1.25 | DQ51: 0.8 | DR51: 0.25 | DS51: 5000 | DT51: 4121.92 | DU51: 1453.03 | DV51: 2668.89 | DW51: 1692.09 | DX51: 0 | DY51: 60000 | DZ51: 49463 | EA51: 17436.37 | EB51: 32026.63 | EC51: 20305.09 | ED51: 0 | EE51: 5000 | EF51: 4121.92 | EG51: 1453.03 | EH51: 2668.89 | EI51: 2188.76 | EJ51: 0 | EK51: 60000 | EL51: 49463 | EM51: 17436.37 | EN51: 32026.63 | EO51: 26265.1 | EP51: 0 | EQ51: 1.57 | ER51: 0.3384181464 | ES51: PASS | ET51: 1.21 | EU51: 0.4377517071 | EV51: PASS | EW51: 300000 | EX51: 11167 | EY51: 0 | EZ51: 0 | FA51: 0 | FB51: 0 | FC51: 0 | FD51: 49463 | FE51: 0 | FF51: 0 | FG51: 0 | FH51: 0 | FI51: 0 | FJ51: 49463 | FK51: 17436.37 | FL51: 0 | FM51: 0 | FN51: 0 | FO51: 0 | FP51: 0 | FQ51: 17436.37 | FR51: 4692 | FS51: 17436.37 | FT51: 32026.63 | FU51: 0.055 | FV51: 0.025 | FW51: 0.0382 | FX51: 0.0329 | FY51: 1.25 | FZ51: 0.8 | GA51: 0.25 | GB51: 5000 | GC51: 4121.92 | GD51: 1453.03 | GE51: 2668.89 | GF51: 1692.09 | GG51: 0 | GH51: 60000 | GI51: 49463 | GJ51: 17436.37 | GK51: 32026.63 | GL51: 20305.09 | GM51: 0 | GN51: 5000 | GO51: 4121.92 | GP51: 1453.03 | GQ51: 2668.89 | GR51: 2188.76 | GS51: 0 | GT51: 60000 | GU51: 49463 | GV51: 17436.37 | GW51: 32026.63 | GX51: 26265.1 | GY51: 0 | GZ51: 1.57 | HA51: 0.3384181464 | HB51: PASS | HC51: 1.21 | HD51: 0.4377517071 | HE51: PASS | HF51: 300000 | HG51: Pass | HH51: Y | HI51: 2021-07-05T16:34:57 | HK51: Case 49 | HL51: Emily
A52: 300000 | B52: 0.054 | C52: 0.079 | D52: 30 | E52: 0 | F52: 300000 | G52: 0.054 | H52: 0.079 | I52: 30 | J52: 0 | P52: Individual (Single) | Q52: Individual (Single) | AH52: 45000 | AI52: 45000 | AJ52: 0 | AK52: 0 | AL52: 0 | AM52: 0 | AN52: 0 | AO52: 0 | AP52: 0 | AQ52: 0 | AR52: 0 | AS52: 0 | AT52: 0 | AU52: 0 | AV52: 0 | AW52: 0 | AX52: 0 | AY52: 0 | AZ52: 0 | BA52: 0 | BB52: 0 | BC52: 0 | BD52: 0 | BE52: 0 | BF52: 0 | BG52: 0 | BH52: 0 | BI52: 0 | BJ52: 0 | BK52: 0 | BL52: 0 | BM52: 0 | BN52: 0 | BO52: 0 | BP52: 0 | BQ52: 0 | BR52: 0 | BS52: 0 | BT52: 0 | BU52: 0 | BV52: 0 | BW52: 0 | BX52: 100 | BY52: 100 | BZ52: 100 | CA52: 100 | CB52: 100 | CC52: 100 | CD52: 500 | CE52: 10 | CF52: 100 | CG52: 500 | CH52: 300 | CI52: 100 | CJ52: 100 | CK52: 0 | CL52: 0 | CM52: 0 | CN52: 0 | CO52: 5992 | CP52: 5992 | CQ52: 0 | CR52: 0 | CS52: 0 | CT52: 0 | CU52: 39773 | CV52: 39773 | CW52: 0 | CX52: 0 | CY52: 0 | CZ52: 0 | DA52: 79546 | DB52: 15661.4 | DC52: 15661.4 | DD52: 0 | DE52: 0 | DF52: 0 | DG52: 0 | DH52: 31322.81 | DI52: 26520 | DJ52: 31322.81 | DK52: 48223.19 | DL52: 0.055 | DM52: 0.025 | DN52: 0.0382 | DO52: 0.0329 | DP52: 1.25 | DQ52: 0.8 | DR52: 0.25 | DS52: 7500 | DT52: 6628.83 | DU52: 2610.23 | DV52: 4018.6 | DW52: 1684.59 | DX52: 0 | DY52: 90000 | DZ52: 79546 | EA52: 31322.81 | EB52: 48223.19 | EC52: 20215.11 | ED52: 0 | EE52: 7500 | EF52: 6628.83 | EG52: 2610.23 | EH52: 4018.6 | EI52: 2180.42 | EJ52: 0 | EK52: 90000 | EL52: 79546 | EM52: 31322.81 | EN52: 48223.19 | EO52: 26164.99 | EP52: 0 | EQ52: 2.38 | ER52: 0.2246123167 | ES52: PASS | ET52: 1.84 | EU52: 0.2907221621 | EV52: PASS | EW52: 300000 | EX52: 5992 | EY52: 5992 | EZ52: 0 | FA52: 0 | FB52: 0 | FC52: 0 | FD52: 39773 | FE52: 39773 | FF52: 0 | FG52: 0 | FH52: 0 | FI52: 0 | FJ52: 79546 | FK52: 15661.4 | FL52: 15661.4 | FM52: 0 | FN52: 0 | FO52: 0 | FP52: 0 | FQ52: 31322.81 | FR52: 26520 | FS52: 31322.81 | FT52: 48223.19 | FU52: 0.055 | FV52: 0.025 | FW52: 0.0382 | FX52: 0.0329 | FY52: 1.25 | FZ52: 0.8 | GA52: 0.25 | GB52: 7500 | GC52: 6628.83 | GD52: 2610.23 | GE52: 4018.6 | GF52: 1684.59 | GG52: 0 | GH52: 90000 | GI52: 79546 | GJ52: 31322.81 | GK52: 48223.19 | GL52: 20215.11 | GM52: 0 | GN52: 7500 | GO52: 6628.83 | GP52: 2610.23 | GQ52: 4018.6 | GR52: 2180.42 | GS52: 0 | GT52: 90000 | GU52: 79546 | GV52: 31322.81 | GW52: 48223.19 | GX52: 26164.99 | GY52: 0 | GZ52: 2.38 | HA52: 0.2246123167 | HB52: PASS | HC52: 1.84 | HD52: 0.2907221621 | HE52: PASS | HF52: 300000 | HG52: Pass | HH52: Y | HI52: 2021-07-05T16:35:16 | HK52: Case 50 | HL52: Emily
A53: 300000 | B53: 0.054 | C53: 0.079 | D53: 30 | E53: 0 | F53: 300000 | G53: 0.054 | H53: 0.079 | I53: 30 | J53: 0 | P53: Individual (Single) | Q53: Individual (Single) | AH53: 45000 | AI53: 25000 | AJ53: 0 | AK53: 0 | AL53: 0 | AM53: 0 | AN53: 0 | AO53: 0 | AP53: 0 | AQ53: 0 | AR53: 0 | AS53: 0 | AT53: 0 | AU53: 0 | AV53: 0 | AW53: 0 | AX53: 0 | AY53: 0 | AZ53: 0 | BA53: 0 | BB53: 0 | BC53: 0 | BD53: 0 | BE53: 0 | BF53: 0 | BG53: 0 | BH53: 0 | BI53: 0 | BJ53: 0 | BK53: 0 | BL53: 0 | BM53: 0 | BN53: 0 | BO53: 0 | BP53: 0 | BQ53: 0 | BR53: 0 | BS53: 0 | BT53: 0 | BU53: 0 | BV53: 0 | BW53: 0 | BX53: 100 | BY53: 100 | BZ53: 100 | CA53: 100 | CB53: 100 | CC53: 100 | CD53: 500 | CE53: 10 | CF53: 100 | CG53: 500 | CH53: 300 | CI53: 100 | CJ53: 100 | CK53: 0 | CL53: 0 | CM53: 0 | CN53: 0 | CO53: 5992 | CP53: 1594 | CQ53: 0 | CR53: 0 | CS53: 0 | CT53: 0 | CU53: 39773 | CV53: 24051 | CW53: 0 | CX53: 0 | CY53: 0 | CZ53: 0 | DA53: 63824 | DB53: 15661.4 | DC53: 13921.82 | DD53: 0 | DE53: 0 | DF53: 0 | DG53: 0 | DH53: 29583.23 | DI53: 26520 | DJ53: 29583.23 | DK53: 34240.77 | DL53: 0.055 | DM53: 0.025 | DN53: 0.0382 | DO53: 0.0329 | DP53: 1.25 | DQ53: 0.8 | DR53: 0.25 | DS53: 5833.33 | DT53: 5318.67 | DU53: 2465.27 | DV53: 2853.4 | DW53: 1684.59 | DX53: 0 | DY53: 70000 | DZ53: 63824 | EA53: 29583.23 | EB53: 34240.77 | EC53: 20215.11 | ED53: 0 | EE53: 5833.33 | EF53: 5318.67 | EG53: 2465.27 | EH53: 2853.4 | EI53: 2180.42 | EJ53: 0 | EK53: 70000 | EL53: 63824 | EM53: 29583.23 | EN53: 34240.77 | EO53: 26164.99 | EP53: 0 | EQ53: 1.69 | ER53: 0.2887872644 | ES53: PASS | ET53: 1.3 | EU53: 0.373785637 | EV53: PASS | EW53: 300000 | EX53: 5992 | EY53: 1594 | EZ53: 0 | FA53: 0 | FB53: 0 | FC53: 0 | FD53: 39773 | FE53: 24051 | FF53: 0 | FG53: 0 | FH53: 0 | FI53: 0 | FJ53: 63824 | FK53: 15661.4 | FL53: 13921.82 | FM53: 0 | FN53: 0 | FO53: 0 | FP53: 0 | FQ53: 29583.23 | FR53: 26520 | FS53: 29583.23 | FT53: 34240.77 | FU53: 0.055 | FV53: 0.025 | FW53: 0.0382 | FX53: 0.0329 | FY53: 1.25 | FZ53: 0.8 | GA53: 0.25 | GB53: 5833.33 | GC53: 5318.67 | GD53: 2465.27 | GE53: 2853.4 | GF53: 1684.59 | GG53: 0 | GH53: 70000 | GI53: 63824 | GJ53: 29583.23 | GK53: 34240.77 | GL53: 20215.11 | GM53: 0 | GN53: 5833.33 | GO53: 5318.67 | GP53: 2465.27 | GQ53: 2853.4 | GR53: 2180.42 | GS53: 0 | GT53: 70000 | GU53: 63824 | GV53: 29583.23 | GW53: 34240.77 | GX53: 26164.99 | GY53: 0 | GZ53: 1.69 | HA53: 0.2887872644 | HB53: PASS | HC53: 1.3 | HD53: 0.373785637 | HE53: PASS | HF53: 300000 | HG53: Pass | HH53: Y | HI53: 2021-07-05T16:35:35 | HK53: Case 51 | HL53: Emily
A54: 300000 | B54: 0.02 | C54: 0.0585 | D54: 30 | E54: 0 | F54: 300000 | G54: 0.02 | H54: 0.0585 | I54: 30 | J54: 0 | P54: Individual (Single) | AH54: 80000 | AI54: 0 | AJ54: 0 | AK54: 0 | AL54: 0 | AM54: 0 | AN54: 0 | AO54: 0 | AP54: 0 | AQ54: 0 | AR54: 0 | AS54: 0 | AT54: 0 | AU54: 0 | AV54: 0 | AW54: 0 | AX54: 0 | AY54: 0 | AZ54: 0 | BA54: 0 | BB54: 0 | BC54: 0 | BD54: 0 | BE54: 0 | BF54: 0 | BG54: 0 | BH54: 0 | BI54: 0 | BJ54: 0 | BK54: 0 | BL54: 0 | BM54: 0 | BN54: 0 | BO54: 0 | BP54: 0 | BQ54: 0 | BR54: 0 | BS54: 0 | BT54: 0 | BU54: 0 | BV54: 0 | BW54: 0 | BX54: 1 | BY54: 1 | BZ54: 1 | CA54: 1 | CB54: 100 | CC54: 50 | CD54: 60 | CE54: 50 | CF54: 20 | CG54: 45 | CH54: 60 | CI54: 1 | CJ54: 1 | CK54: 0 | CL54: 0 | CM54: 0 | CN54: 0 | CO54: 18067 | CP54: 0 | CQ54: 0 | CR54: 0 | CS54: 0 | CT54: 0 | CU54: 62463 | CV54: 0 | CW54: 0 | CX54: 0 | CY54: 0 | CZ54: 0 | DA54: 62463 | DB54: 20169.12 | DC54: 0 | DD54: 0 | DE54: 0 | DF54: 0 | DG54: 0 | DH54: 20169.12 | DI54: 4692 | DJ54: 20169.12 | DK54: 42293.88 | DL54: 0.055 | DM54: 0.025 | DN54: 0.0382 | DO54: 0.0329 | DP54: 1.25 | DQ54: 0.8 | DR54: 0.25 | DS54: 6666.67 | DT54: 5205.25 | DU54: 1680.76 | DV54: 3524.49 | DW54: 1108.86 | DX54: 0 | DY54: 80000 | DZ54: 62463 | EA54: 20169.12 | EB54: 42293.88 | EC54: 13306.3 | ED54: 0 | EE54: 6666.67 | EF54: 5205.25 | EG54: 1680.76 | EH54: 3524.49 | EI54: 1703.37 | EJ54: 0 | EK54: 80000 | EL54: 62463 | EM54: 20169.12 | EN54: 42293.88 | EO54: 20440.4 | EP54: 0 | EQ54: 3.17 | ER54: 0.1663287627 | ES54: PASS | ET54: 2.06 | EU54: 0.2555050506 | EV54: PASS | EW54: 300000 | EX54: 18067 | EY54: 0 | EZ54: 0 | FA54: 0 | FB54: 0 | FC54: 0 | FD54: 62463 | FE54: 0 | FF54: 0 | FG54: 0 | FH54: 0 | FI54: 0 | FJ54: 62463 | FK54: 20169.12 | FL54: 0 | FM54: 0 | FN54: 0 | FO54: 0 | FP54: 0 | FQ54: 20169.12 | FR54: 4692 | FS54: 20169.12 | FT54: 42293.88 | FU54: 0.055 | FV54: 0.025 | FW54: 0.0382 | FX54: 0.0329 | FY54: 1.25 | FZ54: 0.8 | GA54: 0.25 | GB54: 6666.67 | GC54: 5205.25 | GD54: 1680.76 | GE54: 3524.49 | GF54: 1108.86 | GG54: 0 | GH54: 80000 | GI54: 62463 | GJ54: 20169.12 | GK54: 42293.88 | GL54: 13306.3 | GM54: 0 | GN54: 6666.67 | GO54: 5205.25 | GP54: 1680.76 | GQ54: 3524.49 | GR54: 1703.37 | GS54: 0 | GT54: 80000 | GU54: 62463 | GV54: 20169.12 | GW54: 42293.88 | GX54: 20440.4 | GY54: 0 | GZ54: 3.17 | HA54: 0.1663287627 | HB54: PASS | HC54: 2.06 | HD54: 0.2555050506 | HE54: PASS | HF54: 300000 | HG54: =IF(AND(DS54=GB54,DT54=GC54,DU54=GD54,DV54=GE54,DW54=GF54,DX54=GG54,DY54=GH54,DZ54=GI54,EA54=GJ54,EB54=GK54,EC54=GL54,ED54=GM54,EE54=GN54,EF54=GO54,EG54=GP54,EH54=GQ54,EI54=GR54,EJ54=GS54,EK54=GT54,EL54=GU54,EM54=GV54,EN54=GW54,EO54=GX54,EP54=GY54,EQ54=GZ54,ER54=HA54,ES54=HB54,ET54=HC54,EU54=HD54,EV54=HE54,EW54=HF54),"Pass","Fail") -> Pass | HH54: Y | HI54: 2021-07-05T16:35:54 | HK54: Case 52 | HL54: Emily
A55: 300000 | B55: 0.03 | C55: 0.0585 | D55: 30 | E55: 0 | F55: 300000 | G55: 0.03 | H55: 0.0585 | I55: 30 | J55: 0 | P55: Individual (Single) | AH55: 60000 | AI55: 0 | AJ55: 0 | AK55: 0 | AL55: 0 | AM55: 0 | AN55: 0 | AO55: 0 | AP55: 0 | AQ55: 0 | AR55: 0 | AS55: 0 | AT55: 0 | AU55: 0 | AV55: 0 | AW55: 0 | AX55: 0 | AY55: 0 | AZ55: 0 | BA55: 0 | BB55: 0 | BC55: 0 | BD55: 0 | BE55: 0 | BF55: 0 | BG55: 0 | BH55: 0 | BI55: 0 | BJ55: 0 | BK55: 0 | BL55: 0 | BM55: 0 | BN55: 0 | BO55: 0 | BP55: 0 | BQ55: 0 | BR55: 0 | BS55: 0 | BT55: 0 | BU55: 0 | BV55: 0 | BW55: 0 | BX55: 1 | BY55: 1 | BZ55: 1 | CA55: 1 | CB55: 100 | CC55: 50 | CD55: 60 | CE55: 50 | CF55: 20 | CG55: 45 | CH55: 60 | CI55: 1 | CJ55: 1 | CK55: 0 | CL55: 0 | CM55: 0 | CN55: 0 | CO55: 11167 | CP55: 0 | CQ55: 0 | CR55: 0 | CS55: 0 | CT55: 0 | CU55: 49463 | CV55: 0 | CW55: 0 | CX55: 0 | CY55: 0 | CZ55: 0 | DA55: 49463 | DB55: 17436.37 | DC55: 0 | DD55: 0 | DE55: 0 | DF55: 0 | DG55: 0 | DH55: 17436.37 | DI55: 4692 | DJ55: 17436.37 | DK55: 32026.63 | DL55: 0.055 | DM55: 0.025 | DN55: 0.0382 | DO55: 0.0329 | DP55: 1.25 | DQ55: 0.8 | DR55: 0.25 | DS55: 5000 | DT55: 4121.92 | DU55: 1453.03 | DV55: 2668.89 | DW55: 1264.81 | DX55: 0 | DY55: 60000 | DZ55: 49463 | EA55: 17436.37 | EB55: 32026.63 | EC55: 15177.75 | ED55: 0 | EE55: 5000 | EF55: 4121.92 | EG55: 1453.03 | EH55: 2668.89 | EI55: 1703.37 | EJ55: 0 | EK55: 60000 | EL55: 49463 | EM55: 17436.37 | EN55: 32026.63 | EO55: 20440.4 | EP55: 0 | EQ55: 2.11 | ER55: 0.2529624202 | ES55: PASS | ET55: 1.56 | EU55: 0.3406734008 | EV55: PASS | EW55: 300000 | EX55: 11167 | EY55: 0 | EZ55: 0 | FA55: 0 | FB55: 0 | FC55: 0 | FD55: 49463 | FE55: 0 | FF55: 0 | FG55: 0 | FH55: 0 | FI55: 0 | FJ55: 49463 | FK55: 17436.37 | FL55: 0 | FM55: 0 | FN55: 0 | FO55: 0 | FP55: 0 | FQ55: 17436.37 | FR55: 4692 | FS55: 17436.37 | FT55: 32026.63 | FU55: 0.055 | FV55: 0.025 | FW55: 0.0382 | FX55: 0.0329 | FY55: 1.25 | FZ55: 0.8 | GA55: 0.25 | GB55: 5000 | GC55: 4121.92 | GD55: 1453.03 | GE55: 2668.89 | GF55: 1264.81 | GG55: 0 | GH55: 60000 | GI55: 49463 | GJ55: 17436.37 | GK55: 32026.63 | GL55: 15177.75 | GM55: 0 | GN55: 5000 | GO55: 4121.92 | GP55: 1453.03 | GQ55: 2668.89 | GR55: 1703.37 | GS55: 0 | GT55: 60000 | GU55: 49463 | GV55: 17436.37 | GW55: 32026.63 | GX55: 20440.4 | GY55: 0 | GZ55: 2.11 | HA55: 0.2529624202 | HB55: PASS | HC55: 1.56 | HD55: 0.3406734008 | HE55: PASS | HF55: 300000 | HG55: Pass | HH55: Y | HI55: 2021-07-05T16:36:12 | HK55: Case 53 | HL55: Emily
A56: 300000 | B56: 0.0334 | C56: 0.0585 | D56: 30 | E56: 0 | F56: 300000 | G56: 0.0334 | H56: 0.0585 | I56: 30 | J56: 0 | P56: Individual (Single) | Q56: Individual (Single) | AH56: 45000 | AI56: 45000 | AJ56: 0 | AK56: 0 | AL56: 0 | AM56: 0 | AN56: 0 | AO56: 0 | AP56: 0 | AQ56: 0 | AR56: 0 | AS56: 0 | AT56: 0 | AU56: 0 | AV56: 0 | AW56: 0 | AX56: 0 | AY56: 0 | AZ56: 0 | BA56: 0 | BB56: 0 | BC56: 0 | BD56: 0 | BE56: 0 | BF56: 0 | BG56: 0 | BH56: 0 | BI56: 0 | BJ56: 0 | BK56: 0 | BL56: 0 | BM56: 0 | BN56: 0 | BO56: 0 | BP56: 0 | BQ56: 0 | BR56: 0 | BS56: 0 | BT56: 0 | BU56: 0 | BV56: 0 | BW56: 0 | BX56: 100 | BY56: 100 | BZ56: 100 | CA56: 100 | CB56: 100 | CC56: 100 | CD56: 500 | CE56: 10 | CF56: 100 | CG56: 500 | CH56: 300 | CI56: 100 | CJ56: 100 | CK56: 0 | CL56: 0 | CM56: 0 | CN56: 0 | CO56: 5992 | CP56: 5992 | CQ56: 0 | CR56: 0 | CS56: 0 | CT56: 0 | CU56: 39773 | CV56: 39773 | CW56: 0 | CX56: 0 | CY56: 0 | CZ56: 0 | DA56: 79546 | DB56: 15661.4 | DC56: 15661.4 | DD56: 0 | DE56: 0 | DF56: 0 | DG56: 0 | DH56: 31322.81 | DI56: 26520 | DJ56: 31322.81 | DK56: 48223.19 | DL56: 0.055 | DM56: 0.025 | DN56: 0.0382 | DO56: 0.0329 | DP56: 1.25 | DQ56: 0.8 | DR56: 0.25 | DS56: 7500 | DT56: 6628.83 | DU56: 2610.23 | DV56: 4018.6 | DW56: 1320.48 | DX56: 0 | DY56: 90000 | DZ56: 79546 | EA56: 31322.81 | EB56: 48223.19 | EC56: 15845.8 | ED56: 0 | EE56: 7500 | EF56: 6628.83 | EG56: 2610.23 | EH56: 4018.6 | EI56: 1767.91 | EJ56: 0 | EK56: 90000 | EL56: 79546 | EM56: 31322.81 | EN56: 48223.19 | EO56: 21214.9 | EP56: 0 | EQ56: 3.04 | ER56: 0.1760644465 | ES56: PASS | ET56: 2.27 | EU56: 0.2357210959 | EV56: PASS | EW56: 300000 | EX56: 5992 | EY56: 5992 | EZ56: 0 | FA56: 0 | FB56: 0 | FC56: 0 | FD56: 39773 | FE56: 39773 | FF56: 0 | FG56: 0 | FH56: 0 | FI56: 0 | FJ56: 79546 | FK56: 15661.4 | FL56: 15661.4 | FM56: 0 | FN56: 0 | FO56: 0 | FP56: 0 | FQ56: 31322.81 | FR56: 26520 | FS56: 31322.81 | FT56: 48223.19 | FU56: 0.055 | FV56: 0.025 | FW56: 0.0382 | FX56: 0.0329 | FY56: 1.25 | FZ56: 0.8 | GA56: 0.25 | GB56: 7500 | GC56: 6628.83 | GD56: 2610.23 | GE56: 4018.6 | GF56: 1320.48 | GG56: 0 | GH56: 90000 | GI56: 79546 | GJ56: 31322.81 | GK56: 48223.19 | GL56: 15845.8 | GM56: 0 | GN56: 7500 | GO56: 6628.83 | GP56: 2610.23 | GQ56: 4018.6 | GR56: 1767.91 | GS56: 0 | GT56: 90000 | GU56: 79546 | GV56: 31322.81 | GW56: 48223.19 | GX56: 21214.9 | GY56: 0 | GZ56: 3.04 | HA56: 0.1760644465 | HB56: PASS | HC56: 2.27 | HD56: 0.2357210959 | HE56: PASS | HF56: 300000 | HG56: Pass | HH56: Y | HI56: 2021-07-05T16:36:30 | HK56: Case 54 | HL56: Emily
A57: 300000 | B57: 0.0336 | C57: 0.0586 | D57: 30 | E57: 0 | F57: 300000 | G57: 0.0336 | H57: 0.0586 | I57: 30 | J57: 0 | P57: Individual (Single) | Q57: Individual (Single) | AH57: 45000 | AI57: 25000 | AJ57: 0 | AK57: 0 | AL57: 0 | AM57: 0 | AN57: 0 | AO57: 0 | AP57: 0 | AQ57: 0 | AR57: 0 | AS57: 0 | AT57: 0 | AU57: 0 | AV57: 0 | AW57: 0 | AX57: 0 | AY57: 0 | AZ57: 0 | BA57: 0 | BB57: 0 | BC57: 0 | BD57: 0 | BE57: 0 | BF57: 0 | BG57: 0 | BH57: 0 | BI57: 0 | BJ57: 0 | BK57: 0 | BL57: 0 | BM57: 0 | BN57: 0 | BO57: 0 | BP57: 0 | BQ57: 0 | BR57: 0 | BS57: 0 | BT57: 0 | BU57: 0 | BV57: 0 | BW57: 0 | BX57: 100 | BY57: 100 | BZ57: 100 | CA57: 100 | CB57: 100 | CC57: 100 | CD57: 500 | CE57: 10 | CF57: 100 | CG57: 500 | CH57: 300 | CI57: 100 | CJ57: 100 | CK57: 0 | CL57: 0 | CM57: 0 | CN57: 0 | CO57: 5992 | CP57: 1594 | CQ57: 0 | CR57: 0 | CS57: 0 | CT57: 0 | CU57: 39773 | CV57: 24051 | CW57: 0 | CX57: 0 | CY57: 0 | CZ57: 0 | DA57: 63824 | DB57: 15661.4 | DC57: 13921.82 | DD57: 0 | DE57: 0 | DF57: 0 | DG57: 0 | DH57: 29583.23 | DI57: 26520 | DJ57: 29583.23 | DK57: 34240.77 | DL57: 0.055 | DM57: 0.025 | DN57: 0.0382 | DO57: 0.0329 | DP57: 1.25 | DQ57: 0.8 | DR57: 0.25 | DS57: 5833.33 | DT57: 5318.67 | DU57: 2465.27 | DV57: 2853.4 | DW57: 1323.8 | DX57: 0 | DY57: 70000 | DZ57: 63824 | EA57: 29583.23 | EB57: 34240.77 | EC57: 15885.59 | ED57: 0 | EE57: 5833.33 | EF57: 5318.67 | EG57: 2465.27 | EH57: 2853.4 | EI57: 1771.74 | EJ57: 0 | EK57: 70000 | EL57: 63824 | EM57: 29583.23 | EN57: 34240.77 | EO57: 21260.86 | EP57: 0 | EQ57: 2.15 | ER57: 0.2269369652 | ES57: PASS | ET57: 1.61 | EU57: 0.303726567 | EV57: PASS | EW57: 300000 | EX57: 5992 | EY57: 1594 | EZ57: 0 | FA57: 0 | FB57: 0 | FC57: 0 | FD57: 39773 | FE57: 24051 | FF57: 0 | FG57: 0 | FH57: 0 | FI57: 0 | FJ57: 63824 | FK57: 15661.4 | FL57: 13921.82 | FM57: 0 | FN57: 0 | FO57: 0 | FP57: 0 | FQ57: 29583.23 | FR57: 26520 | FS57: 29583.23 | FT57: 34240.77 | FU57: 0.055 | FV57: 0.025 | FW57: 0.0382 | FX57: 0.0329 | FY57: 1.25 | FZ57: 0.8 | GA57: 0.25 | GB57: 5833.33 | GC57: 5318.67 | GD57: 2465.27 | GE57: 2853.4 | GF57: 1323.8 | GG57: 0 | GH57: 70000 | GI57: 63824 | GJ57: 29583.23 | GK57: 34240.77 | GL57: 15885.59 | GM57: 0 | GN57: 5833.33 | GO57: 5318.67 | GP57: 2465.27 | GQ57: 2853.4 | GR57: 1771.74 | GS57: 0 | GT57: 70000 | GU57: 63824 | GV57: 29583.23 | GW57: 34240.77 | GX57: 21260.86 | GY57: 0 | GZ57: 2.15 | HA57: 0.2269369652 | HB57: PASS | HC57: 1.61 | HD57: 0.303726567 | HE57: PASS | HF57: 300000 | HG57: Pass | HH57: Y | HI57: 2021-07-05T16:36:49 | HK57: Case 55 | HL57: Emily
A58: 1200000 | B58: 0.047625 | C58: 0.072625 | D58: 30 | E58: 3 | F58: 500000 | G58: 0.045 | H58: 0.07 | I58: 30 | J58: 3 | K58: 700000 | M58: 0.0745 | N58: 20 | O58: 0 | P58: Individual (Single) | AH58: 100000 | AI58: 0 | AJ58: 0 | AK58: 0 | AL58: 0 | AM58: 0 | AN58: 0 | AO58: 0 | AP58: 0 | AQ58: 0 | AR58: 0 | AS58: 0 | AT58: 0 | AU58: 0 | AV58: 0 | AW58: 0 | AX58: 0 | AY58: 0 | AZ58: 0 | BA58: 0 | BB58: 0 | BC58: 0 | BD58: 0 | BE58: 0 | BF58: 0 | BG58: 0 | BH58: 0 | BI58: 0 | BJ58: 0 | BK58: 0 | BL58: 0 | BM58: 0 | BN58: 0 | BO58: 0 | BP58: 0 | BQ58: 0 | BR58: 0 | BS58: 0 | BT58: 0 | BU58: 0 | BV58: 0 | BW58: 0 | BX58: 100 | BY58: 100 | BZ58: 100 | CA58: 100 | CB58: 100 | CC58: 100 | CD58: 500 | CE58: 10 | CF58: 100 | CG58: 500 | CH58: 300 | CI58: 100 | CJ58: 100 | CK58: 0 | CL58: 0 | CM58: 0 | CN58: 0 | CO58: 24967 | CP58: 0 | CQ58: 0 | CR58: 0 | CS58: 0 | CT58: 0 | CU58: 75413 | CV58: 0 | CW58: 0 | CX58: 0 | CY58: 0 | CZ58: 0 | DA58: 75413 | DB58: 23820.07 | DC58: 0 | DD58: 0 | DE58: 0 | DF58: 0 | DG58: 0 | DH58: 23820.07 | DI58: 26520 | DJ58: 26520 | DK58: 48893 | DL58: 0.055 | DM58: 0.025 | DN58: 0.0382 | DO58: 0.0329 | DP58: 1.25 | DQ58: 0.8 | DR58: 0.25 | DS58: 8333.33 | DT58: 6284.42 | DU58: 2210 | DV58: 4074.42 | DW58: 5585.27 | DX58: 0 | DY58: 100000 | DZ58: 75413 | EA58: 26520 | EB58: 48893 | EC58: 67023.23 | ED58: 0 | EE58: 8333.33 | EF58: 6284.42 | EG58: 2210 | EH58: 4074.42 | EI58: 8254.29 | EJ58: 0 | EK58: 100000 | EL58: 75413 | EM58: 26520 | EN58: 48893 | EO58: 99051.43 | EP58: 0 | EQ58: 0.72 | ER58: 0.6702322926 | ES58: FAIL | ET58: 0.49 | EU58: 0.9905142976 | EV58: FAIL | EW58: 636118.63 | EX58: 24967 | EY58: 0 | EZ58: 0 | FA58: 0 | FB58: 0 | FC58: 0 | FD58: 75413 | FE58: 0 | FF58: 0 | FG58: 0 | FH58: 0 | FI58: 0 | FJ58: 75413 | FK58: 23820.07 | FL58: 0 | FM58: 0 | FN58: 0 | FO58: 0 | FP58: 0 | FQ58: 23820.07 | FR58: 26520 | FS58: 26520 | FT58: 48893 | FU58: 0.055 | FV58: 0.025 | FW58: 0.0382 | FX58: 0.0329 | FY58: 1.25 | FZ58: 0.8 | GA58: 0.25 | GB58: 8333.33 | GC58: 6284.42 | GD58: 2210 | GE58: 4074.42 | GF58: 5585.27 | GG58: 0 | GH58: 100000 | GI58: 75413 | GJ58: 26520 | GK58: 48893 | GL58: 67023.23 | GM58: 0 | GN58: 8333.33 | GO58: 6284.42 | GP58: 2210 | GQ58: 4074.42 | GR58: 8254.29 | GS58: 0 | GT58: 100000 | GU58: 75413 | GV58: 26520 | GW58: 48893 | GX58: 99051.43 | GY58: 0 | GZ58: 0.72 | HA58: 0.6702322926 | HB58: FAIL | HC58: 0.49 | HD58: 0.9905142976 | HE58: FAIL | HF58: 636118.63 | HG58: =IF(AND(DS58=GB58,DT58=GC58,DU58=GD58,DV58=GE58,DW58=GF58,DX58=GG58,DY58=GH58,DZ58=GI58,EA58=GJ58,EB58=GK58,EC58=GL58,ED58=GM58,EE58=GN58,EF58=GO58,EG58=GP58,EH58=GQ58,EI58=GR58,EJ58=GS58,EK58=GT58,EL58=GU58,EM58=GV58,EN58=GW58,EO58=GX58,EP58=GY58,EQ58=GZ58,ER58=HA58,ES58=HB58,ET58=HC58,EU58=HD58,EV58=HE58,EW58=HF58),"Pass","Fail") -> Pass | HH58: Y | HI58: 2021-07-05T16:37:06 | HK58: Case 56 | HL58: Emily
A59: 1600000 | B59: 0.0300625 | C59: 0.0550625 | D59: 30 | E59: 5 | F59: 1000000 | G59: 0.0325 | H59: 0.0575 | I59: 30 | J59: 5 | K59: 600000 | M59: 0.055 | N59: 30 | O59: 0 | P59: Individual (Single) | AH59: 100000 | AI59: 0 | AJ59: 0 | AK59: 0 | AL59: 0 | AM59: 0 | AN59: 0 | AO59: 0 | AP59: 0 | AQ59: 0 | AR59: 0 | AS59: 0 | AT59: 0 | AU59: 0 | AV59: 0 | AW59: 0 | AX59: 0 | AY59: 0 | AZ59: 0 | BA59: 0 | BB59: 0 | BC59: 0 | BD59: 0 | BE59: 0 | BF59: 0 | BG59: 0 | BH59: 0 | BI59: 0 | BJ59: 0 | BK59: 0 | BL59: 0 | BM59: 0 | BN59: 0 | BO59: 0 | BP59: 0 | BQ59: 0 | BR59: 0 | BS59: 0 | BT59: 0 | BU59: 0 | BV59: 0 | BW59: 0 | BX59: 100 | BY59: 100 | BZ59: 100 | CA59: 100 | CB59: 100 | CC59: 100 | CD59: 500 | CE59: 10 | CF59: 100 | CG59: 500 | CH59: 300 | CI59: 100 | CJ59: 100 | CK59: 0 | CL59: 0 | CM59: 0 | CN59: 0 | CO59: 24967 | CP59: 0 | CQ59: 0 | CR59: 0 | CS59: 0 | CT59: 0 | CU59: 75413 | CV59: 0 | CW59: 0 | CX59: 0 | CY59: 0 | CZ59: 0 | DA59: 75413 | DB59: 23820.07 | DC59: 0 | DD59: 0 | DE59: 0 | DF59: 0 | DG59: 0 | DH59: 23820.07 | DI59: 26520 | DJ59: 26520 | DK59: 48893 | DL59: 0.055 | DM59: 0.025 | DN59: 0.0382 | DO59: 0.0329 | DP59: 1.25 | DQ59: 0.8 | DR59: 0.25 | DS59: 8333.33 | DT59: 6284.42 | DU59: 2210 | DV59: 4074.42 | DW59: 6539.83 | DX59: 0 | DY59: 100000 | DZ59: 75413 | EA59: 26520 | EB59: 48893 | EC59: 78477.95 | ED59: 0 | EE59: 8333.33 | EF59: 6284.42 | EG59: 2210 | EH59: 4074.42 | EI59: 9697.8 | EJ59: 0 | EK59: 100000 | EL59: 75413 | EM59: 26520 | EN59: 48893 | EO59: 116373.58 | EP59: 0 | EQ59: 0.62 | ER59: 0.7847794704 | ES59: FAIL | ET59: 0.42 | EU59: 1.163735764 | EV59: FAIL | EW59: 685466.29 | EX59: 24967 | EY59: 0 | EZ59: 0 | FA59: 0 | FB59: 0 | FC59: 0 | FD59: 75413 | FE59: 0 | FF59: 0 | FG59: 0 | FH59: 0 | FI59: 0 | FJ59: 75413 | FK59: 23820.07 | FL59: 0 | FM59: 0 | FN59: 0 | FO59: 0 | FP59: 0 | FQ59: 23820.07 | FR59: 26520 | FS59: 26520 | FT59: 48893 | FU59: 0.055 | FV59: 0.025 | FW59: 0.0382 | FX59: 0.0329 | FY59: 1.25 | FZ59: 0.8 | GA59: 0.25 | GB59: 8333.33 | GC59: 6284.42 | GD59: 2210 | GE59: 4074.42 | GF59: 6539.83 | GG59: 0 | GH59: 100000 | GI59: 75413 | GJ59: 26520 | GK59: 48893 | GL59: 78477.95 | GM59: 0 | GN59: 8333.33 | GO59: 6284.42 | GP59: 2210 | GQ59: 4074.42 | GR59: 9697.8 | GS59: 0 | GT59: 100000 | GU59: 75413 | GV59: 26520 | GW59: 48893 | GX59: 116373.58 | GY59: 0 | GZ59: 0.62 | HA59: 0.7847794704 | HB59: FAIL | HC59: 0.42 | HD59: 1.163735764 | HE59: FAIL | HF59: 685466.29 | HG59: Pass | HH59: Y | HI59: 2021-07-05T16:37:23 | HK59: Case 57 | HL59: Emily
A60: 700000 | B60: 0.05107142857 | C60: 0.07607142857 | D60: 35 | E60: 0 | F60: 250000 | G60: 0.044 | H60: 0.069 | I60: 25 | J60: 0 | K60: 450000 | M60: 0.08 | N60: 35 | O60: 0 | P60: Individual (Single) | AH60: 100000 | AI60: 0 | AJ60: 0 | AK60: 0 | AL60: 0 | AM60: 0 | AN60: 0 | AO60: 0 | AP60: 0 | AQ60: 0 | AR60: 0 | AS60: 0 | AT60: 0 | AU60: 0 | AV60: 0 | AW60: 0 | AX60: 0 | AY60: 0 | AZ60: 0 | BA60: 0 | BB60: 0 | BC60: 0 | BD60: 0 | BE60: 0 | BF60: 0 | BG60: 0 | BH60: 0 | BI60: 0 | BJ60: 0 | BK60: 0 | BL60: 0 | BM60: 0 | BN60: 0 | BO60: 0 | BP60: 0 | BQ60: 0 | BR60: 0 | BS60: 0 | BT60: 0 | BU60: 0 | BV60: 0 | BW60: 0 | BX60: 100 | BY60: 100 | BZ60: 100 | CA60: 100 | CB60: 100 | CC60: 100 | CD60: 500 | CE60: 10 | CF60: 100 | CG60: 500 | CH60: 300 | CI60: 100 | CJ60: 100 | CK60: 0 | CL60: 0 | CM60: 0 | CN60: 0 | CO60: 24967 | CP60: 0 | CQ60: 0 | CR60: 0 | CS60: 0 | CT60: 0 | CU60: 75413 | CV60: 0 | CW60: 0 | CX60: 0 | CY60: 0 | CZ60: 0 | DA60: 75413 | DB60: 23820.07 | DC60: 0 | DD60: 0 | DE60: 0 | DF60: 0 | DG60: 0 | DH60: 23820.07 | DI60: 26520 | DJ60: 26520 | DK60: 48893 | DL60: 0.055 | DM60: 0.025 | DN60: 0.0382 | DO60: 0.0329 | DP60: 1.25 | DQ60: 0.8 | DR60: 0.25 | DS60: 8333.33 | DT60: 6284.42 | DU60: 2210 | DV60: 4074.42 | DW60: 2446.86 | DX60: 0 | DY60: 100000 | DZ60: 75413 | EA60: 26520 | EB60: 48893 | EC60: 29362.29 | ED60: 0 | EE60: 8333.33 | EF60: 6284.42 | EG60: 2210 | EH60: 4074.42 | EI60: 4167.61 | EJ60: 0 | EK60: 100000 | EL60: 75413 | EM60: 26520 | EN60: 48893 | EO60: 50011.26 | EP60: 0 | EQ60: 1.66 | ER60: 0.293622944 | ES60: PASS | ET60: 0.97 | EU60: 0.5001126136 | EV60: FAIL | EW60: 730439.71 | EX60: 24967 | EY60: 0 | EZ60: 0 | FA60: 0 | FB60: 0 | FC60: 0 | FD60: 75413 | FE60: 0 | FF60: 0 | FG60: 0 | FH60: 0 | FI60: 0 | FJ60: 75413 | FK60: 23820.07 | FL60: 0 | FM60: 0 | FN60: 0 | FO60: 0 | FP60: 0 | FQ60: 23820.07 | FR60: 26520 | FS60: 26520 | FT60: 48893 | FU60: 0.055 | FV60: 0.025 | FW60: 0.0382 | FX60: 0.0329 | FY60: 1.25 | FZ60: 0.8 | GA60: 0.25 | GB60: 8333.33 | GC60: 6284.42 | GD60: 2210 | GE60: 4074.42 | GF60: 2446.86 | GG60: 0 | GH60: 100000 | GI60: 75413 | GJ60: 26520 | GK60: 48893 | GL60: 29362.29 | GM60: 0 | GN60: 8333.33 | GO60: 6284.42 | GP60: 2210 | GQ60: 4074.42 | GR60: 4167.61 | GS60: 0 | GT60: 100000 | GU60: 75413 | GV60: 26520 | GW60: 48893 | GX60: 50011.26 | GY60: 0 | GZ60: 1.66 | HA60: 0.293622944 | HB60: PASS | HC60: 0.97 | HD60: 0.5001126136 | HE60: FAIL | HF60: 730439.71 | HG60: Pass | HH60: Y | HI60: 2021-07-05T16:37:39 | HK60: Case 58 | HL60: Emily
A61: 450000 | B61: 0.04833333333 | C61: 0.07333333333 | D61: 40 | E61: 5 | F61: 150000 | G61: 0.055 | H61: 0.08 | I61: 40 | J61: 0 | K61: 300000 | M61: 0.07 | N61: 30 | O61: 5 | P61: Individual (Single) | AH61: 100000 | AI61: 0 | AJ61: 0 | AK61: 0 | AL61: 0 | AM61: 0 | AN61: 0 | AO61: 0 | AP61: 0 | AQ61: 0 | AR61: 0 | AS61: 0 | AT61: 0 | AU61: 0 | AV61: 0 | AW61: 0 | AX61: 0 | AY61: 0 | AZ61: 0 | BA61: 0 | BB61: 0 | BC61: 0 | BD61: 0 | BE61: 0 | BF61: 0 | BG61: 0 | BH61: 0 | BI61: 0 | BJ61: 0 | BK61: 0 | BL61: 0 | BM61: 0 | BN61: 0 | BO61: 0 | BP61: 0 | BQ61: 0 | BR61: 0 | BS61: 0 | BT61: 0 | BU61: 0 | BV61: 0 | BW61: 0 | BX61: 100 | BY61: 100 | BZ61: 100 | CA61: 100 | CB61: 100 | CC61: 100 | CD61: 500 | CE61: 10 | CF61: 100 | CG61: 500 | CH61: 300 | CI61: 100 | CJ61: 100 | CK61: 0 | CL61: 0 | CM61: 0 | CN61: 0 | CO61: 24967 | CP61: 0 | CQ61: 0 | CR61: 0 | CS61: 0 | CT61: 0 | CU61: 75413 | CV61: 0 | CW61: 0 | CX61: 0 | CY61: 0 | CZ61: 0 | DA61: 75413 | DB61: 23820.07 | DC61: 0 | DD61: 0 | DE61: 0 | DF61: 0 | DG61: 0 | DH61: 23820.07 | DI61: 26520 | DJ61: 26520 | DK61: 48893 | DL61: 0.055 | DM61: 0.025 | DN61: 0.0382 | DO61: 0.0329 | DP61: 1.25 | DQ61: 0.8 | DR61: 0.25 | DS61: 8333.33 | DT61: 6284.42 | DU61: 2210 | DV61: 4074.42 | DW61: 1773.66 | DX61: 0 | DY61: 100000 | DZ61: 75413 | EA61: 26520 | EB61: 48893 | EC61: 21283.87 | ED61: 0 | EE61: 8333.33 | EF61: 6284.42 | EG61: 2210 | EH61: 4074.42 | EI61: 2885.23 | EJ61: 0 | EK61: 100000 | EL61: 75413 | EM61: 26520 | EN61: 48893 | EO61: 34622.76 | EP61: 0 | EQ61: 2.29 | ER61: 0.2128386506 | ES61: PASS | ET61: 1.41 | EU61: 0.3462276014 | EV61: PASS | EW61: 450000 | EX61: 24967 | EY61: 0 | EZ61: 0 | FA61: 0 | FB61: 0 | FC61: 0 | FD61: 75413 | FE61: 0 | FF61: 0 | FG61: 0 | FH61: 0 | FI61: 0 | FJ61: 75413 | FK61: 23820.07 | FL61: 0 | FM61: 0 | FN61: 0 | FO61: 0 | FP61: 0 | FQ61: 23820.07 | FR61: 26520 | FS61: 26520 | FT61: 48893 | FU61: 0.055 | FV61: 0.025 | FW61: 0.0382 | FX61: 0.0329 | FY61: 1.25 | FZ61: 0.8 | GA61: 0.25 | GB61: 8333.33 | GC61: 6284.42 | GD61: 2210 | GE61: 4074.42 | GF61: 1773.66 | GG61: 0 | GH61: 100000 | GI61: 75413 | GJ61: 26520 | GK61: 48893 | GL61: 21283.87 | GM61: 0 | GN61: 8333.33 | GO61: 6284.42 | GP61: 2210 | GQ61: 4074.42 | GR61: 2885.23 | GS61: 0 | GT61: 100000 | GU61: 75413 | GV61: 26520 | GW61: 48893 | GX61: 34622.76 | GY61: 0 | GZ61: 2.29 | HA61: 0.2128386506 | HB61: PASS | HC61: 1.41 | HD61: 0.3462276014 | HE61: PASS | HF61: 450000 | HG61: Pass | HH61: Y | HI61: 2021-07-05T16:37:57 | HK61: Case 59 | HL61: Emily
A62: 2250000 | B62: 0.03011111111 | C62: 0.05511111111 | D62: 30 | E62: 5 | F62: 2000000 | G62: 0.0295 | H62: 0.055 | I62: 30 | J62: 0 | K62: 250000 | M62: 0.06 | N62: 30 | O62: 5 | P62: Individual (Single) | AH62: 100000 | AI62: 0 | AJ62: 0 | AK62: 0 | AL62: 0 | AM62: 0 | AN62: 0 | AO62: 0 | AP62: 0 | AQ62: 0 | AR62: 0 | AS62: 0 | AT62: 0 | AU62: 0 | AV62: 0 | AW62: 0 | AX62: 0 | AY62: 0 | AZ62: 0 | BA62: 0 | BB62: 0 | BC62: 0 | BD62: 0 | BE62: 0 | BF62: 0 | BG62: 0 | BH62: 0 | BI62: 0 | BJ62: 0 | BK62: 0 | BL62: 0 | BM62: 0 | BN62: 0 | BO62: 0 | BP62: 0 | BQ62: 0 | BR62: 0 | BS62: 0 | BT62: 0 | BU62: 0 | BV62: 0 | BW62: 0 | BX62: 100 | BY62: 100 | BZ62: 100 | CA62: 100 | CB62: 100 | CC62: 100 | CD62: 500 | CE62: 10 | CF62: 100 | CG62: 500 | CH62: 300 | CI62: 100 | CJ62: 100 | CK62: 0 | CL62: 0 | CM62: 0 | CN62: 0 | CO62: 24967 | CP62: 0 | CQ62: 0 | CR62: 0 | CS62: 0 | CT62: 0 | CU62: 75413 | CV62: 0 | CW62: 0 | CX62: 0 | CY62: 0 | CZ62: 0 | DA62: 75413 | DB62: 23820.07 | DC62: 0 | DD62: 0 | DE62: 0 | DF62: 0 | DG62: 0 | DH62: 23820.07 | DI62: 26520 | DJ62: 26520 | DK62: 48893 | DL62: 0.055 | DM62: 0.025 | DN62: 0.0382 | DO62: 0.0329 | DP62: 1.25 | DQ62: 0.8 | DR62: 0.25 | DS62: 8333.33 | DT62: 6284.42 | DU62: 2210 | DV62: 4074.42 | DW62: 9211.58 | DX62: 0 | DY62: 100000 | DZ62: 75413 | EA62: 26520 | EB62: 48893 | EC62: 110538.93 | ED62: 0 | EE62: 8333.33 | EF62: 6284.42 | EG62: 2210 | EH62: 4074.42 | EI62: 12891 | EJ62: 0 | EK62: 100000 | EL62: 75413 | EM62: 26520 | EN62: 48893 | EO62: 154691.99 | EP62: 0 | EQ62: 0.44 | ER62: 1.105389292 | ES62: FAIL | ET62: 0.31 | EU62: 1.546919851 | EV62: FAIL | EW62: 712215.81 | EX62: 24967 | EY62: 0 | EZ62: 0 | FA62: 0 | FB62: 0 | FC62: 0 | FD62: 75413 | FE62: 0 | FF62: 0 | FG62: 0 | FH62: 0 | FI62: 0 | FJ62: 75413 | FK62: 23820.07 | FL62: 0 | FM62: 0 | FN62: 0 | FO62: 0 | FP62: 0 | FQ62: 23820.07 | FR62: 26520 | FS62: 26520 | FT62: 48893 | FU62: 0.055 | FV62: 0.025 | FW62: 0.0382 | FX62: 0.0329 | FY62: 1.25 | FZ62: 0.8 | GA62: 0.25 | GB62: 8333.33 | GC62: 6284.42 | GD62: 2210 | GE62: 4074.42 | GF62: 9211.58 | GG62: 0 | GH62: 100000 | GI62: 75413 | GJ62: 26520 | GK62: 48893 | GL62: 110538.93 | GM62: 0 | GN62: 8333.33 | GO62: 6284.42 | GP62: 2210 | GQ62: 4074.42 | GR62: 12891 | GS62: 0 | GT62: 100000 | GU62: 75413 | GV62: 26520 | GW62: 48893 | GX62: 154691.99 | GY62: 0 | GZ62: 0.44 | HA62: 1.105389292 | HB62: FAIL | HC62: 0.31 | HD62: 1.546919851 | HE62: FAIL | HF62: 712215.81 | HG62: Pass | HH62: Y | HI62: 2021-07-05T16:38:14 | HK62: Case 60 | HL62: Emily
A63: 1850000 | B63: 0.04578378378 | C63: 0.07078378378 | D63: 30 | E63: 5 | F63: 1100000 | G63: 0.0395 | H63: 0.0645 | I63: 30 | J63: 5 | K63: 750000 | M63: 0.08 | N63: 15 | O63: 0 | P63: Individual (Single) | AH63: 100000 | AI63: 0 | AJ63: 0 | AK63: 0 | AL63: 0 | AM63: 0 | AN63: 0 | AO63: 0 | AP63: 0 | AQ63: 0 | AR63: 0 | AS63: 0 | AT63: 0 | AU63: 0 | AV63: 0 | AW63: 0 | AX63: 0 | AY63: 0 | AZ63: 0 | BA63: 0 | BB63: 0 | BC63: 0 | BD63: 0 | BE63: 0 | BF63: 0 | BG63: 0 | BH63: 0 | BI63: 0 | BJ63: 0 | BK63: 0 | BL63: 0 | BM63: 0 | BN63: 0 | BO63: 0 | BP63: 0 | BQ63: 0 | BR63: 0 | BS63: 0 | BT63: 0 | BU63: 0 | BV63: 0 | BW63: 0 | BX63: 100 | BY63: 100 | BZ63: 100 | CA63: 100 | CB63: 100 | CC63: 100 | CD63: 500 | CE63: 10 | CF63: 100 | CG63: 500 | CH63: 300 | CI63: 100 | CJ63: 100 | CK63: 0 | CL63: 0 | CM63: 0 | CN63: 0 | CO63: 24967 | CP63: 0 | CQ63: 0 | CR63: 0 | CS63: 0 | CT63: 0 | CU63: 75413 | CV63: 0 | CW63: 0 | CX63: 0 | CY63: 0 | CZ63: 0 | DA63: 75413 | DB63: 23820.07 | DC63: 0 | DD63: 0 | DE63: 0 | DF63: 0 | DG63: 0 | DH63: 23820.07 | DI63: 26520 | DJ63: 26520 | DK63: 48893 | DL63: 0.055 | DM63: 0.025 | DN63: 0.0382 | DO63: 0.0329 | DP63: 1.25 | DQ63: 0.8 | DR63: 0.25 | DS63: 8333.33 | DT63: 6284.42 | DU63: 2210 | DV63: 4074.42 | DW63: 9942.55 | DX63: 0 | DY63: 100000 | DZ63: 75413 | EA63: 26520 | EB63: 48893 | EC63: 119310.56 | ED63: 0 | EE63: 8333.33 | EF63: 6284.42 | EG63: 2210 | EH63: 4074.42 | EI63: 13521.07 | EJ63: 0 | EK63: 100000 | EL63: 75413 | EM63: 26520 | EN63: 48893 | EO63: 162252.89 | EP63: 0 | EQ63: 0.4 | ER63: 1.193105579 | ES63: FAIL | ET63: 0.3 | EU63: 1.622528859 | EV63: FAIL | EW63: 607252.61 | EX63: 24967 | EY63: 0 | EZ63: 0 | FA63: 0 | FB63: 0 | FC63: 0 | FD63: 75413 | FE63: 0 | FF63: 0 | FG63: 0 | FH63: 0 | FI63: 0 | FJ63: 75413 | FK63: 23820.07 | FL63: 0 | FM63: 0 | FN63: 0 | FO63: 0 | FP63: 0 | FQ63: 23820.07 | FR63: 26520 | FS63: 26520 | FT63: 48893 | FU63: 0.055 | FV63: 0.025 | FW63: 0.0382 | FX63: 0.0329 | FY63: 1.25 | FZ63: 0.8 | GA63: 0.25 | GB63: 8333.33 | GC63: 6284.42 | GD63: 2210 | GE63: 4074.42 | GF63: 9942.55 | GG63: 0 | GH63: 100000 | GI63: 75413 | GJ63: 26520 | GK63: 48893 | GL63: 119310.56 | GM63: 0 | GN63: 8333.33 | GO63: 6284.42 | GP63: 2210 | GQ63: 4074.42 | GR63: 13521.07 | GS63: 0 | GT63: 100000 | GU63: 75413 | GV63: 26520 | GW63: 48893 | GX63: 162252.89 | GY63: 0 | GZ63: 0.4 | HA63: 1.193105579 | HB63: FAIL | HC63: 0.3 | HD63: 1.622528859 | HE63: FAIL | HF63: 607252.61 | HG63: Pass | HH63: Y | HI63: 2021-07-05T16:38:31 | HK63: Case 61 | HL63: Emily
A64: 489000 | B64: 0.04991165644 | C64: 0.07491165644 | D64: 30 | E64: 0 | F64: 346000 | G64: 0.055 | H64: 0.08 | I64: 10 | J64: 0 | K64: 143000 | M64: 0.0626 | N64: 30 | O64: 0 | P64: Individual (Single) | AB64: 2 | AH64: 55000 | AI64: 0 | AJ64: 0 | AK64: 0 | AL64: 0 | AM64: 0 | AN64: 0 | AO64: 0 | AP64: 0 | AQ64: 0 | AR64: 0 | AS64: 0 | AT64: 0 | AU64: 0 | AV64: 0 | AW64: 0 | AX64: 0 | AY64: 0 | AZ64: 0 | BA64: 0 | BB64: 0 | BC64: 0 | BD64: 0 | BE64: 0 | BF64: 0 | BG64: 0 | BH64: 0 | BI64: 0 | BJ64: 0 | BK64: 0 | BL64: 0 | BM64: 0 | BN64: 0 | BO64: 0 | BP64: 0 | BQ64: 0 | BR64: 0 | BS64: 0 | BT64: 0 | BU64: 0 | BV64: 0 | BW64: 0 | BX64: 1 | BY64: 1 | BZ64: 1 | CA64: 1 | CB64: 1 | CC64: 1 | CD64: 1 | CE64: 1 | CF64: 1 | CG64: 1 | CH64: 1 | CI64: 1 | CJ64: 1 | CK64: 0 | CL64: 2000 | CM64: 0 | CN64: 0 | CO64: 9442 | CP64: 0 | CQ64: 0 | CR64: 0 | CS64: 0 | CT64: 0 | CU64: 46263 | CV64: 0 | CW64: 0 | CX64: 0 | CY64: 0 | CZ64: 0 | DA64: 46263 | DB64: 26779.15 | DC64: 0 | DD64: 0 | DE64: 0 | DF64: 0 | DG64: 0 | DH64: 26779.15 | DI64: 156 | DJ64: 26779.15 | DK64: 19483.85 | DL64: 0.055 | DM64: 0.025 | DN64: 0.0382 | DO64: 0.0329 | DP64: 1.25 | DQ64: 0.8 | DR64: 0.25 | DS64: 4583.33 | DT64: 3855.25 | DU64: 2231.6 | DV64: 1623.65 | DW64: 4152.23 | DX64: 76.4 | DY64: 55000 | DZ64: 46263 | EA64: 26779.15 | EB64: 19483.85 | EC64: 49826.78 | ED64: 916.8 | EE64: 4583.33 | EF64: 3855.25 | EG64: 2231.6 | EH64: 1623.65 | EI64: 5009.87 | EJ64: 76.4 | EK64: 55000 | EL64: 46263 | EM64: 26779.15 | EN64: 19483.85 | EO64: 60118.48 | EP64: 916.8 | EQ64: 0.38 | ER64: 0.9226104959 | ES64: FAIL | ET64: 0.31 | EU64: 1.109732299 | EV64: FAIL | EW64: 184689.65 | EX64: 9442 | EY64: 0 | EZ64: 0 | FA64: 0 | FB64: 0 | FC64: 0 | FD64: 46263 | FE64: 0 | FF64: 0 | FG64: 0 | FH64: 0 | FI64: 0 | FJ64: 46263 | FK64: 26779.15 | FL64: 0 | FM64: 0 | FN64: 0 | FO64: 0 | FP64: 0 | FQ64: 26779.15 | FR64: 156 | FS64: 26779.15 | FT64: 19483.85 | FU64: 0.055 | FV64: 0.025 | FW64: 0.0382 | FX64: 0.0329 | FY64: 1.25 | FZ64: 0.8 | GA64: 0.25 | GB64: 4583.33 | GC64: 3855.25 | GD64: 2231.6 | GE64: 1623.65 | GF64: 4152.23 | GG64: 76.4 | GH64: 55000 | GI64: 46263 | GJ64: 26779.15 | GK64: 19483.85 | GL64: 49826.78 | GM64: 916.8 | GN64: 4583.33 | GO64: 3855.25 | GP64: 2231.6 | GQ64: 1623.65 | GR64: 5009.87 | GS64: 76.4 | GT64: 55000 | GU64: 46263 | GV64: 26779.15 | GW64: 19483.85 | GX64: 60118.48 | GY64: 916.8 | GZ64: 0.38 | HA64: 0.9226104959 | HB64: FAIL | HC64: 0.31 | HD64: 1.109732299 | HE64: FAIL | HF64: 184689.65 | HG64: Pass | HH64: Y | HI64: 2021-07-05T16:38:48 | HK64: Case 62 | HL64: Emily
A65: 355000 | B65: 0.0303943662 | C65: 0.0553943662 | D65: 30 | E65: 5 | F65: 145000 | G65: 0.044 | H65: 0.069 | I65: 25 | J65: 5 | K65: 210000 | M65: 0.055 | N65: 30 | O65: 0 | P65: Individual (Single) | AB65: 2 | AH65: 55000 | AI65: 0 | AJ65: 0 | AK65: 0 | AL65: 0 | AM65: 0 | AN65: 0 | AO65: 0 | AP65: 0 | AQ65: 0 | AR65: 0 | AS65: 0 | AT65: 0 | AU65: 0 | AV65: 0 | AW65: 0 | AX65: 0 | AY65: 0 | AZ65: 0 | BA65: 0 | BB65: 0 | BC65: 0 | BD65: 0 | BE65: 0 | BF65: 0 | BG65: 0 | BH65: 0 | BI65: 0 | BJ65: 0 | BK65: 0 | BL65: 0 | BM65: 0 | BN65: 0 | BO65: 0 | BP65: 0 | BQ65: 0 | BR65: 0 | BS65: 0 | BT65: 0 | BU65: 0 | BV65: 0 | BW65: 0 | BX65: 1 | BY65: 1 | BZ65: 1 | CA65: 1 | CB65: 1 | CC65: 1 | CD65: 1 | CE65: 1 | CF65: 1 | CG65: 1 | CH65: 1 | CI65: 1 | CJ65: 1 | CK65: 0 | CL65: 2000 | CM65: 0 | CN65: 0 | CO65: 9442 | CP65: 0 | CQ65: 0 | CR65: 0 | CS65: 0 | CT65: 0 | CU65: 46263 | CV65: 0 | CW65: 0 | CX65: 0 | CY65: 0 | CZ65: 0 | DA65: 46263 | DB65: 26779.15 | DC65: 0 | DD65: 0 | DE65: 0 | DF65: 0 | DG65: 0 | DH65: 26779.15 | DI65: 156 | DJ65: 26779.15 | DK65: 19483.85 | DL65: 0.055 | DM65: 0.025 | DN65: 0.0382 | DO65: 0.0329 | DP65: 1.25 | DQ65: 0.8 | DR65: 0.25 | DS65: 4583.33 | DT65: 3855.25 | DU65: 2231.6 | DV65: 1623.65 | DW65: 1492.87 | DX65: 76.4 | DY65: 55000 | DZ65: 46263 | EA65: 26779.15 | EB65: 19483.85 | EC65: 17914.4 | ED65: 916.8 | EE65: 4583.33 | EF65: 3855.25 | EG65: 2231.6 | EH65: 1623.65 | EI65: 2307.85 | EJ65: 76.4 | EK65: 55000 | EL65: 46263 | EM65: 26779.15 | EN65: 19483.85 | EO65: 27694.24 | EP65: 916.8 | EQ65: 1.03 | ER65: 0.3423854049 | ES65: PASS | ET65: 0.68 | EU65: 0.5202007015 | EV65: FAIL | EW65: 256112.99 | EX65: 9442 | EY65: 0 | EZ65: 0 | FA65: 0 | FB65: 0 | FC65: 0 | FD65: 46263 | FE65: 0 | FF65: 0 | FG65: 0 | FH65: 0 | FI65: 0 | FJ65: 46263 | FK65: 26779.15 | FL65: 0 | FM65: 0 | FN65: 0 | FO65: 0 | FP65: 0 | FQ65: 26779.15 | FR65: 156 | FS65: 26779.15 | FT65: 19483.85 | FU65: 0.055 | FV65: 0.025 | FW65: 0.0382 | FX65: 0.0329 | FY65: 1.25 | FZ65: 0.8 | GA65: 0.25 | GB65: 4583.33 | GC65: 3855.25 | GD65: 2231.6 | GE65: 1623.65 | GF65: 1492.87 | GG65: 76.4 | GH65: 55000 | GI65: 46263 | GJ65: 26779.15 | GK65: 19483.85 | GL65: 17914.4 | GM65: 916.8 | GN65: 4583.33 | GO65: 3855.25 | GP65: 2231.6 | GQ65: 1623.65 | GR65: 2307.85 | GS65: 76.4 | GT65: 55000 | GU65: 46263 | GV65: 26779.15 | GW65: 19483.85 | GX65: 27694.24 | GY65: 916.8 | GZ65: 1.03 | HA65: 0.3423854049 | HB65: PASS | HC65: 0.68 | HD65: 0.5202007015 | HE65: FAIL | HF65: 256112.99 | HG65: Pass | HH65: Y | HI65: 2021-07-05T16:39:05 | HK65: Case 63 | HL65: Emily

Sheet CommercialTestCases (hidden)
A1: Test Cases TestCases TestCases TestCases TestCases TestCases TestCases TestCases TestCases TestCases TestCases TestCases TestCases TestCases TestCases TestCases TestCases TestCases TestCases TestCases TestCases TestCases TestCases TestCases TestCases TestCases TestCases TestCases TestCases TestCases TestCases TestCases TestCases TestCases TestCases TestCases TestCases TestCases TestCases TestCases TestCases TestCases TestCases TestCases TestCases TestCases TestCases TestCases TestCases TestCases TestCases TestCases TestCases TestCases TestCases TestCases TestCases TestCases TestCases TestCases TestCases TestCases TestCases TestCases TestCases TestCases TestCases TestCases TestCases TestCases TestCases TestCases TestCases TestCases TestCases TestCases TestCases TestCases TestCases TestCases TestCases TestCases TestCases TestCases | BG1: Original-Result-set Original-Result-set Original-Result-set Original-Result-set Original-Result-set Original-Result-set Original-Result-set Original-Result-set Original-Result-set Original-Result-set Original-Result-set Original-Result-set Original-Result-set Original-Result-set Original-Result-set Original-Result-set Original-Result-set Original-Result-set Original-Result-set Original-Result-set Original-Result-set Original-Result-set Original-Result-set Original-Result-set Original-Result-set Original-Result-set Original-Result-set Original-Result-set Original-Result-set Original-Result-set Original-Result-set Original-Result-set Original-Result-set | DJ1: New-Resultset New-Resultset New-Resultset New-Resultset New-Resultset New-Resultset New-Resultset New-Resultset New-Resultset New-Resultset New-Resultset New-Resultset New-Resultset New-Resultset New-Resultset New-Resultset New-Resultset New-Resultset New-Resultset New-Resultset New-Resultset New-Resultset New-Resultset New-Resultset New-Resultset New-Resultset New-Resultset | FM1: Test cases will run when date tested is blank and Run Scenario Flag is "Y"
A2: New Loan Amount | B2: Interest Rate | C2: Documentation Type | D2: Loan Term (Years) | E2: I/O Term (Years) | F2: Loan Amount 1 | G2: Rate 1 | H2: Actual Loan Repayment (Monthly) 1 | I2: Loan Amount 2 | J2: Rate 2 | K2: Actual Loan Repayment (Monthly) 2 | L2: Loan Amount 3 | M2: Rate 3 | N2: Actual Loan Repayment (Monthly) 3 | O2: Loan Amount 4 | P2: Rate 4 | Q2: Actual Loan Repayment (Monthly) 4 | R2: Net Profit Before Tax | S2: Proposed Net CRE Rental Income | T2: Proposed Gross Residential Rental Income | U2: Depreciation | V2: Ammortisation | W2: Interest Paid | X2: Directors Salaries/ Fees / Super | Y2: Other | Z2: Status Applicant 1 | AA2: Status Applicant 2 | AB2: Status Applicant 3 | AC2: Status Applicant 4 | AD2: Couple with Applicant 1 | AE2: Couple with Applicant 2 | AF2: Couple with Applicant 3 | AG2: Couple with Applicant 4 | AH2: Dependent Applicant 1 | AI2: Dependent Applicant 2 | AJ2: Dependent Applicant 3 | AK2: Dependent Applicant 4 | AL2: Gross Annual Income Applicant 1 | AM2: Gross Annual Income Applicant 2 | AN2: Gross Annual Income Applicant 3 | AO2: Gross Annual Income Applicant 4 | AP2: Untaxed Allowable Income Applicant 1 | AQ2: Untaxed Allowable Income Applicant 2 | AR2: Untaxed Allowable Income Applicant 3 | AS2: Untaxed Allowable Income Applicant 4 | AT2: Gross Residential Rental Income (Other) Applicant 1 | AU2: Gross Residential Rental Income (Other) Applicant 2 | AV2: Gross Residential Rental Income (Other) Applicant 3 | AW2: Gross Residential Rental Income (Other) Applicant 4 | AX2: Investment Property Loan Balance (personal name) Applicant 1 | AY2: Investment Property Loan Balance (personal name) Applicant 2 | AZ2: Investment Property Loan Balance (personal name) Applicant 3 | BA2: Investment Property Loan Balance (personal name) Applicant 4 | BB2: Living Expenses Monthly (Declared Living Expenses) | BC2: Rent/Board | BD2: Total Credit Card Limit | BE2: Personal Mortgage Repayments | BF2: Other Consumer Debt | BG2: P&I Repayment | BH2: IO Repayment | BI2: Earning Before Interest, Tax, Depreciation & Ammortisation (EBITDA) | BJ2: Total Add Backs | BK2: Total Income Applicant 1 | BL2: Total Income Applicant 2 | BM2: Total Income Applicant 3 | BN2: Total Income Applicant 4 | BO2: Total Gross Annual Income of All Applicants | BP2: Tax Applicant 1 | BQ2: Tax Applicant 2 | BR2: Tax Applicant 3 | BS2: Tax Applicant 4 | BT2: Tax offset for Low Income Earners Applicant 1 | BU2: Tax offset for Low Income Earners Applicant 2 | BV2: Tax offset for Low Income Earners Applicant 3 | BW2: Tax offset for Low Income Earners Applicant 4 | BX2: Total Net Annual Income Applicant 1 | BY2: Total Net Annual Income Applicant 2 | BZ2: Total Net Annual Income Applicant 3 | CA2: Total Net Annual Income Applicant 4 | CB2: Total Net Annual Income of All Applicants | CC2: Total Taxable Income Applicant 1 | CD2: Total Taxable Income Applicant 2 | CE2: Total Taxable Income Applicant 3 | CF2: Total Taxable Income Applicant 4 | CG2: Total Taxable Income For All Applicants | CH2: Spouse Income Applicant 1 | CI2: Spouse Income Applicant 2 | CJ2: Spouse Income Applicant 3 | CK2: Spouse Income Applicant 4 | CL2: Hem Living Expense Applicant 1 | CM2: Hem Living Expense Applicant 2 | CN2: Hem Living Expense Applicant 3 | CO2: Hem Living Expense Applicant 4 | CP2: Hem Living Expense Total | CQ2: Customer Nominated Living Expenses | CR2: Used Living Expenses | CS2: Personal rent | CT2: Personal Debt | CU2: Baseline Assessment Rate | CV2: Assessment Loading | CW2: Credit Card Commitments | CX2: Workings for Negative Gearing | CY2: Other Mortgage Repayment Buffer | CZ2: Rental Income Shading | DA2: Company Tax | DB2: Business income (EBITDA + net personal contribution) | DC2: Interest Expenses | DD2: Debt Repayments | DE2: Interest Coverage Ratio (ICR) % | DF2: Debt Service Coverage Ratio (DSCR) % | DG2: Interest Coverage Ratio (ICR) Flag | DH2: Debt Service Coverage Ratio (DSCR) Flag | DI2: Application Status Flag | DJ2: P&I Repayment | DK2: IO Repayment | DL2: Earning Before Interest, Tax, Depreciation & Ammortisation (EBITDA) | DM2: Total Add Backs | DN2: Total Income Applicant 1 | DO2: Total Income Applicant 2 | DP2: Total Income Applicant 3 | DQ2: Total Income Applicant 4 | DR2: Total Gross Annual Income of All Applicants | DS2: Tax Applicant 1 | DT2: Tax Applicant 2 | DU2: Tax Applicant 3 | DV2: Tax Applicant 4 | DW2: Tax offset for Low Income Earners Applicant 1 | DX2: Tax offset for Low Income Earners Applicant 2 | DY2: Tax offset for Low Income Earners Applicant 3 | DZ2: Tax offset for Low Income Earners Applicant 4 | EA2: Total Net Annual Income Applicant 1 | EB2: Total Net Annual Income Applicant 2 | EC2: Total Net Annual Income Applicant 3 | ED2: Total Net Annual Income Applicant 4 | EE2: Total Net Annual Income of All Applicants | EF2: Total Taxable Income Applicant 1 | EG2: Total Taxable Income Applicant 2 | EH2: Total Taxable Income Applicant 3 | EI2: Total Taxable Income Applicant 4 | EJ2: Total Taxable Income For All Applicants | EK2: Spouse Income Applicant 1 | EL2: Spouse Income Applicant 2 | EM2: Spouse Income Applicant 3 | EN2: Spouse Income Applicant 4 | EO2: Hem Living Expense Applicant 1 | EP2: Hem Living Expense Applicant 2 | EQ2: Hem Living Expense Applicant 3 | ER2: Hem Living Expense Applicant 4 | ES2: Hem Living Expense Total | ET2: Customer Nominated Living Expenses | EU2: Used Living Expenses | EV2: Personal rent | EW2: Personal Debt | EX2: Baseline Assessment Rate | EY2: Assessment Loading | EZ2: Credit Card Commitments | FA2: Workings for Negative Gearing | FB2: Other Mortgage Repayment Buffer | FC2: Rental Income Shading | FD2: Company Tax | FE2: Business income (EBITDA + net personal contribution) | FF2: Interest Expenses | FG2: Debt Repayments | FH2: Interest Coverage Ratio (ICR) % | FI2: Debt Service Coverage Ratio (DSCR) % | FJ2: Interest Coverage Ratio (ICR) Flag | FK2: Debt Service Coverage Ratio (DSCR) Flag | FL2: Application Status Flag | FM2: Pass or Fail | FN2: Run Scenario Flag | FO2: Date Tested | FP2: Scenario | FQ2: Sequence | FR2: Name
A3: 1000000 | B3: 0.05 | C3: Full Doc | D3: 12 | E3: 0 | F3: 0 | G3: 0 | H3: 0 | I3: 0 | J3: 0 | K3: 0 | L3: 0 | M3: 0 | N3: 0 | O3: 0 | P3: 0 | Q3: 0 | R3: 50000 | S3: 70000 | T3: 0 | U3: 0 | V3: 0 | W3: 0 | X3: 0 | Y3: 0 | Z3: 0 | AA3: 0 | AB3: 0 | AC3: 0 | AD3: 0 | AE3: 0 | AF3: 0 | AG3: 0 | AH3: 0 | AI3: 0 | AJ3: 0 | AK3: 0 | AL3: 0 | AM3: 0 | AN3: 0 | AO3: 0 | AP3: 0 | AQ3: 0 | AR3: 0 | AS3: 0 | AT3: 0 | AU3: 0 | AV3: 0 | AW3: 0 | AX3: 0 | AY3: 0 | AZ3: 0 | BA3: 0 | BB3: 0 | BC3: 0 | BD3: 0 | BE3: 0 | BF3: 0 | BG3: 9248.9 | BH3: 0 | BI3: 120000 | BJ3: 0 | BK3: 0 | BL3: 0 | BM3: 0 | BN3: 0 | BO3: 0 | BP3: 0 | BQ3: 0 | BR3: 0 | BS3: 0 | BT3: 0 | BU3: 0 | BV3: 0 | BW3: 0 | BX3: 0 | BY3: 0 | BZ3: 0 | CA3: 0 | CB3: 0 | CC3: 0 | CD3: 0 | CE3: 0 | CF3: 0 | CG3: 0 | CH3: 0 | CI3: 0 | CJ3: 0 | CK3: 0 | CL3: 0 | CM3: 0 | CN3: 0 | CO3: 0 | CP3: 0 | CQ3: 0 | CR3: 0 | CS3: 0 | CT3: 0 | CU3: 0.055 | CV3: 0.025 | CW3: 0.0382 | CX3: 0.0329 | CY3: 1.25 | CZ3: 0.8 | DA3: 0.25 | DB3: 120000 | DC3: 50000 | DD3: 110986.85 | DE3: 2.4 | DF3: 1.081209174 | DG3: PASS | DH3: FAIL | DI3: COMPLETE | DJ3: 9248.9 | DK3: 0 | DL3: 120000 | DM3: 0 | DN3: 0 | DO3: 0 | DP3: 0 | DQ3: 0 | DR3: 0 | DS3: 0 | DT3: 0 | DU3: 0 | DV3: 0 | DW3: 0 | DX3: 0 | DY3: 0 | DZ3: 0 | EA3: 0 | EB3: 0 | EC3: 0 | ED3: 0 | EE3: 0 | EF3: 0 | EG3: 0 | EH3: 0 | EI3: 0 | EJ3: 0 | EK3: 0 | EL3: 0 | EM3: 0 | EN3: 0 | EO3: 0 | EP3: 0 | EQ3: 0 | ER3: 0 | ES3: 0 | ET3: 0 | EU3: 0 | EV3: 0 | EW3: 0 | EX3: 0.055 | EY3: 0.025 | EZ3: 0.0382 | FA3: 0.0329 | FB3: 1.25 | FC3: 0.8 | FD3: 0.25 | FE3: 120000 | FF3: 50000 | FG3: 110986.85 | FH3: 2.4 | FI3: 1.081209174 | FJ3: PASS | FK3: FAIL | FL3: COMPLETE | FM3: =IF(AND(CC3=EF3,CD3=EG3,CE3=EH3,CF3=EI3,CG3=EJ3,CH3=EK3,CI3=EL3,CJ3=EM3,CK3=EN3,CL3=EO3,CM3=EP3,CN3=EQ3,CO3=ER3,CP3=ES3,CQ3=ET3,CR3=EU3,CS3=EV3,CT3=EW3,CU3=EX3,CV3=EY3,CW3=EZ3,CX3=FA3,CY3=FB3,CZ3=FC3,DA3=FD3,DB3=FE3,DC3=FF3,DD3=FG3,DE3=FH3,DF3=FI3,DG3=FJ3,DH3=FK3,DI3=FL3),"Pass","Fail") -> Pass | FN3: Y | FO3: 2021-07-28T09:28:11 | FQ3: Case 1 | FR3: Emily
A4: 1000000 | B4: 0.05 | C4: Full Doc | D4: 15 | E4: 3 | F4: 0 | G4: 0 | H4: 0 | I4: 0 | J4: 0 | K4: 0 | L4: 0 | M4: 0 | N4: 0 | O4: 0 | P4: 0 | Q4: 0 | R4: 50000 | S4: 70000 | T4: 0 | U4: 0 | V4: 0 | W4: 0 | X4: 0 | Y4: 0 | Z4: Individual (Couple) | AA4: 0 | AB4: 0 | AC4: 0 | AD4: N/A | AE4: 0 | AF4: 0 | AG4: 0 | AH4: 2 | AI4: 0 | AJ4: 0 | AK4: 0 | AL4: 30000 | AM4: 0 | AN4: 0 | AO4: 0 | AP4: 0 | AQ4: 0 | AR4: 0 | AS4: 0 | AT4: 0 | AU4: 0 | AV4: 0 | AW4: 0 | AX4: 0 | AY4: 0 | AZ4: 0 | BA4: 0 | BB4: 2000 | BC4: 0 | BD4: 10000 | BE4: 0 | BF4: 1000 | BG4: 9248.9 | BH4: 4166.67 | BI4: 120000 | BJ4: 0 | BK4: 30000 | BL4: 0 | BM4: 0 | BN4: 0 | BO4: 30000 | BP4: 2842 | BQ4: 0 | BR4: 0 | BS4: 0 | BT4: -645 | BU4: 0 | BV4: 0 | BW4: 0 | BX4: 27803 | BY4: 0 | BZ4: 0 | CA4: 0 | CB4: 27803 | CC4: 30000 | CD4: 0 | CE4: 0 | CF4: 0 | CG4: 30000 | CH4: 0 | CI4: 0 | CJ4: 0 | CK4: 0 | CL4: 32354.91 | CM4: 0 | CN4: 0 | CO4: 0 | CP4: 32354.91 | CQ4: 24000 | CR4: 32354.91 | CS4: 0 | CT4: 16584 | CU4: 0.055 | CV4: 0.025 | CW4: 0.0382 | CX4: 0.0329 | CY4: 1.25 | CZ4: 0.8 | DA4: 0.25 | DB4: 98864.09 | DC4: 50000 | DD4: 110986.85 | DE4: 1.977281734 | DF4: 0.8907729793 | DG4: PASS | DH4: FAIL | DI4: COMPLETE | DJ4: 9248.9 | DK4: 4166.67 | DL4: 120000 | DM4: 0 | DN4: 30000 | DO4: 0 | DP4: 0 | DQ4: 0 | DR4: 30000 | DS4: 2842 | DT4: 0 | DU4: 0 | DV4: 0 | DW4: -645 | DX4: 0 | DY4: 0 | DZ4: 0 | EA4: 27803 | EB4: 0 | EC4: 0 | ED4: 0 | EE4: 27803 | EF4: 30000 | EG4: 0 | EH4: 0 | EI4: 0 | EJ4: 30000 | EK4: 0 | EL4: 0 | EM4: 0 | EN4: 0 | EO4: 32354.91 | EP4: 0 | EQ4: 0 | ER4: 0 | ES4: 32354.91 | ET4: 24000 | EU4: 32354.91 | EV4: 0 | EW4: 16584 | EX4: 0.055 | EY4: 0.025 | EZ4: 0.0382 | FA4: 0.0329 | FB4: 1.25 | FC4: 0.8 | FD4: 0.25 | FE4: 98864.09 | FF4: 50000 | FG4: 110986.85 | FH4: 1.977281734 | FI4: 0.8907729793 | FJ4: PASS | FK4: FAIL | FL4: COMPLETE | FM4: Pass | FN4: Y | FO4: 2021-07-28T09:28:17 | FQ4: Case 2 | FR4: Emily
A5: 1000000 | B5: 0.05 | C5: Full Doc | D5: 15 | E5: 3 | F5: 0 | G5: 0 | H5: 0 | I5: 0 | J5: 0 | K5: 0 | L5: 0 | M5: 0 | N5: 0 | O5: 0 | P5: 0 | Q5: 0 | R5: 50000 | S5: 70000 | T5: 80000 | U5: 0 | V5: 0 | W5: 0 | X5: 0 | Y5: 0 | Z5: Individual (Couple) | AA5: 0 | AB5: 0 | AC5: 0 | AD5: N/A | AE5: 0 | AF5: 0 | AG5: 0 | AH5: 2 | AI5: 0 | AJ5: 0 | AK5: 0 | AL5: 30000 | AM5: 0 | AN5: 0 | AO5: 0 | AP5: 0 | AQ5: 0 | AR5: 0 | AS5: 0 | AT5: 0 | AU5: 0 | AV5: 0 | AW5: 0 | AX5: 0 | AY5: 0 | AZ5: 0 | BA5: 0 | BB5: 4000 | BC5: 0 | BD5: 10000 | BE5: 0 | BF5: 1000 | BG5: 9248.9 | BH5: 4166.67 | BI5: 184000 | BJ5: 0 | BK5: 30000 | BL5: 0 | BM5: 0 | BN5: 0 | BO5: 30000 | BP5: 2842 | BQ5: 0 | BR5: 0 | BS5: 0 | BT5: -645 | BU5: 0 | BV5: 0 | BW5: 0 | BX5: 27803 | BY5: 0 | BZ5: 0 | CA5: 0 | CB5: 27803 | CC5: 30000 | CD5: 0 | CE5: 0 | CF5: 0 | CG5: 30000 | CH5: 0 | CI5: 0 | CJ5: 0 | CK5: 0 | CL5: 32354.91 | CM5: 0 | CN5: 0 | CO5: 0 | CP5: 32354.91 | CQ5: 48000 | CR5: 48000 | CS5: 0 | CT5: 16584 | CU5: 0.055 | CV5: 0.025 | CW5: 0.0382 | CX5: 0.0329 | CY5: 1.25 | CZ5: 0.8 | DA5: 0.25 | DB5: 147219 | DC5: 50000 | DD5: 110986.85 | DE5: 2.94438 | DF5: 1.326454445 | DG5: PASS | DH5: PASS | DI5: COMPLETE | DJ5: 9248.9 | DK5: 4166.67 | DL5: 184000 | DM5: 0 | DN5: 30000 | DO5: 0 | DP5: 0 | DQ5: 0 | DR5: 30000 | DS5: 2842 | DT5: 0 | DU5: 0 | DV5: 0 | DW5: -645 | DX5: 0 | DY5: 0 | DZ5: 0 | EA5: 27803 | EB5: 0 | EC5: 0 | ED5: 0 | EE5: 27803 | EF5: 30000 | EG5: 0 | EH5: 0 | EI5: 0 | EJ5: 30000 | EK5: 0 | EL5: 0 | EM5: 0 | EN5: 0 | EO5: 32354.91 | EP5: 0 | EQ5: 0 | ER5: 0 | ES5: 32354.91 | ET5: 48000 | EU5: 48000 | EV5: 0 | EW5: 16584 | EX5: 0.055 | EY5: 0.025 | EZ5: 0.0382 | FA5: 0.0329 | FB5: 1.25 | FC5: 0.8 | FD5: 0.25 | FE5: 147219 | FF5: 50000 | FG5: 110986.85 | FH5: 2.94438 | FI5: 1.326454445 | FJ5: PASS | FK5: PASS | FL5: COMPLETE | FM5: Pass | FN5: Y | FO5: 2021-07-28T09:28:22 | FQ5: Case 3 | FR5: Emily
A6: 1000000 | B6: 0.05 | C6: Alt Doc | D6: 12 | E6: 0 | F6: 0 | G6: 0 | H6: 0 | I6: 0 | J6: 0 | K6: 0 | L6: 0 | M6: 0 | N6: 0 | O6: 0 | P6: 0 | Q6: 0 | R6: 50000 | S6: 70000 | T6: 0 | U6: 0 | V6: 0 | W6: 0 | X6: 0 | Y6: 0 | Z6: 0 | AA6: 0 | AB6: 0 | AC6: 0 | AD6: 0 | AE6: 0 | AF6: 0 | AG6: 0 | AH6: 0 | AI6: 0 | AJ6: 0 | AK6: 0 | AL6: 0 | AM6: 0 | AN6: 0 | AO6: 0 | AP6: 0 | AQ6: 0 | AR6: 0 | AS6: 0 | AT6: 0 | AU6: 0 | AV6: 0 | AW6: 0 | AX6: 0 | AY6: 0 | AZ6: 0 | BA6: 0 | BB6: 0 | BC6: 0 | BD6: 0 | BE6: 0 | BF6: 0 | BG6: 9248.9 | BH6: 0 | BI6: 120000 | BJ6: 0 | BK6: 0 | BL6: 0 | BM6: 0 | BN6: 0 | BO6: 0 | BP6: 0 | BQ6: 0 | BR6: 0 | BS6: 0 | BT6: 0 | BU6: 0 | BV6: 0 | BW6: 0 | BX6: 0 | BY6: 0 | BZ6: 0 | CA6: 0 | CB6: 0 | CC6: 0 | CD6: 0 | CE6: 0 | CF6: 0 | CG6: 0 | CH6: 0 | CI6: 0 | CJ6: 0 | CK6: 0 | CL6: 0 | CM6: 0 | CN6: 0 | CO6: 0 | CP6: 0 | CQ6: 0 | CR6: 0 | CS6: 0 | CT6: 0 | CU6: 0.055 | CV6: 0.025 | CW6: 0.0382 | CX6: 0.0329 | CY6: 1.25 | CZ6: 0.8 | DA6: 0.25 | DB6: 120000 | DC6: 50000 | DD6: 110986.85 | DE6: 2.4 | DF6: 1.081209174 | DG6: PASS | DH6: FAIL | DI6: COMPLETE | DJ6: 9248.9 | DK6: 0 | DL6: 120000 | DM6: 0 | DN6: 0 | DO6: 0 | DP6: 0 | DQ6: 0 | DR6: 0 | DS6: 0 | DT6: 0 | DU6: 0 | DV6: 0 | DW6: 0 | DX6: 0 | DY6: 0 | DZ6: 0 | EA6: 0 | EB6: 0 | EC6: 0 | ED6: 0 | EE6: 0 | EF6: 0 | EG6: 0 | EH6: 0 | EI6: 0 | EJ6: 0 | EK6: 0 | EL6: 0 | EM6: 0 | EN6: 0 | EO6: 0 | EP6: 0 | EQ6: 0 | ER6: 0 | ES6: 0 | ET6: 0 | EU6: 0 | EV6: 0 | EW6: 0 | EX6: 0.055 | EY6: 0.025 | EZ6: 0.0382 | FA6: 0.0329 | FB6: 1.25 | FC6: 0.8 | FD6: 0.25 | FE6: 120000 | FF6: 50000 | FG6: 110986.85 | FH6: 2.4 | FI6: 1.081209174 | FJ6: PASS | FK6: FAIL | FL6: COMPLETE | FM6: Pass | FN6: Y | FO6: 2021-07-28T09:28:27 | FQ6: Case 4 | FR6: Emily
